Workbook

Sheet WB! Status
A1: What'sBest!® 13.0.2.0 (Mar 18, 2016) - Lib. 9.0.2217.270 - 64-bit - Status Report -
A3: DATE GENERATED: | B3: 2023-03-10T10:47:04 | C3: 44995.44935
A6: MODEL INFORMATION:
A8: CLASSIFICATION DATA Current Capacity Limits
A9: --------------------------------------------------------
A10: Total Cells 2892838
A11: Numerics 2874915
A12: Adjustables 14439 Unlimited
A13: Continuous 7565
A14: Free 0
A15: Integers/Binaries 46/6828 Unlimited
A16: Constants 1202508
A17: Formulas 1657968
A18: Strings 0
A19: Constraints 17923 Unlimited
A20: Nonlinears 0 Unlimited
A21: Coefficients 4848226
A23: Minimum coefficient value: 2.2096051199624e-020 on EE_Selection!I2435
A24: Minimum coefficient in formula: EE_Selection!FP2435
A25: Maximum coefficient value: 1561933.6254003 on Selection!Z103
A26: Maximum coefficient in formula: New_Resource_Annual_Cost!Z19
A28: MODEL TYPE: | B28: Mixed Integer / Linear (Mixed Integer Linear Program)
A30: SOLUTION STATUS: | B30: GLOBALLY OPTIMAL TO TOLERANCES
... 27 more rows

Sheet README
B2: Notice
B3: This Model is Provided “As Is”
B4: For Informational Purposes Only
B5: Inputs are Subject to Change at Any Time and May Impact Results
B8: Version
B9: PRiSM version 8.0
B11: Model Design Date
B12: 2023-03-02
B14: Scenario
B15: All information is draft and subject to change
B16: WA Hybrid heating scenario.

Sheet Selection_Summary
A2: Nameplate MW | C2: 2023 | D2: 2024 | E2: 2025 | F2: 2026 | G2: 2027 | H2: 2028 | I2: 2029 | J2: 2030 | K2: 2031 | L2: 2032 | M2: 2033 | N2: 2034 | O2: 2035 | P2: 2036 | Q2: 2037 | R2: 2038 | S2: 2039 | T2: 2040 | U2: 2041 | V2: 2042 | W2: 2043 | X2: 2044 | Y2: 2045 | AA2: 2022 | AB2: 2023 | AC2: 2024 | AD2: 2025 | AE2: 2026 | AF2: 2027 | AG2: 2028 | AH2: 2029 | AI2: 2030 | AJ2: 2031 | AK2: 2032 | AL2: 2033 | AM2: 2034 | AN2: 2035 | AO2: 2036 | AP2: 2037 | AQ2: 2038 | AR2: 2039 | AS2: 2040 | AT2: 2041 | AU2: 2042 | AV2: 2043 | AW2: 2044 | AX2: 2045
A3: Coyote Springs 2 | C3: =Selection!AZ4 -> 1 | D3: =Selection!BA4 -> 1 | E3: =Selection!BB4 -> 1 | F3: =Selection!BC4 -> 1 | G3: =Selection!BD4 -> 1 | H3: =Selection!BE4 -> 1 | I3: =Selection!BF4 -> 1 | J3: =Selection!BG4 -> 1 | K3: =Selection!BH4 -> 1 | L3: =Selection!BI4 -> 1 | M3: =Selection!BJ4 -> 1 | N3: =Selection!BK4 -> 1 | O3: =Selection!BL4 -> 1 | P3: =Selection!BM4 -> 1 | Q3: =Selection!BN4 -> 1 | R3: =Selection!BO4 -> 1 | S3: =Selection!BP4 -> 1 | T3: =Selection!BQ4 -> 1 | U3: =Selection!BR4 -> 1 | V3: =Selection!BS4 -> 1 | W3: =Selection!BT4 -> 1 | X3: =Selection!BU4 -> 1 | Y3: =Selection!BV4 -> 1
A4: Lancaster | C4: =Selection!AZ5 -> 1 | D4: =Selection!BA5 -> 1 | E4: =Selection!BB5 -> 1 | F4: =Selection!BC5 -> 1 | G4: =Selection!BD5 -> 1 | H4: =Selection!BE5 -> 1 | I4: =Selection!BF5 -> 1 | J4: =Selection!BG5 -> 1 | K4: =Selection!BH5 -> 1 | L4: =Selection!BI5 -> 1 | M4: =Selection!BJ5 -> 1 | N4: =Selection!BK5 -> 1 | O4: =Selection!BL5 -> 1 | P4: =Selection!BM5 -> 1 | Q4: =Selection!BN5 -> 1 | R4: =Selection!BO5 -> 1 | S4: =Selection!BP5 -> 1 | T4: =Selection!BQ5 -> 1 | U4: =Selection!BR5 -> 1 | V4: =Selection!BS5 -> 0 | W4: =Selection!BT5 -> 0 | X4: =Selection!BU5 -> 0 | Y4: =Selection!BV5 -> 0
A5: Colstrip (3) | C5: =Selection!AZ6 -> 1 | D5: =Selection!BA6 -> 1 | E5: =Selection!BB6 -> 1 | F5: =Selection!BC6 -> 0 | G5: =Selection!BD6 -> 0 | H5: =Selection!BE6 -> 0 | I5: =Selection!BF6 -> 0 | J5: =Selection!BG6 -> 0 | K5: =Selection!BH6 -> 0 | L5: =Selection!BI6 -> 0 | M5: =Selection!BJ6 -> 0 | N5: =Selection!BK6 -> 0 | O5: =Selection!BL6 -> 0 | P5: =Selection!BM6 -> 0 | Q5: =Selection!BN6 -> 0 | R5: =Selection!BO6 -> 0 | S5: =Selection!BP6 -> 0 | T5: =Selection!BQ6 -> 0 | U5: =Selection!BR6 -> 0 | V5: =Selection!BS6 -> 0 | W5: =Selection!BT6 -> 0 | X5: =Selection!BU6 -> 0 | Y5: =Selection!BV6 -> 0
A6: Colstrip (4) | C6: =Selection!AZ7 -> 1 | D6: =Selection!BA7 -> 1 | E6: =Selection!BB7 -> 1 | F6: =Selection!BC7 -> 0 | G6: =Selection!BD7 -> 0 | H6: =Selection!BE7 -> 0 | I6: =Selection!BF7 -> 0 | J6: =Selection!BG7 -> 0 | K6: =Selection!BH7 -> 0 | L6: =Selection!BI7 -> 0 | M6: =Selection!BJ7 -> 0 | N6: =Selection!BK7 -> 0 | O6: =Selection!BL7 -> 0 | P6: =Selection!BM7 -> 0 | Q6: =Selection!BN7 -> 0 | R6: =Selection!BO7 -> 0 | S6: =Selection!BP7 -> 0 | T6: =Selection!BQ7 -> 0 | U6: =Selection!BR7 -> 0 | V6: =Selection!BS7 -> 0 | W6: =Selection!BT7 -> 0 | X6: =Selection!BU7 -> 0 | Y6: =Selection!BV7 -> 0
A7: Kettle Falls | C7: =Selection!AZ8 -> 1 | D7: =Selection!BA8 -> 1 | E7: =Selection!BB8 -> 1 | F7: =Selection!BC8 -> 1 | G7: =Selection!BD8 -> 1 | H7: =Selection!BE8 -> 1 | I7: =Selection!BF8 -> 1 | J7: =Selection!BG8 -> 1 | K7: =Selection!BH8 -> 1 | L7: =Selection!BI8 -> 1 | M7: =Selection!BJ8 -> 1 | N7: =Selection!BK8 -> 1 | O7: =Selection!BL8 -> 1 | P7: =Selection!BM8 -> 1 | Q7: =Selection!BN8 -> 1 | R7: =Selection!BO8 -> 1 | S7: =Selection!BP8 -> 1 | T7: =Selection!BQ8 -> 1 | U7: =Selection!BR8 -> 1 | V7: =Selection!BS8 -> 1 | W7: =Selection!BT8 -> 1 | X7: =Selection!BU8 -> 1 | Y7: =Selection!BV8 -> 1
A8: Kettle Falls CT | C8: =Selection!AZ9 -> 1 | D8: =Selection!BA9 -> 1 | E8: =Selection!BB9 -> 1 | F8: =Selection!BC9 -> 1 | G8: =Selection!BD9 -> 1 | H8: =Selection!BE9 -> 1 | I8: =Selection!BF9 -> 1 | J8: =Selection!BG9 -> 1 | K8: =Selection!BH9 -> 1 | L8: =Selection!BI9 -> 1 | M8: =Selection!BJ9 -> 1 | N8: =Selection!BK9 -> 1 | O8: =Selection!BL9 -> 1 | P8: =Selection!BM9 -> 1 | Q8: =Selection!BN9 -> 1 | R8: =Selection!BO9 -> 1 | S8: =Selection!BP9 -> 1 | T8: =Selection!BQ9 -> 1 | U8: =Selection!BR9 -> 0 | V8: =Selection!BS9 -> 0 | W8: =Selection!BT9 -> 0 | X8: =Selection!BU9 -> 0 | Y8: =Selection!BV9 -> 0
A9: Boulder Park 1-6 | C9: =Selection!AZ10 -> 1 | D9: =Selection!BA10 -> 1 | E9: =Selection!BB10 -> 1 | F9: =Selection!BC10 -> 1 | G9: =Selection!BD10 -> 1 | H9: =Selection!BE10 -> 1 | I9: =Selection!BF10 -> 1 | J9: =Selection!BG10 -> 1 | K9: =Selection!BH10 -> 1 | L9: =Selection!BI10 -> 1 | M9: =Selection!BJ10 -> 1 | N9: =Selection!BK10 -> 1 | O9: =Selection!BL10 -> 1 | P9: =Selection!BM10 -> 1 | Q9: =Selection!BN10 -> 1 | R9: =Selection!BO10 -> 1 | S9: =Selection!BP10 -> 1 | T9: =Selection!BQ10 -> 1 | U9: =Selection!BR10 -> 0 | V9: =Selection!BS10 -> 0 | W9: =Selection!BT10 -> 0 | X9: =Selection!BU10 -> 0 | Y9: =Selection!BV10 -> 0
A10: Rathdrum 1 | C10: =Selection!AZ11 -> 1 | D10: =Selection!BA11 -> 1 | E10: =Selection!BB11 -> 1 | F10: =Selection!BC11 -> 1 | G10: =Selection!BD11 -> 1 | H10: =Selection!BE11 -> 1 | I10: =Selection!BF11 -> 1 | J10: =Selection!BG11 -> 1 | K10: =Selection!BH11 -> 1 | L10: =Selection!BI11 -> 1 | M10: =Selection!BJ11 -> 1 | N10: =Selection!BK11 -> 1 | O10: =Selection!BL11 -> 1 | P10: =Selection!BM11 -> 1 | Q10: =Selection!BN11 -> 1 | R10: =Selection!BO11 -> 1 | S10: =Selection!BP11 -> 1 | T10: =Selection!BQ11 -> 1 | U10: =Selection!BR11 -> 1 | V10: =Selection!BS11 -> 1 | W10: =Selection!BT11 -> 1 | X10: =Selection!BU11 -> 1 | Y10: =Selection!BV11 -> 0
A11: Rathdrum 2 | C11: =Selection!AZ12 -> 1 | D11: =Selection!BA12 -> 1 | E11: =Selection!BB12 -> 1 | F11: =Selection!BC12 -> 1 | G11: =Selection!BD12 -> 1 | H11: =Selection!BE12 -> 1 | I11: =Selection!BF12 -> 1 | J11: =Selection!BG12 -> 1 | K11: =Selection!BH12 -> 1 | L11: =Selection!BI12 -> 1 | M11: =Selection!BJ12 -> 1 | N11: =Selection!BK12 -> 1 | O11: =Selection!BL12 -> 1 | P11: =Selection!BM12 -> 1 | Q11: =Selection!BN12 -> 1 | R11: =Selection!BO12 -> 1 | S11: =Selection!BP12 -> 1 | T11: =Selection!BQ12 -> 1 | U11: =Selection!BR12 -> 1 | V11: =Selection!BS12 -> 1 | W11: =Selection!BT12 -> 1 | X11: =Selection!BU12 -> 1 | Y11: =Selection!BV12 -> 0
A12: Northeast A&B | C12: =Selection!AZ13 -> 1 | D12: =Selection!BA13 -> 1 | E12: =Selection!BB13 -> 1 | F12: =Selection!BC13 -> 1 | G12: =Selection!BD13 -> 1 | H12: =Selection!BE13 -> 1 | I12: =Selection!BF13 -> 1 | J12: =Selection!BG13 -> 1 | K12: =Selection!BH13 -> 1 | L12: =Selection!BI13 -> 1 | M12: =Selection!BJ13 -> 1 | N12: =Selection!BK13 -> 1 | O12: =Selection!BL13 -> 1 | P12: =Selection!BM13 -> 0 | Q12: =Selection!BN13 -> 0 | R12: =Selection!BO13 -> 0 | S12: =Selection!BP13 -> 0 | T12: =Selection!BQ13 -> 0 | U12: =Selection!BR13 -> 0 | V12: =Selection!BS13 -> 0 | W12: =Selection!BT13 -> 0 | X12: =Selection!BU13 -> 0 | Y12: =Selection!BV13 -> 0
A14: Shared System Resource
A15: NG CT | C15: =SUM(Selection!AZ100:AZ102) -> 0 | D15: =SUM(Selection!BA100:BA102) -> 0 | E15: =SUM(Selection!BB100:BB102) -> 0 | F15: =SUM(Selection!BC100:BC102) -> 0 | G15: =SUM(Selection!BD100:BD102) -> 0 | H15: =SUM(Selection!BE100:BE102) -> 0 | I15: =SUM(Selection!BF100:BF102) -> 0 | J15: =SUM(Selection!BG100:BG102) -> 0 | K15: =SUM(Selection!BH100:BH102) -> 0 | L15: =SUM(Selection!BI100:BI102) -> 0 | M15: =SUM(Selection!BJ100:BJ102) -> 0 | N15: =SUM(Selection!BK100:BK102) -> 0 | O15: =SUM(Selection!BL100:BL102) -> 0 | P15: =SUM(Selection!BM100:BM102) -> 0 | Q15: =SUM(Selection!BN100:BN102) -> 0 | R15: =SUM(Selection!BO100:BO102) -> 0 | S15: =SUM(Selection!BP100:BP102) -> 0 | T15: =SUM(Selection!BQ100:BQ102) -> 0 | U15: =SUM(Selection!BR100:BR102) -> 0 | V15: =SUM(Selection!BS100:BS102) -> 0 | W15: =SUM(Selection!BT100:BT102) -> 0 | X15: =SUM(Selection!BU100:BU102) -> 0 | Y15: =SUM(Selection!BV100:BV102) -> 0
A16: Solar | C16: =SUM(Selection!AZ108,Selection!AZ110,Selection!AZ112,Selection!AZ114,Selection!AZ116:AZ119,Selection!AZ144) -> 0 | D16: =SUM(Selection!BA108,Selection!BA110,Selection!BA112,Selection!BA114,Selection!BA116:BA119,Selection!BA144) -> 0 | E16: =SUM(Selection!BB108,Selection!BB110,Selection!BB112,Selection!BB114,Selection!BB116:BB119,Selection!BB144) -> 0 | F16: =SUM(Selection!BC108,Selection!BC110,Selection!BC112,Selection!BC114,Selection!BC116:BC119,Selection!BC144) -> 0 | G16: =SUM(Selection!BD108,Selection!BD110,Selection!BD112,Selection!BD114,Selection!BD116:BD119,Selection!BD144) -> 0 | H16: =SUM(Selection!BE108,Selection!BE110,Selection!BE112,Selection!BE114,Selection!BE116:BE119,Selection!BE144) -> 0 | I16: =SUM(Selection!BF108,Selection!BF110,Selection!BF112,Selection!BF114,Selection!BF116:BF119,Selection!BF144) -> 0 | J16: =SUM(Selection!BG108,Selection!BG110,Selection!BG112,Selection!BG114,Selection!BG116:BG119,Selection!BG144) -> 0 | K16: =SUM(Selection!BH108,Selection!BH110,Selection!BH112,Selection!BH114,Selection!BH116:BH119,Selection!BH144) -> 0 | L16: =SUM(Selection!BI108,Selection!BI110,Selection!BI112,Selection!BI114,Selection!BI116:BI119,Selection!BI144) -> 0 | M16: =SUM(Selection!BJ108,Selection!BJ110,Selection!BJ112,Selection!BJ114,Selection!BJ116:BJ119,Selection!BJ144) -> 0 | N16: =SUM(Selection!BK108,Selection!BK110,Selection!BK112,Selection!BK114,Selection!BK116:BK119,Selection!BK144) -> 0 | O16: =SUM(Selection!BL108,Selection!BL110,Selection!BL112,Selection!BL114,Selection!BL116:BL119,Selection!BL144) -> 0 | P16: =SUM(Selection!BM108,Selection!BM110,Selection!BM112,Selection!BM114,Selection!BM116:BM119,Selection!BM144) -> 0 | Q16: =SUM(Selection!BN108,Selection!BN110,Selection!BN112,Selection!BN114,Selection!BN116:BN119,Selection!BN144) -> 0 | R16: =SUM(Selection!BO108,Selection!BO110,Selection!BO112,Selection!BO114,Selection!BO116:BO119,Selection!BO144) -> 0 | S16: =SUM(Selection!BP108,Selection!BP110,Selection!BP112,Selection!BP114,Selection!BP116:BP119,Selection!BP144) -> 0 | T16: =SUM(Selection!BQ108,Selection!BQ110,Selection!BQ112,Selection!BQ114,Selection!BQ116:BQ119,Selection!BQ144) -> 0 | U16: =SUM(Selection!BR108,Selection!BR110,Selection!BR112,Selection!BR114,Selection!BR116:BR119,Selection!BR144) -> 0 | V16: =SUM(Selection!BS108,Selection!BS110,Selection!BS112,Selection!BS114,Selection!BS116:BS119,Selection!BS144) -> 0 | W16: =SUM(Selection!BT108,Selection!BT110,Selection!BT112,Selection!BT114,Selection!BT116:BT119,Selection!BT144) -> 0 | X16: =SUM(Selection!BU108,Selection!BU110,Selection!BU112,Selection!BU114,Selection!BU116:BU119,Selection!BU144) -> 0 | Y16: =SUM(Selection!BV108,Selection!BV110,Selection!BV112,Selection!BV114,Selection!BV116:BV119,Selection!BV144) -> 0
A17: Storage Added to Solar | C17: =SUM(Selection!AZ109,Selection!AZ111,Selection!AZ113,Selection!AZ115,Selection!AZ120,Selection!AZ121,Selection!AZ122) -> 0 | D17: =SUM(Selection!BA109,Selection!BA111,Selection!BA113,Selection!BA115,Selection!BA120,Selection!BA121,Selection!BA122) -> 0 | E17: =SUM(Selection!BB109,Selection!BB111,Selection!BB113,Selection!BB115,Selection!BB120,Selection!BB121,Selection!BB122) -> 0 | F17: =SUM(Selection!BC109,Selection!BC111,Selection!BC113,Selection!BC115,Selection!BC120,Selection!BC121,Selection!BC122) -> 0 | G17: =SUM(Selection!BD109,Selection!BD111,Selection!BD113,Selection!BD115,Selection!BD120,Selection!BD121,Selection!BD122) -> 0 | H17: =SUM(Selection!BE109,Selection!BE111,Selection!BE113,Selection!BE115,Selection!BE120,Selection!BE121,Selection!BE122) -> 0 | I17: =SUM(Selection!BF109,Selection!BF111,Selection!BF113,Selection!BF115,Selection!BF120,Selection!BF121,Selection!BF122) -> 0 | J17: =SUM(Selection!BG109,Selection!BG111,Selection!BG113,Selection!BG115,Selection!BG120,Selection!BG121,Selection!BG122) -> 0 | K17: =SUM(Selection!BH109,Selection!BH111,Selection!BH113,Selection!BH115,Selection!BH120,Selection!BH121,Selection!BH122) -> 0 | L17: =SUM(Selection!BI109,Selection!BI111,Selection!BI113,Selection!BI115,Selection!BI120,Selection!BI121,Selection!BI122) -> 0 | M17: =SUM(Selection!BJ109,Selection!BJ111,Selection!BJ113,Selection!BJ115,Selection!BJ120,Selection!BJ121,Selection!BJ122) -> 0 | N17: =SUM(Selection!BK109,Selection!BK111,Selection!BK113,Selection!BK115,Selection!BK120,Selection!BK121,Selection!BK122) -> 0 | O17: =SUM(Selection!BL109,Selection!BL111,Selection!BL113,Selection!BL115,Selection!BL120,Selection!BL121,Selection!BL122) -> 0 | P17: =SUM(Selection!BM109,Selection!BM111,Selection!BM113,Selection!BM115,Selection!BM120,Selection!BM121,Selection!BM122) -> 0 | Q17: =SUM(Selection!BN109,Selection!BN111,Selection!BN113,Selection!BN115,Selection!BN120,Selection!BN121,Selection!BN122) -> 0 | R17: =SUM(Selection!BO109,Selection!BO111,Selection!BO113,Selection!BO115,Selection!BO120,Selection!BO121,Selection!BO122) -> 0 | S17: =SUM(Selection!BP109,Selection!BP111,Selection!BP113,Selection!BP115,Selection!BP120,Selection!BP121,Selection!BP122) -> 0 | T17: =SUM(Selection!BQ109,Selection!BQ111,Selection!BQ113,Selection!BQ115,Selection!BQ120,Selection!BQ121,Selection!BQ122) -> 0 | U17: =SUM(Selection!BR109,Selection!BR111,Selection!BR113,Selection!BR115,Selection!BR120,Selection!BR121,Selection!BR122) -> 0 | V17: =SUM(Selection!BS109,Selection!BS111,Selection!BS113,Selection!BS115,Selection!BS120,Selection!BS121,Selection!BS122) -> 0 | W17: =SUM(Selection!BT109,Selection!BT111,Selection!BT113,Selection!BT115,Selection!BT120,Selection!BT121,Selection!BT122) -> 0 | X17: =SUM(Selection!BU109,Selection!BU111,Selection!BU113,Selection!BU115,Selection!BU120,Selection!BU121,Selection!BU122) -> 0 | Y17: =SUM(Selection!BV109,Selection!BV111,Selection!BV113,Selection!BV115,Selection!BV120,Selection!BV121,Selection!BV122) -> 0
A18: Wind | C18: =SUM(Selection!AZ104:AZ107,Selection!AZ142:AZ143) -> 0 | D18: =SUM(Selection!BA104:BA107,Selection!BA142:BA143) -> 0 | E18: =SUM(Selection!BB104:BB107,Selection!BB142:BB143) -> 0 | F18: =SUM(Selection!BC104:BC107,Selection!BC142:BC143) -> 0 | G18: =SUM(Selection!BD104:BD107,Selection!BD142:BD143) -> 0 | H18: =SUM(Selection!BE104:BE107,Selection!BE142:BE143) -> 0 | I18: =SUM(Selection!BF104:BF107,Selection!BF142:BF143) -> 0 | J18: =SUM(Selection!BG104:BG107,Selection!BG142:BG143) -> 0 | K18: =SUM(Selection!BH104:BH107,Selection!BH142:BH143) -> 0 | L18: =SUM(Selection!BI104:BI107,Selection!BI142:BI143) -> 0 | M18: =SUM(Selection!BJ104:BJ107,Selection!BJ142:BJ143) -> 0 | N18: =SUM(Selection!BK104:BK107,Selection!BK142:BK143) -> 0 | O18: =SUM(Selection!BL104:BL107,Selection!BL142:BL143) -> 0 | P18: =SUM(Selection!BM104:BM107,Selection!BM142:BM143) -> 0 | Q18: =SUM(Selection!BN104:BN107,Selection!BN142:BN143) -> 0 | R18: =SUM(Selection!BO104:BO107,Selection!BO142:BO143) -> 0 | S18: =SUM(Selection!BP104:BP107,Selection!BP142:BP143) -> 0 | T18: =SUM(Selection!BQ104:BQ107,Selection!BQ142:BQ143) -> 0 | U18: =SUM(Selection!BR104:BR107,Selection!BR142:BR143) -> 0 | V18: =SUM(Selection!BS104:BS107,Selection!BS142:BS143) -> 0 | W18: =SUM(Selection!BT104:BT107,Selection!BT142:BT143) -> 0 | X18: =SUM(Selection!BU104:BU107,Selection!BU142:BU143) -> 0 | Y18: =SUM(Selection!BV104:BV107,Selection!BV142:BV143) -> 0
A19: Storage | C19: =SUM(Selection!AZ123:AZ130,Selection!AZ134:AZ137) -> 0 | D19: =SUM(Selection!BA123:BA130,Selection!BA134:BA137) -> 0 | E19: =SUM(Selection!BB123:BB130,Selection!BB134:BB137) -> 0 | F19: =SUM(Selection!BC123:BC130,Selection!BC134:BC137) -> 0 | G19: =SUM(Selection!BD123:BD130,Selection!BD134:BD137) -> 0 | H19: =SUM(Selection!BE123:BE130,Selection!BE134:BE137) -> 0 | I19: =SUM(Selection!BF123:BF130,Selection!BF134:BF137) -> 0 | J19: =SUM(Selection!BG123:BG130,Selection!BG134:BG137) -> 0 | K19: =SUM(Selection!BH123:BH130,Selection!BH134:BH137) -> 0 | L19: =SUM(Selection!BI123:BI130,Selection!BI134:BI137) -> 53.18032826 | M19: =SUM(Selection!BJ123:BJ130,Selection!BJ134:BJ137) -> 0 | N19: =SUM(Selection!BK123:BK130,Selection!BK134:BK137) -> 0 | O19: =SUM(Selection!BL123:BL130,Selection!BL134:BL137) -> 0 | P19: =SUM(Selection!BM123:BM130,Selection!BM134:BM137) -> 0 | Q19: =SUM(Selection!BN123:BN130,Selection!BN134:BN137) -> 0 | R19: =SUM(Selection!BO123:BO130,Selection!BO134:BO137) -> 0 | S19: =SUM(Selection!BP123:BP130,Selection!BP134:BP137) -> 0 | T19: =SUM(Selection!BQ123:BQ130,Selection!BQ134:BQ137) -> 0 | U19: =SUM(Selection!BR123:BR130,Selection!BR134:BR137) -> 55.7476745 | V19: =SUM(Selection!BS123:BS130,Selection!BS134:BS137) -> 0 | W19: =SUM(Selection!BT123:BT130,Selection!BT134:BT137) -> 0 | X19: =SUM(Selection!BU123:BU130,Selection!BU134:BU137) -> 80.82611157 | Y19: =SUM(Selection!BV123:BV130,Selection!BV134:BV137) -> 0
A20: Hydrogen/Ammonia | C20: =SUM(Selection!AZ132:AZ133) -> 0 | D20: =SUM(Selection!BA132:BA133) -> 0 | E20: =SUM(Selection!BB132:BB133) -> 0 | F20: =SUM(Selection!BC132:BC133) -> 0 | G20: =SUM(Selection!BD132:BD133) -> 0 | H20: =SUM(Selection!BE132:BE133) -> 0 | I20: =SUM(Selection!BF132:BF133) -> 0 | J20: =SUM(Selection!BG132:BG133) -> 0 | K20: =SUM(Selection!BH132:BH133) -> 0 | L20: =SUM(Selection!BI132:BI133) -> 0 | M20: =SUM(Selection!BJ132:BJ133) -> 0 | N20: =SUM(Selection!BK132:BK133) -> 0 | O20: =SUM(Selection!BL132:BL133) -> 0 | P20: =SUM(Selection!BM132:BM133) -> 0 | Q20: =SUM(Selection!BN132:BN133) -> 0 | R20: =SUM(Selection!BO132:BO133) -> 0 | S20: =SUM(Selection!BP132:BP133) -> 0 | T20: =SUM(Selection!BQ132:BQ133) -> 0 | U20: =SUM(Selection!BR132:BR133) -> 0 | V20: =SUM(Selection!BS132:BS133) -> 0 | W20: =SUM(Selection!BT132:BT133) -> 0 | X20: =SUM(Selection!BU132:BU133) -> 0 | Y20: =SUM(Selection!BV132:BV133) -> 0
A21: Other "Clean" Baseload | C21: =SUM(Selection!AZ138,Selection!AZ131,Selection!AZ103) -> 0 | D21: =SUM(Selection!BA138,Selection!BA131,Selection!BA103) -> 0 | E21: =SUM(Selection!BB138,Selection!BB131,Selection!BB103) -> 0 | F21: =SUM(Selection!BC138,Selection!BC131,Selection!BC103) -> 0 | G21: =SUM(Selection!BD138,Selection!BD131,Selection!BD103) -> 0 | H21: =SUM(Selection!BE138,Selection!BE131,Selection!BE103) -> 0 | I21: =SUM(Selection!BF138,Selection!BF131,Selection!BF103) -> 0 | J21: =SUM(Selection!BG138,Selection!BG131,Selection!BG103) -> 0 | K21: =SUM(Selection!BH138,Selection!BH131,Selection!BH103) -> 0 | L21: =SUM(Selection!BI138,Selection!BI131,Selection!BI103) -> 0 | M21: =SUM(Selection!BJ138,Selection!BJ131,Selection!BJ103) -> 0 | N21: =SUM(Selection!BK138,Selection!BK131,Selection!BK103) -> 0 | O21: =SUM(Selection!BL138,Selection!BL131,Selection!BL103) -> 0 | P21: =SUM(Selection!BM138,Selection!BM131,Selection!BM103) -> 0 | Q21: =SUM(Selection!BN138,Selection!BN131,Selection!BN103) -> 0 | R21: =SUM(Selection!BO138,Selection!BO131,Selection!BO103) -> 0 | S21: =SUM(Selection!BP138,Selection!BP131,Selection!BP103) -> 0 | T21: =SUM(Selection!BQ138,Selection!BQ131,Selection!BQ103) -> 0 | U21: =SUM(Selection!BR138,Selection!BR131,Selection!BR103) -> 0 | V21: =SUM(Selection!BS138,Selection!BS131,Selection!BS103) -> 0 | W21: =SUM(Selection!BT138,Selection!BT131,Selection!BT103) -> 0 | X21: =SUM(Selection!BU138,Selection!BU131,Selection!BU103) -> 0 | Y21: =SUM(Selection!BV138,Selection!BV131,Selection!BV103) -> 0
A22: Existing Plant Upgrades | C22: =SUM(Selection!AZ139:AZ141) -> 0 | D22: =SUM(Selection!BA139:BA141) -> 0 | E22: =SUM(Selection!BB139:BB141) -> 0 | F22: =SUM(Selection!BC139:BC141) -> 0 | G22: =SUM(Selection!BD139:BD141) -> 0 | H22: =SUM(Selection!BE139:BE141) -> 0 | I22: =SUM(Selection!BF139:BF141) -> 0 | J22: =SUM(Selection!BG139:BG141) -> 0 | K22: =SUM(Selection!BH139:BH141) -> 0 | L22: =SUM(Selection!BI139:BI141) -> 0 | M22: =SUM(Selection!BJ139:BJ141) -> 0 | N22: =SUM(Selection!BK139:BK141) -> 0 | O22: =SUM(Selection!BL139:BL141) -> 0 | P22: =SUM(Selection!BM139:BM141) -> 0 | Q22: =SUM(Selection!BN139:BN141) -> 0 | R22: =SUM(Selection!BO139:BO141) -> 0 | S22: =SUM(Selection!BP139:BP141) -> 0 | T22: =SUM(Selection!BQ139:BQ141) -> 0 | U22: =SUM(Selection!BR139:BR141) -> 0 | V22: =SUM(Selection!BS139:BS141) -> 0 | W22: =SUM(Selection!BT139:BT141) -> 0 | X22: =SUM(Selection!BU139:BU141) -> 0 | Y22: =SUM(Selection!BV139:BV141) -> 0
A26: Washington
A27: NG CT | C27: =SUM(Selection!D100:D102) -> 0 | D27: =SUM(Selection!E100:E102) -> 0 | E27: =SUM(Selection!F100:F102) -> 0 | F27: =SUM(Selection!G100:G102) -> 0 | G27: =SUM(Selection!H100:H102) -> 0 | H27: =SUM(Selection!I100:I102) -> 0 | I27: =SUM(Selection!J100:J102) -> 0 | J27: =SUM(Selection!K100:K102) -> 0 | K27: =SUM(Selection!L100:L102) -> 0 | L27: =SUM(Selection!M100:M102) -> 0 | M27: =SUM(Selection!N100:N102) -> 0 | N27: =SUM(Selection!O100:O102) -> 0 | O27: =SUM(Selection!P100:P102) -> 0 | P27: =SUM(Selection!Q100:Q102) -> 0 | Q27: =SUM(Selection!R100:R102) -> 0 | R27: =SUM(Selection!S100:S102) -> 0 | S27: =SUM(Selection!T100:T102) -> 0 | T27: =SUM(Selection!U100:U102) -> 0 | U27: =SUM(Selection!V100:V102) -> 0 | V27: =SUM(Selection!W100:W102) -> 0 | W27: =SUM(Selection!X100:X102) -> 0 | X27: =SUM(Selection!Y100:Y102) -> 0 | Y27: =SUM(Selection!Z100:Z102) -> 0 | AA27: =B27+(B15*G_A!P$9) -> 0 | AB27: =C27+(C15*G_A!Q$9) -> 0 | AC27: =D27+(D15*G_A!R$9) -> 0 | AD27: =E27+(E15*G_A!S$9) -> 0 | AE27: =F27+(F15*G_A!T$9) -> 0 | AF27: =G27+(G15*G_A!U$9) -> 0 | AG27: =H27+(H15*G_A!V$9) -> 0 | AH27: =I27+(I15*G_A!W$9) -> 0 | AI27: =J27+(J15*G_A!X$9) -> 0 | AJ27: =K27+(K15*G_A!Y$9) -> 0 | AK27: =L27+(L15*G_A!Z$9) -> 0 | AL27: =M27+(M15*G_A!AA$9) -> 0 | AM27: =N27+(N15*G_A!AB$9) -> 0 | AN27: =O27+(O15*G_A!AC$9) -> 0 | AO27: =P27+(P15*G_A!AD$9) -> 0 | AP27: =Q27+(Q15*G_A!AE$9) -> 0 | AQ27: =R27+(R15*G_A!AF$9) -> 0 | AR27: =S27+(S15*G_A!AG$9) -> 0 | AS27: =T27+(T15*G_A!AH$9) -> 0 | AT27: =U27+(U15*G_A!AI$9) -> 0 | AU27: =V27+(V15*G_A!AJ$9) -> 0 | AV27: =W27+(W15*G_A!AK$9) -> 0 | AW27: =X27+(X15*G_A!AL$9) -> 0 | AX27: =Y27+(Y15*G_A!AM$9) -> 0
A28: Solar | C28: =SUM(Selection!D108,Selection!D110,Selection!D112,Selection!D114,Selection!D116:D119,Selection!D144,Selection!D145) -> 0 | D28: =SUM(Selection!E108,Selection!E110,Selection!E112,Selection!E114,Selection!E116:E119,Selection!E144,Selection!E145) -> 0.6651149465 | E28: =SUM(Selection!F108,Selection!F110,Selection!F112,Selection!F114,Selection!F116:F119,Selection!F144,Selection!F145) -> 0.6896430477 | F28: =SUM(Selection!G108,Selection!G110,Selection!G112,Selection!G114,Selection!G116:G119,Selection!G144,Selection!G145) -> 0.7158990724 | G28: =SUM(Selection!H108,Selection!H110,Selection!H112,Selection!H114,Selection!H116:H119,Selection!H144,Selection!H145) -> 0.744746695 | H28: =SUM(Selection!I108,Selection!I110,Selection!I112,Selection!I114,Selection!I116:I119,Selection!I144,Selection!I145) -> 0.7763012312 | I28: =SUM(Selection!J108,Selection!J110,Selection!J112,Selection!J114,Selection!J116:J119,Selection!J144,Selection!J145) -> 0.8041059194 | J28: =SUM(Selection!K108,Selection!K110,Selection!K112,Selection!K114,Selection!K116:K119,Selection!K144,Selection!K145) -> 0.8308368547 | K28: =SUM(Selection!L108,Selection!L110,Selection!L112,Selection!L114,Selection!L116:L119,Selection!L144,Selection!L145) -> 0.8647030345 | L28: =SUM(Selection!M108,Selection!M110,Selection!M112,Selection!M114,Selection!M116:M119,Selection!M144,Selection!M145) -> 0.8974888501 | M28: =SUM(Selection!N108,Selection!N110,Selection!N112,Selection!N114,Selection!N116:N119,Selection!N144,Selection!N145) -> 0.9258527684 | N28: =SUM(Selection!O108,Selection!O110,Selection!O112,Selection!O114,Selection!O116:O119,Selection!O144,Selection!O145) -> 0.2492849858 | O28: =SUM(Selection!P108,Selection!P110,Selection!P112,Selection!P114,Selection!P116:P119,Selection!P144,Selection!P145) -> 0.2357662893 | P28: =SUM(Selection!Q108,Selection!Q110,Selection!Q112,Selection!Q114,Selection!Q116:Q119,Selection!Q144,Selection!Q145) -> 0.2461216058 | Q28: =SUM(Selection!R108,Selection!R110,Selection!R112,Selection!R114,Selection!R116:R119,Selection!R144,Selection!R145) -> 0.2631437242 | R28: =SUM(Selection!S108,Selection!S110,Selection!S112,Selection!S114,Selection!S116:S119,Selection!S144,Selection!S145) -> 0.2766769717 | S28: =SUM(Selection!T108,Selection!T110,Selection!T112,Selection!T114,Selection!T116:T119,Selection!T144,Selection!T145) -> 0.2 | T28: =SUM(Selection!U108,Selection!U110,Selection!U112,Selection!U114,Selection!U116:U119,Selection!U144,Selection!U145) -> 0.2 | U28: =SUM(Selection!V108,Selection!V110,Selection!V112,Selection!V114,Selection!V116:V119,Selection!V144,Selection!V145) -> 0.2079361997 | V28: =SUM(Selection!W108,Selection!W110,Selection!W112,Selection!W114,Selection!W116:W119,Selection!W144,Selection!W145) -> 0.2148907516 | W28: =SUM(Selection!X108,Selection!X110,Selection!X112,Selection!X114,Selection!X116:X119,Selection!X144,Selection!X145) -> 0.2264061248 | X28: =SUM(Selection!Y108,Selection!Y110,Selection!Y112,Selection!Y114,Selection!Y116:Y119,Selection!Y144,Selection!Y145) -> 0.3659467515 | Y28: =SUM(Selection!Z108,Selection!Z110,Selection!Z112,Selection!Z114,Selection!Z116:Z119,Selection!Z144,Selection!Z145) -> 150.407255 | AA28: =B28+(B16*G_A!P$9) -> 0 | AB28: =C28+(C16*G_A!Q$9) -> 0 | AC28: =D28+(D16*G_A!R$9) -> 0.6651149465 | AD28: =E28+(E16*G_A!S$9) -> 0.6896430477 | AE28: =F28+(F16*G_A!T$9) -> 0.7158990724 | AF28: =G28+(G16*G_A!U$9) -> 0.744746695 | AG28: =H28+(H16*G_A!V$9) -> 0.7763012312 | AH28: =I28+(I16*G_A!W$9) -> 0.8041059194 | AI28: =J28+(J16*G_A!X$9) -> 0.8308368547 | AJ28: =K28+(K16*G_A!Y$9) -> 0.8647030345 | AK28: =L28+(L16*G_A!Z$9) -> 0.8974888501 | AL28: =M28+(M16*G_A!AA$9) -> 0.9258527684 | AM28: =N28+(N16*G_A!AB$9) -> 0.2492849858 | AN28: =O28+(O16*G_A!AC$9) -> 0.2357662893 | AO28: =P28+(P16*G_A!AD$9) -> 0.2461216058 | AP28: =Q28+(Q16*G_A!AE$9) -> 0.2631437242 | AQ28: =R28+(R16*G_A!AF$9) -> 0.2766769717 | AR28: =S28+(S16*G_A!AG$9) -> 0.2 | AS28: =T28+(T16*G_A!AH$9) -> 0.2 | AT28: =U28+(U16*G_A!AI$9) -> 0.2079361997 | AU28: =V28+(V16*G_A!AJ$9) -> 0.2148907516 | AV28: =W28+(W16*G_A!AK$9) -> 0.2264061248 | AW28: =X28+(X16*G_A!AL$9) -> 0.3659467515 | AX28: =Y28+(Y16*G_A!AM$9) -> 150.407255
A29: Storage Added to Solar | C29: =SUM(,Selection!D109,Selection!D111,Selection!D113,Selection!D115,Selection!D120:D122) -> 0 | D29: =SUM(,Selection!E109,Selection!E111,Selection!E113,Selection!E115,Selection!E120:E122) -> 0 | E29: =SUM(,Selection!F109,Selection!F111,Selection!F113,Selection!F115,Selection!F120:F122) -> 0 | F29: =SUM(,Selection!G109,Selection!G111,Selection!G113,Selection!G115,Selection!G120:G122) -> 0 | G29: =SUM(,Selection!H109,Selection!H111,Selection!H113,Selection!H115,Selection!H120:H122) -> 0 | H29: =SUM(,Selection!I109,Selection!I111,Selection!I113,Selection!I115,Selection!I120:I122) -> 0 | I29: =SUM(,Selection!J109,Selection!J111,Selection!J113,Selection!J115,Selection!J120:J122) -> 0 | J29: =SUM(,Selection!K109,Selection!K111,Selection!K113,Selection!K115,Selection!K120:K122) -> 0 | K29: =SUM(,Selection!L109,Selection!L111,Selection!L113,Selection!L115,Selection!L120:L122) -> 0 | L29: =SUM(,Selection!M109,Selection!M111,Selection!M113,Selection!M115,Selection!M120:M122) -> 0 | M29: =SUM(,Selection!N109,Selection!N111,Selection!N113,Selection!N115,Selection!N120:N122) -> 0 | N29: =SUM(,Selection!O109,Selection!O111,Selection!O113,Selection!O115,Selection!O120:O122) -> 0 | O29: =SUM(,Selection!P109,Selection!P111,Selection!P113,Selection!P115,Selection!P120:P122) -> 0 | P29: =SUM(,Selection!Q109,Selection!Q111,Selection!Q113,Selection!Q115,Selection!Q120:Q122) -> 0 | Q29: =SUM(,Selection!R109,Selection!R111,Selection!R113,Selection!R115,Selection!R120:R122) -> 0 | R29: =SUM(,Selection!S109,Selection!S111,Selection!S113,Selection!S115,Selection!S120:S122) -> 0 | S29: =SUM(,Selection!T109,Selection!T111,Selection!T113,Selection!T115,Selection!T120:T122) -> 0.1 | T29: =SUM(,Selection!U109,Selection!U111,Selection!U113,Selection!U115,Selection!U120:U122) -> 0.1 | U29: =SUM(,Selection!V109,Selection!V111,Selection!V113,Selection!V115,Selection!V120:V122) -> 0.1039680999 | V29: =SUM(,Selection!W109,Selection!W111,Selection!W113,Selection!W115,Selection!W120:W122) -> 0.1074453758 | W29: =SUM(,Selection!X109,Selection!X111,Selection!X113,Selection!X115,Selection!X120:X122) -> 0.1132030624 | X29: =SUM(,Selection!Y109,Selection!Y111,Selection!Y113,Selection!Y115,Selection!Y120:Y122) -> 0 | Y29: =SUM(,Selection!Z109,Selection!Z111,Selection!Z113,Selection!Z115,Selection!Z120:Z122) -> 0 | AA29: =B29+(B17*G_A!P$9) -> 0 | AB29: =C29+(C17*G_A!Q$9) -> 0 | AC29: =D29+(D17*G_A!R$9) -> 0 | AD29: =E29+(E17*G_A!S$9) -> 0 | AE29: =F29+(F17*G_A!T$9) -> 0 | AF29: =G29+(G17*G_A!U$9) -> 0 | AG29: =H29+(H17*G_A!V$9) -> 0 | AH29: =I29+(I17*G_A!W$9) -> 0 | AI29: =J29+(J17*G_A!X$9) -> 0 | AJ29: =K29+(K17*G_A!Y$9) -> 0 | AK29: =L29+(L17*G_A!Z$9) -> 0 | AL29: =M29+(M17*G_A!AA$9) -> 0 | AM29: =N29+(N17*G_A!AB$9) -> 0 | AN29: =O29+(O17*G_A!AC$9) -> 0 | AO29: =P29+(P17*G_A!AD$9) -> 0 | AP29: =Q29+(Q17*G_A!AE$9) -> 0 | AQ29: =R29+(R17*G_A!AF$9) -> 0 | AR29: =S29+(S17*G_A!AG$9) -> 0.1 | AS29: =T29+(T17*G_A!AH$9) -> 0.1 | AT29: =U29+(U17*G_A!AI$9) -> 0.1039680999 | AU29: =V29+(V17*G_A!AJ$9) -> 0.1074453758 | AV29: =W29+(W17*G_A!AK$9) -> 0.1132030624 | AW29: =X29+(X17*G_A!AL$9) -> 0 | AX29: =Y29+(Y17*G_A!AM$9) -> 0
A30: Wind | C30: =SUM(Selection!D104:D107,Selection!D142:D143) -> 0 | D30: =SUM(Selection!E104:E107,Selection!E142:E143) -> 0 | E30: =SUM(Selection!F104:F107,Selection!F142:F143) -> 0 | F30: =SUM(Selection!G104:G107,Selection!G142:G143) -> 0 | G30: =SUM(Selection!H104:H107,Selection!H142:H143) -> 0 | H30: =SUM(Selection!I104:I107,Selection!I142:I143) -> 0 | I30: =SUM(Selection!J104:J107,Selection!J142:J143) -> 0 | J30: =SUM(Selection!K104:K107,Selection!K142:K143) -> 200 | K30: =SUM(Selection!L104:L107,Selection!L142:L143) -> 0 | L30: =SUM(Selection!M104:M107,Selection!M142:M143) -> 200 | M30: =SUM(Selection!N104:N107,Selection!N142:N143) -> 0 | N30: =SUM(Selection!O104:O107,Selection!O142:O143) -> 0 | O30: =SUM(Selection!P104:P107,Selection!P142:P143) -> 0 | P30: =SUM(Selection!Q104:Q107,Selection!Q142:Q143) -> 0 | Q30: =SUM(Selection!R104:R107,Selection!R142:R143) -> 0 | R30: =SUM(Selection!S104:S107,Selection!S142:S143) -> 0 | S30: =SUM(Selection!T104:T107,Selection!T142:T143) -> 0 | T30: =SUM(Selection!U104:U107,Selection!U142:U143) -> 0 | U30: =SUM(Selection!V104:V107,Selection!V142:V143) -> 140 | V30: =SUM(Selection!W104:W107,Selection!W142:W143) -> 235.7459317 | W30: =SUM(Selection!X104:X107,Selection!X142:X143) -> 200 | X30: =SUM(Selection!Y104:Y107,Selection!Y142:Y143) -> 169.2540683 | Y30: =SUM(Selection!Z104:Z107,Selection!Z142:Z143) -> 200 | AA30: =B30+(B18*G_A!P$9) -> 0 | AB30: =C30+(C18*G_A!Q$9) -> 0 | AC30: =D30+(D18*G_A!R$9) -> 0 | AD30: =E30+(E18*G_A!S$9) -> 0 | AE30: =F30+(F18*G_A!T$9) -> 0 | AF30: =G30+(G18*G_A!U$9) -> 0 | AG30: =H30+(H18*G_A!V$9) -> 0 | AH30: =I30+(I18*G_A!W$9) -> 0 | AI30: =J30+(J18*G_A!X$9) -> 200 | AJ30: =K30+(K18*G_A!Y$9) -> 0 | AK30: =L30+(L18*G_A!Z$9) -> 200 | AL30: =M30+(M18*G_A!AA$9) -> 0 | AM30: =N30+(N18*G_A!AB$9) -> 0 | AN30: =O30+(O18*G_A!AC$9) -> 0 | AO30: =P30+(P18*G_A!AD$9) -> 0 | AP30: =Q30+(Q18*G_A!AE$9) -> 0 | AQ30: =R30+(R18*G_A!AF$9) -> 0 | AR30: =S30+(S18*G_A!AG$9) -> 0 | AS30: =T30+(T18*G_A!AH$9) -> 0 | AT30: =U30+(U18*G_A!AI$9) -> 140 | AU30: =V30+(V18*G_A!AJ$9) -> 235.7459317 | AV30: =W30+(W18*G_A!AK$9) -> 200 | AW30: =X30+(X18*G_A!AL$9) -> 169.2540683 | AX30: =Y30+(Y18*G_A!AM$9) -> 200
A31: Storage | C31: =SUM(Selection!D123:D130,Selection!D135:D137) -> 0 | D31: =SUM(Selection!E123:E130,Selection!E135:E137) -> 0 | E31: =SUM(Selection!F123:F130,Selection!F135:F137) -> 0 | F31: =SUM(Selection!G123:G130,Selection!G135:G137) -> 0 | G31: =SUM(Selection!H123:H130,Selection!H135:H137) -> 0 | H31: =SUM(Selection!I123:I130,Selection!I135:I137) -> 0 | I31: =SUM(Selection!J123:J130,Selection!J135:J137) -> 0 | J31: =SUM(Selection!K123:K130,Selection!K135:K137) -> 0 | K31: =SUM(Selection!L123:L130,Selection!L135:L137) -> 0 | L31: =SUM(Selection!M123:M130,Selection!M135:M137) -> 87.25149482 | M31: =SUM(Selection!N123:N130,Selection!N135:N137) -> 0 | N31: =SUM(Selection!O123:O130,Selection!O135:O137) -> 0 | O31: =SUM(Selection!P123:P130,Selection!P135:P137) -> 0 | P31: =SUM(Selection!Q123:Q130,Selection!Q135:Q137) -> 0 | Q31: =SUM(Selection!R123:R130,Selection!R135:R137) -> 0 | R31: =SUM(Selection!S123:S130,Selection!S135:S137) -> 59.30921609 | S31: =SUM(Selection!T123:T130,Selection!T135:T137) -> 66.0628985 | T31: =SUM(Selection!U123:U130,Selection!U135:U137) -> 71.20193938 | U31: =SUM(Selection!V123:V130,Selection!V135:V137) -> 56.61970439 | V31: =SUM(Selection!W123:W130,Selection!W135:W137) -> 50 | W31: =SUM(Selection!X123:X130,Selection!X135:X137) -> 56.51841332 | X31: =SUM(Selection!Y123:Y130,Selection!Y135:Y137) -> 0 | Y31: =SUM(Selection!Z123:Z130,Selection!Z135:Z137) -> 0 | AA31: =B31+(B19*G_A!P$9) -> 0 | AB31: =C31+(C19*G_A!Q$9) -> 0 | AC31: =D31+(D19*G_A!R$9) -> 0 | AD31: =E31+(E19*G_A!S$9) -> 0 | AE31: =F31+(F19*G_A!T$9) -> 0 | AF31: =G31+(G19*G_A!U$9) -> 0 | AG31: =H31+(H19*G_A!V$9) -> 0 | AH31: =I31+(I19*G_A!W$9) -> 0 | AI31: =J31+(J19*G_A!X$9) -> 0 | AJ31: =K31+(K19*G_A!Y$9) -> 0 | AK31: =L31+(L19*G_A!Z$9) -> 121.4996262 | AL31: =M31+(M19*G_A!AA$9) -> 0 | AM31: =N31+(N19*G_A!AB$9) -> 0 | AN31: =O31+(O19*G_A!AC$9) -> 0 | AO31: =P31+(P19*G_A!AD$9) -> 0 | AP31: =Q31+(Q19*G_A!AE$9) -> 0 | AQ31: =R31+(R19*G_A!AF$9) -> 59.30921609 | AR31: =S31+(S19*G_A!AG$9) -> 66.0628985 | AS31: =T31+(T19*G_A!AH$9) -> 71.20193938 | AT31: =U31+(U19*G_A!AI$9) -> 92.52120676 | AU31: =V31+(V19*G_A!AJ$9) -> 50 | AV31: =W31+(W19*G_A!AK$9) -> 56.51841332 | AW31: =X31+(X19*G_A!AL$9) -> 52.05201585 | AX31: =Y31+(Y19*G_A!AM$9) -> 0
... 33 more rows

Sheet CBI
A2: CBI # | B2: CBI Name | C2: Item | D2: Unit | E2: 2016 | F2: 2017 | G2: 2018 | H2: 2019 | I2: 2020 | J2: 2021 | K2: 2022 | L2: 2023 | M2: 2024 | N2: 2025 | O2: 2026 | P2: 2027 | Q2: 2028 | R2: 2029 | S2: 2030 | T2: 2031 | U2: 2032 | V2: 2033 | W2: 2034 | X2: 2035 | Y2: 2036 | Z2: 2037 | AA2: 2038 | AB2: 2039 | AC2: 2040 | AD2: 2041 | AE2: 2042 | AF2: 2043 | AG2: 2044 | AH2: 2045
A3: 2a | B3: Energy Burden | C3: Number of Customers with Energy Burden | D3: # | L3: ='Energy Burden'!FE$4 -> 45347.9511 | M3: ='Energy Burden'!FF$4 -> 45685.60139 | N3: ='Energy Burden'!FG$4 -> 46135.82246 | O3: ='Energy Burden'!FH$4 -> 45360.69116 | P3: ='Energy Burden'!FI$4 -> 46714.99086 | Q3: ='Energy Burden'!FJ$4 -> 47052.35713 | R3: ='Energy Burden'!FK$4 -> 47377.83402 | S3: ='Energy Burden'!FL$4 -> 47710.88506 | T3: ='Energy Burden'!FM$4 -> 48042.50856 | U3: ='Energy Burden'!FN$4 -> 48379.83732 | V3: ='Energy Burden'!FO$4 -> 48697.85949 | W3: ='Energy Burden'!FP$4 -> 47617.2384 | X3: ='Energy Burden'!FQ$4 -> 47923.33872 | Y3: ='Energy Burden'!FR$4 -> 48224.19857 | Z3: ='Energy Burden'!FS$4 -> 48520.12507 | AA3: ='Energy Burden'!FT$4 -> 48809.93647 | AB3: ='Energy Burden'!FU$4 -> 49094.72296 | AC3: ='Energy Burden'!FV$4 -> 49375.4593 | AD3: ='Energy Burden'!FW$4 -> 49650.89649 | AE3: ='Energy Burden'!FX$4 -> 49922.49645 | AF3: ='Energy Burden'!FY$4 -> 50189.42388 | AG3: ='Energy Burden'!FZ$4 -> 50454.3685 | AH3: ='Energy Burden'!GA$4 -> 52254.94385
A4: 2b | B4: Energy Burden | C4: Percent of Customer with Excess Energy Burden | D4: Percent | L4: ='Energy Burden'!FE$6 -> 0.2047844528 | M4: ='Energy Burden'!FF$6 -> 0.2041284255 | N4: ='Energy Burden'!FG$6 -> 0.2041284255 | O4: ='Energy Burden'!FH$6 -> 0.1988931975 | P4: ='Energy Burden'!FI$6 -> 0.2032190807 | Q4: ='Energy Burden'!FJ$6 -> 0.2032190807 | R4: ='Energy Burden'!FK$6 -> 0.2031866041 | S4: ='Energy Burden'!FL$6 -> 0.2031866041 | T4: ='Energy Burden'!FM$6 -> 0.2031866041 | U4: ='Energy Burden'!FN$6 -> 0.2032190807 | V4: ='Energy Burden'!FO$6 -> 0.2031866041 | W4: ='Energy Burden'!FP$6 -> 0.1973797879 | X4: ='Energy Burden'!FQ$6 -> 0.1973797879 | Y4: ='Energy Burden'!FR$6 -> 0.1973797879 | Z4: ='Energy Burden'!FS$6 -> 0.1973797879 | AA4: ='Energy Burden'!FT$6 -> 0.1973797879 | AB4: ='Energy Burden'!FU$6 -> 0.1973797879 | AC4: ='Energy Burden'!FV$6 -> 0.1973797879 | AD4: ='Energy Burden'!FW$6 -> 0.1973797879 | AE4: ='Energy Burden'!FX$6 -> 0.1973797879 | AF4: ='Energy Burden'!FY$6 -> 0.1973797879 | AG4: ='Energy Burden'!FZ$6 -> 0.1973797879 | AH4: ='Energy Burden'!GA$6 -> 0.2033619777
A5: 2c | B5: Energy Burden | C5: Average excess burden per household | D5: $ | L5: ='Energy Burden'!FE$5 -> 916.8401313 | M5: ='Energy Burden'!FF$5 -> 928.4558284 | N5: ='Energy Burden'!FG$5 -> 913.8807502 | O5: ='Energy Burden'!FH$5 -> 897.1611973 | P5: ='Energy Burden'!FI$5 -> 946.955855 | Q5: ='Energy Burden'!FJ$5 -> 985.5281438 | R5: ='Energy Burden'!FK$5 -> 1002.17886 | S5: ='Energy Burden'!FL$5 -> 1025.159696 | T5: ='Energy Burden'!FM$5 -> 1072.574932 | U5: ='Energy Burden'!FN$5 -> 1156.186791 | V5: ='Energy Burden'!FO$5 -> 1161.364959 | W5: ='Energy Burden'!FP$5 -> 1174.074303 | X5: ='Energy Burden'!FQ$5 -> 1211.401226 | Y5: ='Energy Burden'!FR$5 -> 1281.390751 | Z5: ='Energy Burden'!FS$5 -> 1298.332218 | AA5: ='Energy Burden'!FT$5 -> 1357.794836 | AB5: ='Energy Burden'!FU$5 -> 1408.069642 | AC5: ='Energy Burden'!FV$5 -> 1422.658969 | AD5: ='Energy Burden'!FW$5 -> 1456.17106 | AE5: ='Energy Burden'!FX$5 -> 1502.69409 | AF5: ='Energy Burden'!FY$5 -> 1613.977073 | AG5: ='Energy Burden'!FZ$5 -> 1636.739615 | AH5: ='Energy Burden'!GA$5 -> 2028.31601
B7: DER Gen | C7: Great Northern | D7: MWh | E7: 0 | F7: 0 | G7: 0 | H7: 0 | I7: 0 | J7: 100.569 | L7: =J7 -> 100.569 | M7: =L7*0.995 -> 100.066155 | N7: 99.56582423 | O7: 99.0679951 | P7: 98.57265513 | Q7: 98.07979185 | R7: 97.58939289 | S7: 97.10144593 | T7: 96.6159387 | U7: 96.13285901 | V7: 95.65219471 | W7: 95.17393374 | X7: 94.69806407 | Y7: 94.22457375 | Z7: 93.75345088 | AA7: 93.28468363 | AB7: 92.81826021 | AC7: 92.35416891 | AD7: 91.89239806 | AE7: 91.43293607 | AF7: 90.97577139 | AG7: 90.52089253 | AH7: 90.06828807
B8: DER Gen | C8: Boulder Park Solar | D8: MWh | E8: 196.17152 | F8: 521.87004 | G8: 539.32164 | H8: 556.20931 | I8: 540.31473 | J8: 535.65707 | L8: =AVERAGE(F8:J8) -> 538.674558 | M8: =L8*0.995 -> 535.9811852 | N8: 533.3012793 | O8: 530.6347729 | P8: 527.981599 | Q8: 525.341691 | R8: 522.7149826 | S8: 520.1014077 | T8: 517.5009006 | U8: 514.9133961 | V8: 512.3388291 | W8: 509.777135 | X8: 507.2282493 | Y8: 504.6921081 | Z8: 502.1686475 | AA8: 499.6578043 | AB8: 497.1595153 | AC8: 494.6737177 | AD8: 492.2003491 | AE8: 489.7393474 | AF8: 487.2906506 | AG8: 484.8541974 | AH8: 482.4299264
B9: DER Gen | C9: PURPA | D9: MWh | E9: 20683.74834 | F9: 18428.68819 | G9: 16644.39831 | H9: 16383.29287 | I9: 20149.58491 | J9: 14413.20254 | L9: =AVERAGE(E9:J9) -> 17783.81919 | M9: =L9 -> 17783.81919 | N9: 17783.81919 | O9: 17783.81919 | P9: 17783.81919 | Q9: 17783.81919 | R9: 17783.81919 | S9: 17783.81919 | T9: 17783.81919 | U9: 17783.81919 | V9: 17783.81919 | W9: 17783.81919 | X9: 17783.81919 | Y9: 17783.81919 | Z9: 17783.81919 | AA9: 17783.81919 | AB9: 17783.81919 | AC9: 17783.81919 | AD9: 17783.81919 | AE9: 17783.81919 | AF9: 17783.81919 | AG9: 17783.81919 | AH9: 17783.81919
B10: DER Gen | C10: Spokane County Digester | D10: MWh | E10: 991.76 | F10: 1190.48 | G10: 1271.44 | H10: 1239.81104 | I10: 1132.35992 | J10: 1123 | L10: =AVERAGE(E10:J10) -> 1158.141827 | M10: =L10 -> 1158.141827 | N10: 1158.141827 | O10: 1158.141827 | P10: 1158.141827 | Q10: 1158.141827 | R10: 1158.141827 | S10: 1158.141827 | T10: 1158.141827 | U10: 1158.141827 | V10: 1158.141827 | W10: 1158.141827 | X10: 1158.141827 | Y10: 1158.141827 | Z10: 1158.141827 | AA10: 1158.141827 | AB10: 1158.141827 | AC10: 1158.141827 | AD10: 1158.141827 | AE10: 1158.141827 | AF10: 1158.141827 | AG10: 1158.141827 | AH10: 1158.141827
B11: DER Gen | C11: Customer Net Meter | D11: MWh | E11: 0 | F11: 0 | G11: 0 | H11: 0 | I11: 0 | J11: 0
B12: DER Gen | C12: Selected Resources | D12: MWh | E12: 0 | F12: 0 | G12: 0 | H12: 0 | I12: 0 | J12: 0 | L12: =Res_MWh!JU$141+Res_MWh!JU$104+Res_MWh!JU$106+Res_MWh!JU$108+Res_MWh!JU$110 -> 0 | M12: =Res_MWh!JV$141+Res_MWh!JV$104+Res_MWh!JV$106+Res_MWh!JV$108+Res_MWh!JV$110 -> 977.8552628 | N12: =Res_MWh!JW$141+Res_MWh!JW$104+Res_MWh!JW$106+Res_MWh!JW$108+Res_MWh!JW$110 -> 1971.978996 | O12: =Res_MWh!JX$141+Res_MWh!JX$104+Res_MWh!JX$106+Res_MWh!JX$108+Res_MWh!JX$110 -> 2983.229272 | P12: =Res_MWh!JY$141+Res_MWh!JY$104+Res_MWh!JY$106+Res_MWh!JY$108+Res_MWh!JY$110 -> 4027.166879 | Q12: =Res_MWh!JZ$141+Res_MWh!JZ$104+Res_MWh!JZ$106+Res_MWh!JZ$108+Res_MWh!JZ$110 -> 5076.732607 | R12: =Res_MWh!KA$141+Res_MWh!KA$104+Res_MWh!KA$106+Res_MWh!KA$108+Res_MWh!KA$110 -> 6233.618702 | S12: =Res_MWh!KB$141+Res_MWh!KB$104+Res_MWh!KB$106+Res_MWh!KB$108+Res_MWh!KB$110 -> 7697.737088 | T12: =Res_MWh!KC$141+Res_MWh!KC$104+Res_MWh!KC$106+Res_MWh!KC$108+Res_MWh!KC$110 -> 8959.841427 | U12: =Res_MWh!KD$141+Res_MWh!KD$104+Res_MWh!KD$106+Res_MWh!KD$108+Res_MWh!KD$110 -> 10194.73924 | V12: =Res_MWh!KE$141+Res_MWh!KE$104+Res_MWh!KE$106+Res_MWh!KE$108+Res_MWh!KE$110 -> 11596.68175 | W12: =Res_MWh!KF$141+Res_MWh!KF$104+Res_MWh!KF$106+Res_MWh!KF$108+Res_MWh!KF$110 -> 11953.98663 | X12: =Res_MWh!KG$141+Res_MWh!KG$104+Res_MWh!KG$106+Res_MWh!KG$108+Res_MWh!KG$110 -> 12491.69375 | Y12: =Res_MWh!KH$141+Res_MWh!KH$104+Res_MWh!KH$106+Res_MWh!KH$108+Res_MWh!KH$110 -> 12840.44302 | Z12: =Res_MWh!KI$141+Res_MWh!KI$104+Res_MWh!KI$106+Res_MWh!KI$108+Res_MWh!KI$110 -> 13174.8144 | AA12: =Res_MWh!KJ$141+Res_MWh!KJ$104+Res_MWh!KJ$106+Res_MWh!KJ$108+Res_MWh!KJ$110 -> 13565.42906 | AB12: =Res_MWh!KK$141+Res_MWh!KK$104+Res_MWh!KK$106+Res_MWh!KK$108+Res_MWh!KK$110 -> 13910.81313 | AC12: =Res_MWh!KL$141+Res_MWh!KL$104+Res_MWh!KL$106+Res_MWh!KL$108+Res_MWh!KL$110 -> 14283.86396 | AD12: =Res_MWh!KM$141+Res_MWh!KM$104+Res_MWh!KM$106+Res_MWh!KM$108+Res_MWh!KM$110 -> 14461.96238 | AE12: =Res_MWh!KN$141+Res_MWh!KN$104+Res_MWh!KN$106+Res_MWh!KN$108+Res_MWh!KN$110 -> 14649.78897 | AF12: =Res_MWh!KO$141+Res_MWh!KO$104+Res_MWh!KO$106+Res_MWh!KO$108+Res_MWh!KO$110 -> 14877.21613 | AG12: =Res_MWh!KP$141+Res_MWh!KP$104+Res_MWh!KP$106+Res_MWh!KP$108+Res_MWh!KP$110 -> 15670.4274 | AH12: =Res_MWh!KQ$141+Res_MWh!KQ$104+Res_MWh!KQ$106+Res_MWh!KQ$108+Res_MWh!KQ$110 -> 16283.32954
A13: 5a | B13: DER Gen | C13: Total MWh of DER <5 MW | D13: MWh | E13: =SUM(E7:E12) -> 21871.67986 | F13: =SUM(F7:F12) -> 20141.03823 | G13: 18455.15995 | H13: 18179.31322 | I13: 21822.25956 | J13: 16172.42861 | L13: 19581.20458 | M13: 20555.86362 | N13: 21546.80712 | O13: 22554.89306 | P13: 23595.68215 | Q13: 24642.11511 | R13: 25795.8841 | S13: 27256.90096 | T13: 28515.91929 | U13: 29747.74651 | V13: 31146.63379 | W13: 31500.89871 | X13: 32035.58109 | Y13: 32381.32072 | Z13: 32712.69752 | AA13: 33100.33257 | AB13: 33442.75192 | AC13: 33812.85287 | AD13: 33988.01615 | AE13: 34172.92228 | AF13: 34397.44357 | AG13: 35187.76351 | AH13: 35797.78877
B15: DER Storage | C15: Existing storage/EAG | L15: 1.328 | M15: 1.328 | N15: 1.328 | O15: 1.328 | P15: 1.328 | Q15: 1.328 | R15: 1.328 | S15: 1.328 | T15: 1.328 | U15: 1.328 | V15: 1.328 | W15: 1.328 | X15: 1.328 | Y15: 1.328 | Z15: 1.328 | AA15: 1.328 | AB15: 1.328 | AC15: 1.328 | AD15: 1.328 | AE15: 1.328 | AF15: 1.328 | AG15: 1.328 | AH15: 1.328
B16: DER Storage | C16: Selected Resources | L16: =((Selection!D$213+Selection!D$209+Selection!D$211+Selection!D$221+Selection!D$207)*4)+(Selection!D$222*8) -> 0 | M16: =((Selection!E$213+Selection!E$209+Selection!E$211+Selection!E$221+Selection!E$207)*4)+(Selection!E$222*8) -> 0 | N16: =((Selection!F$213+Selection!F$209+Selection!F$211+Selection!F$221+Selection!F$207)*4)+(Selection!F$222*8) -> 0 | O16: =((Selection!G$213+Selection!G$209+Selection!G$211+Selection!G$221+Selection!G$207)*4)+(Selection!G$222*8) -> 0 | P16: =((Selection!H$213+Selection!H$209+Selection!H$211+Selection!H$221+Selection!H$207)*4)+(Selection!H$222*8) -> 0 | Q16: =((Selection!I$213+Selection!I$209+Selection!I$211+Selection!I$221+Selection!I$207)*4)+(Selection!I$222*8) -> 0 | R16: =((Selection!J$213+Selection!J$209+Selection!J$211+Selection!J$221+Selection!J$207)*4)+(Selection!J$222*8) -> 0 | S16: =((Selection!K$213+Selection!K$209+Selection!K$211+Selection!K$221+Selection!K$207)*4)+(Selection!K$222*8) -> 0 | T16: =((Selection!L$213+Selection!L$209+Selection!L$211+Selection!L$221+Selection!L$207)*4)+(Selection!L$222*8) -> 0 | U16: =((Selection!M$213+Selection!M$209+Selection!M$211+Selection!M$221+Selection!M$207)*4)+(Selection!M$222*8) -> 0 | V16: =((Selection!N$213+Selection!N$209+Selection!N$211+Selection!N$221+Selection!N$207)*4)+(Selection!N$222*8) -> 0 | W16: =((Selection!O$213+Selection!O$209+Selection!O$211+Selection!O$221+Selection!O$207)*4)+(Selection!O$222*8) -> 0 | X16: =((Selection!P$213+Selection!P$209+Selection!P$211+Selection!P$221+Selection!P$207)*4)+(Selection!P$222*8) -> 0 | Y16: =((Selection!Q$213+Selection!Q$209+Selection!Q$211+Selection!Q$221+Selection!Q$207)*4)+(Selection!Q$222*8) -> 0 | Z16: =((Selection!R$213+Selection!R$209+Selection!R$211+Selection!R$221+Selection!R$207)*4)+(Selection!R$222*8) -> 0 | AA16: =((Selection!S$213+Selection!S$209+Selection!S$211+Selection!S$221+Selection!S$207)*4)+(Selection!S$222*8) -> 0 | AB16: =((Selection!T$213+Selection!T$209+Selection!T$211+Selection!T$221+Selection!T$207)*4)+(Selection!T$222*8) -> 0.4 | AC16: =((Selection!U$213+Selection!U$209+Selection!U$211+Selection!U$221+Selection!U$207)*4)+(Selection!U$222*8) -> 0.8 | AD16: =((Selection!V$213+Selection!V$209+Selection!V$211+Selection!V$221+Selection!V$207)*4)+(Selection!V$222*8) -> 1.215872399 | AE16: =((Selection!W$213+Selection!W$209+Selection!W$211+Selection!W$221+Selection!W$207)*4)+(Selection!W$222*8) -> 1.645653903 | AF16: =((Selection!X$213+Selection!X$209+Selection!X$211+Selection!X$221+Selection!X$207)*4)+(Selection!X$222*8) -> 2.098466152 | AG16: =((Selection!Y$213+Selection!Y$209+Selection!Y$211+Selection!Y$221+Selection!Y$207)*4)+(Selection!Y$222*8) -> 2.098466152 | AH16: =((Selection!Z$213+Selection!Z$209+Selection!Z$211+Selection!Z$221+Selection!Z$207)*4)+(Selection!Z$222*8) -> 2.098466152
A17: 5b | B17: DER Storage | C17: Total of MWh of DER energy storage < 5 MW | D17: MWh Capability | E17: =SUM(E15:E16) -> 0 | F17: =SUM(F15:F16) -> 0 | G17: 0 | H17: 0 | I17: 0 | J17: 0 | L17: 1.328 | M17: 1.328 | N17: 1.328 | O17: 1.328 | P17: 1.328 | Q17: 1.328 | R17: 1.328 | S17: 1.328 | T17: 1.328 | U17: 1.328 | V17: 1.328 | W17: 1.328 | X17: 1.328 | Y17: 1.328 | Z17: 1.328 | AA17: 1.328 | AB17: 1.728 | AC17: 2.128 | AD17: 2.543872399 | AE17: 2.973653903 | AF17: 3.426466152 | AG17: 3.426466152 | AH17: 3.426466152
C19: Low Income EE Values
C20: Low Income EE from target | D20: GWH | L20: 4.908714137 | M20: 10.76077901 | N20: 17.70732477 | O20: 25.44708819 | P20: 33.95803378 | Q20: 43.63962422 | R20: 53.97238009 | S20: 64.3391688 | T20: 73.95577928 | U20: 82.47865895 | V20: 89.53086276 | W20: 94.87536188 | X20: 98.88843601 | Y20: 101.8166229 | Z20: 103.9513194 | AA20: 105.3276126 | AB20: 106.380196 | AC20: 107.0852391 | AD20: 107.7134509 | AE20: 108.3411453 | AF20: 108.8853194 | AG20: 109.4223451 | AH20: 109.8680634
C21: Low Income EE from simulation | D21: GWH | L21: =EE_Selection!K19 -> 5.123719547 | M21: =EE_Selection!L19 -> 11.24170158 | N21: =EE_Selection!M19 -> 18.52336402 | O21: =EE_Selection!N19 -> 26.66646369 | P21: =EE_Selection!O19 -> 35.65497098 | Q21: =EE_Selection!P19 -> 45.88097818 | R21: =EE_Selection!Q19 -> 56.80116975 | S21: =EE_Selection!R19 -> 67.74914965 | T21: =EE_Selection!S19 -> 77.89570978 | U21: =EE_Selection!T19 -> 86.86080089 | V21: =EE_Selection!U19 -> 94.24147938 | W21: =EE_Selection!V19 -> 99.79413257 | X21: =EE_Selection!W19 -> 103.9609243 | Y21: =EE_Selection!X19 -> 107.0254616 | Z21: =EE_Selection!Y19 -> 109.2903639 | AA21: =EE_Selection!Z19 -> 110.7966538 | AB21: =EE_Selection!AA19 -> 111.983935 | AC21: =EE_Selection!AB19 -> 112.8303588 | AD21: =EE_Selection!AC19 -> 113.603689 | AE21: =EE_Selection!AD19 -> 114.3798763 | AF21: =EE_Selection!AE19 -> 115.0759738 | AG21: =EE_Selection!AF19 -> 115.7966216 | AH21: =EE_Selection!AG19 -> 116.42467
C22: Incremental EE from Named Community Fund | D22: GWH | L22: =L21-L20 -> 0.2150054098 | M22: =M21-M20 -> 0.4809225728 | N22: 0.8160392495 | O22: 1.219375494 | P22: 1.696937205 | Q22: 2.241353964 | R22: 2.828789667 | S22: 3.409980849 | T22: 3.939930508 | U22: 4.382141934 | V22: 4.710616619 | W22: 4.918770682 | X22: 5.072488292 | Y22: 5.208838668 | Z22: 5.339044563 | AA22: 5.469041202 | AB22: 5.603738938 | AC22: 5.745119675 | AD22: 5.890238129 | AE22: 6.038731033 | AF22: 6.190654383 | AG22: 6.374276462 | AH22: 6.55660665
V23: =EE_Selection!U4/(EE_Selection!U4-V22) -> 1.013559131
C24: Low Income EE Investment | D24: Millions $ | L24: =EE_Selection!CE12 -> 7.986101586 | M24: =EE_Selection!CF12 -> 10.47126624 | N24: =EE_Selection!CG12 -> 12.81832834 | O24: =EE_Selection!CH12 -> 16.93261938 | P24: =EE_Selection!CI12 -> 20.85440152 | Q24: =EE_Selection!CJ12 -> 25.22813256 | R24: =EE_Selection!CK12 -> 28.11083479 | S24: =EE_Selection!CL12 -> 29.05697288 | T24: =EE_Selection!CM12 -> 28.21058029 | U24: =EE_Selection!CN12 -> 26.121294 | V24: =EE_Selection!CO12 -> 23.55209864 | W24: =EE_Selection!CP12 -> 21.10220396 | X24: =EE_Selection!CQ12 -> 19.34418414 | Y24: =EE_Selection!CR12 -> 17.84970976 | Z24: =EE_Selection!CS12 -> 16.59047146 | AA24: =EE_Selection!CT12 -> 14.9441231 | AB24: =EE_Selection!CU12 -> 13.91055865 | AC24: =EE_Selection!CV12 -> 13.23383714 | AD24: =EE_Selection!CW12 -> 13.92767588 | AE24: =EE_Selection!CX12 -> 14.63673787 | AF24: =EE_Selection!CY12 -> 15.23055471 | AG24: =EE_Selection!CZ12 -> 15.89059282 | AH24: =EE_Selection!DA12 -> 16.54178038
C25: Low Income EE Investment (Cost Effectiveness Test) | D25: Millions $ | L25: 5.631639753 | M25: 7.455568492 | N25: 9.10481247 | O25: 12.59141198 | P25: 15.87365456 | Q25: 19.53703789 | R25: 22.06112646 | S25: 23.01996454 | T25: 22.45221046 | U25: 20.7079064 | V25: 18.35106639 | W25: 15.85434307 | X25: 13.69827651 | Y25: 11.79669611 | Z25: 10.04083849 | AA25: 7.923079559 | AB25: 6.362804181 | AC25: 5.145380614 | AD25: 5.327783076 | AE25: 5.505718457 | AF25: 5.557135903 | AG25: 5.639432059 | AH25: 5.700591318
C26: Incremental EE Investment | D26: Millions $ | L26: =L24-L25 -> 2.354461833 | M26: =M24-M25 -> 3.015697751 | N26: 3.713515865 | O26: 4.341207401 | P26: 4.980746965 | Q26: 5.691094669 | R26: 6.049708324 | S26: 6.037008337 | T26: 5.758369834 | U26: 5.413387603 | V26: 5.20103225 | W26: 5.247860893 | X26: 5.645907632 | Y26: 6.05301365 | Z26: 6.549632972 | AA26: 7.021043537 | AB26: 7.547754473 | AC26: 8.08845653 | AD26: 8.5998928 | AE26: 9.13101941 | AF26: 9.67341881 | AG26: 10.25116076 | AH26: 10.84118906
A27: 1 | B27: on/off | C27: NCF Investment | D27: Millions $ | L27: 2 | M27: =L27*1.03 -> 2.06 | N27: =M27*1.03 -> 2.1218 | O27: 2.185454 | P27: 2.25101762 | Q27: 2.318548149 | R27: 2.388104593 | S27: 2.459747731 | T27: 2.533540163 | U27: 2.609546368 | V27: 2.687832759 | W27: 2.768467741 | X27: 2.851521774 | Y27: 2.937067427 | Z27: 3.02517945 | AA27: 3.115934833 | AB27: 3.209412878 | AC27: 3.305695265 | AD27: 3.404866122 | AE27: 3.507012106 | AF27: 3.612222469 | AG27: 3.720589143 | AH27: 3.832206818
L28: =[1]!WB(L24,">=",(L25+L27)*$A$27) -> >= | M28: =[1]!WB(M24,">=",(M25+M27)*$A$27) -> >= | N28: >= | O28: >= | P28: >= | Q28: >= | R28: >= | S28: >= | T28: >= | U28: >= | V28: >= | W28: >= | X28: >= | Y28: >= | Z28: >= | AA28: >= | AB28: >= | AC28: >= | AD28: >= | AE28: >= | AF28: >= | AG28: >= | AH28: >=
C31: Low Income (EE NEI) | D31: Millions $ | L31: =EE_Selection!K$2726 -> 0.6684158633 | M31: =EE_Selection!L$2726 -> 1.502309272 | N31: =EE_Selection!M$2726 -> 2.510893161 | O31: =EE_Selection!N$2726 -> 3.658515206 | P31: =EE_Selection!O$2726 -> 4.940726363 | Q31: =EE_Selection!P$2726 -> 6.403306922 | R31: =EE_Selection!Q$2726 -> 7.95773156 | S31: =EE_Selection!R$2726 -> 9.504459163 | T31: =EE_Selection!S$2726 -> 10.93627705 | U31: =EE_Selection!T$2726 -> 12.18755822 | V31: =EE_Selection!U$2726 -> 13.22378937 | W31: =EE_Selection!V$2726 -> 14.03716047 | X31: =EE_Selection!W$2726 -> 14.68137481 | Y31: =EE_Selection!X$2726 -> 15.20417979 | Z31: =EE_Selection!Y$2726 -> 15.66015485 | AA31: =EE_Selection!Z$2726 -> 16.08048217 | AB31: =EE_Selection!AA$2726 -> 16.48986517 | AC31: =EE_Selection!AB$2726 -> 16.90364723 | AD31: =EE_Selection!AC$2726 -> 17.33016809 | AE31: =EE_Selection!AD$2726 -> 17.76996852 | AF31: =EE_Selection!AE$2726 -> 18.21648128 | AG31: =EE_Selection!AF$2726 -> 18.6741156 | AH31: =EE_Selection!AG$2726 -> 19.13995969
C32: Low Income EE Market Value | D32: Millions $ | L32: =EE_Mrkt_Value!BZ$4 -> 10.90163078 | M32: =EE_Mrkt_Value!CA$4 -> 10.68068278 | N32: =EE_Mrkt_Value!CB$4 -> 9.339751912 | O32: =EE_Mrkt_Value!CC$4 -> 8.935110608 | P32: =EE_Mrkt_Value!CD$4 -> 8.257598882 | Q32: =EE_Mrkt_Value!CE$4 -> 8.514974267 | R32: =EE_Mrkt_Value!CF$4 -> 8.748952203 | S32: =EE_Mrkt_Value!CG$4 -> 10.34356459 | T32: =EE_Mrkt_Value!CH$4 -> 10.17991598 | U32: =EE_Mrkt_Value!CI$4 -> 10.36121457 | V32: =EE_Mrkt_Value!CJ$4 -> 10.95889207 | W32: =EE_Mrkt_Value!CK$4 -> 11.41780099 | X32: =EE_Mrkt_Value!CL$4 -> 12.30098395 | Y32: =EE_Mrkt_Value!CM$4 -> 12.91029912 | Z32: =EE_Mrkt_Value!CN$4 -> 14.00274326 | AA32: =EE_Mrkt_Value!CO$4 -> 14.3924944 | AB32: =EE_Mrkt_Value!CP$4 -> 15.18835508 | AC32: =EE_Mrkt_Value!CQ$4 -> 16.76643624 | AD32: =EE_Mrkt_Value!CR$4 -> 17.27956763 | AE32: =EE_Mrkt_Value!CS$4 -> 18.83366925 | AF32: =EE_Mrkt_Value!CT$4 -> 19.93878285 | AG32: =EE_Mrkt_Value!CU$4 -> 23.16213218 | AH32: =EE_Mrkt_Value!CV$4 -> 23.61297226
C33: Low Income Capacity Value | D33: Millions $ | L33: =(EE_Selection!DC$12*1000*G_A!Q$20)/1000000 -> 0 | M33: =(EE_Selection!DD$12*1000*G_A!R$20)/1000000 -> 0 | N33: =(EE_Selection!DE$12*1000*G_A!S$20)/1000000 -> 0 | O33: =(EE_Selection!DF$12*1000*G_A!T$20)/1000000 -> 0 | P33: =(EE_Selection!DG$12*1000*G_A!U$20)/1000000 -> 0.05319455464 | Q33: =(EE_Selection!DH$12*1000*G_A!V$20)/1000000 -> 0.07165728138 | R33: =(EE_Selection!DI$12*1000*G_A!W$20)/1000000 -> 0.09408864133 | S33: =(EE_Selection!DJ$12*1000*G_A!X$20)/1000000 -> 0.1219649356 | T33: =(EE_Selection!DK$12*1000*G_A!Y$20)/1000000 -> 0.1546785944 | U33: =(EE_Selection!DL$12*1000*G_A!Z$20)/1000000 -> 0.193805594 | V33: =(EE_Selection!DM$12*1000*G_A!AA$20)/1000000 -> 0.2373973876 | W33: =(EE_Selection!DN$12*1000*G_A!AB$20)/1000000 -> 0.2855305789 | X33: =(EE_Selection!DO$12*1000*G_A!AC$20)/1000000 -> 0.3371273306 | Y33: =(EE_Selection!DP$12*1000*G_A!AD$20)/1000000 -> 0.391964871 | Z33: =(EE_Selection!DQ$12*1000*G_A!AE$20)/1000000 -> 0.4446995455 | AA33: =(EE_Selection!DR$12*1000*G_A!AF$20)/1000000 -> 0.4973903673 | AB33: =(EE_Selection!DS$12*1000*G_A!AG$20)/1000000 -> 0.5512716731 | AC33: =(EE_Selection!DT$12*1000*G_A!AH$20)/1000000 -> 0.6061428795 | AD33: =(EE_Selection!DU$12*1000*G_A!AI$20)/1000000 -> 0.6576953537 | AE33: =(EE_Selection!DV$12*1000*G_A!AJ$20)/1000000 -> 0.712249179 | AF33: =(EE_Selection!DW$12*1000*G_A!AK$20)/1000000 -> 0.7666182773 | AG33: =(EE_Selection!DX$12*1000*G_A!AL$20)/1000000 -> 0.8248502188 | AH33: =(EE_Selection!DY$12*1000*G_A!AM$20)/1000000 -> 0.8768560082
C34: T&D | D34: Millions $ | L34: =(EE_Selection!DC$12*1000*G_A!$Q$18)/1000000 -> 0.001929662455 | M34: =(EE_Selection!DD$12*1000*G_A!$Q$18)/1000000 -> 0.004848250444 | N34: =(EE_Selection!DE$12*1000*G_A!$Q$18)/1000000 -> 0.008716079281 | O34: =(EE_Selection!DF$12*1000*G_A!$Q$18)/1000000 -> 0.0125979435 | P34: =(EE_Selection!DG$12*1000*G_A!$Q$18)/1000000 -> 0.01703864372 | Q34: =(EE_Selection!DH$12*1000*G_A!$Q$18)/1000000 -> 0.02250235647 | R34: =(EE_Selection!DI$12*1000*G_A!$Q$18)/1000000 -> 0.02896707864 | S34: =(EE_Selection!DJ$12*1000*G_A!$Q$18)/1000000 -> 0.03681309402 | T34: =(EE_Selection!DK$12*1000*G_A!$Q$18)/1000000 -> 0.04577173496 | U34: =(EE_Selection!DL$12*1000*G_A!$Q$18)/1000000 -> 0.05622549584 | V34: =(EE_Selection!DM$12*1000*G_A!$Q$18)/1000000 -> 0.06752160385 | W34: =(EE_Selection!DN$12*1000*G_A!$Q$18)/1000000 -> 0.0796194674 | X34: =(EE_Selection!DO$12*1000*G_A!$Q$18)/1000000 -> 0.09216381261 | Y34: =(EE_Selection!DP$12*1000*G_A!$Q$18)/1000000 -> 0.105054206 | Z34: =(EE_Selection!DQ$12*1000*G_A!$Q$18)/1000000 -> 0.116851102 | AA34: =(EE_Selection!DR$12*1000*G_A!$Q$18)/1000000 -> 0.1281336877 | AB34: =(EE_Selection!DS$12*1000*G_A!$Q$18)/1000000 -> 0.1392295631 | AC34: =(EE_Selection!DT$12*1000*G_A!$Q$18)/1000000 -> 0.1500861508 | AD34: =(EE_Selection!DU$12*1000*G_A!$Q$18)/1000000 -> 0.1596578269 | AE34: =(EE_Selection!DV$12*1000*G_A!$Q$18)/1000000 -> 0.1695107422 | AF34: =(EE_Selection!DW$12*1000*G_A!$Q$18)/1000000 -> 0.1788727837 | AG34: =(EE_Selection!DX$12*1000*G_A!$Q$18)/1000000 -> 0.188686148 | AH34: =(EE_Selection!DY$12*1000*G_A!$Q$18)/1000000 -> 0.1966495853
C35: Likely Named Community Resource Utility Values
C36: Resource Value | D36: Millions $ | L36: =Aurora_Res_Results!AC$477/1000 -> 0 | M36: =Aurora_Res_Results!AD$477/1000 -> 0.0306535771 | N36: =Aurora_Res_Results!AE$477/1000 -> 0.04778392414 | O36: =Aurora_Res_Results!AF$477/1000 -> 0.06210259248 | P36: =Aurora_Res_Results!AG$477/1000 -> 0.06438624137 | Q36: =Aurora_Res_Results!AH$477/1000 -> 0.07280119851 | R36: =Aurora_Res_Results!AI$477/1000 -> 0.08338663602 | S36: =Aurora_Res_Results!AJ$477/1000 -> 0.1109662953 | T36: =Aurora_Res_Results!AK$477/1000 -> 0.1016083299 | U36: =Aurora_Res_Results!AL$477/1000 -> 0.1058499178 | V36: =Aurora_Res_Results!AM$477/1000 -> 0.1114770719 | W36: =Aurora_Res_Results!AN$477/1000 -> 0.1153809853 | X36: =Aurora_Res_Results!AO$477/1000 -> 0.1175884523 | Y36: =Aurora_Res_Results!AP$477/1000 -> 0.1153136422 | Z36: =Aurora_Res_Results!AQ$477/1000 -> 0.1200222011 | AA36: =Aurora_Res_Results!AR$477/1000 -> 0.1096529344 | AB36: =Aurora_Res_Results!AS$477/1000 -> 0.1080927387 | AC36: =Aurora_Res_Results!AT$477/1000 -> 0.1053329652 | AD36: =Aurora_Res_Results!AU$477/1000 -> 0.109091371 | AE36: =Aurora_Res_Results!AV$477/1000 -> 0.1225764243 | AF36: =Aurora_Res_Results!AW$477/1000 -> 0.1324408447 | AG36: =Aurora_Res_Results!AX$477/1000 -> 0.1714212629 | AH36: =Aurora_Res_Results!AY$477/1000 -> 0.1752278973
C37: Capacity Value | D37: Millions $ | L37: =Selection!D$265 -> 0 | M37: =Selection!E$265 -> 0 | N37: =Selection!F$265 -> 0 | O37: =Selection!G$265 -> 0 | P37: =Selection!H$265 -> 0.003383563629 | Q37: =Selection!I$265 -> 0.004360320355 | R37: =Selection!J$265 -> 0.005390646101 | S37: =Selection!K$265 -> 0.006474543155 | T37: =Selection!L$265 -> 0.007622256976 | U37: =Selection!M$265 -> 0.008834035292 | V37: =Selection!N$265 -> 0.01010583432 | W37: =Selection!O$265 -> 0.01082010428 | X37: =Selection!P$265 -> 0.01151431665 | Y37: =Selection!Q$265 -> 0.01224743184 | Z37: =Selection!R$265 -> 0.01303729404 | AA37: =Selection!S$265 -> 0.01387650175 | AB37: =Selection!T$265 -> 0.01716972543 | AC37: =Selection!U$265 -> 0.02020551179 | AD37: =Selection!V$265 -> 0.02311976812 | AE37: =Selection!W$265 -> 0.02590443683 | AF37: =Selection!X$265 -> 0.02862791569 | AG37: =Selection!Y$265 -> 0.02922518179 | AH37: =Selection!Z$265 -> 0.02998693522
C38: NEI | D38: Millions $ | L38: =NEI!F$84 -> 0 | M38: =NEI!G$84 -> 0.003799416271 | N38: =NEI!H$84 -> 0.007827730393 | O38: =NEI!I$84 -> 0.01210289594 | P38: =NEI!J$84 -> 0.0166562116 | Q38: =NEI!K$84 -> 0.02149605524 | R38: =NEI!L$84 -> 0.02666921194 | S38: =NEI!M$84 -> 0.03229697917 | T38: =NEI!N$84 -> 0.03814595887 | U38: =NEI!O$84 -> 0.04431806463 | V38: =NEI!P$84 -> 0.05091551482 | W38: =NEI!Q$84 -> 0.05283672194 | X38: =NEI!R$84 -> 0.05483393452 | Y38: =NEI!S$84 -> 0.05682707926 | Z38: =NEI!T$84 -> 0.058972094 | AA38: =NEI!U$84 -> 0.06129873395 | AB38: =NEI!V$84 -> 0.0638040072 | AC38: =NEI!W$84 -> 0.0663892265 | AD38: =NEI!X$84 -> 0.06898173673 | AE38: =NEI!Y$84 -> 0.07171791886 | AF38: =NEI!Z$84 -> 0.07467690514 | AG38: =NEI!AA$84 -> 0.07835454264 | AH38: =NEI!AB$84 -> 0.08230948576
C39: Likely Named Community Demand Response
C40: Energy Value ($) | D40: Millions $ | L40: =DR!C$122/1000000 -> 0 | M40: =DR!D$122/1000000 -> 0 | N40: =DR!E$122/1000000 -> 0.01319260642 | O40: =DR!F$122/1000000 -> 0.04289187826 | P40: =DR!G$122/1000000 -> 0.0969778179 | Q40: =DR!H$122/1000000 -> 0.1194742735 | R40: =DR!I$122/1000000 -> 0.1368888209 | S40: =DR!J$122/1000000 -> 0.1629836242 | T40: =DR!K$122/1000000 -> 0.1533232108 | U40: =DR!L$122/1000000 -> 0.1463120357 | V40: =DR!M$122/1000000 -> 0.155453209 | W40: =DR!N$122/1000000 -> 0.1557205986 | X40: =DR!O$122/1000000 -> 0.171135565 | Y40: =DR!P$122/1000000 -> 0.1770074936 | Z40: =DR!Q$122/1000000 -> 0.1806867596 | AA40: =DR!R$122/1000000 -> 0.194464348 | AB40: =DR!S$122/1000000 -> 0.1663851398 | AC40: =DR!T$122/1000000 -> 0.1800481208 | AD40: =DR!U$122/1000000 -> 0.1828647113 | AE40: =DR!V$122/1000000 -> 0.1969055843 | AF40: =DR!W$122/1000000 -> 0.2007705306 | AG40: =DR!X$122/1000000 -> 0.2284249451 | AH40: =DR!Y$122/1000000 -> 0.1823485247
C41: Capacity Value ($) | D41: Millions $ | L41: =DR!C$126/1000000 -> 0 | M41: =DR!D$126/1000000 -> 0 | N41: =DR!E$126/1000000 -> 0 | O41: =DR!F$126/1000000 -> 0 | P41: =DR!G$126/1000000 -> 0.1442003928 | Q41: =DR!H$126/1000000 -> 0.1904126664 | R41: =DR!I$126/1000000 -> 0.2174122428 | S41: =DR!J$126/1000000 -> 0.223581053 | T41: =DR!K$126/1000000 -> 0.2301109918 | U41: =DR!L$126/1000000 -> 0.2374055792 | V41: =DR!M$126/1000000 -> 0.2450398592 | W41: =DR!N$126/1000000 -> 0.2530398726 | X41: =DR!O$126/1000000 -> 0.2614348835 | Y41: =DR!P$126/1000000 -> 0.270257948 | Z41: =DR!Q$126/1000000 -> 0.2795465902 | AA41: =DR!R$126/1000000 -> 0.2893435944 | AB41: =DR!S$126/1000000 -> 0.2996979151 | AC41: =DR!T$126/1000000 -> 0.3106656927 | AD41: =DR!U$126/1000000 -> 0.3223113446 | AE41: =DR!V$126/1000000 -> 0.3347086689 | AF41: =DR!W$126/1000000 -> 0.3479418685 | AG41: =DR!X$126/1000000 -> 0.3621063572 | AH41: =DR!Y$126/1000000 -> 0.3773091806
C42: Investment ($) | D42: Millions $ | L42: =DR!C$127 -> 0 | M42: =DR!D$127 -> 0 | N42: =DR!E$127 -> 2.717541632 | O42: =DR!F$127 -> 0 | P42: =DR!G$127 -> 0 | Q42: =DR!H$127 -> 0 | R42: =DR!I$127 -> 0 | S42: =DR!J$127 -> 0 | T42: =DR!K$127 -> 0 | U42: =DR!L$127 -> 0 | V42: =DR!M$127 -> 0 | W42: =DR!N$127 -> 0 | X42: =DR!O$127 -> 0 | Y42: =DR!P$127 -> 0 | Z42: =DR!Q$127 -> 0 | AA42: =DR!R$127 -> 0 | AB42: =DR!S$127 -> 0 | AC42: =DR!T$127 -> 0 | AD42: =DR!U$127 -> 0 | AE42: =DR!V$127 -> 0 | AF42: =DR!W$127 -> 0 | AG42: =DR!X$127 -> 0 | AH42: =DR!Y$127 -> 0
A44: 6 | B44: NC Investments/Benefits | C44: Annual Investment | D44: Millions $ | L44: =((New_Resource_Annual_Cost!D$9+(L24*1000000)+L42))/1000000 -> 7.986101586 | M44: =((New_Resource_Annual_Cost!E$9+(M24*1000000)+M42))/1000000 -> 10.87140352 | N44: =((New_Resource_Annual_Cost!F$9+(N24*1000000)+N42))/1000000 -> 13.23633105 | O44: =((New_Resource_Annual_Cost!G$9+(O24*1000000)+O42))/1000000 -> 17.36942938 | P44: =((New_Resource_Annual_Cost!H$9+(P24*1000000)+P42))/1000000 -> 21.31086797 | Q44: =((New_Resource_Annual_Cost!I$9+(Q24*1000000)+Q42))/1000000 -> 25.70514 | R44: =((New_Resource_Annual_Cost!J$9+(R24*1000000)+R42))/1000000 -> 28.60930756 | S44: =((New_Resource_Annual_Cost!K$9+(S24*1000000)+S42))/1000000 -> 29.57787693 | T44: =((New_Resource_Annual_Cost!L$9+(T24*1000000)+T42))/1000000 -> 28.75492503 | U44: =((New_Resource_Annual_Cost!M$9+(U24*1000000)+U42))/1000000 -> 26.69013425 | V44: =((New_Resource_Annual_Cost!N$9+(V24*1000000)+V42))/1000000 -> 24.14653669 | W44: =((New_Resource_Annual_Cost!O$9+(W24*1000000)+W42))/1000000 -> 21.72339173 | X44: =((New_Resource_Annual_Cost!P$9+(X24*1000000)+X42))/1000000 -> 19.99332536 | Y44: =((New_Resource_Annual_Cost!Q$9+(Y24*1000000)+Y42))/1000000 -> 18.52806234 | Z44: =((New_Resource_Annual_Cost!R$9+(Z24*1000000)+Z42))/1000000 -> 17.2993499 | AA44: =((New_Resource_Annual_Cost!S$9+(AA24*1000000)+AA42))/1000000 -> 15.68490106 | AB44: =((New_Resource_Annual_Cost!T$9+(AB24*1000000)+AB42))/1000000 -> 14.72841676 | AC44: =((New_Resource_Annual_Cost!U$9+(AC24*1000000)+AC42))/1000000 -> 14.06668363 | AD44: =((New_Resource_Annual_Cost!V$9+(AD24*1000000)+AD42))/1000000 -> 14.7730266 | AE44: =((New_Resource_Annual_Cost!W$9+(AE24*1000000)+AE42))/1000000 -> 15.52012937 | AF44: =((New_Resource_Annual_Cost!X$9+(AF24*1000000)+AF42))/1000000 -> 16.15369884 | AG44: =((New_Resource_Annual_Cost!Y$9+(AG24*1000000)+AG42))/1000000 -> 16.85527843 | AH44: =((New_Resource_Annual_Cost!Z$9+(AH24*1000000)+AH42))/1000000 -> 17.54987684
A45: 6 | B45: NC Investments/Benefits | C45: Annual Utility Benefits | D45: Millions $ | L45: =SUM(L32:L34,L40:L41,L36:L37) -> 10.90356044 | M45: =SUM(M32:M34,M40:M41,M36:M37) -> 10.7161846 | N45: 9.409444522 | O45: 9.052703023 | P45: 8.636780097 | Q45: 8.996182363 | R45: 9.315086269 | S45: 11.00634813 | T45: 10.8730311 | U45: 11.10964723 | V45: 11.78588703 | W45: 12.3179126 | X45: 13.29194831 | Y45: 13.98214472 | Z45: 15.15758675 | AA45: 15.62535583 | AB45: 16.47020183 | AC45: 18.13891756 | AD45: 18.734308 | AE45: 20.39552429 | AF45: 21.59405508 | AG45: 24.9668463 | AH45: 25.45135039
A46: 6 | B46: NC Investments/Benefits | C46: Annual NEI Benefits | D46: Millions $ | L46: =L38+L31 -> 0.6684158633 | M46: =M38+M31 -> 1.506108688 | N46: 2.518720892 | O46: 3.670618101 | P46: 4.957382575 | Q46: 6.424802977 | R46: 7.984400772 | S46: 9.536756142 | T46: 10.97442301 | U46: 12.23187628 | V46: 13.27470488 | W46: 14.08999719 | X46: 14.73620875 | Y46: 15.26100687 | Z46: 15.71912694 | AA46: 16.1417809 | AB46: 16.55366918 | AC46: 16.97003645 | AD46: 17.39914983 | AE46: 17.84168644 | AF46: 18.29115819 | AG46: 18.75247015 | AH46: 19.22226918
A48: 7 | B48: Implied PRM | C48: Winter | D48: Percent | E48: 0.2835649547 | F48: 0.3277810827 | G48: 0.4495176849 | H48: 0.4163545568 | I48: 0.4618722877 | J48: 0.31 | K48: 0.116 | L48: =(SUM(System_LR!$C$19:$C$40,System_LR!$C$50:$C$99)-(System_LR!$C$13-SUM(System_LR!$C$100:$C$115)))/(System_LR!$C$13-SUM(System_LR!$C$100:$C$115)) -> 0.3304460051 | M48: =(SUM(System_LR!$O$19:$O$40,System_LR!$O$50:$O$99)-(System_LR!$O$13-SUM(System_LR!$O$100:$O$115)))/(System_LR!$O$13-SUM(System_LR!$O$100:$O$115)) -> 0.3804399023 | N48: =(SUM(System_LR!$AA$19:$AA$40,System_LR!$AA$50:$AA$99)-(System_LR!$AA$13-SUM(System_LR!$AA$100:$AA$115)))/(System_LR!$AA$13-SUM(System_LR!$AA$100:$AA$115)) -> 0.3738608606 | O48: =(SUM(System_LR!$AM$19:$AM$40,System_LR!$AM$50:$AM$99)-(System_LR!$AM$13-SUM(System_LR!$AM$100:$AM$115)))/(System_LR!$AM$13-SUM(System_LR!$AM$100:$AM$115)) -> 0.3311715982 | P48: =(SUM(System_LR!$AY$19:$AY$40,System_LR!$AY$50:$AY$99)-(System_LR!$AY$13-SUM(System_LR!$AY$100:$AY$115)))/(System_LR!$AY$13-SUM(System_LR!$AY$100:$AY$115)) -> 0.3215253914 | Q48: =(SUM(System_LR!$BK$19:$BK$40,System_LR!$BK$50:$BK$99)-(System_LR!$BK$13-SUM(System_LR!$BK$100:$BK$115)))/(System_LR!$BK$13-SUM(System_LR!$BK$100:$BK$115)) -> 0.3120617219 | R48: =(SUM(System_LR!$BW$19:$BW$40,System_LR!$BW$50:$BW$99)-(System_LR!$BW$13-SUM(System_LR!$BW$100:$BW$115)))/(System_LR!$BW$13-SUM(System_LR!$BW$100:$BW$115)) -> 0.2866776696 | S48: =(SUM(System_LR!$CI$19:$CI$40,System_LR!$CI$50:$CI$99)-(System_LR!$CI$13-SUM(System_LR!$CI$100:$CI$115)))/(System_LR!$CI$13-SUM(System_LR!$CI$100:$CI$115)) -> 0.2785841956 | T48: =(SUM(System_LR!$CU$19:$CU$40,System_LR!$CU$50:$CU$99)-(System_LR!$CU$13-SUM(System_LR!$CU$100:$CU$115)))/(System_LR!$CU$13-SUM(System_LR!$CU$100:$CU$115)) -> 0.2652878565 | U48: =(SUM(System_LR!$DG$19:$DG$40,System_LR!$DG$50:$DG$99)-(System_LR!$DG$13-SUM(System_LR!$DG$100:$DG$115)))/(System_LR!$DG$13-SUM(System_LR!$DG$100:$DG$115)) -> 0.3507307675 | V48: =(SUM(System_LR!$DS$19:$DS$40,System_LR!$DS$50:$DS$99)-(System_LR!$DS$13-SUM(System_LR!$DS$100:$DS$115)))/(System_LR!$DS$13-SUM(System_LR!$DS$100:$DS$115)) -> 0.3236859241 | W48: =(SUM(System_LR!$EE$19:$EE$40,System_LR!$EE$50:$EE$99)-(System_LR!$EE$13-SUM(System_LR!$EE$100:$EE$115)))/(System_LR!$EE$13-SUM(System_LR!$EE$100:$EE$115)) -> 0.257313691 | X48: =(SUM(System_LR!$EQ$19:$EQ$40,System_LR!$EQ$50:$EQ$99)-(System_LR!$EQ$13-SUM(System_LR!$EQ$100:$EQ$115)))/(System_LR!$EQ$13-SUM(System_LR!$EQ$100:$EQ$115)) -> 0.2249078481 | Y48: =(SUM(System_LR!$FC$19:$FC$40,System_LR!$FC$50:$FC$99)-(System_LR!$FC$13-SUM(System_LR!$FC$100:$FC$115)))/(System_LR!$FC$13-SUM(System_LR!$FC$100:$FC$115)) -> 0.2545757518 | Z48: =(SUM(System_LR!$FO$19:$FO$40,System_LR!$FO$50:$FO$99)-(System_LR!$FO$13-SUM(System_LR!$FO$100:$FO$115)))/(System_LR!$FO$13-SUM(System_LR!$FO$100:$FO$115)) -> 0.2542242561 | AA48: =(SUM(System_LR!$GA$19:$GA$40,System_LR!$GA$50:$GA$99)-(System_LR!$GA$13-SUM(System_LR!$GA$100:$GA$115)))/(System_LR!$GA$13-SUM(System_LR!$GA$100:$GA$115)) -> 0.2417280383 | AB48: =(SUM(System_LR!$GM$19:$GM$40,System_LR!$GM$50:$GM$99)-(System_LR!$GM$13-SUM(System_LR!$GM$100:$GM$115)))/(System_LR!$GM$13-SUM(System_LR!$GM$100:$GM$115)) -> 0.2365963602 | AC48: =(SUM(System_LR!$GY$19:$GY$40,System_LR!$GY$50:$GY$99)-(System_LR!$GY$13-SUM(System_LR!$GY$100:$GY$115)))/(System_LR!$GY$13-SUM(System_LR!$GY$100:$GY$115)) -> 0.2312197618 | AD48: =(SUM(System_LR!$HK$19:$HK$40,System_LR!$HK$50:$HK$99)-(System_LR!$HK$13-SUM(System_LR!$HK$100:$HK$115)))/(System_LR!$HK$13-SUM(System_LR!$HK$100:$HK$115)) -> 0.2237928859 | AE48: =(SUM(System_LR!$HW$19:$HW$40,System_LR!$HW$50:$HW$99)-(System_LR!$HW$13-SUM(System_LR!$HW$100:$HW$115)))/(System_LR!$HW$13-SUM(System_LR!$HW$100:$HW$115)) -> 0.2313420802 | AF48: =(SUM(System_LR!$II$19:$II$40,System_LR!$II$50:$II$99)-(System_LR!$II$13-SUM(System_LR!$II$100:$II$115)))/(System_LR!$II$13-SUM(System_LR!$II$100:$II$115)) -> 0.2235917367 | AG48: =(SUM(System_LR!$IU$19:$IU$40,System_LR!$IU$50:$IU$99)-(System_LR!$IU$13-SUM(System_LR!$IU$100:$IU$115)))/(System_LR!$IU$13-SUM(System_LR!$IU$100:$IU$115)) -> 0.2283264603 | AH48: =(SUM(System_LR!$JG$19:$JG$40,System_LR!$JG$50:$JG$99)-(System_LR!$JG$13-SUM(System_LR!$JG$100:$JG$115)))/(System_LR!$JG$13-SUM(System_LR!$JG$100:$JG$115)) -> 0.2555787024
A49: 7 | B49: Implied PRM | C49: Summer | D49: Percent | E49: 0.1751732829 | F49: 0.2337092732 | G49: 0.1730769231 | H49: 0.2699275362 | I49: 0.2504357931 | J49: 0.1 | K49: 0.15 | L49: =(SUM(System_LR!$J$19:$J$40,System_LR!$J$50:$J$99)-(System_LR!$J$13-SUM(System_LR!$J$100:$J$115)))/(System_LR!$J$13-SUM(System_LR!$J$100:$J$115)) -> 0.2613624776 | M49: =(SUM(System_LR!$V$19:$V$40,System_LR!$V$50:$V$99)-(System_LR!$V$13-SUM(System_LR!$V$100:$V$115)))/(System_LR!$V$13-SUM(System_LR!$V$100:$V$115)) -> 0.304375509 | N49: =(SUM(System_LR!$AH$19:$AH$40,System_LR!$AH$50:$AH$99)-(System_LR!$AH$13-SUM(System_LR!$AH$100:$AH$115)))/(System_LR!$AH$13-SUM(System_LR!$AH$100:$AH$115)) -> 0.3396918063 | O49: =(SUM(System_LR!$AT$19:$AT$40,System_LR!$AT$50:$AT$99)-(System_LR!$AT$13-SUM(System_LR!$AT$100:$AT$115)))/(System_LR!$AT$13-SUM(System_LR!$AT$100:$AT$115)) -> 0.2855537737 | P49: =(SUM(System_LR!$BF$19:$BF$40,System_LR!$BF$50:$BF$99)-(System_LR!$BF$13-SUM(System_LR!$BF$100:$BF$115)))/(System_LR!$BF$13-SUM(System_LR!$BF$100:$BF$115)) -> 0.2886833224 | Q49: =(SUM(System_LR!$BR$19:$BR$40,System_LR!$BR$50:$BR$99)-(System_LR!$BR$13-SUM(System_LR!$BR$100:$BR$115)))/(System_LR!$BR$13-SUM(System_LR!$BR$100:$BR$115)) -> 0.2827185388 | R49: =(SUM(System_LR!$CD$19:$CD$40,System_LR!$CD$50:$CD$99)-(System_LR!$CD$13-SUM(System_LR!$CD$100:$CD$115)))/(System_LR!$CD$13-SUM(System_LR!$CD$100:$CD$115)) -> 0.2607773202 | S49: =(SUM(System_LR!$CP$19:$CP$40,System_LR!$CP$50:$CP$99)-(System_LR!$CP$13-SUM(System_LR!$CP$100:$CP$115)))/(System_LR!$CP$13-SUM(System_LR!$CP$100:$CP$115)) -> 0.2650567617 | T49: =(SUM(System_LR!$DB$19:$DB$40,System_LR!$DB$50:$DB$99)-(System_LR!$DB$13-SUM(System_LR!$DB$100:$DB$115)))/(System_LR!$DB$13-SUM(System_LR!$DB$100:$DB$115)) -> 0.2583082745 | U49: =(SUM(System_LR!$DN$19:$DN$40,System_LR!$DN$50:$DN$99)-(System_LR!$DN$13-SUM(System_LR!$DN$100:$DN$115)))/(System_LR!$DN$13-SUM(System_LR!$DN$100:$DN$115)) -> 0.3402320816 | V49: =(SUM(System_LR!$DZ$19:$DZ$40,System_LR!$DZ$50:$DZ$99)-(System_LR!$DZ$13-SUM(System_LR!$DZ$100:$DZ$115)))/(System_LR!$DZ$13-SUM(System_LR!$DZ$100:$DZ$115)) -> 0.317468887 | W49: =(SUM(System_LR!$EL$19:$EL$40,System_LR!$EL$50:$EL$99)-(System_LR!$EL$13-SUM(System_LR!$EL$100:$EL$115)))/(System_LR!$EL$13-SUM(System_LR!$EL$100:$EL$115)) -> 0.2647592027 | X49: =(SUM(System_LR!$EX$19:$EX$40,System_LR!$EX$50:$EX$99)-(System_LR!$EX$13-SUM(System_LR!$EX$100:$EX$115)))/(System_LR!$EX$13-SUM(System_LR!$EX$100:$EX$115)) -> 0.2466955298 | Y49: =(SUM(System_LR!$FJ$19:$FJ$40,System_LR!$FJ$50:$FJ$99)-(System_LR!$FJ$13-SUM(System_LR!$FJ$100:$FJ$115)))/(System_LR!$FJ$13-SUM(System_LR!$FJ$100:$FJ$115)) -> 0.2966497794 | Z49: =(SUM(System_LR!$FW$19:$FW$40,System_LR!$FW$50:$FW$99)-(System_LR!$FW$13-SUM(System_LR!$FW$100:$FW$115)))/(System_LR!$FW$13-SUM(System_LR!$FW$100:$FW$115)) -> 0.2651338272 | AA49: =(SUM(System_LR!$GH$19:$GH$40,System_LR!$GH$50:$GH$99)-(System_LR!$GH$13-SUM(System_LR!$GH$100:$GH$115)))/(System_LR!$GH$13-SUM(System_LR!$GH$100:$GH$115)) -> 0.3140234601 | AB49: =(SUM(System_LR!$GT$19:$GT$40,System_LR!$GT$50:$GT$99)-(System_LR!$GT$13-SUM(System_LR!$GT$100:$GT$115)))/(System_LR!$GT$13-SUM(System_LR!$GT$100:$GT$115)) -> 0.3223983192 | AC49: =(SUM(System_LR!HF$19:$HF$40,System_LR!$HF$50:$HF$99)-(System_LR!$HF$13-SUM(System_LR!$HF$100:$HF$115)))/(System_LR!$HF$13-SUM(System_LR!$HF$100:$HF$115)) -> 0.3336089284 | AD49: =(SUM(System_LR!$HR$19:$HR$40,System_LR!$HR$50:$HR$99)-(System_LR!$HR$13-SUM(System_LR!$HR$100:$HR$115)))/(System_LR!$HR$13-SUM(System_LR!$HR$100:$HR$115)) -> 0.3435105301 | AE49: =(SUM(System_LR!$ID$19:$ID$40,System_LR!$ID$50:$ID$99)-(System_LR!$ID$13-SUM(System_LR!$ID$100:$ID$115)))/(System_LR!$ID$13-SUM(System_LR!$ID$100:$ID$115)) -> 0.3664399346 | AF49: =(SUM(System_LR!$IP$19:$IP$40,System_LR!$IP$50:$IP$99)-(System_LR!$IP$13-SUM(System_LR!$IP$100:$IP$115)))/(System_LR!$IP$13-SUM(System_LR!$IP$100:$IP$115)) -> 0.368700021 | AG49: =(SUM(System_LR!$JB$19:$JB$40,System_LR!$JB$50:$JB$99)-(System_LR!$JB$13-SUM(System_LR!$JB$100:$JB$115)))/(System_LR!$JB$13-SUM(System_LR!$JB$100:$JB$115)) -> 0.3865779472 | AH49: =(SUM(System_LR!$JN$19:$JN$40,System_LR!$JN$50:$JN$99)-(System_LR!$JN$13-SUM(System_LR!$JN$100:$JN$115)))/(System_LR!$JN$13-SUM(System_LR!$JN$100:$JN$115)) -> 0.4467817329
A51: 8 | B51: Gen vs Load | C51: Washington & Connected Generation | D51: Percent | E51: 0.7779313029 | F51: 0.7884532261 | G51: 0.8368033031 | H51: 0.8012220055 | I51: 0.7822590958 | J51: 0.826 | L51: =Res_MWh!JU$75 -> 0.880323909 | M51: =Res_MWh!JV$75 -> 0.9134505622 | N51: =Res_MWh!JW$75 -> 0.9423563169 | O51: =Res_MWh!JX$75 -> 1.00579999 | P51: =Res_MWh!JY$75 -> 0.9943927998 | Q51: =Res_MWh!JZ$75 -> 0.9707942543 | R51: =Res_MWh!KA$75 -> 0.9572166919 | S51: =Res_MWh!KB$75 -> 1.032736315 | T51: =Res_MWh!KC$75 -> 1.006433952 | U51: =Res_MWh!KD$75 -> 0.9279104639 | V51: =Res_MWh!KE$75 -> 0.914319828 | W51: =Res_MWh!KF$75 -> 0.8564866395 | X51: =Res_MWh!KG$75 -> 0.8432421345 | Y51: =Res_MWh!KH$75 -> 0.8463523286 | Z51: =Res_MWh!KI$75 -> 0.8236173163 | AA51: =Res_MWh!KJ$75 -> 0.7720799544 | AB51: =Res_MWh!KK$75 -> 0.7240763846 | AC51: =Res_MWh!KL$75 -> 0.6766820481 | AD51: =Res_MWh!KM$75 -> 0.6045072927 | AE51: =Res_MWh!KN$75 -> 0.5492530903 | AF51: =Res_MWh!KO$75 -> 0.4948931501 | AG51: =Res_MWh!KP$75 -> 0.4843113393 | AH51: =Res_MWh!KQ$75 -> 0.5849955749
A53: 9a | B53: WA In-State Emissions | C53: SO2 | D53: Metric Tonnes | E53: 4.071924087 | F53: 1.459642251 | G53: 1.661862259 | H53: 1.600498807 | I53: 1.4 | J53: 0.1937321 | L53: =SUM(Air_Emissions!AY$72:AY$74,Air_Emissions!AY$77)+(Air_Emissions!AY$119) -> 0.1153108291 | M53: =SUM(Air_Emissions!AZ$72:AZ$74,Air_Emissions!AZ$77)+(Air_Emissions!AZ$119) -> 0.1323234481 | N53: =SUM(Air_Emissions!BA$72:BA$74,Air_Emissions!BA$77)+(Air_Emissions!BA$119) -> 0.137110454 | O53: =SUM(Air_Emissions!BB$72:BB$74,Air_Emissions!BB$77)+(Air_Emissions!BB$119) -> 0.1419674591 | P53: =SUM(Air_Emissions!BC$72:BC$74,Air_Emissions!BC$77)+(Air_Emissions!BC$119) -> 0.1347165706 | Q53: =SUM(Air_Emissions!BD$72:BD$74,Air_Emissions!BD$77)+(Air_Emissions!BD$119) -> 0.1405747252 | R53: =SUM(Air_Emissions!BE$72:BE$74,Air_Emissions!BE$77)+(Air_Emissions!BE$119) -> 0.1319871805 | S53: =SUM(Air_Emissions!BF$72:BF$74,Air_Emissions!BF$77)+(Air_Emissions!BF$119) -> 0.1682287653 | T53: =SUM(Air_Emissions!BG$72:BG$74,Air_Emissions!BG$77)+(Air_Emissions!BG$119) -> 0.1543652694 | U53: =SUM(Air_Emissions!BH$72:BH$74,Air_Emissions!BH$77)+(Air_Emissions!BH$119) -> 0.1418008101 | V53: =SUM(Air_Emissions!BI$72:BI$74,Air_Emissions!BI$77)+(Air_Emissions!BI$119) -> 0.1425253117 | W53: =SUM(Air_Emissions!BJ$72:BJ$74,Air_Emissions!BJ$77)+(Air_Emissions!BJ$119) -> 0.1416526193 | X53: =SUM(Air_Emissions!BK$72:BK$74,Air_Emissions!BK$77)+(Air_Emissions!BK$119) -> 0.1469313003 | Y53: =SUM(Air_Emissions!BL$72:BL$74,Air_Emissions!BL$77)+(Air_Emissions!BL$119) -> 0.12720714 | Z53: =SUM(Air_Emissions!BM$72:BM$74,Air_Emissions!BM$77)+(Air_Emissions!BM$119) -> 0.1281237097 | AA53: =SUM(Air_Emissions!BN$72:BN$74,Air_Emissions!BN$77)+(Air_Emissions!BN$119) -> 0.1261015132 | AB53: =SUM(Air_Emissions!BO$72:BO$74,Air_Emissions!BO$77)+(Air_Emissions!BO$119) -> 0.126872597 | AC53: =SUM(Air_Emissions!BP$72:BP$74,Air_Emissions!BP$77)+(Air_Emissions!BP$119) -> 0.1324532842 | AD53: =SUM(Air_Emissions!BQ$72:BQ$74,Air_Emissions!BQ$77)+(Air_Emissions!BQ$119) -> 0 | AE53: =SUM(Air_Emissions!BR$72:BR$74,Air_Emissions!BR$77)+(Air_Emissions!BR$119) -> 0 | AF53: =SUM(Air_Emissions!BS$72:BS$74,Air_Emissions!BS$77)+(Air_Emissions!BS$119) -> 0 | AG53: =SUM(Air_Emissions!BT$72:BT$74,Air_Emissions!BT$77)+(Air_Emissions!BT$119) -> 0 | AH53: =SUM(Air_Emissions!BU$72:BU$74,Air_Emissions!BU$77)+(Air_Emissions!BU$119) -> 0
A54: 9b | B54: WA In-State Emissions | C54: HG | D54: Metric Tonnes | E54: 0.007386968711 | F54: 0.006860890544 | G54: 0.007549319523 | H54: 0.006822701466 | I54: 0.0066 | J54: 0.007192 | L54: =SUM(Air_Emissions!AY$136:AY$138,Air_Emissions!AY$141,Air_Emissions!AY$183) -> 0.007127050317 | M54: =SUM(Air_Emissions!AZ$136:AZ$138,Air_Emissions!AZ$141,Air_Emissions!AZ$183) -> 0.007223254469 | N54: =SUM(Air_Emissions!BA$136:BA$138,Air_Emissions!BA$141,Air_Emissions!BA$183) -> 0.006731401185 | O54: =SUM(Air_Emissions!BB$136:BB$138,Air_Emissions!BB$141,Air_Emissions!BB$183) -> 0.008420906781 | P54: =SUM(Air_Emissions!BC$136:BC$138,Air_Emissions!BC$141,Air_Emissions!BC$183) -> 0.007514586237 | Q54: =SUM(Air_Emissions!BD$136:BD$138,Air_Emissions!BD$141,Air_Emissions!BD$183) -> 0.007038190341 | R54: =SUM(Air_Emissions!BE$136:BE$138,Air_Emissions!BE$141,Air_Emissions!BE$183) -> 0.006732046274 | S54: =SUM(Air_Emissions!BF$136:BF$138,Air_Emissions!BF$141,Air_Emissions!BF$183) -> 0.007515154505 | T54: =SUM(Air_Emissions!BG$136:BG$138,Air_Emissions!BG$141,Air_Emissions!BG$183) -> 0.007013763109 | U54: =SUM(Air_Emissions!BH$136:BH$138,Air_Emissions!BH$141,Air_Emissions!BH$183) -> 0.006649111619 | V54: =SUM(Air_Emissions!BI$136:BI$138,Air_Emissions!BI$141,Air_Emissions!BI$183) -> 0.006599274404 | W54: =SUM(Air_Emissions!BJ$136:BJ$138,Air_Emissions!BJ$141,Air_Emissions!BJ$183) -> 0.006401662764 | X54: =SUM(Air_Emissions!BK$136:BK$138,Air_Emissions!BK$141,Air_Emissions!BK$183) -> 0.00646439937 | Y54: =SUM(Air_Emissions!BL$136:BL$138,Air_Emissions!BL$141,Air_Emissions!BL$183) -> 0.006349678021 | Z54: =SUM(Air_Emissions!BM$136:BM$138,Air_Emissions!BM$141,Air_Emissions!BM$183) -> 0.006349100451 | AA54: =SUM(Air_Emissions!BN$136:BN$138,Air_Emissions!BN$141,Air_Emissions!BN$183) -> 0.005984302685 | AB54: =SUM(Air_Emissions!BO$136:BO$138,Air_Emissions!BO$141,Air_Emissions!BO$183) -> 0.005936705416 | AC54: =SUM(Air_Emissions!BP$136:BP$138,Air_Emissions!BP$141,Air_Emissions!BP$183) -> 0.005908165881 | AD54: =SUM(Air_Emissions!BQ$136:BQ$138,Air_Emissions!BQ$141,Air_Emissions!BQ$183) -> 0.005804887089 | AE54: =SUM(Air_Emissions!BR$136:BR$138,Air_Emissions!BR$141,Air_Emissions!BR$183) -> 0.005900114361 | AF54: =SUM(Air_Emissions!BS$136:BS$138,Air_Emissions!BS$141,Air_Emissions!BS$183) -> 0.005838053981 | AG54: =SUM(Air_Emissions!BT$136:BT$138,Air_Emissions!BT$141,Air_Emissions!BT$183) -> 0.006170472268 | AH54: =SUM(Air_Emissions!BU$136:BU$138,Air_Emissions!BU$141,Air_Emissions!BU$183) -> 0.01310908096
A55: 9c | B55: WA In-State Emissions | C55: NOX | D55: Metric Tonnes | E55: 425.5538832 | F55: 379.2364612 | G55: 423.252971 | H55: 396.2186406 | I55: 365.1 | J55: 417.910368 | L55: =SUM(Air_Emissions!AY$8:AY$10,Air_Emissions!AY$10)+Air_Emissions!AY$50*0.5+Air_Emissions!AY$55 -> 409.8488942 | M55: =SUM(Air_Emissions!AZ$8:AZ$10,Air_Emissions!AZ$10)+Air_Emissions!AZ$50*0.5+Air_Emissions!AZ$55 -> 416.867846 | N55: =SUM(Air_Emissions!BA$8:BA$10,Air_Emissions!BA$10)+Air_Emissions!BA$50*0.5+Air_Emissions!BA$55 -> 389.7467227 | O55: =SUM(Air_Emissions!BB$8:BB$10,Air_Emissions!BB$10)+Air_Emissions!BB$50*0.5+Air_Emissions!BB$55 -> 343.3472355 | P55: =SUM(Air_Emissions!BC$8:BC$10,Air_Emissions!BC$10)+Air_Emissions!BC$50*0.5+Air_Emissions!BC$55 -> 307.0546633 | Q55: =SUM(Air_Emissions!BD$8:BD$10,Air_Emissions!BD$10)+Air_Emissions!BD$50*0.5+Air_Emissions!BD$55 -> 288.9517573 | R55: =SUM(Air_Emissions!BE$8:BE$10,Air_Emissions!BE$10)+Air_Emissions!BE$50*0.5+Air_Emissions!BE$55 -> 276.0834228 | S55: =SUM(Air_Emissions!BF$8:BF$10,Air_Emissions!BF$10)+Air_Emissions!BF$50*0.5+Air_Emissions!BF$55 -> 310.6236616 | T55: =SUM(Air_Emissions!BG$8:BG$10,Air_Emissions!BG$10)+Air_Emissions!BG$50*0.5+Air_Emissions!BG$55 -> 289.4801684 | U55: =SUM(Air_Emissions!BH$8:BH$10,Air_Emissions!BH$10)+Air_Emissions!BH$50*0.5+Air_Emissions!BH$55 -> 273.9731637 | V55: =SUM(Air_Emissions!BI$8:BI$10,Air_Emissions!BI$10)+Air_Emissions!BI$50*0.5+Air_Emissions!BI$55 -> 272.0651925 | W55: =SUM(Air_Emissions!BJ$8:BJ$10,Air_Emissions!BJ$10)+Air_Emissions!BJ$50*0.5+Air_Emissions!BJ$55 -> 264.257756 | X55: =SUM(Air_Emissions!BK$8:BK$10,Air_Emissions!BK$10)+Air_Emissions!BK$50*0.5+Air_Emissions!BK$55 -> 267.2640214 | Y55: =SUM(Air_Emissions!BL$8:BL$10,Air_Emissions!BL$10)+Air_Emissions!BL$50*0.5+Air_Emissions!BL$55 -> 262.6277851 | Z55: =SUM(Air_Emissions!BM$8:BM$10,Air_Emissions!BM$10)+Air_Emissions!BM$50*0.5+Air_Emissions!BM$55 -> 262.7257999 | AA55: =SUM(Air_Emissions!BN$8:BN$10,Air_Emissions!BN$10)+Air_Emissions!BN$50*0.5+Air_Emissions!BN$55 -> 248.2304175 | AB55: =SUM(Air_Emissions!BO$8:BO$10,Air_Emissions!BO$10)+Air_Emissions!BO$50*0.5+Air_Emissions!BO$55 -> 246.5088468 | AC55: =SUM(Air_Emissions!BP$8:BP$10,Air_Emissions!BP$10)+Air_Emissions!BP$50*0.5+Air_Emissions!BP$55 -> 246.1786309 | AD55: =SUM(Air_Emissions!BQ$8:BQ$10,Air_Emissions!BQ$10)+Air_Emissions!BQ$50*0.5+Air_Emissions!BQ$55 -> 227.9830425 | AE55: =SUM(Air_Emissions!BR$8:BR$10,Air_Emissions!BR$10)+Air_Emissions!BR$50*0.5+Air_Emissions!BR$55 -> 232.990898 | AF55: =SUM(Air_Emissions!BS$8:BS$10,Air_Emissions!BS$10)+Air_Emissions!BS$50*0.5+Air_Emissions!BS$55 -> 231.8205066 | AG55: =SUM(Air_Emissions!BT$8:BT$10,Air_Emissions!BT$10)+Air_Emissions!BT$50*0.5+Air_Emissions!BT$55 -> 247.9483768 | AH55: =SUM(Air_Emissions!BU$8:BU$10,Air_Emissions!BU$10)+Air_Emissions!BU$50*0.5+Air_Emissions!BU$55 -> 649.5772206
A56: 9d | B56: WA In-State Emissions | C56: VOC | D56: Metric Tonnes | E56: 20.74909436 | F56: 33.14384554 | G56: 43.131884 | H56: 47.72872756 | I56: 39.54 | J56: 25.71929 | L56: =SUM(Air_Emissions!AY$200:AY$202,Air_Emissions!AY$205,Air_Emissions!AY$247) -> 25.24644901 | M56: =SUM(Air_Emissions!AZ$200:AZ$202,Air_Emissions!AZ$205,Air_Emissions!AZ$247) -> 25.64133336 | N56: =SUM(Air_Emissions!BA$200:BA$202,Air_Emissions!BA$205,Air_Emissions!BA$247) -> 23.94362786 | O56: =SUM(Air_Emissions!BB$200:BB$202,Air_Emissions!BB$205,Air_Emissions!BB$247) -> 21.04389865 | P56: =SUM(Air_Emissions!BC$200:BC$202,Air_Emissions!BC$205,Air_Emissions!BC$247) -> 18.80709841 | Q56: =SUM(Air_Emissions!BD$200:BD$202,Air_Emissions!BD$205,Air_Emissions!BD$247) -> 17.66519597 | R56: =SUM(Air_Emissions!BE$200:BE$202,Air_Emissions!BE$205,Air_Emissions!BE$247) -> 16.88814804 | S56: =SUM(Air_Emissions!BF$200:BF$202,Air_Emissions!BF$205,Air_Emissions!BF$247) -> 18.92577767 | T56: =SUM(Air_Emissions!BG$200:BG$202,Air_Emissions!BG$205,Air_Emissions!BG$247) -> 17.65386043 | U56: =SUM(Air_Emissions!BH$200:BH$202,Air_Emissions!BH$205,Air_Emissions!BH$247) -> 16.72013519 | V56: =SUM(Air_Emissions!BI$200:BI$202,Air_Emissions!BI$205,Air_Emissions!BI$247) -> 16.60106814 | W56: =SUM(Air_Emissions!BJ$200:BJ$202,Air_Emissions!BJ$205,Air_Emissions!BJ$247) -> 16.11584131 | X56: =SUM(Air_Emissions!BK$200:BK$202,Air_Emissions!BK$205,Air_Emissions!BK$247) -> 16.28739401 | Y56: =SUM(Air_Emissions!BL$200:BL$202,Air_Emissions!BL$205,Air_Emissions!BL$247) -> 15.93843936 | Z56: =SUM(Air_Emissions!BM$200:BM$202,Air_Emissions!BM$205,Air_Emissions!BM$247) -> 15.94023808 | AA56: =SUM(Air_Emissions!BN$200:BN$202,Air_Emissions!BN$205,Air_Emissions!BN$247) -> 15.04305385 | AB56: =SUM(Air_Emissions!BO$200:BO$202,Air_Emissions!BO$205,Air_Emissions!BO$247) -> 14.92961531 | AC56: =SUM(Air_Emissions!BP$200:BP$202,Air_Emissions!BP$205,Air_Emissions!BP$247) -> 14.87951124 | AD56: =SUM(Air_Emissions!BQ$200:BQ$202,Air_Emissions!BQ$205,Air_Emissions!BQ$247) -> 14.1639245 | AE56: =SUM(Air_Emissions!BR$200:BR$202,Air_Emissions!BR$205,Air_Emissions!BR$247) -> 14.39627904 | AF56: =SUM(Air_Emissions!BS$200:BS$202,Air_Emissions!BS$205,Air_Emissions!BS$247) -> 14.24485171 | AG56: =SUM(Air_Emissions!BT$200:BT$202,Air_Emissions!BT$205,Air_Emissions!BT$247) -> 15.05595233 | AH56: =SUM(Air_Emissions!BU$200:BU$202,Air_Emissions!BU$205,Air_Emissions!BU$247) -> 39.45370216
A58: 10a | B58: Avista GHG Emissions | C58: Direct Emissions | D58: Metric Tonnes | E58: 1.743807066 | F58: 1.711898434 | G58: 1.750764854 | H58: 1.99711764 | I58: 1.718986562 | J58: 1.902659934 | L58: ='Financial Summary'!E$105+'Financial Summary'!E$106+'Financial Summary'!E$107 -> 1.854208033 | M58: ='Financial Summary'!F$105+'Financial Summary'!F$106+'Financial Summary'!F$107 -> 1.91090366 | N58: ='Financial Summary'!G$105+'Financial Summary'!G$106+'Financial Summary'!G$107 -> 1.751460187 | O58: ='Financial Summary'!H$105+'Financial Summary'!H$106+'Financial Summary'!H$107 -> 0.9609828417 | P58: ='Financial Summary'!I$105+'Financial Summary'!I$106+'Financial Summary'!I$107 -> 0.9227903692 | Q58: ='Financial Summary'!J$105+'Financial Summary'!J$106+'Financial Summary'!J$107 -> 0.9134592999 | R58: ='Financial Summary'!K$105+'Financial Summary'!K$106+'Financial Summary'!K$107 -> 0.8916215412 | S58: ='Financial Summary'!L$105+'Financial Summary'!L$106+'Financial Summary'!L$107 -> 0.9326558519 | T58: ='Financial Summary'!M$105+'Financial Summary'!M$106+'Financial Summary'!M$107 -> 0.84869754 | U58: ='Financial Summary'!N$105+'Financial Summary'!N$106+'Financial Summary'!N$107 -> 0.7986135273 | V58: ='Financial Summary'!O$105+'Financial Summary'!O$106+'Financial Summary'!O$107 -> 0.7795089839 | W58: ='Financial Summary'!P$105+'Financial Summary'!P$106+'Financial Summary'!P$107 -> 0.7618841521 | X58: ='Financial Summary'!Q$105+'Financial Summary'!Q$106+'Financial Summary'!Q$107 -> 0.7629693411 | Y58: ='Financial Summary'!R$105+'Financial Summary'!R$106+'Financial Summary'!R$107 -> 0.7491048225 | Z58: ='Financial Summary'!S$105+'Financial Summary'!S$106+'Financial Summary'!S$107 -> 0.7295510804 | AA58: ='Financial Summary'!T$105+'Financial Summary'!T$106+'Financial Summary'!T$107 -> 0.6980279792 | AB58: ='Financial Summary'!U$105+'Financial Summary'!U$106+'Financial Summary'!U$107 -> 0.6886814412 | AC58: ='Financial Summary'!V$105+'Financial Summary'!V$106+'Financial Summary'!V$107 -> 0.6774401937 | AD58: ='Financial Summary'!W$105+'Financial Summary'!W$106+'Financial Summary'!W$107 -> 0.650178601 | AE58: ='Financial Summary'!X$105+'Financial Summary'!X$106+'Financial Summary'!X$107 -> 0.409745552 | AF58: ='Financial Summary'!Y$105+'Financial Summary'!Y$106+'Financial Summary'!Y$107 -> 0.4101217144 | AG58: ='Financial Summary'!Z$105+'Financial Summary'!Z$106+'Financial Summary'!Z$107 -> 0.4478480107 | AH58: ='Financial Summary'!AA$105+'Financial Summary'!AA$106+'Financial Summary'!AA$107 -> 0
A59: 10a | B59: Avista GHG Emissions | C59: Net Emissions | D59: Metric Tonnes | E59: 1.778389544 | F59: 1.763175152 | G59: 1.731798133 | H59: 1.843452005 | I59: 1.556387854 | J59: 1.752892668 | L59: ='Financial Summary'!E$110 -> 1.610007257 | M59: ='Financial Summary'!F$110 -> 1.573424773 | N59: ='Financial Summary'!G$110 -> 1.455421879 | O59: ='Financial Summary'!H$110 -> 0.8738118905 | P59: ='Financial Summary'!I$110 -> 0.9900170331 | Q59: ='Financial Summary'!J$110 -> 1.016986676 | R59: ='Financial Summary'!K$110 -> 1.00681011 | S59: ='Financial Summary'!L$110 -> 0.8869361591 | T59: ='Financial Summary'!M$110 -> 0.8023806535 | U59: ='Financial Summary'!N$110 -> 0.7057568657 | V59: ='Financial Summary'!O$110 -> 0.6930881614 | W59: ='Financial Summary'!P$110 -> 0.7260883038 | X59: ='Financial Summary'!Q$110 -> 0.7376083237 | Y59: ='Financial Summary'!R$110 -> 0.7138540278 | Z59: ='Financial Summary'!S$110 -> 0.6945020256 | AA59: ='Financial Summary'!T$110 -> 0.6682091454 | AB59: ='Financial Summary'!U$110 -> 0.7793139413 | AC59: ='Financial Summary'!V$110 -> 0.908642608 | AD59: ='Financial Summary'!W$110 -> 1.008582315 | AE59: ='Financial Summary'!X$110 -> 0.7098604122 | AF59: ='Financial Summary'!Y$110 -> 0.7370087794 | AG59: ='Financial Summary'!Z$110 -> 0.6710803309 | AH59: ='Financial Summary'!AA$110 -> -0.0109218029
A61: 10b | B61: Regional GHG Emissions | C61: Large Sources | D61: Metric Tonnes | E61: 0.732788 | F61: 0.738091 | G61: 0.733167 | H61: 0.749901 | I61: =H61 -> 0.749901 | J61: 0.7307136 | L61: 0.7307136 | M61: 0.7307136 | N61: 0.7307136 | O61: 0.7307136 | P61: 0.7307136 | Q61: 0.7307136 | R61: 0.7307136 | S61: 0.7307136 | T61: 0.7307136 | U61: 0.7307136 | V61: 0.7307136 | W61: 0.7307136 | X61: 0.7307136 | Y61: 0.7307136 | Z61: 0.7307136 | AA61: 0.7307136 | AB61: 0.7307136 | AC61: 0.7307136 | AD61: 0.7307136 | AE61: 0.7307136 | AF61: 0.7307136 | AG61: 0.7307136 | AH61: 0.7307136
A62: 10b | B62: Regional GHG Emissions | C62: Electric Power Serving Washington | D62: Metric Tonnes | E62: =E59 -> 1.778389544 | F62: =F59 -> 1.763175152 | G62: =G59 -> 1.731798133 | H62: =H59 -> 1.843452005 | I62: =I59 -> 1.556387854 | J62: 1.752892668 | L62: =L59 -> 1.610007257 | M62: 1.573424773 | N62: 1.455421879 | O62: 0.8738118905 | P62: 0.9900170331 | Q62: 1.016986676 | R62: 1.00681011 | S62: 0.8869361591 | T62: 0.8023806535 | U62: 0.7057568657 | V62: 0.6930881614 | W62: 0.7260883038 | X62: 0.7376083237 | Y62: 0.7138540278 | Z62: 0.6945020256 | AA62: 0.6682091454 | AB62: 0.7793139413 | AC62: 0.908642608 | AD62: 1.008582315 | AE62: 0.7098604122 | AF62: 0.7370087794 | AG62: 0.6710803309 | AH62: -0.0109218029
A63: 10b | B63: Regional GHG Emissions | C63: Electric Power Serving Idaho | D63: Metric Tonnes | E63: 0.005029767506 | F63: 0.005154426859 | G63: 0.0060262103 | H63: 0.009026228782 | I63: 0.00332256 | J63: 0.004267113225 | L63: =SUM(Aurora_Res_Results!$BA$355:$BA$356,Aurora_Res_Results!$BA$359)/1000000 -> 0.008141726494 | M63: =SUM(Aurora_Res_Results!$BB$355:$BB$356,Aurora_Res_Results!$BB$359)/1000000 -> 0.009342932756 | N63: =SUM(Aurora_Res_Results!$BC$355:$BC$356,Aurora_Res_Results!$BC$359)/1000000 -> 0.009680927855 | O63: =SUM(Aurora_Res_Results!$BD$355:$BD$356,Aurora_Res_Results!$BD$359)/1000000 -> 0.01002386536 | P63: =SUM(Aurora_Res_Results!$BE$355:$BE$356,Aurora_Res_Results!$BE$359)/1000000 -> 0.009511903443 | Q63: =SUM(Aurora_Res_Results!$BF$355:$BF$356,Aurora_Res_Results!$BF$359)/1000000 -> 0.009925528889 | R63: =SUM(Aurora_Res_Results!$BG$355:$BG$356,Aurora_Res_Results!$BG$359)/1000000 -> 0.009319189993 | S63: =SUM(Aurora_Res_Results!$BH$355:$BH$356,Aurora_Res_Results!$BH$359)/1000000 -> 0.01187809167 | T63: =SUM(Aurora_Res_Results!$BI$355:$BI$356,Aurora_Res_Results!$BI$359)/1000000 -> 0.01089923483 | U63: =SUM(Aurora_Res_Results!$BJ$355:$BJ$356,Aurora_Res_Results!$BJ$359)/1000000 -> 0.01001209876 | V63: =SUM(Aurora_Res_Results!$BK$355:$BK$356,Aurora_Res_Results!$BK$359)/1000000 -> 0.01006325351 | W63: =SUM(Aurora_Res_Results!$BL$355:$BL$356,Aurora_Res_Results!$BL$359)/1000000 -> 0.01000163553 | X63: =SUM(Aurora_Res_Results!$BM$355:$BM$356,Aurora_Res_Results!$BM$359)/1000000 -> 0.01037434619 | Y63: =SUM(Aurora_Res_Results!$BN$355:$BN$356,Aurora_Res_Results!$BN$359)/1000000 -> 0.008981686691 | Z63: =SUM(Aurora_Res_Results!$BO$355:$BO$356,Aurora_Res_Results!$BO$359)/1000000 -> 0.00904640277 | AA63: =SUM(Aurora_Res_Results!$BP$355:$BP$356,Aurora_Res_Results!$BP$359)/1000000 -> 0.008903621993 | AB63: =SUM(Aurora_Res_Results!$BQ$355:$BQ$356,Aurora_Res_Results!$BQ$359)/1000000 -> 0.0089580657 | AC63: =SUM(Aurora_Res_Results!$BR$355:$BR$356,Aurora_Res_Results!$BR$359)/1000000 -> 0.009352100051 | AD63: =SUM(Aurora_Res_Results!$BS$355:$BS$356,Aurora_Res_Results!$BS$359)/1000000 -> 0 | AE63: =SUM(Aurora_Res_Results!$BT$355:$BT$356,Aurora_Res_Results!$BT$359)/1000000 -> 0 | AF63: =SUM(Aurora_Res_Results!$BU$355:$BU$356,Aurora_Res_Results!$BU$359)/1000000 -> 0 | AG63: =SUM(Aurora_Res_Results!$BV$355:$BV$356,Aurora_Res_Results!$BV$359)/1000000 -> 0 | AH63: =SUM(Aurora_Res_Results!$BW$355:$BW$356,Aurora_Res_Results!$BW$359)/1000000 -> 0
A64: 10b | B64: Regional GHG Emissions | C64: Waste Management | D64: Metric Tonnes | E64: 0.3253312286 | F64: 0.321752766 | G64: 0.3213853946 | H64: 0.3242199922 | I64: 0.3231361709 | J64: 0.3242292428 | L64: 0.3254232351 | M64: 0.3260267043 | N64: 0.3265853971 | O64: 0.3272936269 | P64: 0.3279572594 | Q64: 0.3286082519 | R64: 0.3292501647 | S64: 0.3298882451 | T64: 0.3304080678 | U64: 0.3309506507 | V64: 0.3314759165 | W64: 0.331972976 | X64: 0.3324429444 | Y64: 0.3329126377 | Z64: 0.3333610687 | AA64: 0.3337892487 | AB64: 0.334201888 | AC64: 0.3346054352 | AD64: 0.3346054291 | AE64: 0.3346054409 | AF64: 0.3346054425 | AG64: 0.3346054369 | AH64: 0.3346054373
A65: 10b | B65: Regional GHG Emissions | C65: Residential & Commerical Fuels | D65: Metric Tonnes | E65: 1.890978132 | F65: 2.026008888 | G65: 2.036057524 | H65: 2.174254307 | I65: 2.254440498 | J65: 2.25874598 | L65: 2.198625748 | M65: 2.208438115 | N65: 2.206780412 | O65: 2.210319244 | P65: 2.21354685 | Q65: 2.223193722 | R65: 2.217128468 | S65: 2.216736676 | T65: 2.220981867 | U65: 2.226147088 | V65: 2.224347905 | W65: 2.223695531 | X65: 2.227428496 | Y65: 2.240767269 | Z65: 2.240823203 | AA65: 2.23783953 | AB65: 2.23999256 | AC65: 2.244315002 | AD65: 2.241926839 | AE65: 2.242882104 | AF65: 2.243094385 | AG65: 2.254133007 | AH65: 2.252593968
A66: 10b | B66: Regional GHG Emissions | C66: Transportation | D66: Metric Tonnes | E66: 3.759390167 | F66: 3.711330166 | G66: 3.886804121 | H66: 3.950456799 | I66: 3.952453538 | J66: 4.021316018 | L66: 4.115596326 | M66: 4.162264967 | N66: 4.208039717 | O66: 4.254140002 | P66: 4.297213268 | Q66: 4.336924658 | R66: 4.371938148 | S66: 4.401685671 | T66: 4.412803565 | U66: 4.422055837 | V66: 4.428757865 | W66: 4.432580098 | X66: 4.433347553 | Y66: 4.431184035 | Z66: 4.425603075 | AA66: 4.416374218 | AB66: 4.403296621 | AC66: 4.386169369 | AD66: 4.359875521 | AE66: 4.329019832 | AF66: 4.293261401 | AG66: 4.252243416 | AH66: 4.205598963
A67: 10b | B67: Regional GHG Emissions | C67: Agriculture | D67: Metric Tonnes | E67: 2.015650455 | F67: 2.015650455 | G67: 1.896400796 | H67: 2.014335388 | I67: 2.107186495 | J67: 2.044679143 | L67: 2.015650455 | M67: 2.015650455 | N67: 2.015650455 | O67: 2.015650455 | P67: 2.015650455 | Q67: 2.015650455 | R67: 2.015650455 | S67: 2.015650455 | T67: 2.015650455 | U67: 2.015650455 | V67: 2.015650455 | W67: 2.015650455 | X67: 2.015650455 | Y67: 2.015650455 | Z67: 2.015650455 | AA67: 2.015650455 | AB67: 2.015650455 | AC67: 2.015650455 | AD67: 2.015650455 | AE67: 2.015650455 | AF67: 2.015650455 | AG67: 2.015650455 | AH67: 2.015650455
A68: 10b | B68: Regional GHG Emissions | C68: Total | D68: Metric Tonnes | E68: =SUM(E61:E67) -> 10.50755729 | F68: =SUM(F61:F67) -> 10.58116285 | G68: =SUM(G61:G67) -> 10.61163918 | H68: =SUM(H61:H67) -> 11.06564572 | I68: =SUM(I61:I67) -> 10.94682812 | J68: 11.13684377 | L68: =SUM(L61:L67) -> 11.00415835 | M68: =SUM(M61:M67) -> 11.02586155 | N68: 10.95287239 | O68: 10.42195268 | P68: 10.58461037 | Q68: 10.66200289 | R68: 10.68081014 | S68: 10.5934889 | T68: 10.52383744 | U68: 10.44128659 | V68: 10.43409716 | W68: 10.4707026 | X68: 10.48756572 | Y68: 10.47406371 | Z68: 10.44969983 | AA68: 10.41147982 | AB68: 10.51212713 | AC68: 10.62944857 | AD68: 10.69135416 | AE68: 10.36273184 | AF68: 10.35433406 | AG68: 10.25842625 | AH68: 9.528240621

Sheet Position Summary
A2: PRIOR TO RESOURCE ACQUISITION (Includes Renewables transfers)
B3: Washington | O3: Idaho | AB3: System | AO3: Check
A4: Capacity | B4: 1 | C4: 2 | D4: 3 | E4: 4 | F4: 5 | G4: 6 | H4: 7 | I4: 8 | J4: 9 | K4: 10 | L4: 11 | M4: 12 | O4: 1 | P4: 2 | Q4: 3 | R4: 4 | S4: 5 | T4: 6 | U4: 7 | V4: 8 | W4: 9 | X4: 10 | Y4: 11 | Z4: 12 | AB4: 1 | AC4: 2 | AD4: 3 | AE4: 4 | AF4: 5 | AG4: 6 | AH4: 7 | AI4: 8 | AJ4: 9 | AK4: 10 | AL4: 11 | AM4: 12 | AO4: 1 | AP4: 2 | AQ4: 3 | AR4: 4 | AS4: 5 | AT4: 6 | AU4: 7 | AV4: 8 | AW4: 9 | AX4: 10 | AY4: 11 | AZ4: 12
A5: 2023 | B5: =HLOOKUP($A5&"_"&IF(B$4<10,"0"&B$4,B$4),WA_LR!$C$3:$JR$49,45,FALSE) -> 129.1046627 | C5: =HLOOKUP($A5&"_"&IF(C$4<10,"0"&C$4,C$4),WA_LR!$C$3:$JR$49,45,FALSE) -> 213.2914878 | D5: =HLOOKUP($A5&"_"&IF(D$4<10,"0"&D$4,D$4),WA_LR!$C$3:$JR$49,45,FALSE) -> 338.4873482 | E5: =HLOOKUP($A5&"_"&IF(E$4<10,"0"&E$4,E$4),WA_LR!$C$3:$JR$49,45,FALSE) -> 475.4525239 | F5: =HLOOKUP($A5&"_"&IF(F$4<10,"0"&F$4,F$4),WA_LR!$C$3:$JR$49,45,FALSE) -> 310.6346001 | G5: =HLOOKUP($A5&"_"&IF(G$4<10,"0"&G$4,G$4),WA_LR!$C$3:$JR$49,45,FALSE) -> 288.5607765 | H5: =HLOOKUP($A5&"_"&IF(H$4<10,"0"&H$4,H$4),WA_LR!$C$3:$JR$49,45,FALSE) -> 165.6019975 | I5: =HLOOKUP($A5&"_"&IF(I$4<10,"0"&I$4,I$4),WA_LR!$C$3:$JR$49,45,FALSE) -> 123.3496643 | J5: =HLOOKUP($A5&"_"&IF(J$4<10,"0"&J$4,J$4),WA_LR!$C$3:$JR$49,45,FALSE) -> 160.9058232 | K5: =HLOOKUP($A5&"_"&IF(K$4<10,"0"&K$4,K$4),WA_LR!$C$3:$JR$49,45,FALSE) -> 424.7834698 | L5: =HLOOKUP($A5&"_"&IF(L$4<10,"0"&L$4,L$4),WA_LR!$C$3:$JR$49,45,FALSE) -> 299.3178377 | M5: =HLOOKUP($A5&"_"&IF(M$4<10,"0"&M$4,M$4),WA_LR!$C$3:$JR$49,45,FALSE) -> 171.989914 | O5: =HLOOKUP($A5&"_"&IF(O$4<10,"0"&O$4,O$4),ID_LR!$C$3:$JR$49,45,FALSE) -> 52.43691276 | P5: =HLOOKUP($A5&"_"&IF(P$4<10,"0"&P$4,P$4),ID_LR!$C$3:$JR$49,45,FALSE) -> 116.4446726 | Q5: =HLOOKUP($A5&"_"&IF(Q$4<10,"0"&Q$4,Q$4),ID_LR!$C$3:$JR$49,45,FALSE) -> 174.2937648 | R5: =HLOOKUP($A5&"_"&IF(R$4<10,"0"&R$4,R$4),ID_LR!$C$3:$JR$49,45,FALSE) -> 233.9425034 | S5: =HLOOKUP($A5&"_"&IF(S$4<10,"0"&S$4,S$4),ID_LR!$C$3:$JR$49,45,FALSE) -> 160.9547486 | T5: =HLOOKUP($A5&"_"&IF(T$4<10,"0"&T$4,T$4),ID_LR!$C$3:$JR$49,45,FALSE) -> 161.1789715 | U5: =HLOOKUP($A5&"_"&IF(U$4<10,"0"&U$4,U$4),ID_LR!$C$3:$JR$49,45,FALSE) -> 92.62783757 | V5: =HLOOKUP($A5&"_"&IF(V$4<10,"0"&V$4,V$4),ID_LR!$C$3:$JR$49,45,FALSE) -> 88.54162814 | W5: =HLOOKUP($A5&"_"&IF(W$4<10,"0"&W$4,W$4),ID_LR!$C$3:$JR$49,45,FALSE) -> 115.0003853 | X5: =HLOOKUP($A5&"_"&IF(X$4<10,"0"&X$4,X$4),ID_LR!$C$3:$JR$49,45,FALSE) -> 239.6940178 | Y5: =HLOOKUP($A5&"_"&IF(Y$4<10,"0"&Y$4,Y$4),ID_LR!$C$3:$JR$49,45,FALSE) -> 150.1240957 | Z5: =HLOOKUP($A5&"_"&IF(Z$4<10,"0"&Z$4,Z$4),ID_LR!$C$3:$JR$49,45,FALSE) -> 72.68823557 | AB5: =HLOOKUP($A5&"_"&IF(AB$4<10,"0"&AB$4,AB$4),System_LR!$C$3:$JR$49,45,FALSE) -> 181.9815754 | AC5: =HLOOKUP($A5&"_"&IF(AC$4<10,"0"&AC$4,AC$4),System_LR!$C$3:$JR$49,45,FALSE) -> 330.1761604 | AD5: =HLOOKUP($A5&"_"&IF(AD$4<10,"0"&AD$4,AD$4),System_LR!$C$3:$JR$49,45,FALSE) -> 513.221113 | AE5: =HLOOKUP($A5&"_"&IF(AE$4<10,"0"&AE$4,AE$4),System_LR!$C$3:$JR$49,45,FALSE) -> 709.8350273 | AF5: =HLOOKUP($A5&"_"&IF(AF$4<10,"0"&AF$4,AF$4),System_LR!$C$3:$JR$49,45,FALSE) -> 471.8493487 | AG5: =HLOOKUP($A5&"_"&IF(AG$4<10,"0"&AG$4,AG$4),System_LR!$C$3:$JR$49,45,FALSE) -> 449.999748 | AH5: =HLOOKUP($A5&"_"&IF(AH$4<10,"0"&AH$4,AH$4),System_LR!$C$3:$JR$49,45,FALSE) -> 258.489835 | AI5: =HLOOKUP($A5&"_"&IF(AI$4<10,"0"&AI$4,AI$4),System_LR!$C$3:$JR$49,45,FALSE) -> 212.1512924 | AJ5: =HLOOKUP($A5&"_"&IF(AJ$4<10,"0"&AJ$4,AJ$4),System_LR!$C$3:$JR$49,45,FALSE) -> 276.1662085 | AK5: =HLOOKUP($A5&"_"&IF(AK$4<10,"0"&AK$4,AK$4),System_LR!$C$3:$JR$49,45,FALSE) -> 664.9174876 | AL5: =HLOOKUP($A5&"_"&IF(AL$4<10,"0"&AL$4,AL$4),System_LR!$C$3:$JR$49,45,FALSE) -> 449.8819334 | AM5: =HLOOKUP($A5&"_"&IF(AM$4<10,"0"&AM$4,AM$4),System_LR!$C$3:$JR$49,45,FALSE) -> 245.1181495 | AO5: =B5+O5-AB5 -> -0.44 | AP5: =C5+P5-AC5 -> -0.44 | AQ5: =D5+Q5-AD5 -> -0.44 | AR5: =E5+R5-AE5 -> -0.44 | AS5: =F5+S5-AF5 -> -0.26 | AT5: =G5+T5-AG5 -> -0.26 | AU5: =H5+U5-AH5 -> -0.26 | AV5: =I5+V5-AI5 -> -0.26 | AW5: =J5+W5-AJ5 -> -0.26 | AX5: =K5+X5-AK5 -> -0.44 | AY5: =L5+Y5-AL5 -> -0.44 | AZ5: =M5+Z5-AM5 -> -0.44
A6: 2024 | B6: =HLOOKUP($A6&"_"&IF(B$4<10,"0"&B$4,B$4),WA_LR!$C$3:$JR$49,45,FALSE) -> 184.7818555 | C6: =HLOOKUP($A6&"_"&IF(C$4<10,"0"&C$4,C$4),WA_LR!$C$3:$JR$49,45,FALSE) -> 272.2776186 | D6: =HLOOKUP($A6&"_"&IF(D$4<10,"0"&D$4,D$4),WA_LR!$C$3:$JR$49,45,FALSE) -> 399.5593069 | E6: =HLOOKUP($A6&"_"&IF(E$4<10,"0"&E$4,E$4),WA_LR!$C$3:$JR$49,45,FALSE) -> 529.7909468 | F6: =HLOOKUP($A6&"_"&IF(F$4<10,"0"&F$4,F$4),WA_LR!$C$3:$JR$49,45,FALSE) -> 358.8277168 | G6: =HLOOKUP($A6&"_"&IF(G$4<10,"0"&G$4,G$4),WA_LR!$C$3:$JR$49,45,FALSE) -> 339.9680274 | H6: =HLOOKUP($A6&"_"&IF(H$4<10,"0"&H$4,H$4),WA_LR!$C$3:$JR$49,45,FALSE) -> 212.2409452 | I6: =HLOOKUP($A6&"_"&IF(I$4<10,"0"&I$4,I$4),WA_LR!$C$3:$JR$49,45,FALSE) -> 170.1763624 | J6: =HLOOKUP($A6&"_"&IF(J$4<10,"0"&J$4,J$4),WA_LR!$C$3:$JR$49,45,FALSE) -> 198.9733502 | K6: =HLOOKUP($A6&"_"&IF(K$4<10,"0"&K$4,K$4),WA_LR!$C$3:$JR$49,45,FALSE) -> 482.0798932 | L6: =HLOOKUP($A6&"_"&IF(L$4<10,"0"&L$4,L$4),WA_LR!$C$3:$JR$49,45,FALSE) -> 344.6714529 | M6: =HLOOKUP($A6&"_"&IF(M$4<10,"0"&M$4,M$4),WA_LR!$C$3:$JR$49,45,FALSE) -> 221.7773058 | O6: =HLOOKUP($A6&"_"&IF(O$4<10,"0"&O$4,O$4),ID_LR!$C$3:$JR$49,45,FALSE) -> 85.05758873 | P6: =HLOOKUP($A6&"_"&IF(P$4<10,"0"&P$4,P$4),ID_LR!$C$3:$JR$49,45,FALSE) -> 151.4742425 | Q6: =HLOOKUP($A6&"_"&IF(Q$4<10,"0"&Q$4,Q$4),ID_LR!$C$3:$JR$49,45,FALSE) -> 210.0308593 | R6: =HLOOKUP($A6&"_"&IF(R$4<10,"0"&R$4,R$4),ID_LR!$C$3:$JR$49,45,FALSE) -> 265.9928698 | S6: =HLOOKUP($A6&"_"&IF(S$4<10,"0"&S$4,S$4),ID_LR!$C$3:$JR$49,45,FALSE) -> 189.4341371 | T6: =HLOOKUP($A6&"_"&IF(T$4<10,"0"&T$4,T$4),ID_LR!$C$3:$JR$49,45,FALSE) -> 190.4337435 | U6: =HLOOKUP($A6&"_"&IF(U$4<10,"0"&U$4,U$4),ID_LR!$C$3:$JR$49,45,FALSE) -> 119.2672417 | V6: =HLOOKUP($A6&"_"&IF(V$4<10,"0"&V$4,V$4),ID_LR!$C$3:$JR$49,45,FALSE) -> 114.8563843 | W6: =HLOOKUP($A6&"_"&IF(W$4<10,"0"&W$4,W$4),ID_LR!$C$3:$JR$49,45,FALSE) -> 137.5794458 | X6: =HLOOKUP($A6&"_"&IF(X$4<10,"0"&X$4,X$4),ID_LR!$C$3:$JR$49,45,FALSE) -> 273.8012759 | Y6: =HLOOKUP($A6&"_"&IF(Y$4<10,"0"&Y$4,Y$4),ID_LR!$C$3:$JR$49,45,FALSE) -> 177.8793804 | Z6: =HLOOKUP($A6&"_"&IF(Z$4<10,"0"&Z$4,Z$4),ID_LR!$C$3:$JR$49,45,FALSE) -> 102.3916349 | AB6: =HLOOKUP($A6&"_"&IF(AB$4<10,"0"&AB$4,AB$4),System_LR!$C$3:$JR$49,45,FALSE) -> 270.2794442 | AC6: =HLOOKUP($A6&"_"&IF(AC$4<10,"0"&AC$4,AC$4),System_LR!$C$3:$JR$49,45,FALSE) -> 424.1918611 | AD6: =HLOOKUP($A6&"_"&IF(AD$4<10,"0"&AD$4,AD$4),System_LR!$C$3:$JR$49,45,FALSE) -> 610.0301661 | AE6: =HLOOKUP($A6&"_"&IF(AE$4<10,"0"&AE$4,AE$4),System_LR!$C$3:$JR$49,45,FALSE) -> 796.2238166 | AF6: =HLOOKUP($A6&"_"&IF(AF$4<10,"0"&AF$4,AF$4),System_LR!$C$3:$JR$49,45,FALSE) -> 548.5218539 | AG6: =HLOOKUP($A6&"_"&IF(AG$4<10,"0"&AG$4,AG$4),System_LR!$C$3:$JR$49,45,FALSE) -> 530.6617709 | AH6: =HLOOKUP($A6&"_"&IF(AH$4<10,"0"&AH$4,AH$4),System_LR!$C$3:$JR$49,45,FALSE) -> 331.7681869 | AI6: =HLOOKUP($A6&"_"&IF(AI$4<10,"0"&AI$4,AI$4),System_LR!$C$3:$JR$49,45,FALSE) -> 285.2927467 | AJ6: =HLOOKUP($A6&"_"&IF(AJ$4<10,"0"&AJ$4,AJ$4),System_LR!$C$3:$JR$49,45,FALSE) -> 336.812796 | AK6: =HLOOKUP($A6&"_"&IF(AK$4<10,"0"&AK$4,AK$4),System_LR!$C$3:$JR$49,45,FALSE) -> 756.3211691 | AL6: =HLOOKUP($A6&"_"&IF(AL$4<10,"0"&AL$4,AL$4),System_LR!$C$3:$JR$49,45,FALSE) -> 522.9908333 | AM6: =HLOOKUP($A6&"_"&IF(AM$4<10,"0"&AM$4,AM$4),System_LR!$C$3:$JR$49,45,FALSE) -> 324.6089407 | AO6: =B6+O6-AB6 -> -0.44 | AP6: -0.44 | AQ6: -0.44 | AR6: -0.44 | AS6: -0.26 | AT6: -0.26 | AU6: -0.26 | AV6: -0.26 | AW6: -0.26 | AX6: -0.44 | AY6: -0.44 | AZ6: -0.44
A7: 2025 | B7: =HLOOKUP($A7&"_"&IF(B$4<10,"0"&B$4,B$4),WA_LR!$C$3:$JR$49,45,FALSE) -> 176.4812527 | C7: =HLOOKUP($A7&"_"&IF(C$4<10,"0"&C$4,C$4),WA_LR!$C$3:$JR$49,45,FALSE) -> 264.4974689 | D7: =HLOOKUP($A7&"_"&IF(D$4<10,"0"&D$4,D$4),WA_LR!$C$3:$JR$49,45,FALSE) -> 395.0894988 | E7: =HLOOKUP($A7&"_"&IF(E$4<10,"0"&E$4,E$4),WA_LR!$C$3:$JR$49,45,FALSE) -> 561.0814199 | F7: =HLOOKUP($A7&"_"&IF(F$4<10,"0"&F$4,F$4),WA_LR!$C$3:$JR$49,45,FALSE) -> 405.6306146 | G7: =HLOOKUP($A7&"_"&IF(G$4<10,"0"&G$4,G$4),WA_LR!$C$3:$JR$49,45,FALSE) -> 390.2101639 | H7: =HLOOKUP($A7&"_"&IF(H$4<10,"0"&H$4,H$4),WA_LR!$C$3:$JR$49,45,FALSE) -> 259.8226924 | I7: =HLOOKUP($A7&"_"&IF(I$4<10,"0"&I$4,I$4),WA_LR!$C$3:$JR$49,45,FALSE) -> 208.9875267 | J7: =HLOOKUP($A7&"_"&IF(J$4<10,"0"&J$4,J$4),WA_LR!$C$3:$JR$49,45,FALSE) -> 226.7316559 | K7: =HLOOKUP($A7&"_"&IF(K$4<10,"0"&K$4,K$4),WA_LR!$C$3:$JR$49,45,FALSE) -> 494.2219968 | L7: =HLOOKUP($A7&"_"&IF(L$4<10,"0"&L$4,L$4),WA_LR!$C$3:$JR$49,45,FALSE) -> 333.6937632 | M7: =HLOOKUP($A7&"_"&IF(M$4<10,"0"&M$4,M$4),WA_LR!$C$3:$JR$49,45,FALSE) -> 211.762661 | O7: =HLOOKUP($A7&"_"&IF(O$4<10,"0"&O$4,O$4),ID_LR!$C$3:$JR$49,45,FALSE) -> 82.67442658 | P7: =HLOOKUP($A7&"_"&IF(P$4<10,"0"&P$4,P$4),ID_LR!$C$3:$JR$49,45,FALSE) -> 149.2878185 | Q7: =HLOOKUP($A7&"_"&IF(Q$4<10,"0"&Q$4,Q$4),ID_LR!$C$3:$JR$49,45,FALSE) -> 210.6590425 | R7: =HLOOKUP($A7&"_"&IF(R$4<10,"0"&R$4,R$4),ID_LR!$C$3:$JR$49,45,FALSE) -> 286.2138076 | S7: =HLOOKUP($A7&"_"&IF(S$4<10,"0"&S$4,S$4),ID_LR!$C$3:$JR$49,45,FALSE) -> 217.9651795 | T7: =HLOOKUP($A7&"_"&IF(T$4<10,"0"&T$4,T$4),ID_LR!$C$3:$JR$49,45,FALSE) -> 219.7040992 | U7: =HLOOKUP($A7&"_"&IF(U$4<10,"0"&U$4,U$4),ID_LR!$C$3:$JR$49,45,FALSE) -> 146.9553164 | V7: =HLOOKUP($A7&"_"&IF(V$4<10,"0"&V$4,V$4),ID_LR!$C$3:$JR$49,45,FALSE) -> 137.5325719 | W7: =HLOOKUP($A7&"_"&IF(W$4<10,"0"&W$4,W$4),ID_LR!$C$3:$JR$49,45,FALSE) -> 154.7488018 | X7: =HLOOKUP($A7&"_"&IF(X$4<10,"0"&X$4,X$4),ID_LR!$C$3:$JR$49,45,FALSE) -> 283.7731307 | Y7: =HLOOKUP($A7&"_"&IF(Y$4<10,"0"&Y$4,Y$4),ID_LR!$C$3:$JR$49,45,FALSE) -> 175.3351415 | Z7: =HLOOKUP($A7&"_"&IF(Z$4<10,"0"&Z$4,Z$4),ID_LR!$C$3:$JR$49,45,FALSE) -> 99.53299891 | AB7: =HLOOKUP($A7&"_"&IF(AB$4<10,"0"&AB$4,AB$4),System_LR!$C$3:$JR$49,45,FALSE) -> 259.5956792 | AC7: =HLOOKUP($A7&"_"&IF(AC$4<10,"0"&AC$4,AC$4),System_LR!$C$3:$JR$49,45,FALSE) -> 414.2252874 | AD7: =HLOOKUP($A7&"_"&IF(AD$4<10,"0"&AD$4,AD$4),System_LR!$C$3:$JR$49,45,FALSE) -> 606.1885413 | AE7: =HLOOKUP($A7&"_"&IF(AE$4<10,"0"&AE$4,AE$4),System_LR!$C$3:$JR$49,45,FALSE) -> 847.7352275 | AF7: =HLOOKUP($A7&"_"&IF(AF$4<10,"0"&AF$4,AF$4),System_LR!$C$3:$JR$49,45,FALSE) -> 623.8557941 | AG7: =HLOOKUP($A7&"_"&IF(AG$4<10,"0"&AG$4,AG$4),System_LR!$C$3:$JR$49,45,FALSE) -> 610.1742631 | AH7: =HLOOKUP($A7&"_"&IF(AH$4<10,"0"&AH$4,AH$4),System_LR!$C$3:$JR$49,45,FALSE) -> 407.0380088 | AI7: =HLOOKUP($A7&"_"&IF(AI$4<10,"0"&AI$4,AI$4),System_LR!$C$3:$JR$49,45,FALSE) -> 346.7800986 | AJ7: =HLOOKUP($A7&"_"&IF(AJ$4<10,"0"&AJ$4,AJ$4),System_LR!$C$3:$JR$49,45,FALSE) -> 381.7404577 | AK7: =HLOOKUP($A7&"_"&IF(AK$4<10,"0"&AK$4,AK$4),System_LR!$C$3:$JR$49,45,FALSE) -> 778.4351275 | AL7: =HLOOKUP($A7&"_"&IF(AL$4<10,"0"&AL$4,AL$4),System_LR!$C$3:$JR$49,45,FALSE) -> 509.4689047 | AM7: =HLOOKUP($A7&"_"&IF(AM$4<10,"0"&AM$4,AM$4),System_LR!$C$3:$JR$49,45,FALSE) -> 311.7356599 | AO7: -0.44 | AP7: -0.44 | AQ7: -0.44 | AR7: =E7+R7-AE7 -> -0.44 | AS7: -0.26 | AT7: -0.26 | AU7: -0.26 | AV7: -0.26 | AW7: -0.26 | AX7: -0.44 | AY7: -0.44 | AZ7: -0.44
A8: 2026 | B8: =HLOOKUP($A8&"_"&IF(B$4<10,"0"&B$4,B$4),WA_LR!$C$3:$JR$49,45,FALSE) -> 121.8634476 | C8: =HLOOKUP($A8&"_"&IF(C$4<10,"0"&C$4,C$4),WA_LR!$C$3:$JR$49,45,FALSE) -> 209.8356312 | D8: =HLOOKUP($A8&"_"&IF(D$4<10,"0"&D$4,D$4),WA_LR!$C$3:$JR$49,45,FALSE) -> 343.5156377 | E8: =HLOOKUP($A8&"_"&IF(E$4<10,"0"&E$4,E$4),WA_LR!$C$3:$JR$49,45,FALSE) -> 511.8823902 | F8: =HLOOKUP($A8&"_"&IF(F$4<10,"0"&F$4,F$4),WA_LR!$C$3:$JR$49,45,FALSE) -> 356.0291867 | G8: =HLOOKUP($A8&"_"&IF(G$4<10,"0"&G$4,G$4),WA_LR!$C$3:$JR$49,45,FALSE) -> 342.7242199 | H8: =HLOOKUP($A8&"_"&IF(H$4<10,"0"&H$4,H$4),WA_LR!$C$3:$JR$49,45,FALSE) -> 210.227081 | I8: =HLOOKUP($A8&"_"&IF(I$4<10,"0"&I$4,I$4),WA_LR!$C$3:$JR$49,45,FALSE) -> 153.1656877 | J8: =HLOOKUP($A8&"_"&IF(J$4<10,"0"&J$4,J$4),WA_LR!$C$3:$JR$49,45,FALSE) -> 168.4059043 | K8: =HLOOKUP($A8&"_"&IF(K$4<10,"0"&K$4,K$4),WA_LR!$C$3:$JR$49,45,FALSE) -> 442.0554805 | L8: =HLOOKUP($A8&"_"&IF(L$4<10,"0"&L$4,L$4),WA_LR!$C$3:$JR$49,45,FALSE) -> 270.8780397 | M8: =HLOOKUP($A8&"_"&IF(M$4<10,"0"&M$4,M$4),WA_LR!$C$3:$JR$49,45,FALSE) -> 151.9860649 | O8: =HLOOKUP($A8&"_"&IF(O$4<10,"0"&O$4,O$4),ID_LR!$C$3:$JR$49,45,FALSE) -> 61.05209137 | P8: =HLOOKUP($A8&"_"&IF(P$4<10,"0"&P$4,P$4),ID_LR!$C$3:$JR$49,45,FALSE) -> 126.835765 | Q8: =HLOOKUP($A8&"_"&IF(Q$4<10,"0"&Q$4,Q$4),ID_LR!$C$3:$JR$49,45,FALSE) -> 187.8690392 | R8: =HLOOKUP($A8&"_"&IF(R$4<10,"0"&R$4,R$4),ID_LR!$C$3:$JR$49,45,FALSE) -> 261.1880311 | S8: =HLOOKUP($A8&"_"&IF(S$4<10,"0"&S$4,S$4),ID_LR!$C$3:$JR$49,45,FALSE) -> 188.4491348 | T8: =HLOOKUP($A8&"_"&IF(T$4<10,"0"&T$4,T$4),ID_LR!$C$3:$JR$49,45,FALSE) -> 188.6471032 | U8: =HLOOKUP($A8&"_"&IF(U$4<10,"0"&U$4,U$4),ID_LR!$C$3:$JR$49,45,FALSE) -> 113.0100784 | V8: =HLOOKUP($A8&"_"&IF(V$4<10,"0"&V$4,V$4),ID_LR!$C$3:$JR$49,45,FALSE) -> 100.6942872 | W8: =HLOOKUP($A8&"_"&IF(W$4<10,"0"&W$4,W$4),ID_LR!$C$3:$JR$49,45,FALSE) -> 118.8974135 | X8: =HLOOKUP($A8&"_"&IF(X$4<10,"0"&X$4,X$4),ID_LR!$C$3:$JR$49,45,FALSE) -> 259.4755989 | Y8: =HLOOKUP($A8&"_"&IF(Y$4<10,"0"&Y$4,Y$4),ID_LR!$C$3:$JR$49,45,FALSE) -> 151.0472154 | Z8: =HLOOKUP($A8&"_"&IF(Z$4<10,"0"&Z$4,Z$4),ID_LR!$C$3:$JR$49,45,FALSE) -> 77.84957143 | AB8: =HLOOKUP($A8&"_"&IF(AB$4<10,"0"&AB$4,AB$4),System_LR!$C$3:$JR$49,45,FALSE) -> 183.3555389 | AC8: =HLOOKUP($A8&"_"&IF(AC$4<10,"0"&AC$4,AC$4),System_LR!$C$3:$JR$49,45,FALSE) -> 337.1113961 | AD8: =HLOOKUP($A8&"_"&IF(AD$4<10,"0"&AD$4,AD$4),System_LR!$C$3:$JR$49,45,FALSE) -> 531.8246769 | AE8: =HLOOKUP($A8&"_"&IF(AE$4<10,"0"&AE$4,AE$4),System_LR!$C$3:$JR$49,45,FALSE) -> 773.5104212 | AF8: =HLOOKUP($A8&"_"&IF(AF$4<10,"0"&AF$4,AF$4),System_LR!$C$3:$JR$49,45,FALSE) -> 544.7383216 | AG8: =HLOOKUP($A8&"_"&IF(AG$4<10,"0"&AG$4,AG$4),System_LR!$C$3:$JR$49,45,FALSE) -> 531.631323 | AH8: =HLOOKUP($A8&"_"&IF(AH$4<10,"0"&AH$4,AH$4),System_LR!$C$3:$JR$49,45,FALSE) -> 323.4971594 | AI8: =HLOOKUP($A8&"_"&IF(AI$4<10,"0"&AI$4,AI$4),System_LR!$C$3:$JR$49,45,FALSE) -> 254.1199749 | AJ8: =HLOOKUP($A8&"_"&IF(AJ$4<10,"0"&AJ$4,AJ$4),System_LR!$C$3:$JR$49,45,FALSE) -> 287.5633178 | AK8: =HLOOKUP($A8&"_"&IF(AK$4<10,"0"&AK$4,AK$4),System_LR!$C$3:$JR$49,45,FALSE) -> 701.9710793 | AL8: =HLOOKUP($A8&"_"&IF(AL$4<10,"0"&AL$4,AL$4),System_LR!$C$3:$JR$49,45,FALSE) -> 422.3652551 | AM8: =HLOOKUP($A8&"_"&IF(AM$4<10,"0"&AM$4,AM$4),System_LR!$C$3:$JR$49,45,FALSE) -> 230.2756363 | AO8: -0.44 | AP8: -0.44 | AQ8: -0.44 | AR8: -0.44 | AS8: -0.26 | AT8: -0.26 | AU8: -0.26 | AV8: -0.26 | AW8: -0.26 | AX8: -0.44 | AY8: -0.44 | AZ8: -0.44
A9: 2027 | B9: =HLOOKUP($A9&"_"&IF(B$4<10,"0"&B$4,B$4),WA_LR!$C$3:$JR$49,45,FALSE) -> 108.3091067 | C9: =HLOOKUP($A9&"_"&IF(C$4<10,"0"&C$4,C$4),WA_LR!$C$3:$JR$49,45,FALSE) -> 197.3976021 | D9: =HLOOKUP($A9&"_"&IF(D$4<10,"0"&D$4,D$4),WA_LR!$C$3:$JR$49,45,FALSE) -> 334.3685649 | E9: =HLOOKUP($A9&"_"&IF(E$4<10,"0"&E$4,E$4),WA_LR!$C$3:$JR$49,45,FALSE) -> 512.8628484 | F9: =HLOOKUP($A9&"_"&IF(F$4<10,"0"&F$4,F$4),WA_LR!$C$3:$JR$49,45,FALSE) -> 357.6783794 | G9: =HLOOKUP($A9&"_"&IF(G$4<10,"0"&G$4,G$4),WA_LR!$C$3:$JR$49,45,FALSE) -> 350.2553413 | H9: =HLOOKUP($A9&"_"&IF(H$4<10,"0"&H$4,H$4),WA_LR!$C$3:$JR$49,45,FALSE) -> 219.7486303 | I9: =HLOOKUP($A9&"_"&IF(I$4<10,"0"&I$4,I$4),WA_LR!$C$3:$JR$49,45,FALSE) -> 157.6767796 | J9: =HLOOKUP($A9&"_"&IF(J$4<10,"0"&J$4,J$4),WA_LR!$C$3:$JR$49,45,FALSE) -> 168.8614585 | K9: =HLOOKUP($A9&"_"&IF(K$4<10,"0"&K$4,K$4),WA_LR!$C$3:$JR$49,45,FALSE) -> 435.6343789 | L9: =HLOOKUP($A9&"_"&IF(L$4<10,"0"&L$4,L$4),WA_LR!$C$3:$JR$49,45,FALSE) -> 256.4030337 | M9: =HLOOKUP($A9&"_"&IF(M$4<10,"0"&M$4,M$4),WA_LR!$C$3:$JR$49,45,FALSE) -> 137.5521514 | O9: =HLOOKUP($A9&"_"&IF(O$4<10,"0"&O$4,O$4),ID_LR!$C$3:$JR$49,45,FALSE) -> 57.04542194 | P9: =HLOOKUP($A9&"_"&IF(P$4<10,"0"&P$4,P$4),ID_LR!$C$3:$JR$49,45,FALSE) -> 123.7159877 | Q9: =HLOOKUP($A9&"_"&IF(Q$4<10,"0"&Q$4,Q$4),ID_LR!$C$3:$JR$49,45,FALSE) -> 186.5790281 | R9: =HLOOKUP($A9&"_"&IF(R$4<10,"0"&R$4,R$4),ID_LR!$C$3:$JR$49,45,FALSE) -> 264.6513874 | S9: =HLOOKUP($A9&"_"&IF(S$4<10,"0"&S$4,S$4),ID_LR!$C$3:$JR$49,45,FALSE) -> 190.5998074 | T9: =HLOOKUP($A9&"_"&IF(T$4<10,"0"&T$4,T$4),ID_LR!$C$3:$JR$49,45,FALSE) -> 192.0833734 | U9: =HLOOKUP($A9&"_"&IF(U$4<10,"0"&U$4,U$4),ID_LR!$C$3:$JR$49,45,FALSE) -> 116.6367835 | V9: =HLOOKUP($A9&"_"&IF(V$4<10,"0"&V$4,V$4),ID_LR!$C$3:$JR$49,45,FALSE) -> 101.4069016 | W9: =HLOOKUP($A9&"_"&IF(W$4<10,"0"&W$4,W$4),ID_LR!$C$3:$JR$49,45,FALSE) -> 118.9652712 | X9: =HLOOKUP($A9&"_"&IF(X$4<10,"0"&X$4,X$4),ID_LR!$C$3:$JR$49,45,FALSE) -> 259.849288 | Y9: =HLOOKUP($A9&"_"&IF(Y$4<10,"0"&Y$4,Y$4),ID_LR!$C$3:$JR$49,45,FALSE) -> 148.3300779 | Z9: =HLOOKUP($A9&"_"&IF(Z$4<10,"0"&Z$4,Z$4),ID_LR!$C$3:$JR$49,45,FALSE) -> 74.86608915 | AB9: =HLOOKUP($A9&"_"&IF(AB$4<10,"0"&AB$4,AB$4),System_LR!$C$3:$JR$49,45,FALSE) -> 165.7945287 | AC9: =HLOOKUP($A9&"_"&IF(AC$4<10,"0"&AC$4,AC$4),System_LR!$C$3:$JR$49,45,FALSE) -> 321.5535898 | AD9: =HLOOKUP($A9&"_"&IF(AD$4<10,"0"&AD$4,AD$4),System_LR!$C$3:$JR$49,45,FALSE) -> 521.387593 | AE9: =HLOOKUP($A9&"_"&IF(AE$4<10,"0"&AE$4,AE$4),System_LR!$C$3:$JR$49,45,FALSE) -> 777.9542358 | AF9: =HLOOKUP($A9&"_"&IF(AF$4<10,"0"&AF$4,AF$4),System_LR!$C$3:$JR$49,45,FALSE) -> 548.5381868 | AG9: =HLOOKUP($A9&"_"&IF(AG$4<10,"0"&AG$4,AG$4),System_LR!$C$3:$JR$49,45,FALSE) -> 542.5987147 | AH9: =HLOOKUP($A9&"_"&IF(AH$4<10,"0"&AH$4,AH$4),System_LR!$C$3:$JR$49,45,FALSE) -> 336.6454138 | AI9: =HLOOKUP($A9&"_"&IF(AI$4<10,"0"&AI$4,AI$4),System_LR!$C$3:$JR$49,45,FALSE) -> 259.3436812 | AJ9: =HLOOKUP($A9&"_"&IF(AJ$4<10,"0"&AJ$4,AJ$4),System_LR!$C$3:$JR$49,45,FALSE) -> 288.0867297 | AK9: =HLOOKUP($A9&"_"&IF(AK$4<10,"0"&AK$4,AK$4),System_LR!$C$3:$JR$49,45,FALSE) -> 695.9236669 | AL9: =HLOOKUP($A9&"_"&IF(AL$4<10,"0"&AL$4,AL$4),System_LR!$C$3:$JR$49,45,FALSE) -> 405.1731115 | AM9: =HLOOKUP($A9&"_"&IF(AM$4<10,"0"&AM$4,AM$4),System_LR!$C$3:$JR$49,45,FALSE) -> 212.8582405 | AO9: -0.44 | AP9: -0.44 | AQ9: -0.44 | AR9: -0.44 | AS9: -0.26 | AT9: -0.26 | AU9: -0.26 | AV9: -0.26 | AW9: -0.26 | AX9: -0.44 | AY9: -0.44 | AZ9: -0.44
A10: 2028 | B10: =HLOOKUP($A10&"_"&IF(B$4<10,"0"&B$4,B$4),WA_LR!$C$3:$JR$49,45,FALSE) -> 94.88134699 | C10: =HLOOKUP($A10&"_"&IF(C$4<10,"0"&C$4,C$4),WA_LR!$C$3:$JR$49,45,FALSE) -> 178.0145407 | D10: =HLOOKUP($A10&"_"&IF(D$4<10,"0"&D$4,D$4),WA_LR!$C$3:$JR$49,45,FALSE) -> 317.346118 | E10: =HLOOKUP($A10&"_"&IF(E$4<10,"0"&E$4,E$4),WA_LR!$C$3:$JR$49,45,FALSE) -> 499.1841914 | F10: =HLOOKUP($A10&"_"&IF(F$4<10,"0"&F$4,F$4),WA_LR!$C$3:$JR$49,45,FALSE) -> 343.9299976 | G10: =HLOOKUP($A10&"_"&IF(G$4<10,"0"&G$4,G$4),WA_LR!$C$3:$JR$49,45,FALSE) -> 350.0494791 | H10: =HLOOKUP($A10&"_"&IF(H$4<10,"0"&H$4,H$4),WA_LR!$C$3:$JR$49,45,FALSE) -> 211.0883347 | I10: =HLOOKUP($A10&"_"&IF(I$4<10,"0"&I$4,I$4),WA_LR!$C$3:$JR$49,45,FALSE) -> 152.4246206 | J10: =HLOOKUP($A10&"_"&IF(J$4<10,"0"&J$4,J$4),WA_LR!$C$3:$JR$49,45,FALSE) -> 154.2732796 | K10: =HLOOKUP($A10&"_"&IF(K$4<10,"0"&K$4,K$4),WA_LR!$C$3:$JR$49,45,FALSE) -> 407.0380251 | L10: =HLOOKUP($A10&"_"&IF(L$4<10,"0"&L$4,L$4),WA_LR!$C$3:$JR$49,45,FALSE) -> 224.9749691 | M10: =HLOOKUP($A10&"_"&IF(M$4<10,"0"&M$4,M$4),WA_LR!$C$3:$JR$49,45,FALSE) -> 108.1950173 | O10: =HLOOKUP($A10&"_"&IF(O$4<10,"0"&O$4,O$4),ID_LR!$C$3:$JR$49,45,FALSE) -> 54.34765163 | P10: =HLOOKUP($A10&"_"&IF(P$4<10,"0"&P$4,P$4),ID_LR!$C$3:$JR$49,45,FALSE) -> 120.4013963 | Q10: =HLOOKUP($A10&"_"&IF(Q$4<10,"0"&Q$4,Q$4),ID_LR!$C$3:$JR$49,45,FALSE) -> 182.3245165 | R10: =HLOOKUP($A10&"_"&IF(R$4<10,"0"&R$4,R$4),ID_LR!$C$3:$JR$49,45,FALSE) -> 261.399695 | S10: =HLOOKUP($A10&"_"&IF(S$4<10,"0"&S$4,S$4),ID_LR!$C$3:$JR$49,45,FALSE) -> 185.2101635 | T10: =HLOOKUP($A10&"_"&IF(T$4<10,"0"&T$4,T$4),ID_LR!$C$3:$JR$49,45,FALSE) -> 191.4135431 | U10: =HLOOKUP($A10&"_"&IF(U$4<10,"0"&U$4,U$4),ID_LR!$C$3:$JR$49,45,FALSE) -> 110.7825117 | V10: =HLOOKUP($A10&"_"&IF(V$4<10,"0"&V$4,V$4),ID_LR!$C$3:$JR$49,45,FALSE) -> 96.93134579 | W10: =HLOOKUP($A10&"_"&IF(W$4<10,"0"&W$4,W$4),ID_LR!$C$3:$JR$49,45,FALSE) -> 111.6288271 | X10: =HLOOKUP($A10&"_"&IF(X$4<10,"0"&X$4,X$4),ID_LR!$C$3:$JR$49,45,FALSE) -> 249.5992404 | Y10: =HLOOKUP($A10&"_"&IF(Y$4<10,"0"&Y$4,Y$4),ID_LR!$C$3:$JR$49,45,FALSE) -> 138.0230943 | Z10: =HLOOKUP($A10&"_"&IF(Z$4<10,"0"&Z$4,Z$4),ID_LR!$C$3:$JR$49,45,FALSE) -> 65.18524797 | AB10: =HLOOKUP($A10&"_"&IF(AB$4<10,"0"&AB$4,AB$4),System_LR!$C$3:$JR$49,45,FALSE) -> 149.6689986 | AC10: =HLOOKUP($A10&"_"&IF(AC$4<10,"0"&AC$4,AC$4),System_LR!$C$3:$JR$49,45,FALSE) -> 298.855937 | AD10: =HLOOKUP($A10&"_"&IF(AD$4<10,"0"&AD$4,AD$4),System_LR!$C$3:$JR$49,45,FALSE) -> 500.1106345 | AE10: =HLOOKUP($A10&"_"&IF(AE$4<10,"0"&AE$4,AE$4),System_LR!$C$3:$JR$49,45,FALSE) -> 761.0238865 | AF10: =HLOOKUP($A10&"_"&IF(AF$4<10,"0"&AF$4,AF$4),System_LR!$C$3:$JR$49,45,FALSE) -> 529.4001611 | AG10: =HLOOKUP($A10&"_"&IF(AG$4<10,"0"&AG$4,AG$4),System_LR!$C$3:$JR$49,45,FALSE) -> 541.7230222 | AH10: =HLOOKUP($A10&"_"&IF(AH$4<10,"0"&AH$4,AH$4),System_LR!$C$3:$JR$49,45,FALSE) -> 322.1308464 | AI10: =HLOOKUP($A10&"_"&IF(AI$4<10,"0"&AI$4,AI$4),System_LR!$C$3:$JR$49,45,FALSE) -> 249.6159664 | AJ10: =HLOOKUP($A10&"_"&IF(AJ$4<10,"0"&AJ$4,AJ$4),System_LR!$C$3:$JR$49,45,FALSE) -> 266.1621066 | AK10: =HLOOKUP($A10&"_"&IF(AK$4<10,"0"&AK$4,AK$4),System_LR!$C$3:$JR$49,45,FALSE) -> 657.0772656 | AL10: =HLOOKUP($A10&"_"&IF(AL$4<10,"0"&AL$4,AL$4),System_LR!$C$3:$JR$49,45,FALSE) -> 363.4380634 | AM10: =HLOOKUP($A10&"_"&IF(AM$4<10,"0"&AM$4,AM$4),System_LR!$C$3:$JR$49,45,FALSE) -> 173.8202653 | AO10: -0.44 | AP10: -0.44 | AQ10: -0.44 | AR10: -0.44 | AS10: -0.26 | AT10: -0.26 | AU10: -0.26 | AV10: -0.26 | AW10: -0.26 | AX10: -0.44 | AY10: -0.44 | AZ10: -0.44
A11: 2029 | B11: =HLOOKUP($A11&"_"&IF(B$4<10,"0"&B$4,B$4),WA_LR!$C$3:$JR$49,45,FALSE) -> 62.6830327 | C11: =HLOOKUP($A11&"_"&IF(C$4<10,"0"&C$4,C$4),WA_LR!$C$3:$JR$49,45,FALSE) -> 147.9281125 | D11: =HLOOKUP($A11&"_"&IF(D$4<10,"0"&D$4,D$4),WA_LR!$C$3:$JR$49,45,FALSE) -> 282.2534466 | E11: =HLOOKUP($A11&"_"&IF(E$4<10,"0"&E$4,E$4),WA_LR!$C$3:$JR$49,45,FALSE) -> 468.2394385 | F11: =HLOOKUP($A11&"_"&IF(F$4<10,"0"&F$4,F$4),WA_LR!$C$3:$JR$49,45,FALSE) -> 313.5015591 | G11: =HLOOKUP($A11&"_"&IF(G$4<10,"0"&G$4,G$4),WA_LR!$C$3:$JR$49,45,FALSE) -> 321.8472083 | H11: =HLOOKUP($A11&"_"&IF(H$4<10,"0"&H$4,H$4),WA_LR!$C$3:$JR$49,45,FALSE) -> 184.5780756 | I11: =HLOOKUP($A11&"_"&IF(I$4<10,"0"&I$4,I$4),WA_LR!$C$3:$JR$49,45,FALSE) -> 129.7941898 | J11: =HLOOKUP($A11&"_"&IF(J$4<10,"0"&J$4,J$4),WA_LR!$C$3:$JR$49,45,FALSE) -> 127.8885929 | K11: =HLOOKUP($A11&"_"&IF(K$4<10,"0"&K$4,K$4),WA_LR!$C$3:$JR$49,45,FALSE) -> 387.3264386 | L11: =HLOOKUP($A11&"_"&IF(L$4<10,"0"&L$4,L$4),WA_LR!$C$3:$JR$49,45,FALSE) -> 201.431584 | M11: =HLOOKUP($A11&"_"&IF(M$4<10,"0"&M$4,M$4),WA_LR!$C$3:$JR$49,45,FALSE) -> 84.86995114 | O11: =HLOOKUP($A11&"_"&IF(O$4<10,"0"&O$4,O$4),ID_LR!$C$3:$JR$49,45,FALSE) -> 43.01894158 | P11: =HLOOKUP($A11&"_"&IF(P$4<10,"0"&P$4,P$4),ID_LR!$C$3:$JR$49,45,FALSE) -> 109.3289497 | Q11: =HLOOKUP($A11&"_"&IF(Q$4<10,"0"&Q$4,Q$4),ID_LR!$C$3:$JR$49,45,FALSE) -> 171.0529739 | R11: =HLOOKUP($A11&"_"&IF(R$4<10,"0"&R$4,R$4),ID_LR!$C$3:$JR$49,45,FALSE) -> 249.9811216 | S11: =HLOOKUP($A11&"_"&IF(S$4<10,"0"&S$4,S$4),ID_LR!$C$3:$JR$49,45,FALSE) -> 171.558107 | T11: =HLOOKUP($A11&"_"&IF(T$4<10,"0"&T$4,T$4),ID_LR!$C$3:$JR$49,45,FALSE) -> 176.3133667 | U11: =HLOOKUP($A11&"_"&IF(U$4<10,"0"&U$4,U$4),ID_LR!$C$3:$JR$49,45,FALSE) -> 95.45196539 | V11: =HLOOKUP($A11&"_"&IF(V$4<10,"0"&V$4,V$4),ID_LR!$C$3:$JR$49,45,FALSE) -> 83.24729075 | W11: =HLOOKUP($A11&"_"&IF(W$4<10,"0"&W$4,W$4),ID_LR!$C$3:$JR$49,45,FALSE) -> 98.51476975 | X11: =HLOOKUP($A11&"_"&IF(X$4<10,"0"&X$4,X$4),ID_LR!$C$3:$JR$49,45,FALSE) -> 246.088682 | Y11: =HLOOKUP($A11&"_"&IF(Y$4<10,"0"&Y$4,Y$4),ID_LR!$C$3:$JR$49,45,FALSE) -> 134.3069339 | Z11: =HLOOKUP($A11&"_"&IF(Z$4<10,"0"&Z$4,Z$4),ID_LR!$C$3:$JR$49,45,FALSE) -> 60.48480957 | AB11: =HLOOKUP($A11&"_"&IF(AB$4<10,"0"&AB$4,AB$4),System_LR!$C$3:$JR$49,45,FALSE) -> 106.1419743 | AC11: =HLOOKUP($A11&"_"&IF(AC$4<10,"0"&AC$4,AC$4),System_LR!$C$3:$JR$49,45,FALSE) -> 257.6970622 | AD11: =HLOOKUP($A11&"_"&IF(AD$4<10,"0"&AD$4,AD$4),System_LR!$C$3:$JR$49,45,FALSE) -> 453.7464205 | AE11: =HLOOKUP($A11&"_"&IF(AE$4<10,"0"&AE$4,AE$4),System_LR!$C$3:$JR$49,45,FALSE) -> 718.66056 | AF11: =HLOOKUP($A11&"_"&IF(AF$4<10,"0"&AF$4,AF$4),System_LR!$C$3:$JR$49,45,FALSE) -> 485.3196661 | AG11: =HLOOKUP($A11&"_"&IF(AG$4<10,"0"&AG$4,AG$4),System_LR!$C$3:$JR$49,45,FALSE) -> 498.420575 | AH11: =HLOOKUP($A11&"_"&IF(AH$4<10,"0"&AH$4,AH$4),System_LR!$C$3:$JR$49,45,FALSE) -> 280.290041 | AI11: =HLOOKUP($A11&"_"&IF(AI$4<10,"0"&AI$4,AI$4),System_LR!$C$3:$JR$49,45,FALSE) -> 213.3014806 | AJ11: =HLOOKUP($A11&"_"&IF(AJ$4<10,"0"&AJ$4,AJ$4),System_LR!$C$3:$JR$49,45,FALSE) -> 226.6633627 | AK11: =HLOOKUP($A11&"_"&IF(AK$4<10,"0"&AK$4,AK$4),System_LR!$C$3:$JR$49,45,FALSE) -> 633.8551207 | AL11: =HLOOKUP($A11&"_"&IF(AL$4<10,"0"&AL$4,AL$4),System_LR!$C$3:$JR$49,45,FALSE) -> 336.1785179 | AM11: =HLOOKUP($A11&"_"&IF(AM$4<10,"0"&AM$4,AM$4),System_LR!$C$3:$JR$49,45,FALSE) -> 145.7947607 | AO11: -0.44 | AP11: -0.44 | AQ11: -0.44 | AR11: -0.44 | AS11: -0.26 | AT11: -0.26 | AU11: -0.26 | AV11: -0.26 | AW11: -0.26 | AX11: -0.44 | AY11: -0.44 | AZ11: -0.44
A12: 2030 | B12: =HLOOKUP($A12&"_"&IF(B$4<10,"0"&B$4,B$4),WA_LR!$C$3:$JR$49,45,FALSE) -> 39.73135156 | C12: =HLOOKUP($A12&"_"&IF(C$4<10,"0"&C$4,C$4),WA_LR!$C$3:$JR$49,45,FALSE) -> 122.6634904 | D12: =HLOOKUP($A12&"_"&IF(D$4<10,"0"&D$4,D$4),WA_LR!$C$3:$JR$49,45,FALSE) -> 257.9298885 | E12: =HLOOKUP($A12&"_"&IF(E$4<10,"0"&E$4,E$4),WA_LR!$C$3:$JR$49,45,FALSE) -> 447.7262461 | F12: =HLOOKUP($A12&"_"&IF(F$4<10,"0"&F$4,F$4),WA_LR!$C$3:$JR$49,45,FALSE) -> 294.5506991 | G12: =HLOOKUP($A12&"_"&IF(G$4<10,"0"&G$4,G$4),WA_LR!$C$3:$JR$49,45,FALSE) -> 307.7911652 | H12: =HLOOKUP($A12&"_"&IF(H$4<10,"0"&H$4,H$4),WA_LR!$C$3:$JR$49,45,FALSE) -> 172.4327676 | I12: =HLOOKUP($A12&"_"&IF(I$4<10,"0"&I$4,I$4),WA_LR!$C$3:$JR$49,45,FALSE) -> 115.5844419 | J12: =HLOOKUP($A12&"_"&IF(J$4<10,"0"&J$4,J$4),WA_LR!$C$3:$JR$49,45,FALSE) -> 102.6601479 | K12: =HLOOKUP($A12&"_"&IF(K$4<10,"0"&K$4,K$4),WA_LR!$C$3:$JR$49,45,FALSE) -> 364.2456955 | L12: =HLOOKUP($A12&"_"&IF(L$4<10,"0"&L$4,L$4),WA_LR!$C$3:$JR$49,45,FALSE) -> 173.9200189 | M12: =HLOOKUP($A12&"_"&IF(M$4<10,"0"&M$4,M$4),WA_LR!$C$3:$JR$49,45,FALSE) -> 55.39657164 | O12: =HLOOKUP($A12&"_"&IF(O$4<10,"0"&O$4,O$4),ID_LR!$C$3:$JR$49,45,FALSE) -> 38.70285809 | P12: =HLOOKUP($A12&"_"&IF(P$4<10,"0"&P$4,P$4),ID_LR!$C$3:$JR$49,45,FALSE) -> 104.7656859 | Q12: =HLOOKUP($A12&"_"&IF(Q$4<10,"0"&Q$4,Q$4),ID_LR!$C$3:$JR$49,45,FALSE) -> 166.980349 | R12: =HLOOKUP($A12&"_"&IF(R$4<10,"0"&R$4,R$4),ID_LR!$C$3:$JR$49,45,FALSE) -> 246.1348901 | S12: =HLOOKUP($A12&"_"&IF(S$4<10,"0"&S$4,S$4),ID_LR!$C$3:$JR$49,45,FALSE) -> 165.4487439 | T12: =HLOOKUP($A12&"_"&IF(T$4<10,"0"&T$4,T$4),ID_LR!$C$3:$JR$49,45,FALSE) -> 169.5908703 | U12: =HLOOKUP($A12&"_"&IF(U$4<10,"0"&U$4,U$4),ID_LR!$C$3:$JR$49,45,FALSE) -> 88.42105433 | V12: =HLOOKUP($A12&"_"&IF(V$4<10,"0"&V$4,V$4),ID_LR!$C$3:$JR$49,45,FALSE) -> 74.90377151 | W12: =HLOOKUP($A12&"_"&IF(W$4<10,"0"&W$4,W$4),ID_LR!$C$3:$JR$49,45,FALSE) -> 87.6305226 | X12: =HLOOKUP($A12&"_"&IF(X$4<10,"0"&X$4,X$4),ID_LR!$C$3:$JR$49,45,FALSE) -> 242.4588175 | Y12: =HLOOKUP($A12&"_"&IF(Y$4<10,"0"&Y$4,Y$4),ID_LR!$C$3:$JR$49,45,FALSE) -> 130.7608722 | Z12: =HLOOKUP($A12&"_"&IF(Z$4<10,"0"&Z$4,Z$4),ID_LR!$C$3:$JR$49,45,FALSE) -> 55.67344961 | AB12: =HLOOKUP($A12&"_"&IF(AB$4<10,"0"&AB$4,AB$4),System_LR!$C$3:$JR$49,45,FALSE) -> 78.87420965 | AC12: =HLOOKUP($A12&"_"&IF(AC$4<10,"0"&AC$4,AC$4),System_LR!$C$3:$JR$49,45,FALSE) -> 227.8691762 | AD12: =HLOOKUP($A12&"_"&IF(AD$4<10,"0"&AD$4,AD$4),System_LR!$C$3:$JR$49,45,FALSE) -> 425.3502375 | AE12: =HLOOKUP($A12&"_"&IF(AE$4<10,"0"&AE$4,AE$4),System_LR!$C$3:$JR$49,45,FALSE) -> 694.3011361 | AF12: =HLOOKUP($A12&"_"&IF(AF$4<10,"0"&AF$4,AF$4),System_LR!$C$3:$JR$49,45,FALSE) -> 460.259443 | AG12: =HLOOKUP($A12&"_"&IF(AG$4<10,"0"&AG$4,AG$4),System_LR!$C$3:$JR$49,45,FALSE) -> 477.6420355 | AH12: =HLOOKUP($A12&"_"&IF(AH$4<10,"0"&AH$4,AH$4),System_LR!$C$3:$JR$49,45,FALSE) -> 261.1138219 | AI12: =HLOOKUP($A12&"_"&IF(AI$4<10,"0"&AI$4,AI$4),System_LR!$C$3:$JR$49,45,FALSE) -> 190.7482134 | AJ12: =HLOOKUP($A12&"_"&IF(AJ$4<10,"0"&AJ$4,AJ$4),System_LR!$C$3:$JR$49,45,FALSE) -> 190.5506705 | AK12: =HLOOKUP($A12&"_"&IF(AK$4<10,"0"&AK$4,AK$4),System_LR!$C$3:$JR$49,45,FALSE) -> 607.144513 | AL12: =HLOOKUP($A12&"_"&IF(AL$4<10,"0"&AL$4,AL$4),System_LR!$C$3:$JR$49,45,FALSE) -> 305.1208912 | AM12: =HLOOKUP($A12&"_"&IF(AM$4<10,"0"&AM$4,AM$4),System_LR!$C$3:$JR$49,45,FALSE) -> 111.5100213 | AO12: -0.44 | AP12: -0.44 | AQ12: -0.44 | AR12: -0.44 | AS12: -0.26 | AT12: -0.26 | AU12: -0.26 | AV12: -0.26 | AW12: -0.26 | AX12: -0.44 | AY12: -0.44 | AZ12: -0.44
A13: 2031 | B13: =HLOOKUP($A13&"_"&IF(B$4<10,"0"&B$4,B$4),WA_LR!$C$3:$JR$49,45,FALSE) -> 5.871218862 | C13: =HLOOKUP($A13&"_"&IF(C$4<10,"0"&C$4,C$4),WA_LR!$C$3:$JR$49,45,FALSE) -> 87.73784978 | D13: =HLOOKUP($A13&"_"&IF(D$4<10,"0"&D$4,D$4),WA_LR!$C$3:$JR$49,45,FALSE) -> 227.1754772 | E13: =HLOOKUP($A13&"_"&IF(E$4<10,"0"&E$4,E$4),WA_LR!$C$3:$JR$49,45,FALSE) -> 422.2389116 | F13: =HLOOKUP($A13&"_"&IF(F$4<10,"0"&F$4,F$4),WA_LR!$C$3:$JR$49,45,FALSE) -> 271.2496567 | G13: =HLOOKUP($A13&"_"&IF(G$4<10,"0"&G$4,G$4),WA_LR!$C$3:$JR$49,45,FALSE) -> 290.711171 | H13: =HLOOKUP($A13&"_"&IF(H$4<10,"0"&H$4,H$4),WA_LR!$C$3:$JR$49,45,FALSE) -> 156.6556676 | I13: =HLOOKUP($A13&"_"&IF(I$4<10,"0"&I$4,I$4),WA_LR!$C$3:$JR$49,45,FALSE) -> 98.01158251 | J13: =HLOOKUP($A13&"_"&IF(J$4<10,"0"&J$4,J$4),WA_LR!$C$3:$JR$49,45,FALSE) -> 86.54109336 | K13: =HLOOKUP($A13&"_"&IF(K$4<10,"0"&K$4,K$4),WA_LR!$C$3:$JR$49,45,FALSE) -> 332.5540138 | L13: =HLOOKUP($A13&"_"&IF(L$4<10,"0"&L$4,L$4),WA_LR!$C$3:$JR$49,45,FALSE) -> 140.485149 | M13: =HLOOKUP($A13&"_"&IF(M$4<10,"0"&M$4,M$4),WA_LR!$C$3:$JR$49,45,FALSE) -> 20.92668409 | O13: =HLOOKUP($A13&"_"&IF(O$4<10,"0"&O$4,O$4),ID_LR!$C$3:$JR$49,45,FALSE) -> 31.75331911 | P13: =HLOOKUP($A13&"_"&IF(P$4<10,"0"&P$4,P$4),ID_LR!$C$3:$JR$49,45,FALSE) -> 98.39155232 | Q13: =HLOOKUP($A13&"_"&IF(Q$4<10,"0"&Q$4,Q$4),ID_LR!$C$3:$JR$49,45,FALSE) -> 162.9259838 | R13: =HLOOKUP($A13&"_"&IF(R$4<10,"0"&R$4,R$4),ID_LR!$C$3:$JR$49,45,FALSE) -> 242.4481816 | S13: =HLOOKUP($A13&"_"&IF(S$4<10,"0"&S$4,S$4),ID_LR!$C$3:$JR$49,45,FALSE) -> 158.8047938 | T13: =HLOOKUP($A13&"_"&IF(T$4<10,"0"&T$4,T$4),ID_LR!$C$3:$JR$49,45,FALSE) -> 162.5234209 | U13: =HLOOKUP($A13&"_"&IF(U$4<10,"0"&U$4,U$4),ID_LR!$C$3:$JR$49,45,FALSE) -> 80.63336619 | V13: =HLOOKUP($A13&"_"&IF(V$4<10,"0"&V$4,V$4),ID_LR!$C$3:$JR$49,45,FALSE) -> 65.9069922 | W13: =HLOOKUP($A13&"_"&IF(W$4<10,"0"&W$4,W$4),ID_LR!$C$3:$JR$49,45,FALSE) -> 82.58000988 | X13: =HLOOKUP($A13&"_"&IF(X$4<10,"0"&X$4,X$4),ID_LR!$C$3:$JR$49,45,FALSE) -> 237.605315 | Y13: =HLOOKUP($A13&"_"&IF(Y$4<10,"0"&Y$4,Y$4),ID_LR!$C$3:$JR$49,45,FALSE) -> 127.1231782 | Z13: =HLOOKUP($A13&"_"&IF(Z$4<10,"0"&Z$4,Z$4),ID_LR!$C$3:$JR$49,45,FALSE) -> 50.86725429 | AB13: =HLOOKUP($A13&"_"&IF(AB$4<10,"0"&AB$4,AB$4),System_LR!$C$3:$JR$49,45,FALSE) -> 38.06453797 | AC13: =HLOOKUP($A13&"_"&IF(AC$4<10,"0"&AC$4,AC$4),System_LR!$C$3:$JR$49,45,FALSE) -> 186.5694021 | AD13: =HLOOKUP($A13&"_"&IF(AD$4<10,"0"&AD$4,AD$4),System_LR!$C$3:$JR$49,45,FALSE) -> 390.541461 | AE13: =HLOOKUP($A13&"_"&IF(AE$4<10,"0"&AE$4,AE$4),System_LR!$C$3:$JR$49,45,FALSE) -> 665.1270932 | AF13: =HLOOKUP($A13&"_"&IF(AF$4<10,"0"&AF$4,AF$4),System_LR!$C$3:$JR$49,45,FALSE) -> 430.3144505 | AG13: =HLOOKUP($A13&"_"&IF(AG$4<10,"0"&AG$4,AG$4),System_LR!$C$3:$JR$49,45,FALSE) -> 453.4945919 | AH13: =HLOOKUP($A13&"_"&IF(AH$4<10,"0"&AH$4,AH$4),System_LR!$C$3:$JR$49,45,FALSE) -> 237.5490338 | AI13: =HLOOKUP($A13&"_"&IF(AI$4<10,"0"&AI$4,AI$4),System_LR!$C$3:$JR$49,45,FALSE) -> 164.1785747 | AJ13: =HLOOKUP($A13&"_"&IF(AJ$4<10,"0"&AJ$4,AJ$4),System_LR!$C$3:$JR$49,45,FALSE) -> 169.3811032 | AK13: =HLOOKUP($A13&"_"&IF(AK$4<10,"0"&AK$4,AK$4),System_LR!$C$3:$JR$49,45,FALSE) -> 570.5993288 | AL13: =HLOOKUP($A13&"_"&IF(AL$4<10,"0"&AL$4,AL$4),System_LR!$C$3:$JR$49,45,FALSE) -> 268.0483272 | AM13: =HLOOKUP($A13&"_"&IF(AM$4<10,"0"&AM$4,AM$4),System_LR!$C$3:$JR$49,45,FALSE) -> 72.23393837 | AO13: -0.44 | AP13: -0.44 | AQ13: -0.44 | AR13: -0.44 | AS13: -0.26 | AT13: -0.26 | AU13: -0.26 | AV13: -0.26 | AW13: -0.26 | AX13: -0.44 | AY13: -0.44 | AZ13: -0.44
A14: 2032 | B14: =HLOOKUP($A14&"_"&IF(B$4<10,"0"&B$4,B$4),WA_LR!$C$3:$JR$49,45,FALSE) -> -31.55171654 | C14: =HLOOKUP($A14&"_"&IF(C$4<10,"0"&C$4,C$4),WA_LR!$C$3:$JR$49,45,FALSE) -> 40.14883717 | D14: =HLOOKUP($A14&"_"&IF(D$4<10,"0"&D$4,D$4),WA_LR!$C$3:$JR$49,45,FALSE) -> 191.1507477 | E14: =HLOOKUP($A14&"_"&IF(E$4<10,"0"&E$4,E$4),WA_LR!$C$3:$JR$49,45,FALSE) -> 390.3739208 | F14: =HLOOKUP($A14&"_"&IF(F$4<10,"0"&F$4,F$4),WA_LR!$C$3:$JR$49,45,FALSE) -> 246.082154 | G14: =HLOOKUP($A14&"_"&IF(G$4<10,"0"&G$4,G$4),WA_LR!$C$3:$JR$49,45,FALSE) -> 261.2411391 | H14: =HLOOKUP($A14&"_"&IF(H$4<10,"0"&H$4,H$4),WA_LR!$C$3:$JR$49,45,FALSE) -> 139.879526 | I14: =HLOOKUP($A14&"_"&IF(I$4<10,"0"&I$4,I$4),WA_LR!$C$3:$JR$49,45,FALSE) -> 78.53108772 | J14: =HLOOKUP($A14&"_"&IF(J$4<10,"0"&J$4,J$4),WA_LR!$C$3:$JR$49,45,FALSE) -> 58.50941277 | K14: =HLOOKUP($A14&"_"&IF(K$4<10,"0"&K$4,K$4),WA_LR!$C$3:$JR$49,45,FALSE) -> 295.0601721 | L14: =HLOOKUP($A14&"_"&IF(L$4<10,"0"&L$4,L$4),WA_LR!$C$3:$JR$49,45,FALSE) -> 99.02463453 | M14: =HLOOKUP($A14&"_"&IF(M$4<10,"0"&M$4,M$4),WA_LR!$C$3:$JR$49,45,FALSE) -> -20.56711656 | O14: =HLOOKUP($A14&"_"&IF(O$4<10,"0"&O$4,O$4),ID_LR!$C$3:$JR$49,45,FALSE) -> 25.34744056 | P14: =HLOOKUP($A14&"_"&IF(P$4<10,"0"&P$4,P$4),ID_LR!$C$3:$JR$49,45,FALSE) -> 94.50151738 | Q14: =HLOOKUP($A14&"_"&IF(Q$4<10,"0"&Q$4,Q$4),ID_LR!$C$3:$JR$49,45,FALSE) -> 157.4126144 | R14: =HLOOKUP($A14&"_"&IF(R$4<10,"0"&R$4,R$4),ID_LR!$C$3:$JR$49,45,FALSE) -> 237.1418775 | S14: =HLOOKUP($A14&"_"&IF(S$4<10,"0"&S$4,S$4),ID_LR!$C$3:$JR$49,45,FALSE) -> 152.5947538 | T14: =HLOOKUP($A14&"_"&IF(T$4<10,"0"&T$4,T$4),ID_LR!$C$3:$JR$49,45,FALSE) -> 149.6981466 | U14: =HLOOKUP($A14&"_"&IF(U$4<10,"0"&U$4,U$4),ID_LR!$C$3:$JR$49,45,FALSE) -> 72.89798994 | V14: =HLOOKUP($A14&"_"&IF(V$4<10,"0"&V$4,V$4),ID_LR!$C$3:$JR$49,45,FALSE) -> 56.52977956 | W14: =HLOOKUP($A14&"_"&IF(W$4<10,"0"&W$4,W$4),ID_LR!$C$3:$JR$49,45,FALSE) -> 73.24188811 | X14: =HLOOKUP($A14&"_"&IF(X$4<10,"0"&X$4,X$4),ID_LR!$C$3:$JR$49,45,FALSE) -> 232.2230065 | Y14: =HLOOKUP($A14&"_"&IF(Y$4<10,"0"&Y$4,Y$4),ID_LR!$C$3:$JR$49,45,FALSE) -> 122.2233686 | Z14: =HLOOKUP($A14&"_"&IF(Z$4<10,"0"&Z$4,Z$4),ID_LR!$C$3:$JR$49,45,FALSE) -> 45.16632817 | AB14: =HLOOKUP($A14&"_"&IF(AB$4<10,"0"&AB$4,AB$4),System_LR!$C$3:$JR$49,45,FALSE) -> -5.764275982 | AC14: =HLOOKUP($A14&"_"&IF(AC$4<10,"0"&AC$4,AC$4),System_LR!$C$3:$JR$49,45,FALSE) -> 135.0903545 | AD14: =HLOOKUP($A14&"_"&IF(AD$4<10,"0"&AD$4,AD$4),System_LR!$C$3:$JR$49,45,FALSE) -> 349.0033621 | AE14: =HLOOKUP($A14&"_"&IF(AE$4<10,"0"&AE$4,AE$4),System_LR!$C$3:$JR$49,45,FALSE) -> 627.9557983 | AF14: =HLOOKUP($A14&"_"&IF(AF$4<10,"0"&AF$4,AF$4),System_LR!$C$3:$JR$49,45,FALSE) -> 398.9369078 | AG14: =HLOOKUP($A14&"_"&IF(AG$4<10,"0"&AG$4,AG$4),System_LR!$C$3:$JR$49,45,FALSE) -> 411.1992857 | AH14: =HLOOKUP($A14&"_"&IF(AH$4<10,"0"&AH$4,AH$4),System_LR!$C$3:$JR$49,45,FALSE) -> 213.0375159 | AI14: =HLOOKUP($A14&"_"&IF(AI$4<10,"0"&AI$4,AI$4),System_LR!$C$3:$JR$49,45,FALSE) -> 135.3208673 | AJ14: =HLOOKUP($A14&"_"&IF(AJ$4<10,"0"&AJ$4,AJ$4),System_LR!$C$3:$JR$49,45,FALSE) -> 132.0113009 | AK14: =HLOOKUP($A14&"_"&IF(AK$4<10,"0"&AK$4,AK$4),System_LR!$C$3:$JR$49,45,FALSE) -> 527.7231786 | AL14: =HLOOKUP($A14&"_"&IF(AL$4<10,"0"&AL$4,AL$4),System_LR!$C$3:$JR$49,45,FALSE) -> 221.6880031 | AM14: =HLOOKUP($A14&"_"&IF(AM$4<10,"0"&AM$4,AM$4),System_LR!$C$3:$JR$49,45,FALSE) -> 25.03921161 | AO14: -0.44 | AP14: -0.44 | AQ14: -0.44 | AR14: -0.44 | AS14: -0.26 | AT14: -0.26 | AU14: -0.26 | AV14: -0.26 | AW14: -0.26 | AX14: -0.44 | AY14: -0.44 | AZ14: -0.44
A15: 2033 | B15: =HLOOKUP($A15&"_"&IF(B$4<10,"0"&B$4,B$4),WA_LR!$C$3:$JR$49,45,FALSE) -> -72.44063947 | C15: =HLOOKUP($A15&"_"&IF(C$4<10,"0"&C$4,C$4),WA_LR!$C$3:$JR$49,45,FALSE) -> 0.959570287 | D15: =HLOOKUP($A15&"_"&IF(D$4<10,"0"&D$4,D$4),WA_LR!$C$3:$JR$49,45,FALSE) -> 143.621374 | E15: =HLOOKUP($A15&"_"&IF(E$4<10,"0"&E$4,E$4),WA_LR!$C$3:$JR$49,45,FALSE) -> 351.3314319 | F15: =HLOOKUP($A15&"_"&IF(F$4<10,"0"&F$4,F$4),WA_LR!$C$3:$JR$49,45,FALSE) -> 214.3629783 | G15: =HLOOKUP($A15&"_"&IF(G$4<10,"0"&G$4,G$4),WA_LR!$C$3:$JR$49,45,FALSE) -> 241.3194081 | H15: =HLOOKUP($A15&"_"&IF(H$4<10,"0"&H$4,H$4),WA_LR!$C$3:$JR$49,45,FALSE) -> 118.9975362 | I15: =HLOOKUP($A15&"_"&IF(I$4<10,"0"&I$4,I$4),WA_LR!$C$3:$JR$49,45,FALSE) -> 54.91633006 | J15: =HLOOKUP($A15&"_"&IF(J$4<10,"0"&J$4,J$4),WA_LR!$C$3:$JR$49,45,FALSE) -> 32.32228617 | K15: =HLOOKUP($A15&"_"&IF(K$4<10,"0"&K$4,K$4),WA_LR!$C$3:$JR$49,45,FALSE) -> 252.9175431 | L15: =HLOOKUP($A15&"_"&IF(L$4<10,"0"&L$4,L$4),WA_LR!$C$3:$JR$49,45,FALSE) -> 49.74750808 | M15: =HLOOKUP($A15&"_"&IF(M$4<10,"0"&M$4,M$4),WA_LR!$C$3:$JR$49,45,FALSE) -> -69.56093634 | O15: =HLOOKUP($A15&"_"&IF(O$4<10,"0"&O$4,O$4),ID_LR!$C$3:$JR$49,45,FALSE) -> 20.17091758 | P15: =HLOOKUP($A15&"_"&IF(P$4<10,"0"&P$4,P$4),ID_LR!$C$3:$JR$49,45,FALSE) -> 86.83039996 | Q15: =HLOOKUP($A15&"_"&IF(Q$4<10,"0"&Q$4,Q$4),ID_LR!$C$3:$JR$49,45,FALSE) -> 151.4828487 | R15: =HLOOKUP($A15&"_"&IF(R$4<10,"0"&R$4,R$4),ID_LR!$C$3:$JR$49,45,FALSE) -> 231.2173912 | S15: =HLOOKUP($A15&"_"&IF(S$4<10,"0"&S$4,S$4),ID_LR!$C$3:$JR$49,45,FALSE) -> 144.7995446 | T15: =HLOOKUP($A15&"_"&IF(T$4<10,"0"&T$4,T$4),ID_LR!$C$3:$JR$49,45,FALSE) -> 142.6080712 | U15: =HLOOKUP($A15&"_"&IF(U$4<10,"0"&U$4,U$4),ID_LR!$C$3:$JR$49,45,FALSE) -> 63.57448058 | V15: =HLOOKUP($A15&"_"&IF(V$4<10,"0"&V$4,V$4),ID_LR!$C$3:$JR$49,45,FALSE) -> 45.60130952 | W15: =HLOOKUP($A15&"_"&IF(W$4<10,"0"&W$4,W$4),ID_LR!$C$3:$JR$49,45,FALSE) -> 66.24851891 | X15: =HLOOKUP($A15&"_"&IF(X$4<10,"0"&X$4,X$4),ID_LR!$C$3:$JR$49,45,FALSE) -> 227.1846542 | Y15: =HLOOKUP($A15&"_"&IF(Y$4<10,"0"&Y$4,Y$4),ID_LR!$C$3:$JR$49,45,FALSE) -> 116.482798 | Z15: =HLOOKUP($A15&"_"&IF(Z$4<10,"0"&Z$4,Z$4),ID_LR!$C$3:$JR$49,45,FALSE) -> 38.50905336 | AB15: =HLOOKUP($A15&"_"&IF(AB$4<10,"0"&AB$4,AB$4),System_LR!$C$3:$JR$49,45,FALSE) -> -51.82972189 | AC15: =HLOOKUP($A15&"_"&IF(AC$4<10,"0"&AC$4,AC$4),System_LR!$C$3:$JR$49,45,FALSE) -> 88.22997025 | AD15: =HLOOKUP($A15&"_"&IF(AD$4<10,"0"&AD$4,AD$4),System_LR!$C$3:$JR$49,45,FALSE) -> 295.5442227 | AE15: =HLOOKUP($A15&"_"&IF(AE$4<10,"0"&AE$4,AE$4),System_LR!$C$3:$JR$49,45,FALSE) -> 582.9888231 | AF15: =HLOOKUP($A15&"_"&IF(AF$4<10,"0"&AF$4,AF$4),System_LR!$C$3:$JR$49,45,FALSE) -> 359.4225229 | AG15: =HLOOKUP($A15&"_"&IF(AG$4<10,"0"&AG$4,AG$4),System_LR!$C$3:$JR$49,45,FALSE) -> 384.1874793 | AH15: =HLOOKUP($A15&"_"&IF(AH$4<10,"0"&AH$4,AH$4),System_LR!$C$3:$JR$49,45,FALSE) -> 182.8320168 | AI15: =HLOOKUP($A15&"_"&IF(AI$4<10,"0"&AI$4,AI$4),System_LR!$C$3:$JR$49,45,FALSE) -> 100.7776396 | AJ15: =HLOOKUP($A15&"_"&IF(AJ$4<10,"0"&AJ$4,AJ$4),System_LR!$C$3:$JR$49,45,FALSE) -> 98.83080508 | AK15: =HLOOKUP($A15&"_"&IF(AK$4<10,"0"&AK$4,AK$4),System_LR!$C$3:$JR$49,45,FALSE) -> 480.5421974 | AL15: =HLOOKUP($A15&"_"&IF(AL$4<10,"0"&AL$4,AL$4),System_LR!$C$3:$JR$49,45,FALSE) -> 166.6703061 | AM15: =HLOOKUP($A15&"_"&IF(AM$4<10,"0"&AM$4,AM$4),System_LR!$C$3:$JR$49,45,FALSE) -> -30.61188299 | AO15: -0.44 | AP15: -0.44 | AQ15: -0.44 | AR15: -0.44 | AS15: -0.26 | AT15: -0.26 | AU15: -0.26 | AV15: -0.26 | AW15: -0.26 | AX15: -0.44 | AY15: -0.44 | AZ15: -0.44
A16: 2034 | B16: =HLOOKUP($A16&"_"&IF(B$4<10,"0"&B$4,B$4),WA_LR!$C$3:$JR$49,45,FALSE) -> -165.2519661 | C16: =HLOOKUP($A16&"_"&IF(C$4<10,"0"&C$4,C$4),WA_LR!$C$3:$JR$49,45,FALSE) -> -99.244397 | D16: =HLOOKUP($A16&"_"&IF(D$4<10,"0"&D$4,D$4),WA_LR!$C$3:$JR$49,45,FALSE) -> 44.54999933 | E16: =HLOOKUP($A16&"_"&IF(E$4<10,"0"&E$4,E$4),WA_LR!$C$3:$JR$49,45,FALSE) -> 264.9514045 | F16: =HLOOKUP($A16&"_"&IF(F$4<10,"0"&F$4,F$4),WA_LR!$C$3:$JR$49,45,FALSE) -> 136.9955069 | G16: =HLOOKUP($A16&"_"&IF(G$4<10,"0"&G$4,G$4),WA_LR!$C$3:$JR$49,45,FALSE) -> 169.8214201 | H16: =HLOOKUP($A16&"_"&IF(H$4<10,"0"&H$4,H$4),WA_LR!$C$3:$JR$49,45,FALSE) -> 60.64665931 | I16: =HLOOKUP($A16&"_"&IF(I$4<10,"0"&I$4,I$4),WA_LR!$C$3:$JR$49,45,FALSE) -> -5.990447419 | J16: =HLOOKUP($A16&"_"&IF(J$4<10,"0"&J$4,J$4),WA_LR!$C$3:$JR$49,45,FALSE) -> -41.69721607 | K16: =HLOOKUP($A16&"_"&IF(K$4<10,"0"&K$4,K$4),WA_LR!$C$3:$JR$49,45,FALSE) -> 159.3701082 | L16: =HLOOKUP($A16&"_"&IF(L$4<10,"0"&L$4,L$4),WA_LR!$C$3:$JR$49,45,FALSE) -> -44.04138132 | M16: =HLOOKUP($A16&"_"&IF(M$4<10,"0"&M$4,M$4),WA_LR!$C$3:$JR$49,45,FALSE) -> -164.6373971 | O16: =HLOOKUP($A16&"_"&IF(O$4<10,"0"&O$4,O$4),ID_LR!$C$3:$JR$49,45,FALSE) -> -11.51424289 | P16: =HLOOKUP($A16&"_"&IF(P$4<10,"0"&P$4,P$4),ID_LR!$C$3:$JR$49,45,FALSE) -> 54.03579002 | Q16: =HLOOKUP($A16&"_"&IF(Q$4<10,"0"&Q$4,Q$4),ID_LR!$C$3:$JR$49,45,FALSE) -> 119.6987696 | R16: =HLOOKUP($A16&"_"&IF(R$4<10,"0"&R$4,R$4),ID_LR!$C$3:$JR$49,45,FALSE) -> 201.873987 | S16: =HLOOKUP($A16&"_"&IF(S$4<10,"0"&S$4,S$4),ID_LR!$C$3:$JR$49,45,FALSE) -> 114.1734818 | T16: =HLOOKUP($A16&"_"&IF(T$4<10,"0"&T$4,T$4),ID_LR!$C$3:$JR$49,45,FALSE) -> 108.2827607 | U16: =HLOOKUP($A16&"_"&IF(U$4<10,"0"&U$4,U$4),ID_LR!$C$3:$JR$49,45,FALSE) -> 34.26675607 | V16: =HLOOKUP($A16&"_"&IF(V$4<10,"0"&V$4,V$4),ID_LR!$C$3:$JR$49,45,FALSE) -> 14.75091754 | W16: =HLOOKUP($A16&"_"&IF(W$4<10,"0"&W$4,W$4),ID_LR!$C$3:$JR$49,45,FALSE) -> 34.26110949 | X16: =HLOOKUP($A16&"_"&IF(X$4<10,"0"&X$4,X$4),ID_LR!$C$3:$JR$49,45,FALSE) -> 196.5212076 | Y16: =HLOOKUP($A16&"_"&IF(Y$4<10,"0"&Y$4,Y$4),ID_LR!$C$3:$JR$49,45,FALSE) -> 90.61891094 | Z16: =HLOOKUP($A16&"_"&IF(Z$4<10,"0"&Z$4,Z$4),ID_LR!$C$3:$JR$49,45,FALSE) -> 8.523299483 | AB16: =HLOOKUP($A16&"_"&IF(AB$4<10,"0"&AB$4,AB$4),System_LR!$C$3:$JR$49,45,FALSE) -> -176.326209 | AC16: =HLOOKUP($A16&"_"&IF(AC$4<10,"0"&AC$4,AC$4),System_LR!$C$3:$JR$49,45,FALSE) -> -44.76860698 | AD16: =HLOOKUP($A16&"_"&IF(AD$4<10,"0"&AD$4,AD$4),System_LR!$C$3:$JR$49,45,FALSE) -> 164.6887689 | AE16: =HLOOKUP($A16&"_"&IF(AE$4<10,"0"&AE$4,AE$4),System_LR!$C$3:$JR$49,45,FALSE) -> 467.2653915 | AF16: =HLOOKUP($A16&"_"&IF(AF$4<10,"0"&AF$4,AF$4),System_LR!$C$3:$JR$49,45,FALSE) -> 251.4289888 | AG16: =HLOOKUP($A16&"_"&IF(AG$4<10,"0"&AG$4,AG$4),System_LR!$C$3:$JR$49,45,FALSE) -> 278.3641808 | AH16: =HLOOKUP($A16&"_"&IF(AH$4<10,"0"&AH$4,AH$4),System_LR!$C$3:$JR$49,45,FALSE) -> 95.17341539 | AI16: =HLOOKUP($A16&"_"&IF(AI$4<10,"0"&AI$4,AI$4),System_LR!$C$3:$JR$49,45,FALSE) -> 9.020470122 | AJ16: =HLOOKUP($A16&"_"&IF(AJ$4<10,"0"&AJ$4,AJ$4),System_LR!$C$3:$JR$49,45,FALSE) -> -7.176106577 | AK16: =HLOOKUP($A16&"_"&IF(AK$4<10,"0"&AK$4,AK$4),System_LR!$C$3:$JR$49,45,FALSE) -> 356.3313158 | AL16: =HLOOKUP($A16&"_"&IF(AL$4<10,"0"&AL$4,AL$4),System_LR!$C$3:$JR$49,45,FALSE) -> 47.01752962 | AM16: =HLOOKUP($A16&"_"&IF(AM$4<10,"0"&AM$4,AM$4),System_LR!$C$3:$JR$49,45,FALSE) -> -155.6740976 | AO16: -0.44 | AP16: -0.44 | AQ16: -0.44 | AR16: -0.44 | AS16: -0.26 | AT16: -0.26 | AU16: -0.26 | AV16: -0.26 | AW16: -0.26 | AX16: -0.44 | AY16: -0.44 | AZ16: -0.44
A17: 2035 | B17: =HLOOKUP($A17&"_"&IF(B$4<10,"0"&B$4,B$4),WA_LR!$C$3:$JR$49,45,FALSE) -> -220.8479998 | C17: =HLOOKUP($A17&"_"&IF(C$4<10,"0"&C$4,C$4),WA_LR!$C$3:$JR$49,45,FALSE) -> -160.4189797 | D17: =HLOOKUP($A17&"_"&IF(D$4<10,"0"&D$4,D$4),WA_LR!$C$3:$JR$49,45,FALSE) -> -17.43559293 | E17: =HLOOKUP($A17&"_"&IF(E$4<10,"0"&E$4,E$4),WA_LR!$C$3:$JR$49,45,FALSE) -> 214.7203846 | F17: =HLOOKUP($A17&"_"&IF(F$4<10,"0"&F$4,F$4),WA_LR!$C$3:$JR$49,45,FALSE) -> 94.80886868 | G17: =HLOOKUP($A17&"_"&IF(G$4<10,"0"&G$4,G$4),WA_LR!$C$3:$JR$49,45,FALSE) -> 154.212903 | H17: =HLOOKUP($A17&"_"&IF(H$4<10,"0"&H$4,H$4),WA_LR!$C$3:$JR$49,45,FALSE) -> 38.31178852 | I17: =HLOOKUP($A17&"_"&IF(I$4<10,"0"&I$4,I$4),WA_LR!$C$3:$JR$49,45,FALSE) -> -27.44236253 | J17: =HLOOKUP($A17&"_"&IF(J$4<10,"0"&J$4,J$4),WA_LR!$C$3:$JR$49,45,FALSE) -> -80.41048398 | K17: =HLOOKUP($A17&"_"&IF(K$4<10,"0"&K$4,K$4),WA_LR!$C$3:$JR$49,45,FALSE) -> 103.8904656 | L17: =HLOOKUP($A17&"_"&IF(L$4<10,"0"&L$4,L$4),WA_LR!$C$3:$JR$49,45,FALSE) -> -102.5449985 | M17: =HLOOKUP($A17&"_"&IF(M$4<10,"0"&M$4,M$4),WA_LR!$C$3:$JR$49,45,FALSE) -> -224.9286177 | O17: =HLOOKUP($A17&"_"&IF(O$4<10,"0"&O$4,O$4),ID_LR!$C$3:$JR$49,45,FALSE) -> -18.55355292 | P17: =HLOOKUP($A17&"_"&IF(P$4<10,"0"&P$4,P$4),ID_LR!$C$3:$JR$49,45,FALSE) -> 45.34879295 | Q17: =HLOOKUP($A17&"_"&IF(Q$4<10,"0"&Q$4,Q$4),ID_LR!$C$3:$JR$49,45,FALSE) -> 111.8208545 | R17: =HLOOKUP($A17&"_"&IF(R$4<10,"0"&R$4,R$4),ID_LR!$C$3:$JR$49,45,FALSE) -> 195.1832826 | S17: =HLOOKUP($A17&"_"&IF(S$4<10,"0"&S$4,S$4),ID_LR!$C$3:$JR$49,45,FALSE) -> 104.9774532 | T17: =HLOOKUP($A17&"_"&IF(T$4<10,"0"&T$4,T$4),ID_LR!$C$3:$JR$49,45,FALSE) -> 105.3213264 | U17: =HLOOKUP($A17&"_"&IF(U$4<10,"0"&U$4,U$4),ID_LR!$C$3:$JR$49,45,FALSE) -> 25.76551775 | V17: =HLOOKUP($A17&"_"&IF(V$4<10,"0"&V$4,V$4),ID_LR!$C$3:$JR$49,45,FALSE) -> 6.515432226 | W17: =HLOOKUP($A17&"_"&IF(W$4<10,"0"&W$4,W$4),ID_LR!$C$3:$JR$49,45,FALSE) -> 23.92084895 | X17: =HLOOKUP($A17&"_"&IF(X$4<10,"0"&X$4,X$4),ID_LR!$C$3:$JR$49,45,FALSE) -> 190.546636 | Y17: =HLOOKUP($A17&"_"&IF(Y$4<10,"0"&Y$4,Y$4),ID_LR!$C$3:$JR$49,45,FALSE) -> 85.55931203 | Z17: =HLOOKUP($A17&"_"&IF(Z$4<10,"0"&Z$4,Z$4),ID_LR!$C$3:$JR$49,45,FALSE) -> 1.017151137 | AB17: =HLOOKUP($A17&"_"&IF(AB$4<10,"0"&AB$4,AB$4),System_LR!$C$3:$JR$49,45,FALSE) -> -238.9615528 | AC17: =HLOOKUP($A17&"_"&IF(AC$4<10,"0"&AC$4,AC$4),System_LR!$C$3:$JR$49,45,FALSE) -> -114.6301867 | AD17: =HLOOKUP($A17&"_"&IF(AD$4<10,"0"&AD$4,AD$4),System_LR!$C$3:$JR$49,45,FALSE) -> 94.82526157 | AE17: =HLOOKUP($A17&"_"&IF(AE$4<10,"0"&AE$4,AE$4),System_LR!$C$3:$JR$49,45,FALSE) -> 410.3436671 | AF17: =HLOOKUP($A17&"_"&IF(AF$4<10,"0"&AF$4,AF$4),System_LR!$C$3:$JR$49,45,FALSE) -> 200.0463219 | AG17: =HLOOKUP($A17&"_"&IF(AG$4<10,"0"&AG$4,AG$4),System_LR!$C$3:$JR$49,45,FALSE) -> 259.7942294 | AH17: =HLOOKUP($A17&"_"&IF(AH$4<10,"0"&AH$4,AH$4),System_LR!$C$3:$JR$49,45,FALSE) -> 64.33730628 | AI17: =HLOOKUP($A17&"_"&IF(AI$4<10,"0"&AI$4,AI$4),System_LR!$C$3:$JR$49,45,FALSE) -> -20.6669303 | AJ17: =HLOOKUP($A17&"_"&IF(AJ$4<10,"0"&AJ$4,AJ$4),System_LR!$C$3:$JR$49,45,FALSE) -> -56.22963503 | AK17: =HLOOKUP($A17&"_"&IF(AK$4<10,"0"&AK$4,AK$4),System_LR!$C$3:$JR$49,45,FALSE) -> 294.8771016 | AL17: =HLOOKUP($A17&"_"&IF(AL$4<10,"0"&AL$4,AL$4),System_LR!$C$3:$JR$49,45,FALSE) -> -16.54568643 | AM17: =HLOOKUP($A17&"_"&IF(AM$4<10,"0"&AM$4,AM$4),System_LR!$C$3:$JR$49,45,FALSE) -> -223.4714666 | AO17: -0.44 | AP17: -0.44 | AQ17: -0.44 | AR17: -0.44 | AS17: -0.26 | AT17: -0.26 | AU17: -0.26 | AV17: -0.26 | AW17: -0.26 | AX17: -0.44 | AY17: -0.44 | AZ17: -0.44
A18: 2036 | B18: =HLOOKUP($A18&"_"&IF(B$4<10,"0"&B$4,B$4),WA_LR!$C$3:$JR$49,45,FALSE) -> -323.2313842 | C18: =HLOOKUP($A18&"_"&IF(C$4<10,"0"&C$4,C$4),WA_LR!$C$3:$JR$49,45,FALSE) -> -285.9379519 | D18: =HLOOKUP($A18&"_"&IF(D$4<10,"0"&D$4,D$4),WA_LR!$C$3:$JR$49,45,FALSE) -> -118.1976476 | E18: =HLOOKUP($A18&"_"&IF(E$4<10,"0"&E$4,E$4),WA_LR!$C$3:$JR$49,45,FALSE) -> 118.7693441 | F18: =HLOOKUP($A18&"_"&IF(F$4<10,"0"&F$4,F$4),WA_LR!$C$3:$JR$49,45,FALSE) -> 25.48301413 | G18: =HLOOKUP($A18&"_"&IF(G$4<10,"0"&G$4,G$4),WA_LR!$C$3:$JR$49,45,FALSE) -> 100.1474855 | H18: =HLOOKUP($A18&"_"&IF(H$4<10,"0"&H$4,H$4),WA_LR!$C$3:$JR$49,45,FALSE) -> -10.75289936 | I18: =HLOOKUP($A18&"_"&IF(I$4<10,"0"&I$4,I$4),WA_LR!$C$3:$JR$49,45,FALSE) -> -76.67411556 | J18: =HLOOKUP($A18&"_"&IF(J$4<10,"0"&J$4,J$4),WA_LR!$C$3:$JR$49,45,FALSE) -> -149.1152083 | K18: =HLOOKUP($A18&"_"&IF(K$4<10,"0"&K$4,K$4),WA_LR!$C$3:$JR$49,45,FALSE) -> 1.723078967 | L18: =HLOOKUP($A18&"_"&IF(L$4<10,"0"&L$4,L$4),WA_LR!$C$3:$JR$49,45,FALSE) -> -208.7043616 | M18: =HLOOKUP($A18&"_"&IF(M$4<10,"0"&M$4,M$4),WA_LR!$C$3:$JR$49,45,FALSE) -> -331.4696527 | O18: =HLOOKUP($A18&"_"&IF(O$4<10,"0"&O$4,O$4),ID_LR!$C$3:$JR$49,45,FALSE) -> -49.48336809 | P18: =HLOOKUP($A18&"_"&IF(P$4<10,"0"&P$4,P$4),ID_LR!$C$3:$JR$49,45,FALSE) -> 17.92101331 | Q18: =HLOOKUP($A18&"_"&IF(Q$4<10,"0"&Q$4,Q$4),ID_LR!$C$3:$JR$49,45,FALSE) -> 82.34584576 | R18: =HLOOKUP($A18&"_"&IF(R$4<10,"0"&R$4,R$4),ID_LR!$C$3:$JR$49,45,FALSE) -> 165.1524334 | S18: =HLOOKUP($A18&"_"&IF(S$4<10,"0"&S$4,S$4),ID_LR!$C$3:$JR$49,45,FALSE) -> 83.41571565 | T18: =HLOOKUP($A18&"_"&IF(T$4<10,"0"&T$4,T$4),ID_LR!$C$3:$JR$49,45,FALSE) -> 82.93401676 | U18: =HLOOKUP($A18&"_"&IF(U$4<10,"0"&U$4,U$4),ID_LR!$C$3:$JR$49,45,FALSE) -> 3.365410383 | V18: =HLOOKUP($A18&"_"&IF(V$4<10,"0"&V$4,V$4),ID_LR!$C$3:$JR$49,45,FALSE) -> -16.13491472 | W18: =HLOOKUP($A18&"_"&IF(W$4<10,"0"&W$4,W$4),ID_LR!$C$3:$JR$49,45,FALSE) -> -2.939950266 | X18: =HLOOKUP($A18&"_"&IF(X$4<10,"0"&X$4,X$4),ID_LR!$C$3:$JR$49,45,FALSE) -> 161.2292735 | Y18: =HLOOKUP($A18&"_"&IF(Y$4<10,"0"&Y$4,Y$4),ID_LR!$C$3:$JR$49,45,FALSE) -> 56.33610721 | Z18: =HLOOKUP($A18&"_"&IF(Z$4<10,"0"&Z$4,Z$4),ID_LR!$C$3:$JR$49,45,FALSE) -> -30.19288208 | AB18: =HLOOKUP($A18&"_"&IF(AB$4<10,"0"&AB$4,AB$4),System_LR!$C$3:$JR$49,45,FALSE) -> -372.2747523 | AC18: =HLOOKUP($A18&"_"&IF(AC$4<10,"0"&AC$4,AC$4),System_LR!$C$3:$JR$49,45,FALSE) -> -267.5769386 | AD18: =HLOOKUP($A18&"_"&IF(AD$4<10,"0"&AD$4,AD$4),System_LR!$C$3:$JR$49,45,FALSE) -> -35.41180189 | AE18: =HLOOKUP($A18&"_"&IF(AE$4<10,"0"&AE$4,AE$4),System_LR!$C$3:$JR$49,45,FALSE) -> 284.3617775 | AF18: =HLOOKUP($A18&"_"&IF(AF$4<10,"0"&AF$4,AF$4),System_LR!$C$3:$JR$49,45,FALSE) -> 109.1587298 | AG18: =HLOOKUP($A18&"_"&IF(AG$4<10,"0"&AG$4,AG$4),System_LR!$C$3:$JR$49,45,FALSE) -> 183.3415022 | AH18: =HLOOKUP($A18&"_"&IF(AH$4<10,"0"&AH$4,AH$4),System_LR!$C$3:$JR$49,45,FALSE) -> -7.127488972 | AI18: =HLOOKUP($A18&"_"&IF(AI$4<10,"0"&AI$4,AI$4),System_LR!$C$3:$JR$49,45,FALSE) -> -92.54903027 | AJ18: =HLOOKUP($A18&"_"&IF(AJ$4<10,"0"&AJ$4,AJ$4),System_LR!$C$3:$JR$49,45,FALSE) -> -151.7951586 | AK18: =HLOOKUP($A18&"_"&IF(AK$4<10,"0"&AK$4,AK$4),System_LR!$C$3:$JR$49,45,FALSE) -> 163.3923524 | AL18: =HLOOKUP($A18&"_"&IF(AL$4<10,"0"&AL$4,AL$4),System_LR!$C$3:$JR$49,45,FALSE) -> -151.9282544 | AM18: =HLOOKUP($A18&"_"&IF(AM$4<10,"0"&AM$4,AM$4),System_LR!$C$3:$JR$49,45,FALSE) -> -361.2225348 | AO18: -0.44 | AP18: -0.44 | AQ18: -0.44 | AR18: -0.44 | AS18: -0.26 | AT18: -0.26 | AU18: -0.26 | AV18: -0.26 | AW18: -0.26 | AX18: -0.44 | AY18: -0.44 | AZ18: -0.44
A19: 2037 | B19: =HLOOKUP($A19&"_"&IF(B$4<10,"0"&B$4,B$4),WA_LR!$C$3:$JR$49,45,FALSE) -> -390.595852 | C19: =HLOOKUP($A19&"_"&IF(C$4<10,"0"&C$4,C$4),WA_LR!$C$3:$JR$49,45,FALSE) -> -346.3913494 | D19: =HLOOKUP($A19&"_"&IF(D$4<10,"0"&D$4,D$4),WA_LR!$C$3:$JR$49,45,FALSE) -> -196.3250839 | E19: =HLOOKUP($A19&"_"&IF(E$4<10,"0"&E$4,E$4),WA_LR!$C$3:$JR$49,45,FALSE) -> 54.94484517 | F19: =HLOOKUP($A19&"_"&IF(F$4<10,"0"&F$4,F$4),WA_LR!$C$3:$JR$49,45,FALSE) -> -23.3433632 | G19: =HLOOKUP($A19&"_"&IF(G$4<10,"0"&G$4,G$4),WA_LR!$C$3:$JR$49,45,FALSE) -> 73.70634618 | H19: =HLOOKUP($A19&"_"&IF(H$4<10,"0"&H$4,H$4),WA_LR!$C$3:$JR$49,45,FALSE) -> -36.51442827 | I19: =HLOOKUP($A19&"_"&IF(I$4<10,"0"&I$4,I$4),WA_LR!$C$3:$JR$49,45,FALSE) -> -105.1014122 | J19: =HLOOKUP($A19&"_"&IF(J$4<10,"0"&J$4,J$4),WA_LR!$C$3:$JR$49,45,FALSE) -> -187.2320148 | K19: =HLOOKUP($A19&"_"&IF(K$4<10,"0"&K$4,K$4),WA_LR!$C$3:$JR$49,45,FALSE) -> -58.76875184 | L19: =HLOOKUP($A19&"_"&IF(L$4<10,"0"&L$4,L$4),WA_LR!$C$3:$JR$49,45,FALSE) -> -277.8755623 | M19: =HLOOKUP($A19&"_"&IF(M$4<10,"0"&M$4,M$4),WA_LR!$C$3:$JR$49,45,FALSE) -> -399.7885387 | O19: =HLOOKUP($A19&"_"&IF(O$4<10,"0"&O$4,O$4),ID_LR!$C$3:$JR$49,45,FALSE) -> -58.85215831 | P19: =HLOOKUP($A19&"_"&IF(P$4<10,"0"&P$4,P$4),ID_LR!$C$3:$JR$49,45,FALSE) -> 3.734478677 | Q19: =HLOOKUP($A19&"_"&IF(Q$4<10,"0"&Q$4,Q$4),ID_LR!$C$3:$JR$49,45,FALSE) -> 74.21251435 | R19: =HLOOKUP($A19&"_"&IF(R$4<10,"0"&R$4,R$4),ID_LR!$C$3:$JR$49,45,FALSE) -> 156.8577248 | S19: =HLOOKUP($A19&"_"&IF(S$4<10,"0"&S$4,S$4),ID_LR!$C$3:$JR$49,45,FALSE) -> 73.78253316 | T19: =HLOOKUP($A19&"_"&IF(T$4<10,"0"&T$4,T$4),ID_LR!$C$3:$JR$49,45,FALSE) -> 75.84671644 | U19: =HLOOKUP($A19&"_"&IF(U$4<10,"0"&U$4,U$4),ID_LR!$C$3:$JR$49,45,FALSE) -> -5.797412785 | V19: =HLOOKUP($A19&"_"&IF(V$4<10,"0"&V$4,V$4),ID_LR!$C$3:$JR$49,45,FALSE) -> -26.76079759 | W19: =HLOOKUP($A19&"_"&IF(W$4<10,"0"&W$4,W$4),ID_LR!$C$3:$JR$49,45,FALSE) -> -11.99809804 | X19: =HLOOKUP($A19&"_"&IF(X$4<10,"0"&X$4,X$4),ID_LR!$C$3:$JR$49,45,FALSE) -> 154.3559474 | Y19: =HLOOKUP($A19&"_"&IF(Y$4<10,"0"&Y$4,Y$4),ID_LR!$C$3:$JR$49,45,FALSE) -> 49.86687756 | Z19: =HLOOKUP($A19&"_"&IF(Z$4<10,"0"&Z$4,Z$4),ID_LR!$C$3:$JR$49,45,FALSE) -> -37.7550118 | AB19: =HLOOKUP($A19&"_"&IF(AB$4<10,"0"&AB$4,AB$4),System_LR!$C$3:$JR$49,45,FALSE) -> -449.0080104 | AC19: =HLOOKUP($A19&"_"&IF(AC$4<10,"0"&AC$4,AC$4),System_LR!$C$3:$JR$49,45,FALSE) -> -342.2168707 | AD19: =HLOOKUP($A19&"_"&IF(AD$4<10,"0"&AD$4,AD$4),System_LR!$C$3:$JR$49,45,FALSE) -> -121.6725695 | AE19: =HLOOKUP($A19&"_"&IF(AE$4<10,"0"&AE$4,AE$4),System_LR!$C$3:$JR$49,45,FALSE) -> 212.24257 | AF19: =HLOOKUP($A19&"_"&IF(AF$4<10,"0"&AF$4,AF$4),System_LR!$C$3:$JR$49,45,FALSE) -> 50.69916995 | AG19: =HLOOKUP($A19&"_"&IF(AG$4<10,"0"&AG$4,AG$4),System_LR!$C$3:$JR$49,45,FALSE) -> 149.8130626 | AH19: =HLOOKUP($A19&"_"&IF(AH$4<10,"0"&AH$4,AH$4),System_LR!$C$3:$JR$49,45,FALSE) -> -42.05184105 | AI19: =HLOOKUP($A19&"_"&IF(AI$4<10,"0"&AI$4,AI$4),System_LR!$C$3:$JR$49,45,FALSE) -> -131.6022098 | AJ19: =HLOOKUP($A19&"_"&IF(AJ$4<10,"0"&AJ$4,AJ$4),System_LR!$C$3:$JR$49,45,FALSE) -> -198.9701129 | AK19: =HLOOKUP($A19&"_"&IF(AK$4<10,"0"&AK$4,AK$4),System_LR!$C$3:$JR$49,45,FALSE) -> 96.02719557 | AL19: =HLOOKUP($A19&"_"&IF(AL$4<10,"0"&AL$4,AL$4),System_LR!$C$3:$JR$49,45,FALSE) -> -227.5686847 | AM19: =HLOOKUP($A19&"_"&IF(AM$4<10,"0"&AM$4,AM$4),System_LR!$C$3:$JR$49,45,FALSE) -> -437.1035505 | AO19: -0.44 | AP19: -0.44 | AQ19: -0.44 | AR19: -0.44 | AS19: -0.26 | AT19: -0.26 | AU19: -0.26 | AV19: -0.26 | AW19: -0.26 | AX19: -0.44 | AY19: -0.44 | AZ19: -0.44
A20: 2038 | B20: =HLOOKUP($A20&"_"&IF(B$4<10,"0"&B$4,B$4),WA_LR!$C$3:$JR$49,45,FALSE) -> -463.5559332 | C20: =HLOOKUP($A20&"_"&IF(C$4<10,"0"&C$4,C$4),WA_LR!$C$3:$JR$49,45,FALSE) -> -417.4340982 | D20: =HLOOKUP($A20&"_"&IF(D$4<10,"0"&D$4,D$4),WA_LR!$C$3:$JR$49,45,FALSE) -> -269.2013392 | E20: =HLOOKUP($A20&"_"&IF(E$4<10,"0"&E$4,E$4),WA_LR!$C$3:$JR$49,45,FALSE) -> -7.201794225 | F20: =HLOOKUP($A20&"_"&IF(F$4<10,"0"&F$4,F$4),WA_LR!$C$3:$JR$49,45,FALSE) -> -76.79473261 | G20: =HLOOKUP($A20&"_"&IF(G$4<10,"0"&G$4,G$4),WA_LR!$C$3:$JR$49,45,FALSE) -> 34.46848421 | H20: =HLOOKUP($A20&"_"&IF(H$4<10,"0"&H$4,H$4),WA_LR!$C$3:$JR$49,45,FALSE) -> -72.51741242 | I20: =HLOOKUP($A20&"_"&IF(I$4<10,"0"&I$4,I$4),WA_LR!$C$3:$JR$49,45,FALSE) -> -136.7186218 | J20: =HLOOKUP($A20&"_"&IF(J$4<10,"0"&J$4,J$4),WA_LR!$C$3:$JR$49,45,FALSE) -> -234.3517376 | K20: =HLOOKUP($A20&"_"&IF(K$4<10,"0"&K$4,K$4),WA_LR!$C$3:$JR$49,45,FALSE) -> -122.8153065 | L20: =HLOOKUP($A20&"_"&IF(L$4<10,"0"&L$4,L$4),WA_LR!$C$3:$JR$49,45,FALSE) -> -347.3138672 | M20: =HLOOKUP($A20&"_"&IF(M$4<10,"0"&M$4,M$4),WA_LR!$C$3:$JR$49,45,FALSE) -> -465.0068808 | O20: =HLOOKUP($A20&"_"&IF(O$4<10,"0"&O$4,O$4),ID_LR!$C$3:$JR$49,45,FALSE) -> -68.41689198 | P20: =HLOOKUP($A20&"_"&IF(P$4<10,"0"&P$4,P$4),ID_LR!$C$3:$JR$49,45,FALSE) -> -6.079855409 | Q20: =HLOOKUP($A20&"_"&IF(Q$4<10,"0"&Q$4,Q$4),ID_LR!$C$3:$JR$49,45,FALSE) -> 65.71766129 | R20: =HLOOKUP($A20&"_"&IF(R$4<10,"0"&R$4,R$4),ID_LR!$C$3:$JR$49,45,FALSE) -> 148.7106551 | S20: =HLOOKUP($A20&"_"&IF(S$4<10,"0"&S$4,S$4),ID_LR!$C$3:$JR$49,45,FALSE) -> 63.54197707 | T20: =HLOOKUP($A20&"_"&IF(T$4<10,"0"&T$4,T$4),ID_LR!$C$3:$JR$49,45,FALSE) -> 64.59412228 | U20: =HLOOKUP($A20&"_"&IF(U$4<10,"0"&U$4,U$4),ID_LR!$C$3:$JR$49,45,FALSE) -> -17.12809934 | V20: =HLOOKUP($A20&"_"&IF(V$4<10,"0"&V$4,V$4),ID_LR!$C$3:$JR$49,45,FALSE) -> -36.45701102 | W20: =HLOOKUP($A20&"_"&IF(W$4<10,"0"&W$4,W$4),ID_LR!$C$3:$JR$49,45,FALSE) -> -24.81776911 | X20: =HLOOKUP($A20&"_"&IF(X$4<10,"0"&X$4,X$4),ID_LR!$C$3:$JR$49,45,FALSE) -> 146.5653155 | Y20: =HLOOKUP($A20&"_"&IF(Y$4<10,"0"&Y$4,Y$4),ID_LR!$C$3:$JR$49,45,FALSE) -> 41.53420387 | Z20: =HLOOKUP($A20&"_"&IF(Z$4<10,"0"&Z$4,Z$4),ID_LR!$C$3:$JR$49,45,FALSE) -> -46.77315536 | AB20: =HLOOKUP($A20&"_"&IF(AB$4<10,"0"&AB$4,AB$4),System_LR!$C$3:$JR$49,45,FALSE) -> -531.5328252 | AC20: =HLOOKUP($A20&"_"&IF(AC$4<10,"0"&AC$4,AC$4),System_LR!$C$3:$JR$49,45,FALSE) -> -423.0739537 | AD20: =HLOOKUP($A20&"_"&IF(AD$4<10,"0"&AD$4,AD$4),System_LR!$C$3:$JR$49,45,FALSE) -> -203.0436779 | AE20: =HLOOKUP($A20&"_"&IF(AE$4<10,"0"&AE$4,AE$4),System_LR!$C$3:$JR$49,45,FALSE) -> 141.9488609 | AF20: =HLOOKUP($A20&"_"&IF(AF$4<10,"0"&AF$4,AF$4),System_LR!$C$3:$JR$49,45,FALSE) -> -12.99275554 | AG20: =HLOOKUP($A20&"_"&IF(AG$4<10,"0"&AG$4,AG$4),System_LR!$C$3:$JR$49,45,FALSE) -> 99.32260649 | AH20: =HLOOKUP($A20&"_"&IF(AH$4<10,"0"&AH$4,AH$4),System_LR!$C$3:$JR$49,45,FALSE) -> -89.38551175 | AI20: =HLOOKUP($A20&"_"&IF(AI$4<10,"0"&AI$4,AI$4),System_LR!$C$3:$JR$49,45,FALSE) -> -172.9156328 | AJ20: =HLOOKUP($A20&"_"&IF(AJ$4<10,"0"&AJ$4,AJ$4),System_LR!$C$3:$JR$49,45,FALSE) -> -258.9095067 | AK20: =HLOOKUP($A20&"_"&IF(AK$4<10,"0"&AK$4,AK$4),System_LR!$C$3:$JR$49,45,FALSE) -> 24.19000897 | AL20: =HLOOKUP($A20&"_"&IF(AL$4<10,"0"&AL$4,AL$4),System_LR!$C$3:$JR$49,45,FALSE) -> -305.3396633 | AM20: =HLOOKUP($A20&"_"&IF(AM$4<10,"0"&AM$4,AM$4),System_LR!$C$3:$JR$49,45,FALSE) -> -511.3400362 | AO20: -0.44 | AP20: -0.44 | AQ20: -0.44 | AR20: -0.44 | AS20: -0.26 | AT20: -0.26 | AU20: -0.26 | AV20: -0.26 | AW20: -0.26 | AX20: -0.44 | AY20: -0.44 | AZ20: -0.44
A21: 2039 | B21: =HLOOKUP($A21&"_"&IF(B$4<10,"0"&B$4,B$4),WA_LR!$C$3:$JR$49,45,FALSE) -> -527.5004109 | C21: =HLOOKUP($A21&"_"&IF(C$4<10,"0"&C$4,C$4),WA_LR!$C$3:$JR$49,45,FALSE) -> -497.8996224 | D21: =HLOOKUP($A21&"_"&IF(D$4<10,"0"&D$4,D$4),WA_LR!$C$3:$JR$49,45,FALSE) -> -340.0254227 | E21: =HLOOKUP($A21&"_"&IF(E$4<10,"0"&E$4,E$4),WA_LR!$C$3:$JR$49,45,FALSE) -> -66.48559566 | F21: =HLOOKUP($A21&"_"&IF(F$4<10,"0"&F$4,F$4),WA_LR!$C$3:$JR$49,45,FALSE) -> -128.5795185 | G21: =HLOOKUP($A21&"_"&IF(G$4<10,"0"&G$4,G$4),WA_LR!$C$3:$JR$49,45,FALSE) -> 8.297732262 | H21: =HLOOKUP($A21&"_"&IF(H$4<10,"0"&H$4,H$4),WA_LR!$C$3:$JR$49,45,FALSE) -> -103.6157823 | I21: =HLOOKUP($A21&"_"&IF(I$4<10,"0"&I$4,I$4),WA_LR!$C$3:$JR$49,45,FALSE) -> -167.3516602 | J21: =HLOOKUP($A21&"_"&IF(J$4<10,"0"&J$4,J$4),WA_LR!$C$3:$JR$49,45,FALSE) -> -271.6255596 | K21: =HLOOKUP($A21&"_"&IF(K$4<10,"0"&K$4,K$4),WA_LR!$C$3:$JR$49,45,FALSE) -> -183.158007 | L21: =HLOOKUP($A21&"_"&IF(L$4<10,"0"&L$4,L$4),WA_LR!$C$3:$JR$49,45,FALSE) -> -413.3239788 | M21: =HLOOKUP($A21&"_"&IF(M$4<10,"0"&M$4,M$4),WA_LR!$C$3:$JR$49,45,FALSE) -> -529.4604425 | O21: =HLOOKUP($A21&"_"&IF(O$4<10,"0"&O$4,O$4),ID_LR!$C$3:$JR$49,45,FALSE) -> -78.70396037 | P21: =HLOOKUP($A21&"_"&IF(P$4<10,"0"&P$4,P$4),ID_LR!$C$3:$JR$49,45,FALSE) -> -16.29599312 | Q21: =HLOOKUP($A21&"_"&IF(Q$4<10,"0"&Q$4,Q$4),ID_LR!$C$3:$JR$49,45,FALSE) -> 56.12808832 | R21: =HLOOKUP($A21&"_"&IF(R$4<10,"0"&R$4,R$4),ID_LR!$C$3:$JR$49,45,FALSE) -> 140.2484079 | S21: =HLOOKUP($A21&"_"&IF(S$4<10,"0"&S$4,S$4),ID_LR!$C$3:$JR$49,45,FALSE) -> 55.11956521 | T21: =HLOOKUP($A21&"_"&IF(T$4<10,"0"&T$4,T$4),ID_LR!$C$3:$JR$49,45,FALSE) -> 59.34910136 | U21: =HLOOKUP($A21&"_"&IF(U$4<10,"0"&U$4,U$4),ID_LR!$C$3:$JR$49,45,FALSE) -> -27.30590136 | V21: =HLOOKUP($A21&"_"&IF(V$4<10,"0"&V$4,V$4),ID_LR!$C$3:$JR$49,45,FALSE) -> -46.38459601 | W21: =HLOOKUP($A21&"_"&IF(W$4<10,"0"&W$4,W$4),ID_LR!$C$3:$JR$49,45,FALSE) -> -32.50077141 | X21: =HLOOKUP($A21&"_"&IF(X$4<10,"0"&X$4,X$4),ID_LR!$C$3:$JR$49,45,FALSE) -> 138.0644107 | Y21: =HLOOKUP($A21&"_"&IF(Y$4<10,"0"&Y$4,Y$4),ID_LR!$C$3:$JR$49,45,FALSE) -> 33.02113752 | Z21: =HLOOKUP($A21&"_"&IF(Z$4<10,"0"&Z$4,Z$4),ID_LR!$C$3:$JR$49,45,FALSE) -> -56.27496839 | AB21: =HLOOKUP($A21&"_"&IF(AB$4<10,"0"&AB$4,AB$4),System_LR!$C$3:$JR$49,45,FALSE) -> -605.7643713 | AC21: =HLOOKUP($A21&"_"&IF(AC$4<10,"0"&AC$4,AC$4),System_LR!$C$3:$JR$49,45,FALSE) -> -513.7556155 | AD21: =HLOOKUP($A21&"_"&IF(AD$4<10,"0"&AD$4,AD$4),System_LR!$C$3:$JR$49,45,FALSE) -> -283.4573344 | AE21: =HLOOKUP($A21&"_"&IF(AE$4<10,"0"&AE$4,AE$4),System_LR!$C$3:$JR$49,45,FALSE) -> 74.20281221 | AF21: =HLOOKUP($A21&"_"&IF(AF$4<10,"0"&AF$4,AF$4),System_LR!$C$3:$JR$49,45,FALSE) -> -73.19995331 | AG21: =HLOOKUP($A21&"_"&IF(AG$4<10,"0"&AG$4,AG$4),System_LR!$C$3:$JR$49,45,FALSE) -> 67.90683362 | AH21: =HLOOKUP($A21&"_"&IF(AH$4<10,"0"&AH$4,AH$4),System_LR!$C$3:$JR$49,45,FALSE) -> -130.6616836 | AI21: =HLOOKUP($A21&"_"&IF(AI$4<10,"0"&AI$4,AI$4),System_LR!$C$3:$JR$49,45,FALSE) -> -213.4762562 | AJ21: =HLOOKUP($A21&"_"&IF(AJ$4<10,"0"&AJ$4,AJ$4),System_LR!$C$3:$JR$49,45,FALSE) -> -303.866331 | AK21: =HLOOKUP($A21&"_"&IF(AK$4<10,"0"&AK$4,AK$4),System_LR!$C$3:$JR$49,45,FALSE) -> -44.6535963 | AL21: =HLOOKUP($A21&"_"&IF(AL$4<10,"0"&AL$4,AL$4),System_LR!$C$3:$JR$49,45,FALSE) -> -379.8628413 | AM21: =HLOOKUP($A21&"_"&IF(AM$4<10,"0"&AM$4,AM$4),System_LR!$C$3:$JR$49,45,FALSE) -> -585.2954109 | AO21: -0.44 | AP21: -0.44 | AQ21: -0.44 | AR21: -0.44 | AS21: -0.26 | AT21: -0.26 | AU21: -0.26 | AV21: -0.26 | AW21: -0.26 | AX21: -0.44 | AY21: -0.44 | AZ21: -0.44
A22: 2040 | B22: =HLOOKUP($A22&"_"&IF(B$4<10,"0"&B$4,B$4),WA_LR!$C$3:$JR$49,45,FALSE) -> -596.4923426 | C22: =HLOOKUP($A22&"_"&IF(C$4<10,"0"&C$4,C$4),WA_LR!$C$3:$JR$49,45,FALSE) -> -590.7098746 | D22: =HLOOKUP($A22&"_"&IF(D$4<10,"0"&D$4,D$4),WA_LR!$C$3:$JR$49,45,FALSE) -> -396.6038333 | E22: =HLOOKUP($A22&"_"&IF(E$4<10,"0"&E$4,E$4),WA_LR!$C$3:$JR$49,45,FALSE) -> -123.4369121 | F22: =HLOOKUP($A22&"_"&IF(F$4<10,"0"&F$4,F$4),WA_LR!$C$3:$JR$49,45,FALSE) -> -178.3080504 | G22: =HLOOKUP($A22&"_"&IF(G$4<10,"0"&G$4,G$4),WA_LR!$C$3:$JR$49,45,FALSE) -> -21.85171977 | H22: =HLOOKUP($A22&"_"&IF(H$4<10,"0"&H$4,H$4),WA_LR!$C$3:$JR$49,45,FALSE) -> -128.9297176 | I22: =HLOOKUP($A22&"_"&IF(I$4<10,"0"&I$4,I$4),WA_LR!$C$3:$JR$49,45,FALSE) -> -194.7277145 | J22: =HLOOKUP($A22&"_"&IF(J$4<10,"0"&J$4,J$4),WA_LR!$C$3:$JR$49,45,FALSE) -> -307.2451976 | K22: =HLOOKUP($A22&"_"&IF(K$4<10,"0"&K$4,K$4),WA_LR!$C$3:$JR$49,45,FALSE) -> -234.5392232 | L22: =HLOOKUP($A22&"_"&IF(L$4<10,"0"&L$4,L$4),WA_LR!$C$3:$JR$49,45,FALSE) -> -476.1893884 | M22: =HLOOKUP($A22&"_"&IF(M$4<10,"0"&M$4,M$4),WA_LR!$C$3:$JR$49,45,FALSE) -> -591.1175007 | O22: =HLOOKUP($A22&"_"&IF(O$4<10,"0"&O$4,O$4),ID_LR!$C$3:$JR$49,45,FALSE) -> -90.13098073 | P22: =HLOOKUP($A22&"_"&IF(P$4<10,"0"&P$4,P$4),ID_LR!$C$3:$JR$49,45,FALSE) -> -20.93569946 | Q22: =HLOOKUP($A22&"_"&IF(Q$4<10,"0"&Q$4,Q$4),ID_LR!$C$3:$JR$49,45,FALSE) -> 46.22440843 | R22: =HLOOKUP($A22&"_"&IF(R$4<10,"0"&R$4,R$4),ID_LR!$C$3:$JR$49,45,FALSE) -> 130.8263801 | S22: =HLOOKUP($A22&"_"&IF(S$4<10,"0"&S$4,S$4),ID_LR!$C$3:$JR$49,45,FALSE) -> 42.17646881 | T22: =HLOOKUP($A22&"_"&IF(T$4<10,"0"&T$4,T$4),ID_LR!$C$3:$JR$49,45,FALSE) -> 47.88581206 | U22: =HLOOKUP($A22&"_"&IF(U$4<10,"0"&U$4,U$4),ID_LR!$C$3:$JR$49,45,FALSE) -> -38.28432718 | V22: =HLOOKUP($A22&"_"&IF(V$4<10,"0"&V$4,V$4),ID_LR!$C$3:$JR$49,45,FALSE) -> -58.40853521 | W22: =HLOOKUP($A22&"_"&IF(W$4<10,"0"&W$4,W$4),ID_LR!$C$3:$JR$49,45,FALSE) -> -44.17737614 | X22: =HLOOKUP($A22&"_"&IF(X$4<10,"0"&X$4,X$4),ID_LR!$C$3:$JR$49,45,FALSE) -> 129.0867749 | Y22: =HLOOKUP($A22&"_"&IF(Y$4<10,"0"&Y$4,Y$4),ID_LR!$C$3:$JR$49,45,FALSE) -> 23.93340972 | Z22: =HLOOKUP($A22&"_"&IF(Z$4<10,"0"&Z$4,Z$4),ID_LR!$C$3:$JR$49,45,FALSE) -> -65.58732033 | AB22: =HLOOKUP($A22&"_"&IF(AB$4<10,"0"&AB$4,AB$4),System_LR!$C$3:$JR$49,45,FALSE) -> -686.1833234 | AC22: =HLOOKUP($A22&"_"&IF(AC$4<10,"0"&AC$4,AC$4),System_LR!$C$3:$JR$49,45,FALSE) -> -611.2055741 | AD22: =HLOOKUP($A22&"_"&IF(AD$4<10,"0"&AD$4,AD$4),System_LR!$C$3:$JR$49,45,FALSE) -> -349.9394249 | AE22: =HLOOKUP($A22&"_"&IF(AE$4<10,"0"&AE$4,AE$4),System_LR!$C$3:$JR$49,45,FALSE) -> 7.829467954 | AF22: =HLOOKUP($A22&"_"&IF(AF$4<10,"0"&AF$4,AF$4),System_LR!$C$3:$JR$49,45,FALSE) -> -135.8715816 | AG22: =HLOOKUP($A22&"_"&IF(AG$4<10,"0"&AG$4,AG$4),System_LR!$C$3:$JR$49,45,FALSE) -> 26.29409229 | AH22: =HLOOKUP($A22&"_"&IF(AH$4<10,"0"&AH$4,AH$4),System_LR!$C$3:$JR$49,45,FALSE) -> -166.9540448 | AI22: =HLOOKUP($A22&"_"&IF(AI$4<10,"0"&AI$4,AI$4),System_LR!$C$3:$JR$49,45,FALSE) -> -252.8762497 | AJ22: =HLOOKUP($A22&"_"&IF(AJ$4<10,"0"&AJ$4,AJ$4),System_LR!$C$3:$JR$49,45,FALSE) -> -351.1625738 | AK22: =HLOOKUP($A22&"_"&IF(AK$4<10,"0"&AK$4,AK$4),System_LR!$C$3:$JR$49,45,FALSE) -> -105.0124483 | AL22: =HLOOKUP($A22&"_"&IF(AL$4<10,"0"&AL$4,AL$4),System_LR!$C$3:$JR$49,45,FALSE) -> -451.8159787 | AM22: =HLOOKUP($A22&"_"&IF(AM$4<10,"0"&AM$4,AM$4),System_LR!$C$3:$JR$49,45,FALSE) -> -656.264821 | AO22: -0.44 | AP22: -0.44 | AQ22: -0.44 | AR22: -0.44 | AS22: -0.26 | AT22: -0.26 | AU22: -0.26 | AV22: -0.26 | AW22: -0.26 | AX22: -0.44 | AY22: -0.44 | AZ22: -0.44
A23: 2041 | B23: =HLOOKUP($A23&"_"&IF(B$4<10,"0"&B$4,B$4),WA_LR!$C$3:$JR$49,45,FALSE) -> -708.3153387 | C23: =HLOOKUP($A23&"_"&IF(C$4<10,"0"&C$4,C$4),WA_LR!$C$3:$JR$49,45,FALSE) -> -674.5556144 | D23: =HLOOKUP($A23&"_"&IF(D$4<10,"0"&D$4,D$4),WA_LR!$C$3:$JR$49,45,FALSE) -> -516.775114 | E23: =HLOOKUP($A23&"_"&IF(E$4<10,"0"&E$4,E$4),WA_LR!$C$3:$JR$49,45,FALSE) -> -223.6615247 | F23: =HLOOKUP($A23&"_"&IF(F$4<10,"0"&F$4,F$4),WA_LR!$C$3:$JR$49,45,FALSE) -> -265.5776883 | G23: =HLOOKUP($A23&"_"&IF(G$4<10,"0"&G$4,G$4),WA_LR!$C$3:$JR$49,45,FALSE) -> -80.44924025 | H23: =HLOOKUP($A23&"_"&IF(H$4<10,"0"&H$4,H$4),WA_LR!$C$3:$JR$49,45,FALSE) -> -197.8691867 | I23: =HLOOKUP($A23&"_"&IF(I$4<10,"0"&I$4,I$4),WA_LR!$C$3:$JR$49,45,FALSE) -> -263.0417071 | J23: =HLOOKUP($A23&"_"&IF(J$4<10,"0"&J$4,J$4),WA_LR!$C$3:$JR$49,45,FALSE) -> -388.580109 | K23: =HLOOKUP($A23&"_"&IF(K$4<10,"0"&K$4,K$4),WA_LR!$C$3:$JR$49,45,FALSE) -> -332.8556494 | L23: =HLOOKUP($A23&"_"&IF(L$4<10,"0"&L$4,L$4),WA_LR!$C$3:$JR$49,45,FALSE) -> -583.3822343 | M23: =HLOOKUP($A23&"_"&IF(M$4<10,"0"&M$4,M$4),WA_LR!$C$3:$JR$49,45,FALSE) -> -696.5903291 | O23: =HLOOKUP($A23&"_"&IF(O$4<10,"0"&O$4,O$4),ID_LR!$C$3:$JR$49,45,FALSE) -> -126.6235983 | P23: =HLOOKUP($A23&"_"&IF(P$4<10,"0"&P$4,P$4),ID_LR!$C$3:$JR$49,45,FALSE) -> -62.97905276 | Q23: =HLOOKUP($A23&"_"&IF(Q$4<10,"0"&Q$4,Q$4),ID_LR!$C$3:$JR$49,45,FALSE) -> 12.58531667 | R23: =HLOOKUP($A23&"_"&IF(R$4<10,"0"&R$4,R$4),ID_LR!$C$3:$JR$49,45,FALSE) -> 96.05223591 | S23: =HLOOKUP($A23&"_"&IF(S$4<10,"0"&S$4,S$4),ID_LR!$C$3:$JR$49,45,FALSE) -> 7.071722274 | T23: =HLOOKUP($A23&"_"&IF(T$4<10,"0"&T$4,T$4),ID_LR!$C$3:$JR$49,45,FALSE) -> 21.11323422 | U23: =HLOOKUP($A23&"_"&IF(U$4<10,"0"&U$4,U$4),ID_LR!$C$3:$JR$49,45,FALSE) -> -72.33931523 | V23: =HLOOKUP($A23&"_"&IF(V$4<10,"0"&V$4,V$4),ID_LR!$C$3:$JR$49,45,FALSE) -> -91.8728363 | W23: =HLOOKUP($A23&"_"&IF(W$4<10,"0"&W$4,W$4),ID_LR!$C$3:$JR$49,45,FALSE) -> -79.03244453 | X23: =HLOOKUP($A23&"_"&IF(X$4<10,"0"&X$4,X$4),ID_LR!$C$3:$JR$49,45,FALSE) -> 94.73948431 | Y23: =HLOOKUP($A23&"_"&IF(Y$4<10,"0"&Y$4,Y$4),ID_LR!$C$3:$JR$49,45,FALSE) -> -12.16774298 | Z23: =HLOOKUP($A23&"_"&IF(Z$4<10,"0"&Z$4,Z$4),ID_LR!$C$3:$JR$49,45,FALSE) -> -101.8713383 | AB23: =HLOOKUP($A23&"_"&IF(AB$4<10,"0"&AB$4,AB$4),System_LR!$C$3:$JR$49,45,FALSE) -> -834.4989371 | AC23: =HLOOKUP($A23&"_"&IF(AC$4<10,"0"&AC$4,AC$4),System_LR!$C$3:$JR$49,45,FALSE) -> -737.0946672 | AD23: =HLOOKUP($A23&"_"&IF(AD$4<10,"0"&AD$4,AD$4),System_LR!$C$3:$JR$49,45,FALSE) -> -503.7497974 | AE23: =HLOOKUP($A23&"_"&IF(AE$4<10,"0"&AE$4,AE$4),System_LR!$C$3:$JR$49,45,FALSE) -> -127.1692888 | AF23: =HLOOKUP($A23&"_"&IF(AF$4<10,"0"&AF$4,AF$4),System_LR!$C$3:$JR$49,45,FALSE) -> -258.245966 | AG23: =HLOOKUP($A23&"_"&IF(AG$4<10,"0"&AG$4,AG$4),System_LR!$C$3:$JR$49,45,FALSE) -> -59.07600603 | AH23: =HLOOKUP($A23&"_"&IF(AH$4<10,"0"&AH$4,AH$4),System_LR!$C$3:$JR$49,45,FALSE) -> -269.9485019 | AI23: =HLOOKUP($A23&"_"&IF(AI$4<10,"0"&AI$4,AI$4),System_LR!$C$3:$JR$49,45,FALSE) -> -354.6545434 | AJ23: =HLOOKUP($A23&"_"&IF(AJ$4<10,"0"&AJ$4,AJ$4),System_LR!$C$3:$JR$49,45,FALSE) -> -467.3525535 | AK23: =HLOOKUP($A23&"_"&IF(AK$4<10,"0"&AK$4,AK$4),System_LR!$C$3:$JR$49,45,FALSE) -> -237.6761651 | AL23: =HLOOKUP($A23&"_"&IF(AL$4<10,"0"&AL$4,AL$4),System_LR!$C$3:$JR$49,45,FALSE) -> -595.1099773 | AM23: =HLOOKUP($A23&"_"&IF(AM$4<10,"0"&AM$4,AM$4),System_LR!$C$3:$JR$49,45,FALSE) -> -798.0216674 | AO23: -0.44 | AP23: -0.44 | AQ23: -0.44 | AR23: -0.44 | AS23: -0.26 | AT23: -0.26 | AU23: -0.26 | AV23: -0.26 | AW23: -0.26 | AX23: -0.44 | AY23: -0.44 | AZ23: -0.44
A24: 2042 | B24: =HLOOKUP($A24&"_"&IF(B$4<10,"0"&B$4,B$4),WA_LR!$C$3:$JR$49,45,FALSE) -> -954.4796101 | C24: =HLOOKUP($A24&"_"&IF(C$4<10,"0"&C$4,C$4),WA_LR!$C$3:$JR$49,45,FALSE) -> -927.0011582 | D24: =HLOOKUP($A24&"_"&IF(D$4<10,"0"&D$4,D$4),WA_LR!$C$3:$JR$49,45,FALSE) -> -762.2895781 | E24: =HLOOKUP($A24&"_"&IF(E$4<10,"0"&E$4,E$4),WA_LR!$C$3:$JR$49,45,FALSE) -> -447.0733867 | F24: =HLOOKUP($A24&"_"&IF(F$4<10,"0"&F$4,F$4),WA_LR!$C$3:$JR$49,45,FALSE) -> -468.3046228 | G24: =HLOOKUP($A24&"_"&IF(G$4<10,"0"&G$4,G$4),WA_LR!$C$3:$JR$49,45,FALSE) -> -265.4741446 | H24: =HLOOKUP($A24&"_"&IF(H$4<10,"0"&H$4,H$4),WA_LR!$C$3:$JR$49,45,FALSE) -> -383.5149257 | I24: =HLOOKUP($A24&"_"&IF(I$4<10,"0"&I$4,I$4),WA_LR!$C$3:$JR$49,45,FALSE) -> -455.2645238 | J24: =HLOOKUP($A24&"_"&IF(J$4<10,"0"&J$4,J$4),WA_LR!$C$3:$JR$49,45,FALSE) -> -588.6532358 | K24: =HLOOKUP($A24&"_"&IF(K$4<10,"0"&K$4,K$4),WA_LR!$C$3:$JR$49,45,FALSE) -> -566.7289056 | L24: =HLOOKUP($A24&"_"&IF(L$4<10,"0"&L$4,L$4),WA_LR!$C$3:$JR$49,45,FALSE) -> -824.3950625 | M24: =HLOOKUP($A24&"_"&IF(M$4<10,"0"&M$4,M$4),WA_LR!$C$3:$JR$49,45,FALSE) -> -932.1917445 | O24: =HLOOKUP($A24&"_"&IF(O$4<10,"0"&O$4,O$4),ID_LR!$C$3:$JR$49,45,FALSE) -> -240.2405851 | P24: =HLOOKUP($A24&"_"&IF(P$4<10,"0"&P$4,P$4),ID_LR!$C$3:$JR$49,45,FALSE) -> -176.2352685 | Q24: =HLOOKUP($A24&"_"&IF(Q$4<10,"0"&Q$4,Q$4),ID_LR!$C$3:$JR$49,45,FALSE) -> -99.7897521 | R24: =HLOOKUP($A24&"_"&IF(R$4<10,"0"&R$4,R$4),ID_LR!$C$3:$JR$49,45,FALSE) -> -9.074163216 | S24: =HLOOKUP($A24&"_"&IF(S$4<10,"0"&S$4,S$4),ID_LR!$C$3:$JR$49,45,FALSE) -> -93.15758612 | T24: =HLOOKUP($A24&"_"&IF(T$4<10,"0"&T$4,T$4),ID_LR!$C$3:$JR$49,45,FALSE) -> -75.95958169 | U24: =HLOOKUP($A24&"_"&IF(U$4<10,"0"&U$4,U$4),ID_LR!$C$3:$JR$49,45,FALSE) -> -171.4493183 | V24: =HLOOKUP($A24&"_"&IF(V$4<10,"0"&V$4,V$4),ID_LR!$C$3:$JR$49,45,FALSE) -> -194.3142128 | W24: =HLOOKUP($A24&"_"&IF(W$4<10,"0"&W$4,W$4),ID_LR!$C$3:$JR$49,45,FALSE) -> -181.7685971 | X24: =HLOOKUP($A24&"_"&IF(X$4<10,"0"&X$4,X$4),ID_LR!$C$3:$JR$49,45,FALSE) -> -16.79634459 | Y24: =HLOOKUP($A24&"_"&IF(Y$4<10,"0"&Y$4,Y$4),ID_LR!$C$3:$JR$49,45,FALSE) -> -124.0032384 | Z24: =HLOOKUP($A24&"_"&IF(Z$4<10,"0"&Z$4,Z$4),ID_LR!$C$3:$JR$49,45,FALSE) -> -214.6642094 | AB24: =HLOOKUP($A24&"_"&IF(AB$4<10,"0"&AB$4,AB$4),System_LR!$C$3:$JR$49,45,FALSE) -> -1194.280195 | AC24: =HLOOKUP($A24&"_"&IF(AC$4<10,"0"&AC$4,AC$4),System_LR!$C$3:$JR$49,45,FALSE) -> -1102.796427 | AD24: =HLOOKUP($A24&"_"&IF(AD$4<10,"0"&AD$4,AD$4),System_LR!$C$3:$JR$49,45,FALSE) -> -861.6393302 | AE24: =HLOOKUP($A24&"_"&IF(AE$4<10,"0"&AE$4,AE$4),System_LR!$C$3:$JR$49,45,FALSE) -> -455.70755 | AF24: =HLOOKUP($A24&"_"&IF(AF$4<10,"0"&AF$4,AF$4),System_LR!$C$3:$JR$49,45,FALSE) -> -561.2022089 | AG24: =HLOOKUP($A24&"_"&IF(AG$4<10,"0"&AG$4,AG$4),System_LR!$C$3:$JR$49,45,FALSE) -> -341.1737263 | AH24: =HLOOKUP($A24&"_"&IF(AH$4<10,"0"&AH$4,AH$4),System_LR!$C$3:$JR$49,45,FALSE) -> -554.704244 | AI24: =HLOOKUP($A24&"_"&IF(AI$4<10,"0"&AI$4,AI$4),System_LR!$C$3:$JR$49,45,FALSE) -> -649.3187366 | AJ24: =HLOOKUP($A24&"_"&IF(AJ$4<10,"0"&AJ$4,AJ$4),System_LR!$C$3:$JR$49,45,FALSE) -> -770.1618328 | AK24: =HLOOKUP($A24&"_"&IF(AK$4<10,"0"&AK$4,AK$4),System_LR!$C$3:$JR$49,45,FALSE) -> -583.0852502 | AL24: =HLOOKUP($A24&"_"&IF(AL$4<10,"0"&AL$4,AL$4),System_LR!$C$3:$JR$49,45,FALSE) -> -947.9583009 | AM24: =HLOOKUP($A24&"_"&IF(AM$4<10,"0"&AM$4,AM$4),System_LR!$C$3:$JR$49,45,FALSE) -> -1146.415954 | AO24: -0.44 | AP24: -0.44 | AQ24: -0.44 | AR24: -0.44 | AS24: -0.26 | AT24: -0.26 | AU24: -0.26 | AV24: -0.26 | AW24: -0.26 | AX24: -0.44 | AY24: -0.44 | AZ24: -0.44
A25: 2043 | B25: =HLOOKUP($A25&"_"&IF(B$4<10,"0"&B$4,B$4),WA_LR!$C$3:$JR$49,45,FALSE) -> -1021.14282 | C25: =HLOOKUP($A25&"_"&IF(C$4<10,"0"&C$4,C$4),WA_LR!$C$3:$JR$49,45,FALSE) -> -998.807538 | D25: =HLOOKUP($A25&"_"&IF(D$4<10,"0"&D$4,D$4),WA_LR!$C$3:$JR$49,45,FALSE) -> -833.1575252 | E25: =HLOOKUP($A25&"_"&IF(E$4<10,"0"&E$4,E$4),WA_LR!$C$3:$JR$49,45,FALSE) -> -510.9209354 | F25: =HLOOKUP($A25&"_"&IF(F$4<10,"0"&F$4,F$4),WA_LR!$C$3:$JR$49,45,FALSE) -> -519.8728775 | G25: =HLOOKUP($A25&"_"&IF(G$4<10,"0"&G$4,G$4),WA_LR!$C$3:$JR$49,45,FALSE) -> -301.0309087 | H25: =HLOOKUP($A25&"_"&IF(H$4<10,"0"&H$4,H$4),WA_LR!$C$3:$JR$49,45,FALSE) -> -419.0878358 | I25: =HLOOKUP($A25&"_"&IF(I$4<10,"0"&I$4,I$4),WA_LR!$C$3:$JR$49,45,FALSE) -> -500.0663571 | J25: =HLOOKUP($A25&"_"&IF(J$4<10,"0"&J$4,J$4),WA_LR!$C$3:$JR$49,45,FALSE) -> -640.3280413 | K25: =HLOOKUP($A25&"_"&IF(K$4<10,"0"&K$4,K$4),WA_LR!$C$3:$JR$49,45,FALSE) -> -627.9770994 | L25: =HLOOKUP($A25&"_"&IF(L$4<10,"0"&L$4,L$4),WA_LR!$C$3:$JR$49,45,FALSE) -> -886.4352531 | M25: =HLOOKUP($A25&"_"&IF(M$4<10,"0"&M$4,M$4),WA_LR!$C$3:$JR$49,45,FALSE) -> -989.5039008 | O25: =HLOOKUP($A25&"_"&IF(O$4<10,"0"&O$4,O$4),ID_LR!$C$3:$JR$49,45,FALSE) -> -259.1165492 | P25: =HLOOKUP($A25&"_"&IF(P$4<10,"0"&P$4,P$4),ID_LR!$C$3:$JR$49,45,FALSE) -> -196.5511429 | Q25: =HLOOKUP($A25&"_"&IF(Q$4<10,"0"&Q$4,Q$4),ID_LR!$C$3:$JR$49,45,FALSE) -> -119.0224441 | R25: =HLOOKUP($A25&"_"&IF(R$4<10,"0"&R$4,R$4),ID_LR!$C$3:$JR$49,45,FALSE) -> -27.31923464 | S25: =HLOOKUP($A25&"_"&IF(S$4<10,"0"&S$4,S$4),ID_LR!$C$3:$JR$49,45,FALSE) -> -111.9302744 | T25: =HLOOKUP($A25&"_"&IF(T$4<10,"0"&T$4,T$4),ID_LR!$C$3:$JR$49,45,FALSE) -> -91.42797345 | U25: =HLOOKUP($A25&"_"&IF(U$4<10,"0"&U$4,U$4),ID_LR!$C$3:$JR$49,45,FALSE) -> -188.3193146 | V25: =HLOOKUP($A25&"_"&IF(V$4<10,"0"&V$4,V$4),ID_LR!$C$3:$JR$49,45,FALSE) -> -215.7820597 | W25: =HLOOKUP($A25&"_"&IF(W$4<10,"0"&W$4,W$4),ID_LR!$C$3:$JR$49,45,FALSE) -> -202.9560247 | X25: =HLOOKUP($A25&"_"&IF(X$4<10,"0"&X$4,X$4),ID_LR!$C$3:$JR$49,45,FALSE) -> -34.8490089 | Y25: =HLOOKUP($A25&"_"&IF(Y$4<10,"0"&Y$4,Y$4),ID_LR!$C$3:$JR$49,45,FALSE) -> -139.2571876 | Z25: =HLOOKUP($A25&"_"&IF(Z$4<10,"0"&Z$4,Z$4),ID_LR!$C$3:$JR$49,45,FALSE) -> -232.0203069 | AB25: =HLOOKUP($A25&"_"&IF(AB$4<10,"0"&AB$4,AB$4),System_LR!$C$3:$JR$49,45,FALSE) -> -1279.819369 | AC25: =HLOOKUP($A25&"_"&IF(AC$4<10,"0"&AC$4,AC$4),System_LR!$C$3:$JR$49,45,FALSE) -> -1194.918681 | AD25: =HLOOKUP($A25&"_"&IF(AD$4<10,"0"&AD$4,AD$4),System_LR!$C$3:$JR$49,45,FALSE) -> -951.7399693 | AE25: =HLOOKUP($A25&"_"&IF(AE$4<10,"0"&AE$4,AE$4),System_LR!$C$3:$JR$49,45,FALSE) -> -537.8001701 | AF25: =HLOOKUP($A25&"_"&IF(AF$4<10,"0"&AF$4,AF$4),System_LR!$C$3:$JR$49,45,FALSE) -> -631.5431518 | AG25: =HLOOKUP($A25&"_"&IF(AG$4<10,"0"&AG$4,AG$4),System_LR!$C$3:$JR$49,45,FALSE) -> -392.1988821 | AH25: =HLOOKUP($A25&"_"&IF(AH$4<10,"0"&AH$4,AH$4),System_LR!$C$3:$JR$49,45,FALSE) -> -607.1471504 | AI25: =HLOOKUP($A25&"_"&IF(AI$4<10,"0"&AI$4,AI$4),System_LR!$C$3:$JR$49,45,FALSE) -> -715.5884168 | AJ25: =HLOOKUP($A25&"_"&IF(AJ$4<10,"0"&AJ$4,AJ$4),System_LR!$C$3:$JR$49,45,FALSE) -> -843.0240659 | AK25: =HLOOKUP($A25&"_"&IF(AK$4<10,"0"&AK$4,AK$4),System_LR!$C$3:$JR$49,45,FALSE) -> -662.3861083 | AL25: =HLOOKUP($A25&"_"&IF(AL$4<10,"0"&AL$4,AL$4),System_LR!$C$3:$JR$49,45,FALSE) -> -1025.252441 | AM25: =HLOOKUP($A25&"_"&IF(AM$4<10,"0"&AM$4,AM$4),System_LR!$C$3:$JR$49,45,FALSE) -> -1221.084208 | AO25: -0.44 | AP25: -0.44 | AQ25: -0.44 | AR25: -0.44 | AS25: -0.26 | AT25: -0.26 | AU25: -0.26 | AV25: -0.26 | AW25: -0.26 | AX25: -0.44 | AY25: -0.44 | AZ25: -0.44
A26: 2044 | B26: =HLOOKUP($A26&"_"&IF(B$4<10,"0"&B$4,B$4),WA_LR!$C$3:$JR$49,45,FALSE) -> -1081.223758 | C26: =HLOOKUP($A26&"_"&IF(C$4<10,"0"&C$4,C$4),WA_LR!$C$3:$JR$49,45,FALSE) -> -1094.25227 | D26: =HLOOKUP($A26&"_"&IF(D$4<10,"0"&D$4,D$4),WA_LR!$C$3:$JR$49,45,FALSE) -> -876.8579355 | E26: =HLOOKUP($A26&"_"&IF(E$4<10,"0"&E$4,E$4),WA_LR!$C$3:$JR$49,45,FALSE) -> -561.3567196 | F26: =HLOOKUP($A26&"_"&IF(F$4<10,"0"&F$4,F$4),WA_LR!$C$3:$JR$49,45,FALSE) -> -563.1775039 | G26: =HLOOKUP($A26&"_"&IF(G$4<10,"0"&G$4,G$4),WA_LR!$C$3:$JR$49,45,FALSE) -> -341.0288443 | H26: =HLOOKUP($A26&"_"&IF(H$4<10,"0"&H$4,H$4),WA_LR!$C$3:$JR$49,45,FALSE) -> -450.1519951 | I26: =HLOOKUP($A26&"_"&IF(I$4<10,"0"&I$4,I$4),WA_LR!$C$3:$JR$49,45,FALSE) -> -534.5539096 | J26: =HLOOKUP($A26&"_"&IF(J$4<10,"0"&J$4,J$4),WA_LR!$C$3:$JR$49,45,FALSE) -> -677.3465876 | K26: =HLOOKUP($A26&"_"&IF(K$4<10,"0"&K$4,K$4),WA_LR!$C$3:$JR$49,45,FALSE) -> -678.1965686 | L26: =HLOOKUP($A26&"_"&IF(L$4<10,"0"&L$4,L$4),WA_LR!$C$3:$JR$49,45,FALSE) -> -941.926289 | M26: =HLOOKUP($A26&"_"&IF(M$4<10,"0"&M$4,M$4),WA_LR!$C$3:$JR$49,45,FALSE) -> -1049.410532 | O26: =HLOOKUP($A26&"_"&IF(O$4<10,"0"&O$4,O$4),ID_LR!$C$3:$JR$49,45,FALSE) -> -274.8161636 | P26: =HLOOKUP($A26&"_"&IF(P$4<10,"0"&P$4,P$4),ID_LR!$C$3:$JR$49,45,FALSE) -> -202.8867986 | Q26: =HLOOKUP($A26&"_"&IF(Q$4<10,"0"&Q$4,Q$4),ID_LR!$C$3:$JR$49,45,FALSE) -> -134.0749673 | R26: =HLOOKUP($A26&"_"&IF(R$4<10,"0"&R$4,R$4),ID_LR!$C$3:$JR$49,45,FALSE) -> -40.6893844 | S26: =HLOOKUP($A26&"_"&IF(S$4<10,"0"&S$4,S$4),ID_LR!$C$3:$JR$49,45,FALSE) -> -127.3128383 | T26: =HLOOKUP($A26&"_"&IF(T$4<10,"0"&T$4,T$4),ID_LR!$C$3:$JR$49,45,FALSE) -> -109.9341682 | U26: =HLOOKUP($A26&"_"&IF(U$4<10,"0"&U$4,U$4),ID_LR!$C$3:$JR$49,45,FALSE) -> -203.041315 | V26: =HLOOKUP($A26&"_"&IF(V$4<10,"0"&V$4,V$4),ID_LR!$C$3:$JR$49,45,FALSE) -> -231.996581 | W26: =HLOOKUP($A26&"_"&IF(W$4<10,"0"&W$4,W$4),ID_LR!$C$3:$JR$49,45,FALSE) -> -218.9050845 | X26: =HLOOKUP($A26&"_"&IF(X$4<10,"0"&X$4,X$4),ID_LR!$C$3:$JR$49,45,FALSE) -> -48.7788771 | Y26: =HLOOKUP($A26&"_"&IF(Y$4<10,"0"&Y$4,Y$4),ID_LR!$C$3:$JR$49,45,FALSE) -> -153.1318903 | Z26: =HLOOKUP($A26&"_"&IF(Z$4<10,"0"&Z$4,Z$4),ID_LR!$C$3:$JR$49,45,FALSE) -> -245.2262742 | AB26: =HLOOKUP($A26&"_"&IF(AB$4<10,"0"&AB$4,AB$4),System_LR!$C$3:$JR$49,45,FALSE) -> -1355.599922 | AC26: =HLOOKUP($A26&"_"&IF(AC$4<10,"0"&AC$4,AC$4),System_LR!$C$3:$JR$49,45,FALSE) -> -1296.699068 | AD26: =HLOOKUP($A26&"_"&IF(AD$4<10,"0"&AD$4,AD$4),System_LR!$C$3:$JR$49,45,FALSE) -> -1010.492903 | AE26: =HLOOKUP($A26&"_"&IF(AE$4<10,"0"&AE$4,AE$4),System_LR!$C$3:$JR$49,45,FALSE) -> -601.606104 | AF26: =HLOOKUP($A26&"_"&IF(AF$4<10,"0"&AF$4,AF$4),System_LR!$C$3:$JR$49,45,FALSE) -> -690.2303422 | AG26: =HLOOKUP($A26&"_"&IF(AG$4<10,"0"&AG$4,AG$4),System_LR!$C$3:$JR$49,45,FALSE) -> -450.7030125 | AH26: =HLOOKUP($A26&"_"&IF(AH$4<10,"0"&AH$4,AH$4),System_LR!$C$3:$JR$49,45,FALSE) -> -652.9333101 | AI26: =HLOOKUP($A26&"_"&IF(AI$4<10,"0"&AI$4,AI$4),System_LR!$C$3:$JR$49,45,FALSE) -> -766.2904906 | AJ26: =HLOOKUP($A26&"_"&IF(AJ$4<10,"0"&AJ$4,AJ$4),System_LR!$C$3:$JR$49,45,FALSE) -> -895.9916722 | AK26: =HLOOKUP($A26&"_"&IF(AK$4<10,"0"&AK$4,AK$4),System_LR!$C$3:$JR$49,45,FALSE) -> -726.5354457 | AL26: =HLOOKUP($A26&"_"&IF(AL$4<10,"0"&AL$4,AL$4),System_LR!$C$3:$JR$49,45,FALSE) -> -1094.618179 | AM26: =HLOOKUP($A26&"_"&IF(AM$4<10,"0"&AM$4,AM$4),System_LR!$C$3:$JR$49,45,FALSE) -> -1294.196806 | AO26: -0.44 | AP26: -0.44 | AQ26: -0.44 | AR26: -0.44 | AS26: -0.26 | AT26: -0.26 | AU26: -0.26 | AV26: -0.26 | AW26: -0.26 | AX26: -0.44 | AY26: -0.44 | AZ26: -0.44
A27: 2045 | B27: =HLOOKUP($A27&"_"&IF(B$4<10,"0"&B$4,B$4),WA_LR!$C$3:$JR$49,45,FALSE) -> -1452.768763 | C27: =HLOOKUP($A27&"_"&IF(C$4<10,"0"&C$4,C$4),WA_LR!$C$3:$JR$49,45,FALSE) -> -1432.640697 | D27: =HLOOKUP($A27&"_"&IF(D$4<10,"0"&D$4,D$4),WA_LR!$C$3:$JR$49,45,FALSE) -> -1264.263631 | E27: =HLOOKUP($A27&"_"&IF(E$4<10,"0"&E$4,E$4),WA_LR!$C$3:$JR$49,45,FALSE) -> -924.7374747 | F27: =HLOOKUP($A27&"_"&IF(F$4<10,"0"&F$4,F$4),WA_LR!$C$3:$JR$49,45,FALSE) -> -875.2511904 | G27: =HLOOKUP($A27&"_"&IF(G$4<10,"0"&G$4,G$4),WA_LR!$C$3:$JR$49,45,FALSE) -> -646.4608409 | H27: =HLOOKUP($A27&"_"&IF(H$4<10,"0"&H$4,H$4),WA_LR!$C$3:$JR$49,45,FALSE) -> -752.1676718 | I27: =HLOOKUP($A27&"_"&IF(I$4<10,"0"&I$4,I$4),WA_LR!$C$3:$JR$49,45,FALSE) -> -839.175173 | J27: =HLOOKUP($A27&"_"&IF(J$4<10,"0"&J$4,J$4),WA_LR!$C$3:$JR$49,45,FALSE) -> -991.3754977 | K27: =HLOOKUP($A27&"_"&IF(K$4<10,"0"&K$4,K$4),WA_LR!$C$3:$JR$49,45,FALSE) -> -1041.787757 | L27: =HLOOKUP($A27&"_"&IF(L$4<10,"0"&L$4,L$4),WA_LR!$C$3:$JR$49,45,FALSE) -> -1308.388222 | M27: =HLOOKUP($A27&"_"&IF(M$4<10,"0"&M$4,M$4),WA_LR!$C$3:$JR$49,45,FALSE) -> -1418.182188 | O27: =HLOOKUP($A27&"_"&IF(O$4<10,"0"&O$4,O$4),ID_LR!$C$3:$JR$49,45,FALSE) -> -352.4777429 | P27: =HLOOKUP($A27&"_"&IF(P$4<10,"0"&P$4,P$4),ID_LR!$C$3:$JR$49,45,FALSE) -> -290.4510248 | Q27: =HLOOKUP($A27&"_"&IF(Q$4<10,"0"&Q$4,Q$4),ID_LR!$C$3:$JR$49,45,FALSE) -> -211.6018403 | R27: =HLOOKUP($A27&"_"&IF(R$4<10,"0"&R$4,R$4),ID_LR!$C$3:$JR$49,45,FALSE) -> -117.7117714 | S27: =HLOOKUP($A27&"_"&IF(S$4<10,"0"&S$4,S$4),ID_LR!$C$3:$JR$49,45,FALSE) -> -188.0298838 | T27: =HLOOKUP($A27&"_"&IF(T$4<10,"0"&T$4,T$4),ID_LR!$C$3:$JR$49,45,FALSE) -> -171.5617121 | U27: =HLOOKUP($A27&"_"&IF(U$4<10,"0"&U$4,U$4),ID_LR!$C$3:$JR$49,45,FALSE) -> -264.0801896 | V27: =HLOOKUP($A27&"_"&IF(V$4<10,"0"&V$4,V$4),ID_LR!$C$3:$JR$49,45,FALSE) -> -293.9097276 | W27: =HLOOKUP($A27&"_"&IF(W$4<10,"0"&W$4,W$4),ID_LR!$C$3:$JR$49,45,FALSE) -> -283.2313302 | X27: =HLOOKUP($A27&"_"&IF(X$4<10,"0"&X$4,X$4),ID_LR!$C$3:$JR$49,45,FALSE) -> -126.0394992 | Y27: =HLOOKUP($A27&"_"&IF(Y$4<10,"0"&Y$4,Y$4),ID_LR!$C$3:$JR$49,45,FALSE) -> -230.0943294 | Z27: =HLOOKUP($A27&"_"&IF(Z$4<10,"0"&Z$4,Z$4),ID_LR!$C$3:$JR$49,45,FALSE) -> -324.1701626 | AB27: =HLOOKUP($A27&"_"&IF(AB$4<10,"0"&AB$4,AB$4),System_LR!$C$3:$JR$49,45,FALSE) -> -1804.806506 | AC27: =HLOOKUP($A27&"_"&IF(AC$4<10,"0"&AC$4,AC$4),System_LR!$C$3:$JR$49,45,FALSE) -> -1722.651721 | AD27: =HLOOKUP($A27&"_"&IF(AD$4<10,"0"&AD$4,AD$4),System_LR!$C$3:$JR$49,45,FALSE) -> -1475.425471 | AE27: =HLOOKUP($A27&"_"&IF(AE$4<10,"0"&AE$4,AE$4),System_LR!$C$3:$JR$49,45,FALSE) -> -1042.009246 | AF27: =HLOOKUP($A27&"_"&IF(AF$4<10,"0"&AF$4,AF$4),System_LR!$C$3:$JR$49,45,FALSE) -> -1063.021074 | AG27: =HLOOKUP($A27&"_"&IF(AG$4<10,"0"&AG$4,AG$4),System_LR!$C$3:$JR$49,45,FALSE) -> -817.762553 | AH27: =HLOOKUP($A27&"_"&IF(AH$4<10,"0"&AH$4,AH$4),System_LR!$C$3:$JR$49,45,FALSE) -> -1015.987861 | AI27: =HLOOKUP($A27&"_"&IF(AI$4<10,"0"&AI$4,AI$4),System_LR!$C$3:$JR$49,45,FALSE) -> -1132.824901 | AJ27: =HLOOKUP($A27&"_"&IF(AJ$4<10,"0"&AJ$4,AJ$4),System_LR!$C$3:$JR$49,45,FALSE) -> -1274.346828 | AK27: =HLOOKUP($A27&"_"&IF(AK$4<10,"0"&AK$4,AK$4),System_LR!$C$3:$JR$49,45,FALSE) -> -1167.387256 | AL27: =HLOOKUP($A27&"_"&IF(AL$4<10,"0"&AL$4,AL$4),System_LR!$C$3:$JR$49,45,FALSE) -> -1538.042551 | AM27: =HLOOKUP($A27&"_"&IF(AM$4<10,"0"&AM$4,AM$4),System_LR!$C$3:$JR$49,45,FALSE) -> -1741.91235 | AO27: -0.44 | AP27: -0.44 | AQ27: -0.44 | AR27: -0.44 | AS27: -0.26 | AT27: -0.26 | AU27: -0.26 | AV27: -0.26 | AW27: -0.26 | AX27: -0.44 | AY27: -0.44 | AZ27: -0.44
A30: Energy | B30: 1 | C30: 2 | D30: 3 | E30: 4 | F30: 5 | G30: 6 | H30: 7 | I30: 8 | J30: 9 | K30: 10 | L30: 11 | M30: 12 | O30: 1 | P30: 2 | Q30: 3 | R30: 4 | S30: 5 | T30: 6 | U30: 7 | V30: 8 | W30: 9 | X30: 10 | Y30: 11 | Z30: 12 | AB30: 1 | AC30: 2 | AD30: 3 | AE30: 4 | AF30: 5 | AG30: 6 | AH30: 7 | AI30: 8 | AJ30: 9 | AK30: 10 | AL30: 11 | AM30: 12 | AO30: 1 | AP30: 2 | AQ30: 3 | AR30: 4 | AS30: 5 | AT30: 6 | AU30: 7 | AV30: 8 | AW30: 9 | AX30: 10 | AY30: 11 | AZ30: 12
A31: 2023 | B31: =HLOOKUP($A31&"_"&IF(B$4<10,"0"&B$4,B$4),WA_LR!$C$133:$JR$175,41,FALSE) -> 132.3639489 | C31: =HLOOKUP($A31&"_"&IF(C$4<10,"0"&C$4,C$4),WA_LR!$C$133:$JR$175,41,FALSE) -> 126.7231648 | D31: =HLOOKUP($A31&"_"&IF(D$4<10,"0"&D$4,D$4),WA_LR!$C$133:$JR$175,41,FALSE) -> 228.2893443 | E31: =HLOOKUP($A31&"_"&IF(E$4<10,"0"&E$4,E$4),WA_LR!$C$133:$JR$175,41,FALSE) -> 289.9859701 | F31: =HLOOKUP($A31&"_"&IF(F$4<10,"0"&F$4,F$4),WA_LR!$C$133:$JR$175,41,FALSE) -> 365.0643609 | G31: =HLOOKUP($A31&"_"&IF(G$4<10,"0"&G$4,G$4),WA_LR!$C$133:$JR$175,41,FALSE) -> 395.2236415 | H31: =HLOOKUP($A31&"_"&IF(H$4<10,"0"&H$4,H$4),WA_LR!$C$133:$JR$175,41,FALSE) -> 194.4517415 | I31: =HLOOKUP($A31&"_"&IF(I$4<10,"0"&I$4,I$4),WA_LR!$C$133:$JR$175,41,FALSE) -> 111.6676451 | J31: =HLOOKUP($A31&"_"&IF(J$4<10,"0"&J$4,J$4),WA_LR!$C$133:$JR$175,41,FALSE) -> 173.9075305 | K31: =HLOOKUP($A31&"_"&IF(K$4<10,"0"&K$4,K$4),WA_LR!$C$133:$JR$175,41,FALSE) -> 194.7168895 | L31: =HLOOKUP($A31&"_"&IF(L$4<10,"0"&L$4,L$4),WA_LR!$C$133:$JR$175,41,FALSE) -> 163.0516435 | M31: =HLOOKUP($A31&"_"&IF(M$4<10,"0"&M$4,M$4),WA_LR!$C$133:$JR$175,41,FALSE) -> 181.5526988 | O31: =HLOOKUP($A31&"_"&IF(O$4<10,"0"&O$4,O$4),ID_LR!$C$133:$JR$175,41,FALSE) -> 66.76798825 | P31: =HLOOKUP($A31&"_"&IF(P$4<10,"0"&P$4,P$4),ID_LR!$C$133:$JR$175,41,FALSE) -> 76.24598131 | Q31: =HLOOKUP($A31&"_"&IF(Q$4<10,"0"&Q$4,Q$4),ID_LR!$C$133:$JR$175,41,FALSE) -> 121.3050685 | R31: =HLOOKUP($A31&"_"&IF(R$4<10,"0"&R$4,R$4),ID_LR!$C$133:$JR$175,41,FALSE) -> 148.9998534 | S31: =HLOOKUP($A31&"_"&IF(S$4<10,"0"&S$4,S$4),ID_LR!$C$133:$JR$175,41,FALSE) -> 193.3911464 | T31: =HLOOKUP($A31&"_"&IF(T$4<10,"0"&T$4,T$4),ID_LR!$C$133:$JR$175,41,FALSE) -> 220.1378226 | U31: =HLOOKUP($A31&"_"&IF(U$4<10,"0"&U$4,U$4),ID_LR!$C$133:$JR$175,41,FALSE) -> 108.6966407 | V31: =HLOOKUP($A31&"_"&IF(V$4<10,"0"&V$4,V$4),ID_LR!$C$133:$JR$175,41,FALSE) -> 72.99733555 | W31: =HLOOKUP($A31&"_"&IF(W$4<10,"0"&W$4,W$4),ID_LR!$C$133:$JR$175,41,FALSE) -> 107.8915369 | X31: =HLOOKUP($A31&"_"&IF(X$4<10,"0"&X$4,X$4),ID_LR!$C$133:$JR$175,41,FALSE) -> 116.5858782 | Y31: =HLOOKUP($A31&"_"&IF(Y$4<10,"0"&Y$4,Y$4),ID_LR!$C$133:$JR$175,41,FALSE) -> 89.23288021 | Z31: =HLOOKUP($A31&"_"&IF(Z$4<10,"0"&Z$4,Z$4),ID_LR!$C$133:$JR$175,41,FALSE) -> 93.62340689 | AB31: =HLOOKUP($A31&"_"&IF(AB$4<10,"0"&AB$4,AB$4),System_LR!$C$132:$JR$174,41,FALSE) -> 199.1319372 | AC31: =HLOOKUP($A31&"_"&IF(AC$4<10,"0"&AC$4,AC$4),System_LR!$C$132:$JR$174,41,FALSE) -> 202.9691461 | AD31: =HLOOKUP($A31&"_"&IF(AD$4<10,"0"&AD$4,AD$4),System_LR!$C$132:$JR$174,41,FALSE) -> 349.5944128 | AE31: =HLOOKUP($A31&"_"&IF(AE$4<10,"0"&AE$4,AE$4),System_LR!$C$132:$JR$174,41,FALSE) -> 438.9858235 | AF31: =HLOOKUP($A31&"_"&IF(AF$4<10,"0"&AF$4,AF$4),System_LR!$C$132:$JR$174,41,FALSE) -> 558.4555073 | AG31: =HLOOKUP($A31&"_"&IF(AG$4<10,"0"&AG$4,AG$4),System_LR!$C$132:$JR$174,41,FALSE) -> 615.3614641 | AH31: =HLOOKUP($A31&"_"&IF(AH$4<10,"0"&AH$4,AH$4),System_LR!$C$132:$JR$174,41,FALSE) -> 303.1483822 | AI31: =HLOOKUP($A31&"_"&IF(AI$4<10,"0"&AI$4,AI$4),System_LR!$C$132:$JR$174,41,FALSE) -> 184.6649807 | AJ31: =HLOOKUP($A31&"_"&IF(AJ$4<10,"0"&AJ$4,AJ$4),System_LR!$C$132:$JR$174,41,FALSE) -> 281.7990675 | AK31: =HLOOKUP($A31&"_"&IF(AK$4<10,"0"&AK$4,AK$4),System_LR!$C$132:$JR$174,41,FALSE) -> 311.3027678 | AL31: =HLOOKUP($A31&"_"&IF(AL$4<10,"0"&AL$4,AL$4),System_LR!$C$132:$JR$174,41,FALSE) -> 252.2845237 | AM31: =HLOOKUP($A31&"_"&IF(AM$4<10,"0"&AM$4,AM$4),System_LR!$C$132:$JR$174,41,FALSE) -> 275.1761057 | AO31: =B31+O31-AB31 -> 4.547473509e-13 | AP31: =C31+P31-AC31 -> 5.684341886e-13 | AQ31: =D31+Q31-AD31 -> 0 | AR31: =E31+R31-AE31 -> 0 | AS31: =F31+S31-AF31 -> 0 | AT31: =G31+T31-AG31 -> 0 | AU31: =H31+U31-AH31 -> 0 | AV31: =I31+V31-AI31 -> 4.547473509e-13 | AW31: =J31+W31-AJ31 -> 0 | AX31: =K31+X31-AK31 -> 5.115907697e-13 | AY31: =L31+Y31-AL31 -> 3.97903932e-13 | AZ31: =M31+Z31-AM31 -> 0
... 35 more rows

Sheet Financial Summary
A1: Key Financial & Other Results
B2: Nominal Dollars (Millions)
A4: 0.0651 | B4: Discount Rate
A5: 0.0286282296 | B5: WA Misc Adder
A6: 0.000525708 | B6: ID Misc Adder
E7: Washington- Direct | AC7: Idaho- Direct | BA7: System/Shared Data
B8: Time | E8: 2023 | F8: 2024 | G8: 2025 | H8: 2026 | I8: 2027 | J8: 2028 | K8: 2029 | L8: 2030 | M8: 2031 | N8: 2032 | O8: 2033 | P8: 2034 | Q8: 2035 | R8: 2036 | S8: 2037 | T8: 2038 | U8: 2039 | V8: 2040 | W8: 2041 | X8: 2042 | Y8: 2043 | Z8: 2044 | AA8: 2045 | AC8: 2023 | AD8: 2024 | AE8: 2025 | AF8: 2026 | AG8: 2027 | AH8: 2028 | AI8: 2029 | AJ8: 2030 | AK8: 2031 | AL8: 2032 | AM8: 2033 | AN8: 2034 | AO8: 2035 | AP8: 2036 | AQ8: 2037 | AR8: 2038 | AS8: 2039 | AT8: 2040 | AU8: 2041 | AV8: 2042 | AW8: 2043 | AX8: 2044 | AY8: 2045 | BA8: 2023 | BB8: 2024 | BC8: 2025 | BD8: 2026 | BE8: 2027 | BF8: 2028 | BG8: 2029 | BH8: 2030 | BI8: 2031 | BJ8: 2032 | BK8: 2033 | BL8: 2034 | BM8: 2035 | BN8: 2036 | BO8: 2037 | BP8: 2038 | BQ8: 2039 | BR8: 2040 | BS8: 2041 | BT8: 2042 | BU8: 2043 | BV8: 2044 | BW8: 2045
B9: Retail Sales (GWh) | E9: =SUM('Clean Goals'!D10:O10)/1000 -> 5757.380494 | F9: =SUM('Clean Goals'!P10:AA10)/1000 -> 5804.039679 | G9: =SUM('Clean Goals'!AB10:AM10)/1000 -> 5837.351704 | H9: =SUM('Clean Goals'!AN10:AY10)/1000 -> 5807.954458 | I9: =SUM('Clean Goals'!AZ10:BK10)/1000 -> 5852.901802 | J9: =SUM('Clean Goals'!BL10:BW10)/1000 -> 5905.347707 | K9: =SUM('Clean Goals'!BX10:CI10)/1000 -> 5960.481381 | L9: =SUM('Clean Goals'!CJ10:CU10)/1000 -> 6024.05094 | M9: =SUM('Clean Goals'!CV10:DG10)/1000 -> 6109.403005 | N9: =SUM('Clean Goals'!DH10:DS10)/1000 -> 6212.557037 | O9: =SUM('Clean Goals'!DT10:EE10)/1000 -> 6323.11293 | P9: =SUM('Clean Goals'!EF10:EQ10)/1000 -> 6452.703568 | Q9: =SUM('Clean Goals'!ER10:FC10)/1000 -> 6597.678011 | R9: =SUM('Clean Goals'!FD10:FO10)/1000 -> 6761.804755 | S9: =SUM('Clean Goals'!FP10:GA10)/1000 -> 6926.025431 | T9: =SUM('Clean Goals'!GB10:GM10)/1000 -> 7094.919429 | U9: =SUM('Clean Goals'!GN10:GY10)/1000 -> 7262.389099 | V9: =SUM('Clean Goals'!GZ10:HK10)/1000 -> 7429.40557 | W9: =SUM('Clean Goals'!HL10:HW10)/1000 -> 7578.148706 | X9: =SUM('Clean Goals'!HX10:II10)/1000 -> 7727.209498 | Y9: =SUM('Clean Goals'!IJ10:IU10)/1000 -> 7865.557289 | Z9: =SUM('Clean Goals'!IV10:JG10)/1000 -> 8014.716721 | AA9: =SUM('Clean Goals'!JH10:JS10)/1000 -> 8138.662929 | AC9: =SUM('Clean Goals'!D111:O111)/1000 -> 3474.831089 | AD9: =SUM('Clean Goals'!P111:AA111)/1000 -> 3486.052892 | AE9: =SUM('Clean Goals'!AB111:AM111)/1000 -> 3498.01201 | AF9: =SUM('Clean Goals'!AN111:AY111)/1000 -> 3473.063439 | AG9: =SUM('Clean Goals'!AZ111:BK111)/1000 -> 3493.171104 | AH9: =SUM('Clean Goals'!BL111:BW111)/1000 -> 3511.641511 | AI9: =SUM('Clean Goals'!BX111:CI111)/1000 -> 3532.279889 | AJ9: =SUM('Clean Goals'!CJ111:CU111)/1000 -> 3551.073776 | AK9: =SUM('Clean Goals'!CV111:DG111)/1000 -> 3573.923936 | AL9: =SUM('Clean Goals'!DH111:DS111)/1000 -> 3597.198695 | AM9: =SUM('Clean Goals'!DT111:EE111)/1000 -> 3622.71339 | AN9: =SUM('Clean Goals'!EF111:EQ111)/1000 -> 3649.086279 | AO9: =SUM('Clean Goals'!ER111:FC111)/1000 -> 3676.709936 | AP9: =SUM('Clean Goals'!FD111:FO111)/1000 -> 3705.340799 | AQ9: =SUM('Clean Goals'!FP111:GA111)/1000 -> 3736.410379 | AR9: =SUM('Clean Goals'!GB111:GM111)/1000 -> 3768.911048 | AS9: =SUM('Clean Goals'!GN111:GY111)/1000 -> 3803.092957 | AT9: =SUM('Clean Goals'!GZ111:HK111)/1000 -> 3839.203752 | AU9: =SUM('Clean Goals'!HL111:HW111)/1000 -> 3878.392766 | AV9: =SUM('Clean Goals'!HX111:II111)/1000 -> 3919.891149 | AW9: =SUM('Clean Goals'!IJ111:IU111)/1000 -> 3964.206438 | AX9: =SUM('Clean Goals'!IV111:JG111)/1000 -> 4012.209625 | AY9: =SUM('Clean Goals'!JH111:JS111)/1000 -> 4064.709251 | BA9: =E9+AC9 -> 9232.211583 | BB9: 9290.092572 | BC9: 9335.363714 | BD9: 9281.017897 | BE9: 9346.072907 | BF9: 9416.989218 | BG9: 9492.76127 | BH9: 9575.124716 | BI9: 9683.326941 | BJ9: 9809.755732 | BK9: 9945.82632 | BL9: 10101.78985 | BM9: 10274.38795 | BN9: 10467.14555 | BO9: 10662.43581 | BP9: 10863.83048 | BQ9: 11065.48206 | BR9: 11268.60932 | BS9: 11456.54147 | BT9: 11647.10065 | BU9: 11829.76373 | BV9: 12026.92635 | BW9: 12203.37218
B10: Idaho Industrial Generation (GWh) | AC10: 385.8538046 | AD10: 387.76029 | AE10: 391.0558867 | AF10: 392.3589545 | AG10: 391.2769415 | AH10: 389.5533175 | AI10: 387.4083685 | AJ10: 391.261638 | AK10: 391.2301276 | AL10: 391.9428468 | AM10: 390.4102853 | AN10: 389.470685 | AO10: 391.3325645 | AP10: 392.2145713 | AQ10: 391.7119414 | AR10: 391.1708773 | AS10: 391.7423547 | AT10: 393.0679268 | AU10: 391.9381091 | AV10: 391.5688216 | AW10: 391.6233111 | AX10: 392.9899506 | AY10: 391.7903539
A11: Aurora | B11: Load Cost at Market Prices (No EE) | E11: =AVERAGE(Risk!B621:B920) -> 301.4779679 | F11: =AVERAGE(Risk!C621:C920) -> 275.4096739 | G11: =AVERAGE(Risk!D621:D920) -> 232.713078 | H11: =AVERAGE(Risk!E621:E920) -> 218.4646899 | I11: =AVERAGE(Risk!F621:F920) -> 199.2143057 | J11: =AVERAGE(Risk!G621:G920) -> 202.3268352 | K11: =AVERAGE(Risk!H621:H920) -> 204.9526367 | L11: =AVERAGE(Risk!I621:I920) -> 238.9773977 | M11: =AVERAGE(Risk!J621:J920) -> 230.4524536 | N11: =AVERAGE(Risk!K621:K920) -> 229.9683151 | O11: =AVERAGE(Risk!L621:L920) -> 241.5266659 | P11: =AVERAGE(Risk!M621:M920) -> 251.7803149 | Q11: =AVERAGE(Risk!N621:N920) -> 269.4702306 | R11: =AVERAGE(Risk!O621:O920) -> 283.4209873 | S11: =AVERAGE(Risk!P621:P920) -> 304.9148939 | T11: =AVERAGE(Risk!Q621:Q920) -> 312.5491565 | U11: =AVERAGE(Risk!R621:R920) -> 331.2020502 | V11: =AVERAGE(Risk!S621:S920) -> 361.4881621 | W11: =AVERAGE(Risk!T621:T920) -> 371.5248263 | X11: =AVERAGE(Risk!U621:U920) -> 399.0418899 | Y11: =AVERAGE(Risk!V621:V920) -> 418.4752675 | Z11: =AVERAGE(Risk!W621:W920) -> 482.0336105 | AA11: =AVERAGE(Risk!X621:X920) -> 489.707656 | AC11: =AVERAGE(Risk!Z621:Z920) -> 181.9536393 | AD11: =AVERAGE(Risk!AA621:AA920) -> 165.4127399 | AE11: =AVERAGE(Risk!AB621:AB920) -> 139.4418985 | AF11: =AVERAGE(Risk!AC621:AC920) -> 130.5088046 | AG11: =AVERAGE(Risk!AD621:AD920) -> 118.7703869 | AH11: =AVERAGE(Risk!AE621:AE920) -> 120.1773447 | AI11: =AVERAGE(Risk!AF621:AF920) -> 121.3066351 | AJ11: =AVERAGE(Risk!AG621:AG920) -> 140.6819053 | AK11: =AVERAGE(Risk!AH621:AH920) -> 134.6169672 | AL11: =AVERAGE(Risk!AI621:AI920) -> 132.9559861 | AM11: =AVERAGE(Risk!AJ621:AJ920) -> 138.1651322 | AN11: =AVERAGE(Risk!AK621:AK920) -> 142.1673309 | AO11: =AVERAGE(Risk!AL621:AL920) -> 149.9471598 | AP11: =AVERAGE(Risk!AM621:AM920) -> 155.0935035 | AQ11: =AVERAGE(Risk!AN621:AN920) -> 164.2812484 | AR11: =AVERAGE(Risk!AO621:AO920) -> 165.8307203 | AS11: =AVERAGE(Risk!AP621:AP920) -> 173.2482844 | AT11: =AVERAGE(Risk!AQ621:AQ920) -> 186.6106763 | AU11: =AVERAGE(Risk!AR621:AR920) -> 189.9595822 | AV11: =AVERAGE(Risk!AS621:AS920) -> 202.2452992 | AW11: =AVERAGE(Risk!AT621:AT920) -> 210.7272562 | AX11: =AVERAGE(Risk!AU621:AU920) -> 241.1047365 | AY11: =AVERAGE(Risk!AV621:AV920) -> 244.3662624
B13: Energy Efficiency
B14: Optimization Cost | E14: =EE_Selection!BG4 -> 0.8022059399 | F14: =EE_Selection!BH4 -> 1.827394848 | G14: =EE_Selection!BI4 -> 2.870802244 | H14: =EE_Selection!BJ4 -> 4.220083674 | I14: =EE_Selection!BK4 -> 5.818660323 | J14: =EE_Selection!BL4 -> 7.705673948 | K14: =EE_Selection!BM4 -> 9.799964238 | L14: =EE_Selection!BN4 -> 11.89941909 | M14: =EE_Selection!BO4 -> 14.00066352 | N14: =EE_Selection!BP4 -> 15.9495139 | O14: =EE_Selection!BQ4 -> 17.68944334 | P14: =EE_Selection!BR4 -> 19.15552425 | Q14: =EE_Selection!BS4 -> 20.38849334 | R14: =EE_Selection!BT4 -> 21.44312822 | S14: =EE_Selection!BU4 -> 22.38074726 | T14: =EE_Selection!BV4 -> 23.18478084 | U14: =EE_Selection!BW4 -> 23.94501808 | V14: =EE_Selection!BX4 -> 24.65757006 | W14: =EE_Selection!BY4 -> 25.3498361 | X14: =EE_Selection!BZ4 -> 26.03417219 | Y14: =EE_Selection!CA4 -> 26.71488673 | Z14: =EE_Selection!CB4 -> 27.43218162 | AA14: =EE_Selection!CC4 -> 28.19352946 | AC14: =EE_Selection!CE5 -> 0.08859478884 | AD14: =EE_Selection!CF5 -> 0.1964501107 | AE14: =EE_Selection!CG5 -> 0.2845057293 | AF14: =EE_Selection!CH5 -> 0.4050729712 | AG14: =EE_Selection!CI5 -> 0.5443805256 | AH14: =EE_Selection!CJ5 -> 0.7051820457 | AI14: =EE_Selection!CK5 -> 0.8831059034 | AJ14: =EE_Selection!CL5 -> 1.039060547 | AK14: =EE_Selection!CM5 -> 1.22291988 | AL14: =EE_Selection!CN5 -> 1.405822796 | AM14: =EE_Selection!CO5 -> 1.564480214 | AN14: =EE_Selection!CP5 -> 1.713058182 | AO14: =EE_Selection!CQ5 -> 1.853086405 | AP14: =EE_Selection!CR5 -> 1.986741983 | AQ14: =EE_Selection!CS5 -> 2.112500388 | AR14: =EE_Selection!CT5 -> 2.219929077 | AS14: =EE_Selection!CU5 -> 2.323252031 | AT14: =EE_Selection!CV5 -> 2.416027932 | AU14: =EE_Selection!CW5 -> 2.502996085 | AV14: =EE_Selection!CX5 -> 2.585751072 | AW14: =EE_Selection!CY5 -> 2.657635767 | AX14: =EE_Selection!CZ5 -> 2.7307219 | AY14: =EE_Selection!DA5 -> 2.803665074
B15: Market Value | E15: =-EE_Mrkt_Value!AD4 -> -1.081418916 | F15: =-EE_Mrkt_Value!AE4 -> -2.122338774 | G15: =-EE_Mrkt_Value!AF4 -> -2.864503096 | H15: =-EE_Mrkt_Value!AG4 -> -3.754074346 | I15: =-EE_Mrkt_Value!AH4 -> -4.485056821 | J15: =-EE_Mrkt_Value!AI4 -> -5.695798931 | K15: =-EE_Mrkt_Value!AJ4 -> -6.949979865 | L15: =-EE_Mrkt_Value!AK4 -> -9.303211971 | M15: =-EE_Mrkt_Value!AL4 -> -10.15742808 | N15: =-EE_Mrkt_Value!AM4 -> -11.13346611 | O15: =-EE_Mrkt_Value!AN4 -> -12.50856032 | P15: =-EE_Mrkt_Value!AO4 -> -13.73315728 | Q15: =-EE_Mrkt_Value!AP4 -> -15.29005207 | R15: =-EE_Mrkt_Value!AQ4 -> -16.47983595 | S15: =-EE_Mrkt_Value!AR4 -> -17.90275877 | T15: =-EE_Mrkt_Value!AS4 -> -18.45557757 | U15: =-EE_Mrkt_Value!AT4 -> -19.56668293 | V15: =-EE_Mrkt_Value!AU4 -> -21.27055917 | W15: =-EE_Mrkt_Value!AV4 -> -21.80357095 | X15: =-EE_Mrkt_Value!AW4 -> -23.27620431 | Y15: =-EE_Mrkt_Value!AX4 -> -24.11564238 | Z15: =-EE_Mrkt_Value!AY4 -> -27.57698937 | AA15: =-EE_Mrkt_Value!AZ4 -> -27.69616252 | AC15: =-EE_Mrkt_Value!BB4 -> -0.4067682334 | AD15: =-EE_Mrkt_Value!BC4 -> -0.7972169482 | AE15: =-EE_Mrkt_Value!BD4 -> -1.058493839 | AF15: =-EE_Mrkt_Value!BE4 -> -1.364246004 | AG15: =-EE_Mrkt_Value!BF4 -> -1.590536293 | AH15: =-EE_Mrkt_Value!BG4 -> -1.979937776 | AI15: =-EE_Mrkt_Value!BH4 -> -2.377341872 | AJ15: =-EE_Mrkt_Value!BI4 -> -3.19794877 | AK15: =-EE_Mrkt_Value!BJ4 -> -3.425962803 | AL15: =-EE_Mrkt_Value!BK4 -> -3.732172457 | AM15: =-EE_Mrkt_Value!BL4 -> -4.172584346 | AN15: =-EE_Mrkt_Value!BM4 -> -4.581359437 | AO15: =-EE_Mrkt_Value!BN4 -> -5.082036723 | AP15: =-EE_Mrkt_Value!BO4 -> -5.494669229 | AQ15: =-EE_Mrkt_Value!BP4 -> -6.016128203 | AR15: =-EE_Mrkt_Value!BQ4 -> -6.192900925 | AS15: =-EE_Mrkt_Value!BR4 -> -6.572697928 | AT15: =-EE_Mrkt_Value!BS4 -> -7.192225571 | AU15: =-EE_Mrkt_Value!BT4 -> -7.388183778 | AV15: =-EE_Mrkt_Value!BU4 -> -7.958882796 | AW15: =-EE_Mrkt_Value!BV4 -> -8.235057348 | AX15: =-EE_Mrkt_Value!BW4 -> -9.445668413 | AY15: =-EE_Mrkt_Value!BX4 -> -9.461378439
B16: T&D Adjustment | E16: =-(G_A!Q$18*EE_Selection!DC$4*1000)/1000000 -> -0.03789989596 | F16: =-(G_A!R$18*EE_Selection!DD$4*1000)/1000000 -> -0.0852457862 | G16: =-(G_A!S$18*EE_Selection!DE$4*1000)/1000000 -> -0.1386901632 | H16: =-(G_A!T$18*EE_Selection!DF$4*1000)/1000000 -> -0.2017392958 | I16: =-(G_A!U$18*EE_Selection!DG$4*1000)/1000000 -> -0.269268454 | J16: =-(G_A!V$18*EE_Selection!DH$4*1000)/1000000 -> -0.3410921946 | K16: =-(G_A!W$18*EE_Selection!DI$4*1000)/1000000 -> -0.4132365599 | L16: =-(G_A!X$18*EE_Selection!DJ$4*1000)/1000000 -> -0.4821072682 | M16: =-(G_A!Y$18*EE_Selection!DK$4*1000)/1000000 -> -0.5608579163 | N16: =-(G_A!Z$18*EE_Selection!DL$4*1000)/1000000 -> -0.6439244098 | O16: =-(G_A!AA$18*EE_Selection!DM$4*1000)/1000000 -> -0.7238762976 | P16: =-(G_A!AB$18*EE_Selection!DN$4*1000)/1000000 -> -0.8057567854 | Q16: =-(G_A!AC$18*EE_Selection!DO$4*1000)/1000000 -> -0.8861959138 | R16: =-(G_A!AD$18*EE_Selection!DP$4*1000)/1000000 -> -0.9676263885 | S16: =-(G_A!AE$18*EE_Selection!DQ$4*1000)/1000000 -> -1.040812533 | T16: =-(G_A!AF$18*EE_Selection!DR$4*1000)/1000000 -> -1.106304883 | U16: =-(G_A!AG$18*EE_Selection!DS$4*1000)/1000000 -> -1.169010904 | V16: =-(G_A!AH$18*EE_Selection!DT$4*1000)/1000000 -> -1.231952612 | W16: =-(G_A!AI$18*EE_Selection!DU$4*1000)/1000000 -> -1.287793581 | X16: =-(G_A!AJ$18*EE_Selection!DV$4*1000)/1000000 -> -1.345455669 | Y16: =-(G_A!AK$18*EE_Selection!DW$4*1000)/1000000 -> -1.38065016 | Z16: =-(G_A!AL$18*EE_Selection!DX$4*1000)/1000000 -> -1.421086489 | AA16: =-(G_A!AM$18*EE_Selection!DY$4*1000)/1000000 -> -1.443561088 | AC16: =-(G_A!Q$18*EE_Selection!DC$5*1000)/1000000 -> -0.01819261518 | AD16: =-(G_A!R$18*EE_Selection!DD$5*1000)/1000000 -> -0.04050943151 | AE16: =-(G_A!S$18*EE_Selection!DE$5*1000)/1000000 -> -0.06632230379 | AF16: =-(G_A!T$18*EE_Selection!DF$5*1000)/1000000 -> -0.09637543242 | AG16: =-(G_A!U$18*EE_Selection!DG$5*1000)/1000000 -> -0.1288967603 | AH16: =-(G_A!V$18*EE_Selection!DH$5*1000)/1000000 -> -0.1636866416 | AI16: =-(G_A!W$18*EE_Selection!DI$5*1000)/1000000 -> -0.1986223159 | AJ16: =-(G_A!X$18*EE_Selection!DJ$5*1000)/1000000 -> -0.2333308597 | AK16: =-(G_A!Y$18*EE_Selection!DK$5*1000)/1000000 -> -0.2709708249 | AL16: =-(G_A!Z$18*EE_Selection!DL$5*1000)/1000000 -> -0.3100438662 | AM16: =-(G_A!AA$18*EE_Selection!DM$5*1000)/1000000 -> -0.3467281401 | AN16: =-(G_A!AB$18*EE_Selection!DN$5*1000)/1000000 -> -0.383808775 | AO16: =-(G_A!AC$18*EE_Selection!DO$5*1000)/1000000 -> -0.4195435715 | AP16: =-(G_A!AD$18*EE_Selection!DP$5*1000)/1000000 -> -0.4552431292 | AQ16: =-(G_A!AE$18*EE_Selection!DQ$5*1000)/1000000 -> -0.4868216454 | AR16: =-(G_A!AF$18*EE_Selection!DR$5*1000)/1000000 -> -0.5144684779 | AS16: =-(G_A!AG$18*EE_Selection!DS$5*1000)/1000000 -> -0.5407919032 | AT16: =-(G_A!AH$18*EE_Selection!DT$5*1000)/1000000 -> -0.5670939568 | AU16: =-(G_A!AI$18*EE_Selection!DU$5*1000)/1000000 -> -0.5893449894 | AV16: =-(G_A!AJ$18*EE_Selection!DV$5*1000)/1000000 -> -0.6128293471 | AW16: =-(G_A!AK$18*EE_Selection!DW$5*1000)/1000000 -> -0.6256541489 | AX16: =-(G_A!AL$18*EE_Selection!DX$5*1000)/1000000 -> -0.6401776635 | AY16: =-(G_A!AM$18*EE_Selection!DY$5*1000)/1000000 -> -0.6487871984
B17: Non-Energy Impacts | E17: =-SUMPRODUCT(EE_Selection!$EY$21:$EY$1509,EE_Selection!K$21:K$1509)*G_A!Q$10/100 -> -0.895792594 | F17: =-SUMPRODUCT(EE_Selection!$EY$21:$EY$1509,EE_Selection!L$21:L$1509)*G_A!R$10/100 -> -2.008185631 | G17: =-SUMPRODUCT(EE_Selection!$EY$21:$EY$1509,EE_Selection!M$21:M$1509)*G_A!S$10/100 -> -3.3321895 | H17: =-SUMPRODUCT(EE_Selection!$EY$21:$EY$1509,EE_Selection!N$21:N$1509)*G_A!T$10/100 -> -4.858221531 | I17: =-SUMPRODUCT(EE_Selection!$EY$21:$EY$1509,EE_Selection!O$21:O$1509)*G_A!U$10/100 -> -6.564307283 | J17: =-SUMPRODUCT(EE_Selection!$EY$21:$EY$1509,EE_Selection!P$21:P$1509)*G_A!V$10/100 -> -8.49594719 | K17: =-SUMPRODUCT(EE_Selection!$EY$21:$EY$1509,EE_Selection!Q$21:Q$1509)*G_A!W$10/100 -> -10.55577595 | L17: =-SUMPRODUCT(EE_Selection!$EY$21:$EY$1509,EE_Selection!R$21:R$1509)*G_A!X$10/100 -> -12.58929896 | M17: =-SUMPRODUCT(EE_Selection!$EY$21:$EY$1509,EE_Selection!S$21:S$1509)*G_A!Y$10/100 -> -14.58273149 | N17: =-SUMPRODUCT(EE_Selection!$EY$21:$EY$1509,EE_Selection!T$21:T$1509)*G_A!Z$10/100 -> -16.41065602 | O17: =-SUMPRODUCT(EE_Selection!$EY$21:$EY$1509,EE_Selection!U$21:U$1509)*G_A!AA$10/100 -> -18.02784108 | P17: =-SUMPRODUCT(EE_Selection!$EY$21:$EY$1509,EE_Selection!V$21:V$1509)*G_A!AB$10/100 -> -19.41893721 | Q17: =-SUMPRODUCT(EE_Selection!$EY$21:$EY$1509,EE_Selection!W$21:W$1509)*G_A!AC$10/100 -> -20.63841326 | R17: =-SUMPRODUCT(EE_Selection!$EY$21:$EY$1509,EE_Selection!X$21:X$1509)*G_A!AD$10/100 -> -21.73725114 | S17: =-SUMPRODUCT(EE_Selection!$EY$21:$EY$1509,EE_Selection!Y$21:Y$1509)*G_A!AE$10/100 -> -22.77275646 | T17: =-SUMPRODUCT(EE_Selection!$EY$21:$EY$1509,EE_Selection!Z$21:Z$1509)*G_A!AF$10/100 -> -23.72788148 | U17: =-SUMPRODUCT(EE_Selection!$EY$21:$EY$1509,EE_Selection!AA$21:AA$1509)*G_A!AG$10/100 -> -24.67548283 | V17: =-SUMPRODUCT(EE_Selection!$EY$21:$EY$1509,EE_Selection!AB$21:AB$1509)*G_A!AH$10/100 -> -25.62941612 | W17: =-SUMPRODUCT(EE_Selection!$EY$21:$EY$1509,EE_Selection!AC$21:AC$1509)*G_A!AI$10/100 -> -26.61384632 | X17: =-SUMPRODUCT(EE_Selection!$EY$21:$EY$1509,EE_Selection!AD$21:AD$1509)*G_A!AJ$10/100 -> -27.62486269 | Y17: =-SUMPRODUCT(EE_Selection!$EY$21:$EY$1509,EE_Selection!AE$21:AE$1509)*G_A!AK$10/100 -> -28.48403208 | Z17: =-SUMPRODUCT(EE_Selection!$EY$21:$EY$1509,EE_Selection!AF$21:AF$1509)*G_A!AL$10/100 -> -29.36447886 | AA17: =-SUMPRODUCT(EE_Selection!$EY$21:$EY$1509,EE_Selection!AG$21:AG$1509)*G_A!AM$10/100 -> -30.2129838 | AC17: 0 | AD17: 0 | AE17: 0 | AF17: 0 | AG17: 0 | AH17: 0 | AI17: 0 | AJ17: 0 | AK17: 0 | AL17: 0 | AM17: 0 | AN17: 0 | AO17: 0 | AP17: 0 | AQ17: 0 | AR17: 0 | AS17: 0 | AT17: 0 | AU17: 0 | AV17: 0 | AW17: 0 | AX17: 0 | AY17: 0
B18: Power Act Energy/T&D- 10% Adder | E18: =SUM(E15:E16)*0.1 -> -0.1119318812 | F18: -0.220758456 | G18: -0.3003193259 | H18: -0.3955813642 | I18: -0.4754325275 | J18: -0.6036891125 | K18: -0.7363216425 | L18: -0.9785319239 | M18: -1.0718286 | N18: -1.177739052 | O18: -1.323243661 | P18: -1.453891407 | Q18: -1.617624798 | R18: -1.744746233 | S18: -1.89435713 | T18: -1.956188245 | U18: -2.073569383 | V18: -2.250251178 | W18: -2.309136453 | X18: -2.462165998 | Y18: -2.549629254 | Z18: -2.899807586 | AA18: =SUM(AA15:AA16)*0.1 -> -2.913972361 | AC18: 0 | AD18: 0 | AE18: 0 | AF18: 0 | AG18: 0 | AH18: 0 | AI18: 0 | AJ18: 0 | AK18: 0 | AL18: 0 | AM18: 0 | AN18: 0 | AO18: 0 | AP18: 0 | AQ18: 0 | AR18: 0 | AS18: 0 | AT18: 0 | AU18: 0 | AV18: 0 | AW18: 0 | AX18: 0 | AY18: 0
B19: Capacity Power Act- 10% Adder | E19: =EE_Selection!DC$4*0.1*-G_A!Q20/1000 -> 0 | F19: =EE_Selection!DD$4*0.1*-G_A!R20/1000 -> 0 | G19: =EE_Selection!DE$4*0.1*-G_A!S20/1000 -> 0 | H19: =EE_Selection!DF$4*0.1*-G_A!T20/1000 -> 0 | I19: =EE_Selection!DG$4*0.1*-G_A!U20/1000 -> -0.08406546747 | J19: =EE_Selection!DH$4*0.1*-G_A!V20/1000 -> -0.1086185769 | K19: =EE_Selection!DI$4*0.1*-G_A!W20/1000 -> -0.1342243274 | L19: =EE_Selection!DJ$4*0.1*-G_A!X20/1000 -> -0.1597262699 | M19: =EE_Selection!DK$4*0.1*-G_A!Y20/1000 -> -0.1895333752 | N19: =EE_Selection!DL$4*0.1*-G_A!Z20/1000 -> -0.2219565178 | O19: =EE_Selection!DM$4*0.1*-G_A!AA20/1000 -> -0.254505717 | P19: =EE_Selection!DN$4*0.1*-G_A!AB20/1000 -> -0.2889597342 | Q19: =EE_Selection!DO$4*0.1*-G_A!AC20/1000 -> -0.3241628729 | R19: =EE_Selection!DP$4*0.1*-G_A!AD20/1000 -> -0.3610284318 | S19: =EE_Selection!DQ$4*0.1*-G_A!AE20/1000 -> -0.3961014081 | T19: =EE_Selection!DR$4*0.1*-G_A!AF20/1000 -> -0.4294463085 | U19: =EE_Selection!DS$4*0.1*-G_A!AG20/1000 -> -0.4628633334 | V19: =EE_Selection!DT$4*0.1*-G_A!AH20/1000 -> -0.497540446 | W19: =EE_Selection!DU$4*0.1*-G_A!AI20/1000 -> -0.5304944151 | X19: =EE_Selection!DV$4*0.1*-G_A!AJ20/1000 -> -0.5653327236 | Y19: =EE_Selection!DW$4*0.1*-G_A!AK20/1000 -> -0.5917231371 | Z19: =EE_Selection!DX$4*0.1*-G_A!AL20/1000 -> -0.621234528 | AA19: =EE_Selection!DY$4*0.1*-G_A!AM20/1000 -> -0.643680591 | AC19: 0 | AD19: 0 | AE19: 0 | AF19: 0 | AG19: 0 | AH19: 0 | AI19: 0 | AJ19: 0 | AK19: 0 | AL19: 0 | AM19: 0 | AN19: 0 | AO19: 0 | AP19: 0 | AQ19: 0 | AR19: 0 | AS19: 0 | AT19: 0 | AU19: 0 | AV19: 0 | AW19: 0 | AX19: 0 | AY19: 0
B20: Energy Savings from DR Power Act Adder | E20: =-DR!C119/1000000 -> 0 | F20: =-DR!D119/1000000 -> 0 | G20: =-DR!E119/1000000 -> -0.02617580639 | H20: =-DR!F119/1000000 -> -0.08510293305 | I20: =-DR!G119/1000000 -> -0.1924163054 | J20: =-DR!H119/1000000 -> -0.23705213 | K20: =-DR!I119/1000000 -> -0.2716048034 | L20: =-DR!J119/1000000 -> -0.3233802067 | M20: =-DR!K119/1000000 -> -0.3042127198 | N20: =-DR!L119/1000000 -> -0.2903016581 | O20: =-DR!M119/1000000 -> -0.3084389067 | P20: =-DR!N119/1000000 -> -0.3089694416 | Q20: =-DR!O119/1000000 -> -0.3395546925 | R20: =-DR!P119/1000000 -> -0.3512053445 | S20: =-DR!Q119/1000000 -> -0.3585054754 | T20: =-DR!R119/1000000 -> -0.3858419603 | U20: =-DR!S119/1000000 -> -0.3301292456 | V20: =-DR!T119/1000000 -> -0.3572383349 | W20: =-DR!U119/1000000 -> -0.3628268081 | X20: =-DR!V119/1000000 -> -0.3906856832 | Y20: =-DR!W119/1000000 -> -0.3983542274 | Z20: =-DR!X119/1000000 -> -0.4532240973 | AA20: =-DR!Y119/1000000 -> -0.3618026284 | AC20: =DR!AB119/1000000 -> 0 | AD20: =DR!AC119/1000000 -> 0 | AE20: =DR!AD119/1000000 -> 0 | AF20: =DR!AE119/1000000 -> 0 | AG20: =DR!AF119/1000000 -> 0 | AH20: =DR!AG119/1000000 -> 0 | AI20: =DR!AH119/1000000 -> 0 | AJ20: =DR!AI119/1000000 -> 0 | AK20: =DR!AJ119/1000000 -> 0 | AL20: =DR!AK119/1000000 -> 0 | AM20: =DR!AL119/1000000 -> 0 | AN20: =DR!AM119/1000000 -> 0 | AO20: =DR!AN119/1000000 -> 0 | AP20: =DR!AO119/1000000 -> 0 | AQ20: =DR!AP119/1000000 -> 0 | AR20: =DR!AQ119/1000000 -> 0 | AS20: =DR!AR119/1000000 -> 0 | AT20: =DR!AS119/1000000 -> 0 | AU20: =DR!AT119/1000000 -> 0 | AV20: =DR!AU119/1000000 -> 0 | AW20: =DR!AV119/1000000 -> 0 | AX20: =DR!AW119/1000000 -> 0 | AY20: =DR!AX119/1000000 -> 0
B22: Existing/Committed Thermal Plant Capital Recovery
B23: Coyote Springs 2 | E23: =BA23*G_A!Q$9 -> 10.50248668 | F23: =BB23*G_A!R$9 -> 10.10531712 | G23: =BC23*G_A!S$9 -> 9.728413023 | H23: =BD23*G_A!T$9 -> 9.36357926 | I23: =BE23*G_A!U$9 -> 9.003665223 | J23: =BF23*G_A!V$9 -> 8.646034918 | K23: =BG23*G_A!W$9 -> 8.29135669 | L23: =BH23*G_A!X$9 -> 7.937870384 | M23: =BI23*G_A!Y$9 -> 7.587471964 | N23: =BJ23*G_A!Z$9 -> 7.23997575 | O23: =BK23*G_A!AA$9 -> 6.892479535 | P23: =BL23*G_A!AB$9 -> 6.54498332 | Q23: =BM23*G_A!AC$9 -> 6.197487105 | R23: =BN23*G_A!AD$9 -> 5.84999089 | S23: =BO23*G_A!AE$9 -> 5.502494676 | T23: =BP23*G_A!AF$9 -> 5.154139652 | U23: =BQ23*G_A!AG$9 -> 4.422900899 | V23: =BR23*G_A!AH$9 -> 0.01455210206 | W23: =BS23*G_A!AI$9 -> 0.00873125181 | X23: =BT23*G_A!AJ$9 -> 0.002910413341 | Y23: =BU23*G_A!AK$9 -> 0 | Z23: =BV23*G_A!AL$9 -> 0 | AA23: =BW23*G_A!AM$9 -> 0 | AC23: =BA23*(1-G_A!Q$9) -> 5.805722449 | AD23: =BB23*(1-G_A!R$9) -> 5.586169092 | AE23: =BC23*(1-G_A!S$9) -> 5.377818379 | AF23: =BD23*(1-G_A!T$9) -> 5.176140088 | AG23: =BE23*(1-G_A!U$9) -> 4.977181397 | AH23: =BF23*(1-G_A!V$9) -> 4.779485141 | AI23: =BG23*(1-G_A!W$9) -> 4.583420779 | AJ23: =BH23*(1-G_A!X$9) -> 4.388015305 | AK23: =BI23*(1-G_A!Y$9) -> 4.1943168 | AL23: =BJ23*(1-G_A!Z$9) -> 4.002222619 | AM23: =BK23*(1-G_A!AA$9) -> 3.810128439 | AN23: =BL23*(1-G_A!AB$9) -> 3.618034258 | AO23: =BM23*(1-G_A!AC$9) -> 3.425940077 | AP23: =BN23*(1-G_A!AD$9) -> 3.233845896 | AQ23: =BO23*(1-G_A!AE$9) -> 3.041751715 | AR23: =BP23*(1-G_A!AF$9) -> 2.849182789 | AS23: =BQ23*(1-G_A!AG$9) -> 2.44495764 | AT23: =BR23*(1-G_A!AH$9) -> 0.008044329713 | AU23: =BS23*(1-G_A!AI$9) -> 0.004826592616 | AV23: =BT23*(1-G_A!AJ$9) -> 0.001608862033 | AW23: =BU23*(1-G_A!AK$9) -> 0 | AX23: =BV23*(1-G_A!AL$9) -> 0 | AY23: =BW23*(1-G_A!AM$9) -> 0 | BA23: 16.30820913 | BB23: 15.69148621 | BC23: 15.1062314 | BD23: 14.53971935 | BE23: 13.98084662 | BF23: 13.42552006 | BG23: 12.87477747 | BH23: 12.32588569 | BI23: 11.78178876 | BJ23: 11.24219837 | BK23: 10.70260797 | BL23: 10.16301758 | BM23: 9.623427182 | BN23: 9.083836786 | BO23: 8.544246391 | BP23: 8.003322441 | BQ23: 6.867858539 | BR23: 0.02259643178 | BS23: 0.01355784443 | BT23: 0.004519275375 | BU23: 0 | BV23: 0 | BW23: 0
B24: Colstrip 3 | E24: 6.000054634 | F24: 5.607486538 | G24: 5.215953325 | H24: 0.1271562719 | I24: 0.1122001538 | J24: 0.09872719079 | K24: 0.08632776326 | L24: 0.07432529992 | M24: 0.06551486563 | N24: 0.05981791124 | O24: 0.05412095686 | P24: 0.04842400247 | Q24: 0.04272704808 | R24: 0.0370300937 | S24: 0.03133313931 | T24: 0.02563618493 | U24: 0.01993923054 | V24: 0.01424227616 | W24: 0.008545321771 | X24: 0.002848422289 | Y24: 0 | Z24: 0 | AA24: 0 | AC24: 2.929392457 | AD24: 2.754183034 | AE24: 2.579511238 | AF24: 2.405350833 | AG24: 2.080024027 | AH24: 0.05130470171 | AI24: 0.04484374332 | AJ24: 0.03858948936 | AK24: 0.03400436673 | AL24: 0.03104746058 | AM24: 0.02809055444 | AN24: 0.0251336483 | AO24: 0.02217674215 | AP24: 0.01921983601 | AQ24: 0.01626292986 | AR24: 0.01330602372 | AS24: 0.01034911757 | AT24: 0.007392211431 | AU24: 0.004435305286 | AV24: 0.001478426107 | AW24: 0 | AX24: 0 | AY24: 0 | BA24: =E24+AC24 -> 8.929447091 | BB24: =F24+AD24 -> 8.361669572 | BC24: 7.795464564 | BD24: 2.532507105 | BE24: 2.192224181 | BF24: 0.1500318925 | BG24: 0.1311715066 | BH24: 0.1129147893 | BI24: 0.09951923236 | BJ24: 0.09086537183 | BK24: 0.0822115113 | BL24: 0.07355765077 | BM24: 0.06490379024 | BN24: 0.05624992971 | BO24: 0.04759606918 | BP24: 0.03894220865 | BQ24: 0.03028834812 | BR24: 0.02163448759 | BS24: 0.01298062706 | BT24: 0.004326848396 | BU24: 0 | BV24: 0 | BW24: 0
B25: Colstrip 4 | E25: 6.806596975 | F25: 6.366853385 | G25: 5.928163255 | H25: 0.1092644801 | I25: 0.09758228939 | J25: 0.0866667398 | K25: 0.07639341001 | L25: 0.06678921206 | M25: 0.05955620276 | N25: 0.05437739456 | O25: 0.04919858637 | P25: 0.04401977817 | Q25: 0.03884096997 | R25: 0.03366216177 | S25: 0.02848335358 | T25: 0.02330454538 | U25: 0.01812573718 | V25: 0.01294692899 | W25: 0.007768120789 | X25: 0.002589358345 | Y25: 0 | Z25: 0 | AA25: 0 | AC25: 2.85615854 | AD25: 2.68001376 | AE25: 2.504416008 | AF25: 2.329400592 | AG25: 0.851277382 | AH25: 0.04498500378 | AI25: 0.03964000844 | AJ25: 0.0346435083 | AK25: 0.03088497869 | AL25: 0.02819932212 | AM25: 0.02551366555 | AN25: 0.02282800897 | AO25: 0.0201423524 | AP25: 0.01745669582 | AQ25: 0.01477103925 | AR25: 0.01208538268 | AS25: 0.009399726102 | AT25: 0.006714069528 | AU25: 0.004028412954 | AV25: 0.001342792334 | AW25: 0 | AX25: 0 | AY25: 0 | BA25: =E25+AC25 -> 9.662755515 | BB25: 9.046867145 | BC25: 8.432579263 | BD25: 2.438665072 | BE25: 0.9488596714 | BF25: 0.1316517436 | BG25: 0.1160334184 | BH25: 0.1014327204 | BI25: 0.09044118146 | BJ25: 0.08257671668 | BK25: 0.07471225191 | BL25: 0.06684778714 | BM25: 0.05898332237 | BN25: 0.0511188576 | BO25: 0.04325439283 | BP25: 0.03538992806 | BQ25: 0.02752546329 | BR25: 0.01966099851 | BS25: 0.01179653374 | BT25: 0.003932150679 | BU25: 0 | BV25: 0 | BW25: 0
B26: Kettle Falls | E26: =BA26*G_A!Q$9 -> 5.833478203 | F26: =BB26*G_A!R$9 -> 5.6339439 | G26: =BC26*G_A!S$9 -> 5.43661629 | H26: =BD26*G_A!T$9 -> 5.241394991 | I26: =BE26*G_A!U$9 -> 5.047988353 | J26: =BF26*G_A!V$9 -> 4.856324049 | K26: =BG26*G_A!W$9 -> 4.664717489 | L26: =BH26*G_A!X$9 -> 4.465002229 | M26: =BI26*G_A!Y$9 -> 4.260300411 | N26: =BJ26*G_A!Z$9 -> 4.057851946 | O26: =BK26*G_A!AA$9 -> 3.855403482 | P26: =BL26*G_A!AB$9 -> 3.652955018 | Q26: =BM26*G_A!AC$9 -> 3.450506553 | R26: =BN26*G_A!AD$9 -> 3.248058089 | S26: =BO26*G_A!AE$9 -> 3.045609625 | T26: =BP26*G_A!AF$9 -> 2.84316116 | U26: =BQ26*G_A!AG$9 -> 2.640712696 | V26: =BR26*G_A!AH$9 -> 2.438264232 | W26: =BS26*G_A!AI$9 -> 0.5057245198 | X26: =BT26*G_A!AJ$9 -> 0.009137704919 | Y26: =BU26*G_A!AK$9 -> 0 | Z26: =BV26*G_A!AL$9 -> 0 | AA26: =BW26*G_A!AM$9 -> 0 | AC26: =BA26*(1-G_A!Q$9) -> 3.224717764 | AD26: =BB26*(1-G_A!R$9) -> 3.114416193 | AE26: =BC26*(1-G_A!S$9) -> 3.005334471 | AF26: =BD26*(1-G_A!T$9) -> 2.897417107 | AG26: =BE26*(1-G_A!U$9) -> 2.790502878 | AH26: =BF26*(1-G_A!V$9) -> 2.684551804 | AI26: =BG26*(1-G_A!W$9) -> 2.578632649 | AJ26: =BH26*(1-G_A!X$9) -> 2.468231046 | AK26: =BI26*(1-G_A!Y$9) -> 2.355072898 | AL26: =BJ26*(1-G_A!Z$9) -> 2.243160393 | AM26: =BK26*(1-G_A!AA$9) -> 2.131247887 | AN26: =BL26*(1-G_A!AB$9) -> 2.019335382 | AO26: =BM26*(1-G_A!AC$9) -> 1.907422877 | AP26: =BN26*(1-G_A!AD$9) -> 1.795510372 | AQ26: =BO26*(1-G_A!AE$9) -> 1.683597867 | AR26: =BP26*(1-G_A!AF$9) -> 1.571685362 | AS26: =BQ26*(1-G_A!AG$9) -> 1.459772857 | AT26: =BR26*(1-G_A!AH$9) -> 1.347860352 | AU26: =BS26*(1-G_A!AI$9) -> 0.2795620016 | AV26: =BT26*(1-G_A!AJ$9) -> 0.005051277874 | AW26: =BU26*(1-G_A!AK$9) -> 0 | AX26: =BV26*(1-G_A!AL$9) -> 0 | AY26: =BW26*(1-G_A!AM$9) -> 0 | BA26: 9.058195967 | BB26: 8.748360093 | BC26: 8.441950761 | BD26: 8.138812098 | BE26: 7.838491231 | BF26: 7.540875853 | BG26: 7.243350138 | BH26: 6.933233274 | BI26: 6.615373308 | BJ26: 6.301012339 | BK26: 5.986651369 | BL26: 5.6722904 | BM26: 5.35792943 | BN26: 5.043568461 | BO26: 4.729207492 | BP26: 4.414846522 | BQ26: 4.100485553 | BR26: 3.786124583 | BS26: 0.7852865214 | BT26: 0.01418898279 | BU26: 0 | BV26: 0 | BW26: 0
B27: Kettle Falls CT | E27: =BA27*G_A!Q$9 -> 0.3703716046 | F27: =BB27*G_A!R$9 -> 0.3522105282 | G27: =BC27*G_A!S$9 -> 0.3340655279 | H27: =BD27*G_A!T$9 -> 0.3159208223 | I27: =BE27*G_A!U$9 -> 0.2977764585 | J27: =BF27*G_A!V$9 -> 0.2794549004 | K27: =BG27*G_A!W$9 -> 0.2602378769 | L27: =BH27*G_A!X$9 -> 0.1295434083 | M27: =BI27*G_A!Y$9 -> 0.001096790483 | N27: =BJ27*G_A!Z$9 -> 0.0005602254714 | O27: =BK27*G_A!AA$9 -> 0.0001458639353 | P27: =BL27*G_A!AB$9 -> 0 | Q27: =BM27*G_A!AC$9 -> 0 | R27: =BN27*G_A!AD$9 -> 0 | S27: =BO27*G_A!AE$9 -> 0 | T27: =BP27*G_A!AF$9 -> 0 | U27: =BQ27*G_A!AG$9 -> 0 | V27: =BR27*G_A!AH$9 -> 0 | W27: =BS27*G_A!AI$9 -> 0 | X27: =BT27*G_A!AJ$9 -> 0 | Y27: =BU27*G_A!AK$9 -> 0 | Z27: =BV27*G_A!AL$9 -> 0 | AA27: =BW27*G_A!AM$9 -> 0 | AC27: =BA27*(1-G_A!Q$9) -> 0.2047395826 | AD27: =BB27*(1-G_A!R$9) -> 0.1947002299 | AE27: =BC27*(1-G_A!S$9) -> 0.1846697639 | AF27: =BD27*(1-G_A!T$9) -> 0.1746394608 | AG27: =BE27*(1-G_A!U$9) -> 0.1646093466 | AH27: =BF27*(1-G_A!V$9) -> 0.1544812804 | AI27: =BG27*(1-G_A!W$9) -> 0.1438582052 | AJ27: =BH27*(1-G_A!X$9) -> 0.0716109524 | AK27: =BI27*(1-G_A!Y$9) -> 0.0006063003292 | AL27: =BJ27*(1-G_A!Z$9) -> 0.0003096898569 | AM27: =BK27*(1-G_A!AA$9) -> 8.063285862e-05 | AN27: =BL27*(1-G_A!AB$9) -> 0 | AO27: =BM27*(1-G_A!AC$9) -> 0 | AP27: =BN27*(1-G_A!AD$9) -> 0 | AQ27: =BO27*(1-G_A!AE$9) -> 0 | AR27: =BP27*(1-G_A!AF$9) -> 0 | AS27: =BQ27*(1-G_A!AG$9) -> 0 | AT27: =BR27*(1-G_A!AH$9) -> 0 | AU27: =BS27*(1-G_A!AI$9) -> 0 | AV27: =BT27*(1-G_A!AJ$9) -> 0 | AW27: =BU27*(1-G_A!AK$9) -> 0 | AX27: =BV27*(1-G_A!AL$9) -> 0 | AY27: =BW27*(1-G_A!AM$9) -> 0 | BA27: 0.5751111872 | BB27: 0.546910758 | BC27: 0.5187352918 | BD27: 0.4905602831 | BE27: 0.4623858051 | BF27: 0.4339361808 | BG27: 0.4040960822 | BH27: 0.2011543607 | BI27: 0.001703090812 | BJ27: 0.0008699153283 | BK27: 0.0002264967939 | BL27: 0 | BM27: 0 | BN27: 0 | BO27: 0 | BP27: 0 | BQ27: 0 | BR27: 0 | BS27: 0 | BT27: 0 | BU27: 0 | BV27: 0 | BW27: 0
B28: Boulder Park | E28: =BA28*G_A!Q$9 -> 1.264039418 | F28: =BB28*G_A!R$9 -> 1.219820624 | G28: =BC28*G_A!S$9 -> 1.176010269 | H28: =BD28*G_A!T$9 -> 1.132409305 | I28: =BE28*G_A!U$9 -> 1.088857601 | J28: =BF28*G_A!V$9 -> 1.045326923 | K28: =BG28*G_A!W$9 -> 1.001801567 | L28: =BH28*G_A!X$9 -> 0.9582761042 | M28: =BI28*G_A!Y$9 -> 0.9149576514 | N28: =BJ28*G_A!Z$9 -> 0.8718463736 | O28: =BK28*G_A!AA$9 -> 0.8287350957 | P28: =BL28*G_A!AB$9 -> 0.7856238179 | Q28: =BM28*G_A!AC$9 -> 0.74251254 | R28: =BN28*G_A!AD$9 -> 0.6994012622 | S28: =BO28*G_A!AE$9 -> 0.6562899843 | T28: =BP28*G_A!AF$9 -> 0.6124664092 | U28: =BQ28*G_A!AG$9 -> 0.1435895195 | V28: =BR28*G_A!AH$9 -> 0.0004373914432 | W28: =BS28*G_A!AI$9 -> 0.0002624395803 | X28: =BT28*G_A!AJ$9 -> 8.748182445e-05 | Y28: =BU28*G_A!AK$9 -> 0 | Z28: =BV28*G_A!AL$9 -> 0 | AA28: =BW28*G_A!AM$9 -> 0 | AC28: =BA28*(1-G_A!Q$9) -> 0.6987547091 | AD28: =BB28*(1-G_A!R$9) -> 0.6743107797 | AE28: =BC28*(1-G_A!S$9) -> 0.6500926334 | AF28: =BD28*(1-G_A!T$9) -> 0.6259902372 | AG28: =BE28*(1-G_A!U$9) -> 0.6019150715 | AH28: =BF28*(1-G_A!V$9) -> 0.577851529 | AI28: =BG28*(1-G_A!W$9) -> 0.5537909282 | AJ28: =BH28*(1-G_A!X$9) -> 0.5297302688 | AK28: =BI28*(1-G_A!Y$9) -> 0.5057840433 | AL28: =BJ28*(1-G_A!Z$9) -> 0.4819523432 | AM28: =BK28*(1-G_A!AA$9) -> 0.458120643 | AN28: =BL28*(1-G_A!AB$9) -> 0.4342889428 | AO28: =BM28*(1-G_A!AC$9) -> 0.4104572426 | AP28: =BN28*(1-G_A!AD$9) -> 0.3866255424 | AQ28: =BO28*(1-G_A!AE$9) -> 0.3627938423 | AR28: =BP28*(1-G_A!AF$9) -> 0.3385683877 | AS28: =BQ28*(1-G_A!AG$9) -> 0.07937557288 | AT28: =BR28*(1-G_A!AH$9) -> 0.0002417878164 | AU28: =BS28*(1-G_A!AI$9) -> 0.000145075296 | AV28: =BT28*(1-G_A!AJ$9) -> 4.835951787e-05 | AW28: =BU28*(1-G_A!AK$9) -> 0 | AX28: =BV28*(1-G_A!AL$9) -> 0 | AY28: =BW28*(1-G_A!AM$9) -> 0 | BA28: 1.962794127 | BB28: 1.894131404 | BC28: 1.826102903 | BD28: 1.758399543 | BE28: 1.690772673 | BF28: 1.623178452 | BG28: 1.555592495 | BH28: 1.488006373 | BI28: 1.420741695 | BJ28: 1.353798717 | BK28: 1.286855739 | BL28: 1.219912761 | BM28: 1.152969783 | BN28: 1.086026805 | BO28: 1.019083827 | BP28: 0.9510347968 | BQ28: 0.2229650924 | BR28: 0.0006791792597 | BS28: 0.0004075148763 | BT28: 0.0001358413423 | BU28: 0 | BV28: 0 | BW28: 0
B29: Rathdrum | E29: =BA29*G_A!Q$9 -> 2.974350817 | F29: =BB29*G_A!R$9 -> 2.844597812 | G29: =BC29*G_A!S$9 -> 2.715002329 | H29: =BD29*G_A!T$9 -> 2.585461327 | I29: =BE29*G_A!U$9 -> 2.456052951 | J29: =BF29*G_A!V$9 -> 2.327038076 | K29: =BG29*G_A!W$9 -> 2.198288915 | L29: =BH29*G_A!X$9 -> 2.069539736 | M29: =BI29*G_A!Y$9 -> 1.940790558 | N29: =BJ29*G_A!Z$9 -> 1.752165854 | O29: =BK29*G_A!AA$9 -> 0 | P29: =BL29*G_A!AB$9 -> 0 | Q29: =BM29*G_A!AC$9 -> 0 | R29: =BN29*G_A!AD$9 -> 0 | S29: =BO29*G_A!AE$9 -> 0 | T29: =BP29*G_A!AF$9 -> 0 | U29: =BQ29*G_A!AG$9 -> 0 | V29: =BR29*G_A!AH$9 -> 0 | W29: =BS29*G_A!AI$9 -> 0 | X29: =BT29*G_A!AJ$9 -> 0 | Y29: =BU29*G_A!AK$9 -> 0 | Z29: =BV29*G_A!AL$9 -> 0 | AA29: =BW29*G_A!AM$9 -> 0 | AC29: =BA29*(1-G_A!Q$9) -> 1.644206352 | AD29: =BB29*(1-G_A!R$9) -> 1.572479536 | AE29: =BC29*(1-G_A!S$9) -> 1.500839797 | AF29: =BD29*(1-G_A!T$9) -> 1.429230175 | AG29: =BE29*(1-G_A!U$9) -> 1.357693867 | AH29: =BF29*(1-G_A!V$9) -> 1.286375085 | AI29: =BG29*(1-G_A!W$9) -> 1.215203189 | AJ29: =BH29*(1-G_A!X$9) -> 1.144031283 | AK29: =BI29*(1-G_A!Y$9) -> 1.072859377 | AL29: =BJ29*(1-G_A!Z$9) -> 0.9685885779 | AM29: =BK29*(1-G_A!AA$9) -> 0 | AN29: =BL29*(1-G_A!AB$9) -> 0 | AO29: =BM29*(1-G_A!AC$9) -> 0 | AP29: =BN29*(1-G_A!AD$9) -> 0 | AQ29: =BO29*(1-G_A!AE$9) -> 0 | AR29: =BP29*(1-G_A!AF$9) -> 0 | AS29: =BQ29*(1-G_A!AG$9) -> 0 | AT29: =BR29*(1-G_A!AH$9) -> 0 | AU29: =BS29*(1-G_A!AI$9) -> 0 | AV29: =BT29*(1-G_A!AJ$9) -> 0 | AW29: =BU29*(1-G_A!AK$9) -> 0 | AX29: =BV29*(1-G_A!AL$9) -> 0 | AY29: =BW29*(1-G_A!AM$9) -> 0 | BA29: 4.618557169 | BB29: 4.417077348 | BC29: 4.215842126 | BD29: 4.014691502 | BE29: 3.813746819 | BF29: 3.613413161 | BG29: 3.413492104 | BH29: 3.213571019 | BI29: 3.013649935 | BJ29: 2.720754432 | BK29: 0 | BL29: 0 | BM29: 0 | BN29: 0 | BO29: 0 | BP29: 0 | BQ29: 0 | BR29: 0 | BS29: 0 | BT29: 0 | BU29: 0 | BV29: 0 | BW29: 0
B30: Northeast | E30: =BA30*G_A!Q$9 -> 0 | F30: =BB30*G_A!R$9 -> 0 | G30: =BC30*G_A!S$9 -> 0 | H30: =BD30*G_A!T$9 -> 0 | I30: =BE30*G_A!U$9 -> 0 | J30: =BF30*G_A!V$9 -> 0 | K30: =BG30*G_A!W$9 -> 0 | L30: =BH30*G_A!X$9 -> 0 | M30: =BI30*G_A!Y$9 -> 0 | N30: =BJ30*G_A!Z$9 -> 0 | O30: =BK30*G_A!AA$9 -> 0 | P30: =BL30*G_A!AB$9 -> 0 | Q30: =BM30*G_A!AC$9 -> 0 | R30: =BN30*G_A!AD$9 -> 0 | S30: =BO30*G_A!AE$9 -> 0 | T30: =BP30*G_A!AF$9 -> 0 | U30: =BQ30*G_A!AG$9 -> 0 | V30: =BR30*G_A!AH$9 -> 0 | W30: =BS30*G_A!AI$9 -> 0 | X30: =BT30*G_A!AJ$9 -> 0 | Y30: =BU30*G_A!AK$9 -> 0 | Z30: =BV30*G_A!AL$9 -> 0 | AA30: =BW30*G_A!AM$9 -> 0 | AC30: =BA30*(1-G_A!Q$9) -> 0 | AD30: =BB30*(1-G_A!R$9) -> 0 | AE30: =BC30*(1-G_A!S$9) -> 0 | AF30: =BD30*(1-G_A!T$9) -> 0 | AG30: =BE30*(1-G_A!U$9) -> 0 | AH30: =BF30*(1-G_A!V$9) -> 0 | AI30: =BG30*(1-G_A!W$9) -> 0 | AJ30: =BH30*(1-G_A!X$9) -> 0 | AK30: =BI30*(1-G_A!Y$9) -> 0 | AL30: =BJ30*(1-G_A!Z$9) -> 0 | AM30: =BK30*(1-G_A!AA$9) -> 0 | AN30: =BL30*(1-G_A!AB$9) -> 0 | AO30: =BM30*(1-G_A!AC$9) -> 0 | AP30: =BN30*(1-G_A!AD$9) -> 0 | AQ30: =BO30*(1-G_A!AE$9) -> 0 | AR30: =BP30*(1-G_A!AF$9) -> 0 | AS30: =BQ30*(1-G_A!AG$9) -> 0 | AT30: =BR30*(1-G_A!AH$9) -> 0 | AU30: =BS30*(1-G_A!AI$9) -> 0 | AV30: =BT30*(1-G_A!AJ$9) -> 0 | AW30: =BU30*(1-G_A!AK$9) -> 0 | AX30: =BV30*(1-G_A!AL$9) -> 0 | AY30: =BW30*(1-G_A!AM$9) -> 0 | BA30: 0 | BB30: 0 | BC30: 0 | BD30: 0 | BE30: 0 | BF30: 0 | BG30: 0 | BH30: 0 | BI30: 0 | BJ30: 0 | BK30: 0 | BL30: 0 | BM30: 0 | BN30: 0 | BO30: 0 | BP30: 0 | BQ30: 0 | BR30: 0 | BS30: 0 | BT30: 0 | BU30: 0 | BV30: 0 | BW30: 0
... 32 more rows

Sheet Clean Goals
JU1: WA Gen | JV1: =SUM(JV19:JV21,JV24:JV30) -> 446.8646738 | JW1: 459.3783182 | JX1: 493.6142493 | JY1: 562.3359854 | JZ1: 565.7578591 | KA1: 562.5502839 | KB1: 559.407443 | KC1: 564.1154729 | KD1: 566.5572387 | KE1: 569.298594 | KF1: 573.52675 | KG1: 540.4906611 | KH1: 542.9920582 | KI1: 543.1902686 | KJ1: 544.1380118 | KK1: 538.0216664 | KL1: 536.498618 | KM1: 535.6721298 | KN1: 503.3796632 | KO1: 502.6844929 | KP1: 477.4479075 | KQ1: 478.197592 | KR1: 477.3506784
B2: Monthly Hours (excludes DST) | D2: 744 | E2: 672 | F2: 744 | G2: 720 | H2: 744 | I2: 720 | J2: 744 | K2: 744 | L2: 720 | M2: 744 | N2: 720 | O2: 744 | P2: =D2 -> 744 | Q2: 696 | R2: =F2 -> 744 | S2: 720 | T2: 744 | U2: 720 | V2: 744 | W2: 744 | X2: 720 | Y2: 744 | Z2: 720 | AA2: 744 | AB2: 744 | AC2: 696 | AD2: 744 | AE2: 720 | AF2: 744 | AG2: 720 | AH2: 744 | AI2: 744 | AJ2: 720 | AK2: 744 | AL2: 720 | AM2: 744 | AN2: 744 | AO2: 696 | AP2: 744 | AQ2: 720 | AR2: 744 | AS2: 720 | AT2: 744 | AU2: 744 | AV2: 720 | AW2: 744 | AX2: 720 | AY2: 744 | AZ2: 744 | BA2: 696 | BB2: 744 | BC2: 720 | BD2: 744 | BE2: 720 | BF2: 744 | BG2: 744 | BH2: 720 | BI2: 744 | BJ2: 720 | BK2: 744 | BL2: 744 | BM2: 696 | BN2: 744 | BO2: 720 | BP2: 744 | BQ2: 720 | BR2: 744 | BS2: 744 | BT2: 720 | BU2: 744 | BV2: 720 | BW2: 744 | BX2: 744 | BY2: 696 | BZ2: 744 | CA2: 720 | CB2: 744 | CC2: =BQ2 -> 720 | CD2: 744 | CE2: 744 | CF2: 720 | CG2: 744 | CH2: 720 | CI2: 744 | CJ2: 744 | CK2: 696 | CL2: 744 | CM2: 720 | CN2: 744 | CO2: 720 | CP2: 744 | CQ2: 744 | CR2: 720 | CS2: 744 | CT2: 720 | CU2: 744 | CV2: 744 | CW2: 696 | CX2: 744 | CY2: 720 | CZ2: 744 | DA2: 720 | DB2: 744 | DC2: 744 | DD2: 720 | DE2: 744 | DF2: 720 | DG2: 744 | DH2: 744 | DI2: 696 | DJ2: 744 | DK2: 720 | DL2: 744 | DM2: 720 | DN2: 744 | DO2: 744 | DP2: 720 | DQ2: 744 | DR2: 720 | DS2: 744 | DT2: 744 | DU2: 696 | DV2: 744 | DW2: 720 | DX2: 744 | DY2: 720 | DZ2: 744 | EA2: 744 | EB2: 720 | EC2: 744 | ED2: 720 | EE2: 744 | EF2: 744 | EG2: 696 | EH2: 744 | EI2: 720 | EJ2: 744 | EK2: 720 | EL2: 744 | EM2: 744 | EN2: 720 | EO2: =EC2 -> 744 | EP2: 720 | EQ2: 744 | ER2: 744 | ES2: 696 | ET2: 744 | EU2: 720 | EV2: 744 | EW2: 720 | EX2: 744 | EY2: 744 | EZ2: 720 | FA2: 744 | FB2: 720 | FC2: 744 | FD2: 744 | FE2: 696 | FF2: 744 | FG2: 720 | FH2: 744 | FI2: 720 | FJ2: 744 | FK2: 744 | FL2: 720 | FM2: 744 | FN2: 720 | FO2: 744 | FP2: 744 | FQ2: 696 | FR2: 744 | FS2: 720 | FT2: 744 | FU2: 720 | FV2: 744 | FW2: 744 | FX2: 720 | FY2: 744 | FZ2: 720 | GA2: 744 | GB2: 744 | GC2: 696 | GD2: 744 | GE2: 720 | GF2: 744 | GG2: 720 | GH2: 744 | GI2: 744 | GJ2: 720 | GK2: 744 | GL2: 720 | GM2: 744 | GN2: 744 | GO2: 696 | GP2: 744 | GQ2: 720 | GR2: 744 | GS2: 720 | GT2: 744 | GU2: 744 | GV2: 720 | GW2: 744 | GX2: 720 | GY2: 744 | GZ2: 744 | HA2: 696 | HB2: =GP2 -> 744 | HC2: 720 | HD2: 744 | HE2: 720 | HF2: 744 | HG2: 744 | HH2: 720 | HI2: 744 | HJ2: 720 | HK2: 744 | HL2: 744 | HM2: 696 | HN2: 744 | HO2: 720 | HP2: 744 | HQ2: 720 | HR2: 744 | HS2: 744 | HT2: 720 | HU2: 744 | HV2: 720 | HW2: 744 | HX2: 744 | HY2: 696 | HZ2: 744 | IA2: 720 | IB2: 744 | IC2: 720 | ID2: 744 | IE2: 744 | IF2: 720 | IG2: 744 | IH2: 720 | II2: 744 | IJ2: 744 | IK2: 696 | IL2: 744 | IM2: 720 | IN2: 744 | IO2: 720 | IP2: 744 | IQ2: 744 | IR2: 720 | IS2: 744 | IT2: 720 | IU2: 744 | IV2: 744 | IW2: 696 | IX2: 744 | IY2: 720 | IZ2: 744 | JA2: 720 | JB2: 744 | JC2: 744 | JD2: 720 | JE2: 744 | JF2: 720 | JG2: 744 | JH2: 744 | JI2: 696 | JJ2: 744 | JK2: 720 | JL2: 744 | JM2: =JA2 -> 720 | JN2: 744 | JO2: 744 | JP2: 720 | JQ2: 744 | JR2: 720 | JS2: 744 | JU2: WA New Clean | JV2: =SUM(JV41:JV62) -> 0 | JW2: 0.1113223205 | JX2: 0.2251117575 | JY2: 0.3405512868 | JZ2: 0.4597222465 | KA2: 0.5779522549 | KB2: 0.7116003085 | KC2: 76.08737473 | KD2: 94.09483771 | KE2: 206.1728366 | KF2: 206.1785746 | KG2: 205.7669791 | KH2: 207.2840405 | KI2: 207.5065758 | KJ2: 208.3672082 | KK2: 207.9674858 | KL2: 208.3645357 | KM2: 209.0908673 | KN2: 254.4594763 | KO2: 330.8214978 | KP2: 407.4328936 | KQ2: 476.4021197 | KR2: 671.7946475
B3: PT Ratio | D3: =G_A!$Q$9 -> 0.644 | E3: =G_A!$Q$9 -> 0.644 | F3: =G_A!$Q$9 -> 0.644 | G3: =G_A!$Q$9 -> 0.644 | H3: =G_A!$Q$9 -> 0.644 | I3: =G_A!$Q$9 -> 0.644 | J3: =G_A!$Q$9 -> 0.644 | K3: =G_A!$Q$9 -> 0.644 | L3: =G_A!$Q$9 -> 0.644 | M3: =G_A!$Q$9 -> 0.644 | N3: =G_A!$Q$9 -> 0.644 | O3: =G_A!$Q$9 -> 0.644 | P3: =G_A!$R$9 -> 0.644 | Q3: =G_A!$R$9 -> 0.644 | R3: =G_A!$R$9 -> 0.644 | S3: =G_A!$R$9 -> 0.644 | T3: =G_A!$R$9 -> 0.644 | U3: =G_A!$R$9 -> 0.644 | V3: =G_A!$R$9 -> 0.644 | W3: =G_A!$R$9 -> 0.644 | X3: =G_A!$R$9 -> 0.644 | Y3: =G_A!$R$9 -> 0.644 | Z3: =G_A!$R$9 -> 0.644 | AA3: =G_A!$R$9 -> 0.644 | AB3: =G_A!$S$9 -> 0.644 | AC3: =G_A!$S$9 -> 0.644 | AD3: =G_A!$S$9 -> 0.644 | AE3: =G_A!$S$9 -> 0.644 | AF3: =G_A!$S$9 -> 0.644 | AG3: =G_A!$S$9 -> 0.644 | AH3: =G_A!$S$9 -> 0.644 | AI3: =G_A!$S$9 -> 0.644 | AJ3: =G_A!$S$9 -> 0.644 | AK3: =G_A!$S$9 -> 0.644 | AL3: =G_A!$S$9 -> 0.644 | AM3: =G_A!$S$9 -> 0.644 | AN3: =G_A!$T$9 -> 0.644 | AO3: =G_A!$T$9 -> 0.644 | AP3: =G_A!$T$9 -> 0.644 | AQ3: =G_A!$T$9 -> 0.644 | AR3: =G_A!$T$9 -> 0.644 | AS3: =G_A!$T$9 -> 0.644 | AT3: =G_A!$T$9 -> 0.644 | AU3: =G_A!$T$9 -> 0.644 | AV3: =G_A!$T$9 -> 0.644 | AW3: =G_A!$T$9 -> 0.644 | AX3: =G_A!$T$9 -> 0.644 | AY3: =G_A!$T$9 -> 0.644 | AZ3: =G_A!$U$9 -> 0.644 | BA3: =G_A!$U$9 -> 0.644 | BB3: =G_A!$U$9 -> 0.644 | BC3: =G_A!$U$9 -> 0.644 | BD3: =G_A!$U$9 -> 0.644 | BE3: =G_A!$U$9 -> 0.644 | BF3: =G_A!$U$9 -> 0.644 | BG3: =G_A!$U$9 -> 0.644 | BH3: =G_A!$U$9 -> 0.644 | BI3: =G_A!$U$9 -> 0.644 | BJ3: =G_A!$U$9 -> 0.644 | BK3: =G_A!$U$9 -> 0.644 | BL3: =G_A!$V$9 -> 0.644 | BM3: =G_A!$V$9 -> 0.644 | BN3: =G_A!$V$9 -> 0.644 | BO3: =G_A!$V$9 -> 0.644 | BP3: =G_A!$V$9 -> 0.644 | BQ3: =G_A!$V$9 -> 0.644 | BR3: =G_A!$V$9 -> 0.644 | BS3: =G_A!$V$9 -> 0.644 | BT3: =G_A!$V$9 -> 0.644 | BU3: =G_A!$V$9 -> 0.644 | BV3: =G_A!$V$9 -> 0.644 | BW3: =G_A!$V$9 -> 0.644 | BX3: =G_A!$W$9 -> 0.644 | BY3: =G_A!$W$9 -> 0.644 | BZ3: =G_A!$W$9 -> 0.644 | CA3: =G_A!$W$9 -> 0.644 | CB3: =G_A!$W$9 -> 0.644 | CC3: =G_A!$W$9 -> 0.644 | CD3: =G_A!$W$9 -> 0.644 | CE3: =G_A!$W$9 -> 0.644 | CF3: =G_A!$W$9 -> 0.644 | CG3: =G_A!$W$9 -> 0.644 | CH3: =G_A!$W$9 -> 0.644 | CI3: =G_A!$W$9 -> 0.644 | CJ3: =G_A!$X$9 -> 0.644 | CK3: =G_A!$X$9 -> 0.644 | CL3: =G_A!$X$9 -> 0.644 | CM3: =G_A!$X$9 -> 0.644 | CN3: =G_A!$X$9 -> 0.644 | CO3: =G_A!$X$9 -> 0.644 | CP3: =G_A!$X$9 -> 0.644 | CQ3: =G_A!$X$9 -> 0.644 | CR3: =G_A!$X$9 -> 0.644 | CS3: =G_A!$X$9 -> 0.644 | CT3: =G_A!$X$9 -> 0.644 | CU3: =G_A!$X$9 -> 0.644 | CV3: =G_A!$Y$9 -> 0.644 | CW3: =G_A!$Y$9 -> 0.644 | CX3: =G_A!$Y$9 -> 0.644 | CY3: =G_A!$Y$9 -> 0.644 | CZ3: =G_A!$Y$9 -> 0.644 | DA3: =G_A!$Y$9 -> 0.644 | DB3: =G_A!$Y$9 -> 0.644 | DC3: =G_A!$Y$9 -> 0.644 | DD3: =G_A!$Y$9 -> 0.644 | DE3: =G_A!$Y$9 -> 0.644 | DF3: =G_A!$Y$9 -> 0.644 | DG3: =G_A!$Y$9 -> 0.644 | DH3: =G_A!$Z$9 -> 0.644 | DI3: =G_A!$Z$9 -> 0.644 | DJ3: =G_A!$Z$9 -> 0.644 | DK3: =G_A!$Z$9 -> 0.644 | DL3: =G_A!$Z$9 -> 0.644 | DM3: =G_A!$Z$9 -> 0.644 | DN3: =G_A!$Z$9 -> 0.644 | DO3: =G_A!$Z$9 -> 0.644 | DP3: =G_A!$Z$9 -> 0.644 | DQ3: =G_A!$Z$9 -> 0.644 | DR3: =G_A!$Z$9 -> 0.644 | DS3: =G_A!$Z$9 -> 0.644 | DT3: =G_A!$AA$9 -> 0.644 | DU3: =G_A!$AA$9 -> 0.644 | DV3: =G_A!$AA$9 -> 0.644 | DW3: =G_A!$AA$9 -> 0.644 | DX3: =G_A!$AA$9 -> 0.644 | DY3: =G_A!$AA$9 -> 0.644 | DZ3: =G_A!$AA$9 -> 0.644 | EA3: =G_A!$AA$9 -> 0.644 | EB3: =G_A!$AA$9 -> 0.644 | EC3: =G_A!$AA$9 -> 0.644 | ED3: =G_A!$AA$9 -> 0.644 | EE3: =G_A!$AA$9 -> 0.644 | EF3: =G_A!$AB$9 -> 0.644 | EG3: =G_A!$AB$9 -> 0.644 | EH3: =G_A!$AB$9 -> 0.644 | EI3: =G_A!$AB$9 -> 0.644 | EJ3: =G_A!$AB$9 -> 0.644 | EK3: =G_A!$AB$9 -> 0.644 | EL3: =G_A!$AB$9 -> 0.644 | EM3: =G_A!$AB$9 -> 0.644 | EN3: =G_A!$AB$9 -> 0.644 | EO3: =G_A!$AB$9 -> 0.644 | EP3: =G_A!$AB$9 -> 0.644 | EQ3: =G_A!$AB$9 -> 0.644 | ER3: =G_A!$AC$9 -> 0.644 | ES3: =G_A!$AC$9 -> 0.644 | ET3: =G_A!$AC$9 -> 0.644 | EU3: =G_A!$AC$9 -> 0.644 | EV3: =G_A!$AC$9 -> 0.644 | EW3: =G_A!$AC$9 -> 0.644 | EX3: =G_A!$AC$9 -> 0.644 | EY3: =G_A!$AC$9 -> 0.644 | EZ3: =G_A!$AC$9 -> 0.644 | FA3: =G_A!$AC$9 -> 0.644 | FB3: =G_A!$AC$9 -> 0.644 | FC3: =G_A!$AC$9 -> 0.644 | FD3: =G_A!$AD$9 -> 0.644 | FE3: =G_A!$AD$9 -> 0.644 | FF3: =G_A!$AD$9 -> 0.644 | FG3: =G_A!$AD$9 -> 0.644 | FH3: =G_A!$AD$9 -> 0.644 | FI3: =G_A!$AD$9 -> 0.644 | FJ3: =G_A!$AD$9 -> 0.644 | FK3: =G_A!$AD$9 -> 0.644 | FL3: =G_A!$AD$9 -> 0.644 | FM3: =G_A!$AD$9 -> 0.644 | FN3: =G_A!$AD$9 -> 0.644 | FO3: =G_A!$AD$9 -> 0.644 | FP3: =G_A!$AE$9 -> 0.644 | FQ3: =G_A!$AE$9 -> 0.644 | FR3: =G_A!$AE$9 -> 0.644 | FS3: =G_A!$AE$9 -> 0.644 | FT3: =G_A!$AE$9 -> 0.644 | FU3: =G_A!$AE$9 -> 0.644 | FV3: =G_A!$AE$9 -> 0.644 | FW3: =G_A!$AE$9 -> 0.644 | FX3: =G_A!$AE$9 -> 0.644 | FY3: =G_A!$AE$9 -> 0.644 | FZ3: =G_A!$AE$9 -> 0.644 | GA3: =G_A!$AE$9 -> 0.644 | GB3: =G_A!$AF$9 -> 0.644 | GC3: =G_A!$AF$9 -> 0.644 | GD3: =G_A!$AF$9 -> 0.644 | GE3: =G_A!$AF$9 -> 0.644 | GF3: =G_A!$AF$9 -> 0.644 | GG3: =G_A!$AF$9 -> 0.644 | GH3: =G_A!$AF$9 -> 0.644 | GI3: =G_A!$AF$9 -> 0.644 | GJ3: =G_A!$AF$9 -> 0.644 | GK3: =G_A!$AF$9 -> 0.644 | GL3: =G_A!$AF$9 -> 0.644 | GM3: =G_A!$AF$9 -> 0.644 | GN3: =G_A!$AG$9 -> 0.644 | GO3: =G_A!$AG$9 -> 0.644 | GP3: =G_A!$AG$9 -> 0.644 | GQ3: =G_A!$AG$9 -> 0.644 | GR3: =G_A!$AG$9 -> 0.644 | GS3: =G_A!$AG$9 -> 0.644 | GT3: =G_A!$AG$9 -> 0.644 | GU3: =G_A!$AG$9 -> 0.644 | GV3: =G_A!$AG$9 -> 0.644 | GW3: =G_A!$AG$9 -> 0.644 | GX3: =G_A!$AG$9 -> 0.644 | GY3: =G_A!$AG$9 -> 0.644 | GZ3: =G_A!$AH$9 -> 0.644 | HA3: =G_A!$AH$9 -> 0.644 | HB3: =G_A!$AH$9 -> 0.644 | HC3: =G_A!$AH$9 -> 0.644 | HD3: =G_A!$AH$9 -> 0.644 | HE3: =G_A!$AH$9 -> 0.644 | HF3: =G_A!$AH$9 -> 0.644 | HG3: =G_A!$AH$9 -> 0.644 | HH3: =G_A!$AH$9 -> 0.644 | HI3: =G_A!$AH$9 -> 0.644 | HJ3: =G_A!$AH$9 -> 0.644 | HK3: =G_A!$AH$9 -> 0.644 | HL3: =G_A!$AI$9 -> 0.644 | HM3: =G_A!$AI$9 -> 0.644 | HN3: =G_A!$AI$9 -> 0.644 | HO3: =G_A!$AI$9 -> 0.644 | HP3: =G_A!$AI$9 -> 0.644 | HQ3: =G_A!$AI$9 -> 0.644 | HR3: =G_A!$AI$9 -> 0.644 | HS3: =G_A!$AI$9 -> 0.644 | HT3: =G_A!$AI$9 -> 0.644 | HU3: =G_A!$AI$9 -> 0.644 | HV3: =G_A!$AI$9 -> 0.644 | HW3: =G_A!$AI$9 -> 0.644 | HX3: =G_A!$AJ$9 -> 0.644 | HY3: =G_A!$AJ$9 -> 0.644 | HZ3: =G_A!$AJ$9 -> 0.644 | IA3: =G_A!$AJ$9 -> 0.644 | IB3: =G_A!$AJ$9 -> 0.644 | IC3: =G_A!$AJ$9 -> 0.644 | ID3: =G_A!$AJ$9 -> 0.644 | IE3: =G_A!$AJ$9 -> 0.644 | IF3: =G_A!$AJ$9 -> 0.644 | IG3: =G_A!$AJ$9 -> 0.644 | IH3: =G_A!$AJ$9 -> 0.644 | II3: =G_A!$AJ$9 -> 0.644 | IJ3: =G_A!$AK$9 -> 0.644 | IK3: =G_A!$AK$9 -> 0.644 | IL3: =G_A!$AK$9 -> 0.644 | IM3: =G_A!$AK$9 -> 0.644 | IN3: =G_A!$AK$9 -> 0.644 | IO3: =G_A!$AK$9 -> 0.644 | IP3: =G_A!$AK$9 -> 0.644 | IQ3: =G_A!$AK$9 -> 0.644 | IR3: =G_A!$AK$9 -> 0.644 | IS3: =G_A!$AK$9 -> 0.644 | IT3: =G_A!$AK$9 -> 0.644 | IU3: =G_A!$AK$9 -> 0.644 | IV3: =G_A!$AL$9 -> 0.644 | IW3: =G_A!$AL$9 -> 0.644 | IX3: =G_A!$AL$9 -> 0.644 | IY3: =G_A!$AL$9 -> 0.644 | IZ3: =G_A!$AL$9 -> 0.644 | JA3: =G_A!$AL$9 -> 0.644 | JB3: =G_A!$AL$9 -> 0.644 | JC3: =G_A!$AL$9 -> 0.644 | JD3: =G_A!$AL$9 -> 0.644 | JE3: =G_A!$AL$9 -> 0.644 | JF3: =G_A!$AL$9 -> 0.644 | JG3: =G_A!$AL$9 -> 0.644 | JH3: =G_A!$AM$9 -> 0.644 | JI3: =G_A!$AM$9 -> 0.644 | JJ3: =G_A!$AM$9 -> 0.644 | JK3: =G_A!$AM$9 -> 0.644 | JL3: =G_A!$AM$9 -> 0.644 | JM3: =G_A!$AM$9 -> 0.644 | JN3: =G_A!$AM$9 -> 0.644 | JO3: =G_A!$AM$9 -> 0.644 | JP3: =G_A!$AM$9 -> 0.644 | JQ3: =G_A!$AM$9 -> 0.644 | JR3: =G_A!$AM$9 -> 0.644 | JS3: =G_A!$AM$9 -> 0.644 | JU3: Renewable Transfers | JV3: =SUM(JV32:JV37) -> 0 | JW3: =SUM(JW32:JW37) -> 0 | JX3: 0 | JY3: 0 | JZ3: 0 | KA3: 0 | KB3: 0 | KC3: =SUM(KC32:KC37) -> 0 | KD3: 0 | KE3: 1.550001357 | KF3: 4.595319006 | KG3: 0 | KH3: 0 | KI3: 16.73795833 | KJ3: 21.73634349 | KK3: 55.62095984 | KL3: 47.89166403 | KM3: 51.59133595 | KN3: 55.45698583 | KO3: 43.10076787 | KP3: 33.07353775 | KQ3: 27.0610672 | KR3: 3.888808527
B4: Compliance Period | D4: 2023 | E4: 2023 | F4: 2023 | G4: 2023 | H4: 2023 | I4: 2023 | J4: 2023 | K4: 2023 | L4: 2023 | M4: 2023 | N4: 2023 | O4: 2023 | P4: =D4+1 -> 2024 | Q4: 2024 | R4: 2024 | S4: 2024 | T4: 2024 | U4: 2024 | V4: 2024 | W4: 2024 | X4: 2024 | Y4: 2024 | Z4: =N4+1 -> 2024 | AA4: 2024 | AB4: 2025 | AC4: 2025 | AD4: 2025 | AE4: 2025 | AF4: 2025 | AG4: 2025 | AH4: 2025 | AI4: 2025 | AJ4: =X4+1 -> 2025 | AK4: 2025 | AL4: 2025 | AM4: 2025 | AN4: 2026 | AO4: 2026 | AP4: 2026 | AQ4: 2026 | AR4: 2026 | AS4: 2026 | AT4: =AH4+1 -> 2026 | AU4: 2026 | AV4: 2026 | AW4: 2026 | AX4: 2026 | AY4: 2026 | AZ4: 2027 | BA4: 2027 | BB4: 2027 | BC4: 2027 | BD4: =AR4+1 -> 2027 | BE4: 2027 | BF4: 2027 | BG4: 2027 | BH4: 2027 | BI4: 2027 | BJ4: 2027 | BK4: 2027 | BL4: 2028 | BM4: 2028 | BN4: =BB4+1 -> 2028 | BO4: 2028 | BP4: 2028 | BQ4: 2028 | BR4: 2028 | BS4: 2028 | BT4: 2028 | BU4: 2028 | BV4: 2028 | BW4: 2028 | BX4: =BL4+1 -> 2029 | BY4: 2029 | BZ4: 2029 | CA4: 2029 | CB4: 2029 | CC4: 2029 | CD4: 2029 | CE4: 2029 | CF4: 2029 | CG4: 2029 | CH4: =BV4+1 -> 2029 | CI4: 2029 | CJ4: 2030-2033 | CK4: 2030-2033 | CL4: 2030-2033 | CM4: 2030-2033 | CN4: 2030-2033 | CO4: 2030-2033 | CP4: 2030-2033 | CQ4: 2030-2033 | CR4: 2030-2033 | CS4: 2030-2033 | CT4: 2030-2033 | CU4: 2030-2033 | CV4: 2030-2033 | CW4: 2030-2033 | CX4: 2030-2033 | CY4: 2030-2033 | CZ4: 2030-2033 | DA4: 2030-2033 | DB4: 2030-2033 | DC4: 2030-2033 | DD4: 2030-2033 | DE4: 2030-2033 | DF4: 2030-2033 | DG4: 2030-2033 | DH4: 2030-2033 | DI4: 2030-2033 | DJ4: 2030-2033 | DK4: 2030-2033 | DL4: 2030-2033 | DM4: 2030-2033 | DN4: 2030-2033 | DO4: 2030-2033 | DP4: 2030-2033 | DQ4: 2030-2033 | DR4: 2030-2033 | DS4: 2030-2033 | DT4: 2030-2033 | DU4: 2030-2033 | DV4: 2030-2033 | DW4: 2030-2033 | DX4: 2030-2033 | DY4: 2030-2033 | DZ4: 2030-2033 | EA4: 2030-2033 | EB4: 2030-2033 | EC4: 2030-2033 | ED4: 2030-2033 | EE4: 2030-2033 | EF4: 2034-2037 | EG4: 2034-2037 | EH4: 2034-2037 | EI4: 2034-2037 | EJ4: 2034-2037 | EK4: 2034-2037 | EL4: 2034-2037 | EM4: 2034-2037 | EN4: 2034-2037 | EO4: 2034-2037 | EP4: 2034-2037 | EQ4: 2034-2037 | ER4: 2034-2037 | ES4: 2034-2037 | ET4: 2034-2037 | EU4: 2034-2037 | EV4: 2034-2037 | EW4: 2034-2037 | EX4: 2034-2037 | EY4: 2034-2037 | EZ4: 2034-2037 | FA4: 2034-2037 | FB4: 2034-2037 | FC4: 2034-2037 | FD4: 2034-2037 | FE4: 2034-2037 | FF4: 2034-2037 | FG4: 2034-2037 | FH4: 2034-2037 | FI4: 2034-2037 | FJ4: 2034-2037 | FK4: 2034-2037 | FL4: 2034-2037 | FM4: 2034-2037 | FN4: 2034-2037 | FO4: 2034-2037 | FP4: 2034-2037 | FQ4: 2034-2037 | FR4: 2034-2037 | FS4: 2034-2037 | FT4: 2034-2037 | FU4: 2034-2037 | FV4: 2034-2037 | FW4: 2034-2037 | FX4: 2034-2037 | FY4: 2034-2037 | FZ4: 2034-2037 | GA4: 2034-2037 | GB4: 2038-2041 | GC4: 2038-2041 | GD4: 2038-2041 | GE4: 2038-2041 | GF4: 2038-2041 | GG4: 2038-2041 | GH4: 2038-2041 | GI4: 2038-2041 | GJ4: 2038-2041 | GK4: 2038-2041 | GL4: 2038-2041 | GM4: 2038-2041 | GN4: 2038-2041 | GO4: 2038-2041 | GP4: 2038-2041 | GQ4: 2038-2041 | GR4: 2038-2041 | GS4: 2038-2041 | GT4: 2038-2041 | GU4: 2038-2041 | GV4: 2038-2041 | GW4: 2038-2041 | GX4: 2038-2041 | GY4: 2038-2041 | GZ4: 2038-2041 | HA4: 2038-2041 | HB4: 2038-2041 | HC4: 2038-2041 | HD4: 2038-2041 | HE4: 2038-2041 | HF4: 2038-2041 | HG4: 2038-2041 | HH4: 2038-2041 | HI4: 2038-2041 | HJ4: 2038-2041 | HK4: 2038-2041 | HL4: 2038-2041 | HM4: 2038-2041 | HN4: 2038-2041 | HO4: 2038-2041 | HP4: 2038-2041 | HQ4: 2038-2041 | HR4: 2038-2041 | HS4: 2038-2041 | HT4: 2038-2041 | HU4: 2038-2041 | HV4: 2038-2041 | HW4: 2038-2041 | HX4: 2042-2044 | HY4: 2042-2044 | HZ4: 2042-2044 | IA4: 2042-2044 | IB4: 2042-2044 | IC4: 2042-2044 | ID4: 2042-2044 | IE4: 2042-2044 | IF4: 2042-2044 | IG4: 2042-2044 | IH4: 2042-2044 | II4: 2042-2044 | IJ4: 2042-2044 | IK4: 2042-2044 | IL4: 2042-2044 | IM4: 2042-2044 | IN4: 2042-2044 | IO4: 2042-2044 | IP4: 2042-2044 | IQ4: 2042-2044 | IR4: 2042-2044 | IS4: 2042-2044 | IT4: 2042-2044 | IU4: 2042-2044 | IV4: 2042-2044 | IW4: 2042-2044 | IX4: 2042-2044 | IY4: 2042-2044 | IZ4: 2042-2044 | JA4: 2042-2044 | JB4: 2042-2044 | JC4: 2042-2044 | JD4: 2042-2044 | JE4: 2042-2044 | JF4: 2042-2044 | JG4: 2042-2044 | JH4: 2045 | JI4: 2045 | JJ4: 2045 | JK4: 2045 | JL4: 2045 | JM4: 2045 | JN4: 2045 | JO4: 2045 | JP4: 2045 | JQ4: 2045 | JR4: 2045 | JS4: 2045 | JU4: Avail Trans. (Excl. Hydro) | JV4: =SUM(JV127:JV130,JV132:JV133)-JV3 -> 46.53753189 | JW4: =SUM(JW127:JW130,JW132:JW133)-JW3 -> 64.99516073 | JX4: 78.99149144 | JY4: 107.9196921 | JZ4: 119.1321513 | KA4: 117.3067951 | KB4: 117.5270431 | KC4: 119.9721208 | KD4: 119.0122645 | KE4: 116.9461108 | KF4: =SUM(KF127:KF130,KF132:KF133)-KF3 -> 114.5025166 | KG4: 106.4371972 | KH4: 106.4819602 | KI4: 89.53922891 | KJ4: 84.72783873 | KK4: 50.101762 | KL4: 57.71304142 | KM4: 53.85896642 | KN4: 30.98110819 | KO4: 43.38207326 | KP4: 40.23418775 | KQ4: 46.82160704 | KR4: 69.68322464
B5: Year | D5: 2023 | E5: 2023 | F5: 2023 | G5: 2023 | H5: 2023 | I5: 2023 | J5: 2023 | K5: 2023 | L5: 2023 | M5: 2023 | N5: 2023 | O5: 2023 | P5: 2024 | Q5: 2024 | R5: 2024 | S5: 2024 | T5: 2024 | U5: 2024 | V5: 2024 | W5: 2024 | X5: 2024 | Y5: 2024 | Z5: 2024 | AA5: 2024 | AB5: 2025 | AC5: 2025 | AD5: 2025 | AE5: 2025 | AF5: 2025 | AG5: 2025 | AH5: 2025 | AI5: 2025 | AJ5: 2025 | AK5: 2025 | AL5: 2025 | AM5: 2025 | AN5: 2026 | AO5: 2026 | AP5: 2026 | AQ5: 2026 | AR5: 2026 | AS5: 2026 | AT5: 2026 | AU5: 2026 | AV5: 2026 | AW5: 2026 | AX5: 2026 | AY5: 2026 | AZ5: 2027 | BA5: 2027 | BB5: 2027 | BC5: 2027 | BD5: 2027 | BE5: 2027 | BF5: 2027 | BG5: 2027 | BH5: 2027 | BI5: 2027 | BJ5: 2027 | BK5: 2027 | BL5: 2028 | BM5: 2028 | BN5: 2028 | BO5: 2028 | BP5: 2028 | BQ5: 2028 | BR5: 2028 | BS5: 2028 | BT5: 2028 | BU5: 2028 | BV5: 2028 | BW5: 2028 | BX5: 2029 | BY5: 2029 | BZ5: 2029 | CA5: 2029 | CB5: 2029 | CC5: 2029 | CD5: 2029 | CE5: 2029 | CF5: 2029 | CG5: 2029 | CH5: 2029 | CI5: 2029 | CJ5: =BX5+1 -> 2030 | CK5: 2030 | CL5: 2030 | CM5: 2030 | CN5: 2030 | CO5: 2030 | CP5: 2030 | CQ5: 2030 | CR5: 2030 | CS5: 2030 | CT5: 2030 | CU5: 2030 | CV5: 2031 | CW5: 2031 | CX5: 2031 | CY5: 2031 | CZ5: 2031 | DA5: 2031 | DB5: 2031 | DC5: 2031 | DD5: 2031 | DE5: 2031 | DF5: 2031 | DG5: 2031 | DH5: 2032 | DI5: 2032 | DJ5: 2032 | DK5: 2032 | DL5: 2032 | DM5: 2032 | DN5: 2032 | DO5: 2032 | DP5: =DD5+1 -> 2032 | DQ5: 2032 | DR5: 2032 | DS5: 2032 | DT5: 2033 | DU5: 2033 | DV5: 2033 | DW5: 2033 | DX5: 2033 | DY5: 2033 | DZ5: 2033 | EA5: 2033 | EB5: 2033 | EC5: 2033 | ED5: 2033 | EE5: 2033 | EF5: 2034 | EG5: 2034 | EH5: 2034 | EI5: 2034 | EJ5: 2034 | EK5: 2034 | EL5: 2034 | EM5: 2034 | EN5: 2034 | EO5: 2034 | EP5: 2034 | EQ5: 2034 | ER5: 2035 | ES5: 2035 | ET5: 2035 | EU5: 2035 | EV5: =EJ5+1 -> 2035 | EW5: 2035 | EX5: 2035 | EY5: 2035 | EZ5: 2035 | FA5: 2035 | FB5: 2035 | FC5: 2035 | FD5: 2036 | FE5: 2036 | FF5: 2036 | FG5: 2036 | FH5: 2036 | FI5: 2036 | FJ5: 2036 | FK5: 2036 | FL5: 2036 | FM5: 2036 | FN5: 2036 | FO5: 2036 | FP5: 2037 | FQ5: 2037 | FR5: 2037 | FS5: 2037 | FT5: 2037 | FU5: 2037 | FV5: 2037 | FW5: 2037 | FX5: 2037 | FY5: 2037 | FZ5: 2037 | GA5: 2037 | GB5: =FP5+1 -> 2038 | GC5: 2038 | GD5: 2038 | GE5: 2038 | GF5: 2038 | GG5: 2038 | GH5: 2038 | GI5: 2038 | GJ5: 2038 | GK5: 2038 | GL5: 2038 | GM5: 2038 | GN5: 2039 | GO5: 2039 | GP5: 2039 | GQ5: 2039 | GR5: 2039 | GS5: 2039 | GT5: 2039 | GU5: 2039 | GV5: 2039 | GW5: 2039 | GX5: 2039 | GY5: 2039 | GZ5: 2040 | HA5: 2040 | HB5: 2040 | HC5: 2040 | HD5: 2040 | HE5: 2040 | HF5: 2040 | HG5: 2040 | HH5: =GV5+1 -> 2040 | HI5: 2040 | HJ5: 2040 | HK5: 2040 | HL5: 2041 | HM5: 2041 | HN5: 2041 | HO5: 2041 | HP5: 2041 | HQ5: 2041 | HR5: 2041 | HS5: 2041 | HT5: 2041 | HU5: 2041 | HV5: 2041 | HW5: 2041 | HX5: 2042 | HY5: 2042 | HZ5: 2042 | IA5: 2042 | IB5: 2042 | IC5: 2042 | ID5: 2042 | IE5: 2042 | IF5: 2042 | IG5: 2042 | IH5: 2042 | II5: 2042 | IJ5: 2043 | IK5: 2043 | IL5: 2043 | IM5: 2043 | IN5: =IB5+1 -> 2043 | IO5: 2043 | IP5: 2043 | IQ5: 2043 | IR5: 2043 | IS5: 2043 | IT5: 2043 | IU5: 2043 | IV5: 2044 | IW5: 2044 | IX5: 2044 | IY5: 2044 | IZ5: 2044 | JA5: 2044 | JB5: 2044 | JC5: 2044 | JD5: 2044 | JE5: 2044 | JF5: 2044 | JG5: 2044 | JH5: 2045 | JI5: 2045 | JJ5: 2045 | JK5: 2045 | JL5: 2045 | JM5: 2045 | JN5: 2045 | JO5: 2045 | JP5: 2045 | JQ5: 2045 | JR5: 2045 | JS5: 2045 | JV5: 2023 | JW5: 2024 | JX5: 2025 | JY5: 2026 | JZ5: 2027 | KA5: 2028 | KB5: 2029 | KC5: 2030 | KD5: 2031 | KE5: 2032 | KF5: 2033 | KG5: 2034 | KH5: 2035 | KI5: 2036 | KJ5: 2037 | KK5: 2038 | KL5: 2039 | KM5: 2040 | KN5: 2041 | KO5: 2042 | KP5: 2043 | KQ5: 2044 | KR5: 2045
B6: Month | D6: 1 | E6: 2 | F6: 3 | G6: 4 | H6: 5 | I6: 6 | J6: 7 | K6: 8 | L6: 9 | M6: 10 | N6: 11 | O6: 12 | P6: =D6 -> 1 | Q6: 2 | R6: 3 | S6: 4 | T6: 5 | U6: 6 | V6: 7 | W6: 8 | X6: 9 | Y6: 10 | Z6: 11 | AA6: 12 | AB6: 1 | AC6: 2 | AD6: 3 | AE6: 4 | AF6: 5 | AG6: 6 | AH6: 7 | AI6: 8 | AJ6: 9 | AK6: 10 | AL6: 11 | AM6: 12 | AN6: 1 | AO6: 2 | AP6: 3 | AQ6: 4 | AR6: 5 | AS6: 6 | AT6: 7 | AU6: 8 | AV6: 9 | AW6: 10 | AX6: 11 | AY6: 12 | AZ6: 1 | BA6: 2 | BB6: 3 | BC6: 4 | BD6: 5 | BE6: 6 | BF6: 7 | BG6: 8 | BH6: 9 | BI6: 10 | BJ6: 11 | BK6: 12 | BL6: 1 | BM6: 2 | BN6: 3 | BO6: 4 | BP6: 5 | BQ6: 6 | BR6: 7 | BS6: 8 | BT6: 9 | BU6: 10 | BV6: 11 | BW6: 12 | BX6: 1 | BY6: 2 | BZ6: 3 | CA6: 4 | CB6: =BP6 -> 5 | CC6: 6 | CD6: 7 | CE6: 8 | CF6: 9 | CG6: 10 | CH6: 11 | CI6: 12 | CJ6: 1 | CK6: 2 | CL6: 3 | CM6: 4 | CN6: 5 | CO6: 6 | CP6: 7 | CQ6: 8 | CR6: 9 | CS6: 10 | CT6: 11 | CU6: 12 | CV6: 1 | CW6: 2 | CX6: 3 | CY6: 4 | CZ6: 5 | DA6: 6 | DB6: 7 | DC6: 8 | DD6: 9 | DE6: 10 | DF6: 11 | DG6: 12 | DH6: 1 | DI6: 2 | DJ6: 3 | DK6: 4 | DL6: 5 | DM6: 6 | DN6: 7 | DO6: 8 | DP6: 9 | DQ6: 10 | DR6: 11 | DS6: 12 | DT6: 1 | DU6: 2 | DV6: 3 | DW6: 4 | DX6: 5 | DY6: 6 | DZ6: 7 | EA6: 8 | EB6: 9 | EC6: 10 | ED6: 11 | EE6: 12 | EF6: 1 | EG6: 2 | EH6: 3 | EI6: 4 | EJ6: 5 | EK6: 6 | EL6: 7 | EM6: 8 | EN6: =EB6 -> 9 | EO6: 10 | EP6: 11 | EQ6: 12 | ER6: 1 | ES6: 2 | ET6: 3 | EU6: 4 | EV6: 5 | EW6: 6 | EX6: 7 | EY6: 8 | EZ6: 9 | FA6: 10 | FB6: 11 | FC6: 12 | FD6: 1 | FE6: 2 | FF6: 3 | FG6: 4 | FH6: 5 | FI6: 6 | FJ6: 7 | FK6: 8 | FL6: 9 | FM6: 10 | FN6: 11 | FO6: 12 | FP6: 1 | FQ6: 2 | FR6: 3 | FS6: 4 | FT6: 5 | FU6: 6 | FV6: 7 | FW6: 8 | FX6: 9 | FY6: 10 | FZ6: 11 | GA6: 12 | GB6: 1 | GC6: 2 | GD6: 3 | GE6: 4 | GF6: 5 | GG6: 6 | GH6: 7 | GI6: 8 | GJ6: 9 | GK6: 10 | GL6: 11 | GM6: 12 | GN6: 1 | GO6: 2 | GP6: 3 | GQ6: 4 | GR6: 5 | GS6: 6 | GT6: 7 | GU6: 8 | GV6: 9 | GW6: 10 | GX6: 11 | GY6: 12 | GZ6: =GN6 -> 1 | HA6: 2 | HB6: 3 | HC6: 4 | HD6: 5 | HE6: 6 | HF6: 7 | HG6: 8 | HH6: 9 | HI6: 10 | HJ6: 11 | HK6: 12 | HL6: 1 | HM6: 2 | HN6: 3 | HO6: 4 | HP6: 5 | HQ6: 6 | HR6: 7 | HS6: 8 | HT6: 9 | HU6: 10 | HV6: 11 | HW6: 12 | HX6: 1 | HY6: 2 | HZ6: 3 | IA6: 4 | IB6: 5 | IC6: 6 | ID6: 7 | IE6: 8 | IF6: 9 | IG6: 10 | IH6: 11 | II6: 12 | IJ6: 1 | IK6: 2 | IL6: 3 | IM6: 4 | IN6: 5 | IO6: 6 | IP6: 7 | IQ6: 8 | IR6: 9 | IS6: 10 | IT6: 11 | IU6: 12 | IV6: 1 | IW6: 2 | IX6: 3 | IY6: 4 | IZ6: 5 | JA6: 6 | JB6: 7 | JC6: 8 | JD6: 9 | JE6: 10 | JF6: 11 | JG6: 12 | JH6: 1 | JI6: 2 | JJ6: 3 | JK6: 4 | JL6: =IZ6 -> 5 | JM6: 6 | JN6: 7 | JO6: 8 | JP6: 9 | JQ6: 10 | JR6: 11 | JS6: 12
B7: Primary Compliance | D7: =$D$100 -> 0.475 | E7: =$D$100 -> 0.475 | F7: 0.475 | G7: 0.475 | H7: 0.475 | I7: 0.475 | J7: 0.475 | K7: 0.475 | L7: 0.475 | M7: 0.475 | N7: 0.475 | O7: 0.475 | P7: =$E$100 -> 0.55 | Q7: =$E$100 -> 0.55 | R7: 0.55 | S7: 0.55 | T7: 0.55 | U7: 0.55 | V7: 0.55 | W7: 0.55 | X7: 0.55 | Y7: 0.55 | Z7: 0.55 | AA7: 0.55 | AB7: =$F$100 -> 0.625 | AC7: =$F$100 -> 0.625 | AD7: 0.625 | AE7: 0.625 | AF7: 0.625 | AG7: 0.625 | AH7: 0.625 | AI7: 0.625 | AJ7: 0.625 | AK7: 0.625 | AL7: 0.625 | AM7: 0.625 | AN7: =$G$100 -> 0.66 | AO7: =$G$100 -> 0.66 | AP7: 0.66 | AQ7: 0.66 | AR7: 0.66 | AS7: 0.66 | AT7: 0.66 | AU7: 0.66 | AV7: 0.66 | AW7: 0.66 | AX7: 0.66 | AY7: 0.66 | AZ7: =$H$100 -> 0.695 | BA7: =$H$100 -> 0.695 | BB7: 0.695 | BC7: 0.695 | BD7: 0.695 | BE7: 0.695 | BF7: 0.695 | BG7: 0.695 | BH7: 0.695 | BI7: 0.695 | BJ7: 0.695 | BK7: 0.695 | BL7: =$I$100 -> 0.73 | BM7: =$I$100 -> 0.73 | BN7: 0.73 | BO7: 0.73 | BP7: 0.73 | BQ7: 0.73 | BR7: 0.73 | BS7: 0.73 | BT7: 0.73 | BU7: 0.73 | BV7: 0.73 | BW7: 0.73 | BX7: =$J$100 -> 0.765 | BY7: =$J$100 -> 0.765 | BZ7: 0.765 | CA7: 0.765 | CB7: 0.765 | CC7: 0.765 | CD7: 0.765 | CE7: 0.765 | CF7: 0.765 | CG7: 0.765 | CH7: 0.765 | CI7: 0.765 | CJ7: =$K$100 -> 0.8 | CK7: =$K$100 -> 0.8 | CL7: 0.8 | CM7: 0.8 | CN7: 0.8 | CO7: 0.8 | CP7: 0.8 | CQ7: 0.8 | CR7: 0.8 | CS7: 0.8 | CT7: 0.8 | CU7: 0.8 | CV7: 0.8 | CW7: 0.8 | CX7: 0.8 | CY7: 0.8 | CZ7: 0.8 | DA7: 0.8 | DB7: 0.8 | DC7: 0.8 | DD7: 0.8 | DE7: 0.8 | DF7: 0.8 | DG7: 0.8 | DH7: 0.8 | DI7: 0.8 | DJ7: 0.8 | DK7: 0.8 | DL7: 0.8 | DM7: 0.8 | DN7: 0.8 | DO7: 0.8 | DP7: 0.8 | DQ7: 0.8 | DR7: 0.8 | DS7: 0.8 | DT7: 0.8 | DU7: 0.8 | DV7: 0.8 | DW7: 0.8 | DX7: 0.8 | DY7: 0.8 | DZ7: 0.8 | EA7: 0.8 | EB7: 0.8 | EC7: 0.8 | ED7: 0.8 | EE7: 0.8 | EF7: =$L$100 -> 0.85 | EG7: =$L$100 -> 0.85 | EH7: 0.85 | EI7: 0.85 | EJ7: 0.85 | EK7: 0.85 | EL7: 0.85 | EM7: 0.85 | EN7: 0.85 | EO7: 0.85 | EP7: 0.85 | EQ7: 0.85 | ER7: 0.85 | ES7: 0.85 | ET7: 0.85 | EU7: 0.85 | EV7: 0.85 | EW7: 0.85 | EX7: 0.85 | EY7: 0.85 | EZ7: 0.85 | FA7: 0.85 | FB7: 0.85 | FC7: 0.85 | FD7: 0.85 | FE7: 0.85 | FF7: 0.85 | FG7: 0.85 | FH7: 0.85 | FI7: 0.85 | FJ7: 0.85 | FK7: 0.85 | FL7: 0.85 | FM7: 0.85 | FN7: 0.85 | FO7: 0.85 | FP7: 0.85 | FQ7: 0.85 | FR7: 0.85 | FS7: 0.85 | FT7: 0.85 | FU7: 0.85 | FV7: 0.85 | FW7: 0.85 | FX7: 0.85 | FY7: 0.85 | FZ7: 0.85 | GA7: 0.85 | GB7: =$M$100 -> 0.9 | GC7: =$M$100 -> 0.9 | GD7: 0.9 | GE7: 0.9 | GF7: 0.9 | GG7: 0.9 | GH7: 0.9 | GI7: 0.9 | GJ7: 0.9 | GK7: 0.9 | GL7: 0.9 | GM7: 0.9 | GN7: 0.9 | GO7: 0.9 | GP7: 0.9 | GQ7: 0.9 | GR7: 0.9 | GS7: 0.9 | GT7: 0.9 | GU7: 0.9 | GV7: 0.9 | GW7: 0.9 | GX7: 0.9 | GY7: 0.9 | GZ7: 0.9 | HA7: 0.9 | HB7: 0.9 | HC7: 0.9 | HD7: 0.9 | HE7: 0.9 | HF7: 0.9 | HG7: 0.9 | HH7: 0.9 | HI7: 0.9 | HJ7: 0.9 | HK7: 0.9 | HL7: 0.9 | HM7: 0.9 | HN7: 0.9 | HO7: 0.9 | HP7: 0.9 | HQ7: 0.9 | HR7: 0.9 | HS7: 0.9 | HT7: 0.9 | HU7: 0.9 | HV7: 0.9 | HW7: 0.9 | HX7: =$N$100 -> 0.95 | HY7: =$N$100 -> 0.95 | HZ7: 0.95 | IA7: 0.95 | IB7: 0.95 | IC7: 0.95 | ID7: 0.95 | IE7: 0.95 | IF7: 0.95 | IG7: 0.95 | IH7: 0.95 | II7: 0.95 | IJ7: 0.95 | IK7: 0.95 | IL7: 0.95 | IM7: 0.95 | IN7: 0.95 | IO7: 0.95 | IP7: 0.95 | IQ7: 0.95 | IR7: 0.95 | IS7: 0.95 | IT7: 0.95 | IU7: 0.95 | IV7: 0.95 | IW7: 0.95 | IX7: 0.95 | IY7: 0.95 | IZ7: 0.95 | JA7: 0.95 | JB7: 0.95 | JC7: 0.95 | JD7: 0.95 | JE7: 0.95 | JF7: 0.95 | JG7: 0.95 | JH7: =$O$100 -> 1 | JI7: =$O$100 -> 1 | JJ7: 1 | JK7: 1 | JL7: 1 | JM7: 1 | JN7: 1 | JO7: 1 | JP7: 1 | JQ7: 1 | JR7: 1 | JS7: 1 | JU7: Hydro Transfers | JV7: =JV38 -> 0 | JW7: =JW38 -> 0 | JX7: 0 | JY7: 0 | JZ7: 0 | KA7: 0 | KB7: 0 | KC7: 0 | KD7: 0 | KE7: 0 | KF7: 0 | KG7: 0 | KH7: 0 | KI7: 0 | KJ7: 0 | KK7: 0 | KL7: 0 | KM7: 0 | KN7: 62.26204315 | KO7: 0 | KP7: 0 | KQ7: 0 | KR7: 0
B8: Alternative Compliance | D8: 0 | E8: 0 | F8: 0 | G8: 0 | H8: 0 | I8: 0 | J8: 0 | K8: 0 | L8: 0 | M8: 0 | N8: 0 | O8: 0 | P8: 0 | Q8: 0 | R8: 0 | S8: 0 | T8: 0 | U8: 0 | V8: 0 | W8: 0 | X8: 0 | Y8: 0 | Z8: 0 | AA8: 0 | AB8: 0 | AC8: 0 | AD8: 0 | AE8: 0 | AF8: 0 | AG8: 0 | AH8: 0 | AI8: 0 | AJ8: 0 | AK8: 0 | AL8: 0 | AM8: 0 | AN8: 0 | AO8: 0 | AP8: 0 | AQ8: 0 | AR8: 0 | AS8: 0 | AT8: 0 | AU8: 0 | AV8: 0 | AW8: 0 | AX8: 0 | AY8: 0 | AZ8: 0 | BA8: 0 | BB8: 0 | BC8: 0 | BD8: 0 | BE8: 0 | BF8: 0 | BG8: 0 | BH8: 0 | BI8: 0 | BJ8: 0 | BK8: 0 | BL8: 0 | BM8: 0 | BN8: 0 | BO8: 0 | BP8: 0 | BQ8: 0 | BR8: 0 | BS8: 0 | BT8: 0 | BU8: 0 | BV8: 0 | BW8: 0 | BX8: 0 | BY8: 0 | BZ8: 0 | CA8: 0 | CB8: 0 | CC8: 0 | CD8: 0 | CE8: 0 | CF8: 0 | CG8: 0 | CH8: 0 | CI8: 0 | CJ8: 0.2 | CK8: 0.2 | CL8: 0.2 | CM8: 0.2 | CN8: 0.2 | CO8: 0.2 | CP8: 0.2 | CQ8: 0.2 | CR8: 0.2 | CS8: 0.2 | CT8: 0.2 | CU8: 0.2 | CV8: 0.2 | CW8: 0.2 | CX8: 0.2 | CY8: 0.2 | CZ8: 0.2 | DA8: 0.2 | DB8: 0.2 | DC8: 0.2 | DD8: 0.2 | DE8: 0.2 | DF8: 0.2 | DG8: 0.2 | DH8: 0.2 | DI8: 0.2 | DJ8: 0.2 | DK8: 0.2 | DL8: 0.2 | DM8: 0.2 | DN8: 0.2 | DO8: 0.2 | DP8: 0.2 | DQ8: 0.2 | DR8: 0.2 | DS8: 0.2 | DT8: 0.2 | DU8: 0.2 | DV8: 0.2 | DW8: 0.2 | DX8: 0.2 | DY8: 0.2 | DZ8: 0.2 | EA8: 0.2 | EB8: 0.2 | EC8: 0.2 | ED8: 0.2 | EE8: 0.2 | EF8: 0.15 | EG8: 0.15 | EH8: 0.15 | EI8: 0.15 | EJ8: 0.15 | EK8: 0.15 | EL8: 0.15 | EM8: 0.15 | EN8: 0.15 | EO8: 0.15 | EP8: 0.15 | EQ8: 0.15 | ER8: 0.15 | ES8: 0.15 | ET8: 0.15 | EU8: 0.15 | EV8: 0.15 | EW8: 0.15 | EX8: 0.15 | EY8: 0.15 | EZ8: 0.15 | FA8: 0.15 | FB8: 0.15 | FC8: 0.15 | FD8: 0.15 | FE8: 0.15 | FF8: 0.15 | FG8: 0.15 | FH8: 0.15 | FI8: 0.15 | FJ8: 0.15 | FK8: 0.15 | FL8: 0.15 | FM8: 0.15 | FN8: 0.15 | FO8: 0.15 | FP8: 0.15 | FQ8: 0.15 | FR8: 0.15 | FS8: 0.15 | FT8: 0.15 | FU8: 0.15 | FV8: 0.15 | FW8: 0.15 | FX8: 0.15 | FY8: 0.15 | FZ8: 0.15 | GA8: 0.15 | GB8: 0.1 | GC8: 0.1 | GD8: 0.1 | GE8: 0.1 | GF8: 0.1 | GG8: 0.1 | GH8: 0.1 | GI8: 0.1 | GJ8: 0.1 | GK8: 0.1 | GL8: 0.1 | GM8: 0.1 | GN8: 0.1 | GO8: 0.1 | GP8: 0.1 | GQ8: 0.1 | GR8: 0.1 | GS8: 0.1 | GT8: 0.1 | GU8: 0.1 | GV8: 0.1 | GW8: 0.1 | GX8: 0.1 | GY8: 0.1 | GZ8: 0.1 | HA8: 0.1 | HB8: 0.1 | HC8: 0.1 | HD8: 0.1 | HE8: 0.1 | HF8: 0.1 | HG8: 0.1 | HH8: 0.1 | HI8: 0.1 | HJ8: 0.1 | HK8: 0.1 | HL8: 0.1 | HM8: 0.1 | HN8: 0.1 | HO8: 0.1 | HP8: 0.1 | HQ8: 0.1 | HR8: 0.1 | HS8: 0.1 | HT8: 0.1 | HU8: 0.1 | HV8: 0.1 | HW8: 0.1 | HX8: 0.05 | HY8: 0.05 | HZ8: 0.05 | IA8: 0.05 | IB8: 0.05 | IC8: 0.05 | ID8: 0.05 | IE8: 0.05 | IF8: 0.05 | IG8: 0.05 | IH8: 0.05 | II8: 0.05 | IJ8: 0.05 | IK8: 0.05 | IL8: 0.05 | IM8: 0.05 | IN8: 0.05 | IO8: 0.05 | IP8: 0.05 | IQ8: 0.05 | IR8: 0.05 | IS8: 0.05 | IT8: 0.05 | IU8: 0.05 | IV8: 0.05 | IW8: 0.05 | IX8: 0.05 | IY8: 0.05 | IZ8: 0.05 | JA8: 0.05 | JB8: 0.05 | JC8: 0.05 | JD8: 0.05 | JE8: 0.05 | JF8: 0.05 | JG8: 0.05 | JH8: 0 | JI8: 0 | JJ8: 0 | JK8: 0 | JL8: 0 | JM8: 0 | JN8: 0 | JO8: 0 | JP8: 0 | JQ8: 0 | JR8: 0 | JS8: 0
A9: WASHINGTON
A10: Retail Load | B10: Retail Sales (adjusted as a % of Load) | D10: =WA_LR!C$141*WA_LR!C$2*(1-G_A!$Q$26) -> 548063.1356 | E10: =WA_LR!D$141*WA_LR!D$2*(1-G_A!$Q$26) -> 497909.3354 | F10: =WA_LR!E$141*WA_LR!E$2*(1-G_A!$Q$26) -> 482552.896 | G10: =WA_LR!F$141*WA_LR!F$2*(1-G_A!$Q$26) -> 434252.0682 | H10: =WA_LR!G$141*WA_LR!G$2*(1-G_A!$Q$26) -> 429599.5106 | I10: =WA_LR!H$141*WA_LR!H$2*(1-G_A!$Q$26) -> 441065.3963 | J10: =WA_LR!I$141*WA_LR!I$2*(1-G_A!$Q$26) -> 489644.3322 | K10: =WA_LR!J$141*WA_LR!J$2*(1-G_A!$Q$26) -> 492373.2604 | L10: =WA_LR!K$141*WA_LR!K$2*(1-G_A!$Q$26) -> 428262.3455 | M10: =WA_LR!L$141*WA_LR!L$2*(1-G_A!$Q$26) -> 459249.3195 | N10: =WA_LR!M$141*WA_LR!M$2*(1-G_A!$Q$26) -> 496607.022 | O10: =WA_LR!N$141*WA_LR!N$2*(1-G_A!$Q$26) -> 557801.8726 | P10: =WA_LR!O$141*WA_LR!O$2*(1-G_A!$R$26) -> 548835.319 | Q10: =WA_LR!P$141*WA_LR!P$2*(1-G_A!$R$26) -> 521633.5307 | R10: =WA_LR!Q$141*WA_LR!Q$2*(1-G_A!$R$26) -> 484047.6113 | S10: =WA_LR!R$141*WA_LR!R$2*(1-G_A!$R$26) -> 436288.6707 | T10: =WA_LR!S$141*WA_LR!S$2*(1-G_A!$R$26) -> 432188.7481 | U10: =WA_LR!T$141*WA_LR!T$2*(1-G_A!$R$26) -> 443721.0893 | V10: =WA_LR!U$141*WA_LR!U$2*(1-G_A!$R$26) -> 492528.9586 | W10: =WA_LR!V$141*WA_LR!V$2*(1-G_A!$R$26) -> 494933.9603 | X10: =WA_LR!W$141*WA_LR!W$2*(1-G_A!$R$26) -> 430475.6722 | Y10: =WA_LR!X$141*WA_LR!X$2*(1-G_A!$R$26) -> 461815.4452 | Z10: =WA_LR!Y$141*WA_LR!Y$2*(1-G_A!$R$26) -> 498893.2483 | AA10: =WA_LR!Z$141*WA_LR!Z$2*(1-G_A!$R$26) -> 558677.4257 | AB10: =WA_LR!AA$141*WA_LR!AA$2*(1-G_A!$S$26) -> 552598.0316 | AC10: =WA_LR!AB$141*WA_LR!AB$2*(1-G_A!$S$26) -> 502750.142 | AD10: =WA_LR!AC$141*WA_LR!AC$2*(1-G_A!$S$26) -> 488148.7618 | AE10: =WA_LR!AD$141*WA_LR!AD$2*(1-G_A!$S$26) -> 440682.249 | AF10: =WA_LR!AE$141*WA_LR!AE$2*(1-G_A!$S$26) -> 437078.4237 | AG10: =WA_LR!AF$141*WA_LR!AF$2*(1-G_A!$S$26) -> 448840.5724 | AH10: =WA_LR!AG$141*WA_LR!AG$2*(1-G_A!$S$26) -> 498138.495 | AI10: =WA_LR!AH$141*WA_LR!AH$2*(1-G_A!$S$26) -> 500234.0399 | AJ10: =WA_LR!AI$141*WA_LR!AI$2*(1-G_A!$S$26) -> 435114.9035 | AK10: =WA_LR!AJ$141*WA_LR!AJ$2*(1-G_A!$S$26) -> 466970.889 | AL10: =WA_LR!AK$141*WA_LR!AK$2*(1-G_A!$S$26) -> 504020.7725 | AM10: =WA_LR!AL$141*WA_LR!AL$2*(1-G_A!$S$26) -> 562774.4234 | AN10: =WA_LR!AM$141*WA_LR!AM$2*(1-G_A!$T$26) -> 553672.9693 | AO10: =WA_LR!AN$141*WA_LR!AN$2*(1-G_A!$T$26) -> 503451.4486 | AP10: =WA_LR!AO$141*WA_LR!AO$2*(1-G_A!$T$26) -> 486586.1299 | AQ10: =WA_LR!AP$141*WA_LR!AP$2*(1-G_A!$T$26) -> 436802.499 | AR10: =WA_LR!AQ$141*WA_LR!AQ$2*(1-G_A!$T$26) -> 431440.1632 | AS10: =WA_LR!AR$141*WA_LR!AR$2*(1-G_A!$T$26) -> 442698.6109 | AT10: =WA_LR!AS$141*WA_LR!AS$2*(1-G_A!$T$26) -> 490917.8136 | AU10: =WA_LR!AT$141*WA_LR!AT$2*(1-G_A!$T$26) -> 493206.2437 | AV10: =WA_LR!AU$141*WA_LR!AU$2*(1-G_A!$T$26) -> 429489.0689 | AW10: =WA_LR!AV$141*WA_LR!AV$2*(1-G_A!$T$26) -> 465560.383 | AX10: =WA_LR!AW$141*WA_LR!AW$2*(1-G_A!$T$26) -> 507576.6047 | AY10: =WA_LR!AX$141*WA_LR!AX$2*(1-G_A!$T$26) -> 566552.5234 | AZ10: =WA_LR!AY$141*WA_LR!AY$2*(1-G_A!$U$26) -> 557624.4343 | BA10: =WA_LR!AZ$141*WA_LR!AZ$2*(1-G_A!$U$26) -> 507337.153 | BB10: =WA_LR!BA$141*WA_LR!BA$2*(1-G_A!$U$26) -> 490331.9249 | BC10: =WA_LR!BB$141*WA_LR!BB$2*(1-G_A!$U$26) -> 440133.4931 | BD10: =WA_LR!BC$141*WA_LR!BC$2*(1-G_A!$U$26) -> 434592.1201 | BE10: =WA_LR!BD$141*WA_LR!BD$2*(1-G_A!$U$26) -> 445742.4572 | BF10: =WA_LR!BE$141*WA_LR!BE$2*(1-G_A!$U$26) -> 494058.9579 | BG10: =WA_LR!BF$141*WA_LR!BF$2*(1-G_A!$U$26) -> 496019.955 | BH10: =WA_LR!BG$141*WA_LR!BG$2*(1-G_A!$U$26) -> 432183.7954 | BI10: =WA_LR!BH$141*WA_LR!BH$2*(1-G_A!$U$26) -> 470079.925 | BJ10: =WA_LR!BI$141*WA_LR!BI$2*(1-G_A!$U$26) -> 513294.6045 | BK10: =WA_LR!BJ$141*WA_LR!BJ$2*(1-G_A!$U$26) -> 571502.9822 | BL10: =WA_LR!BK$141*WA_LR!BK$2*(1-G_A!$V$26) -> 560309.0194 | BM10: =WA_LR!BL$141*WA_LR!BL$2*(1-G_A!$V$26) -> 533325.2352 | BN10: =WA_LR!BM$141*WA_LR!BM$2*(1-G_A!$V$26) -> 492891.4684 | BO10: =WA_LR!BN$141*WA_LR!BN$2*(1-G_A!$V$26) -> 442232.6381 | BP10: =WA_LR!BO$141*WA_LR!BO$2*(1-G_A!$V$26) -> 436391.1106 | BQ10: =WA_LR!BP$141*WA_LR!BP$2*(1-G_A!$V$26) -> 447338.8053 | BR10: =WA_LR!BQ$141*WA_LR!BQ$2*(1-G_A!$V$26) -> 495573.5602 | BS10: =WA_LR!BR$141*WA_LR!BR$2*(1-G_A!$V$26) -> 497183.2322 | BT10: =WA_LR!BS$141*WA_LR!BS$2*(1-G_A!$V$26) -> 433458.4927 | BU10: =WA_LR!BT$141*WA_LR!BT$2*(1-G_A!$V$26) -> 473390.6908 | BV10: =WA_LR!BU$141*WA_LR!BU$2*(1-G_A!$V$26) -> 517948.4217 | BW10: =WA_LR!BV$141*WA_LR!BV$2*(1-G_A!$V$26) -> 575305.0322 | BX10: =WA_LR!BW$141*WA_LR!BW$2*(1-G_A!$W$26) -> 567946.3672 | BY10: =WA_LR!BX$141*WA_LR!BX$2*(1-G_A!$W$26) -> 517234.6379 | BZ10: =WA_LR!BY$141*WA_LR!BY$2*(1-G_A!$W$26) -> 499725.3665 | CA10: =WA_LR!BZ$141*WA_LR!BZ$2*(1-G_A!$W$26) -> 447981.368 | CB10: =WA_LR!CA$141*WA_LR!CA$2*(1-G_A!$W$26) -> 441642.4655 | CC10: =WA_LR!CB$141*WA_LR!CB$2*(1-G_A!$W$26) -> 452409.4114 | CD10: =WA_LR!CC$141*WA_LR!CC$2*(1-G_A!$W$26) -> 500912.5336 | CE10: =WA_LR!CD$141*WA_LR!CD$2*(1-G_A!$W$26) -> 502156.2168 | CF10: =WA_LR!CE$141*WA_LR!CE$2*(1-G_A!$W$26) -> 438070.5381 | CG10: =WA_LR!CF$141*WA_LR!CF$2*(1-G_A!$W$26) -> 480734.9611 | CH10: =WA_LR!CG$141*WA_LR!CG$2*(1-G_A!$W$26) -> 527301.8814 | CI10: =WA_LR!CH$141*WA_LR!CH$2*(1-G_A!$W$26) -> 584365.6337 | CJ10: =WA_LR!CI$141*WA_LR!CI$2*(1-G_A!$X$26) -> 574527.2171 | CK10: =WA_LR!CJ$141*WA_LR!CJ$2*(1-G_A!$X$26) -> 523429.8526 | CL10: =WA_LR!CK$141*WA_LR!CK$2*(1-G_A!$X$26) -> 505526.9738 | CM10: =WA_LR!CL$141*WA_LR!CL$2*(1-G_A!$X$26) -> 452551.5247 | CN10: =WA_LR!CM$141*WA_LR!CM$2*(1-G_A!$X$26) -> 445514.8777 | CO10: =WA_LR!CN$141*WA_LR!CN$2*(1-G_A!$X$26) -> 455966.1193 | CP10: =WA_LR!CO$141*WA_LR!CO$2*(1-G_A!$X$26) -> 504531.7287 | CQ10: =WA_LR!CP$141*WA_LR!CP$2*(1-G_A!$X$26) -> 505371.7596 | CR10: =WA_LR!CQ$141*WA_LR!CQ$2*(1-G_A!$X$26) -> 441189.1097 | CS10: =WA_LR!CR$141*WA_LR!CR$2*(1-G_A!$X$26) -> 486988.7655 | CT10: =WA_LR!CS$141*WA_LR!CS$2*(1-G_A!$X$26) -> 535869.4262 | CU10: =WA_LR!CT$141*WA_LR!CT$2*(1-G_A!$X$26) -> 592583.5849 | CV10: =WA_LR!CU$141*WA_LR!CU$2*(1-G_A!$Y$26) -> 583535.2146 | CW10: =WA_LR!CV$141*WA_LR!CV$2*(1-G_A!$Y$26) -> 531772.4319 | CX10: =WA_LR!CW$141*WA_LR!CW$2*(1-G_A!$Y$26) -> 513326.9676 | CY10: =WA_LR!CX$141*WA_LR!CX$2*(1-G_A!$Y$26) -> 458666.0349 | CZ10: =WA_LR!CY$141*WA_LR!CY$2*(1-G_A!$Y$26) -> 450733.4096 | DA10: =WA_LR!CZ$141*WA_LR!CZ$2*(1-G_A!$Y$26) -> 460841.4539 | DB10: =WA_LR!DA$141*WA_LR!DA$2*(1-G_A!$Y$26) -> 509573.82 | DC10: =WA_LR!DB$141*WA_LR!DB$2*(1-G_A!$Y$26) -> 509914.8796 | DD10: =WA_LR!DC$141*WA_LR!DC$2*(1-G_A!$Y$26) -> 445438.3805 | DE10: =WA_LR!DD$141*WA_LR!DD$2*(1-G_A!$Y$26) -> 495125.3979 | DF10: =WA_LR!DE$141*WA_LR!DE$2*(1-G_A!$Y$26) -> 546888.1221 | DG10: =WA_LR!DF$141*WA_LR!DF$2*(1-G_A!$Y$26) -> 603586.8926 | DH10: =WA_LR!DG$141*WA_LR!DG$2*(1-G_A!$Z$26) -> 592319.0929 | DI10: =WA_LR!DH$141*WA_LR!DH$2*(1-G_A!$Z$26) -> 564615.6422 | DJ10: =WA_LR!DI$141*WA_LR!DI$2*(1-G_A!$Z$26) -> 520821.9478 | DK10: =WA_LR!DJ$141*WA_LR!DJ$2*(1-G_A!$Z$26) -> 464195.2283 | DL10: =WA_LR!DK$141*WA_LR!DK$2*(1-G_A!$Z$26) -> 455100.8443 | DM10: =WA_LR!DL$141*WA_LR!DL$2*(1-G_A!$Z$26) -> 464705.8063 | DN10: =WA_LR!DM$141*WA_LR!DM$2*(1-G_A!$Z$26) -> 513452.2462 | DO10: =WA_LR!DN$141*WA_LR!DN$2*(1-G_A!$Z$26) -> 513275.3156 | DP10: =WA_LR!DO$141*WA_LR!DO$2*(1-G_A!$Z$26) -> 448722.1708 | DQ10: =WA_LR!DP$141*WA_LR!DP$2*(1-G_A!$Z$26) -> 502811.6329 | DR10: =WA_LR!DQ$141*WA_LR!DQ$2*(1-G_A!$Z$26) -> 557909.9423 | DS10: =WA_LR!DR$141*WA_LR!DR$2*(1-G_A!$Z$26) -> 614627.1677 | DT10: =WA_LR!DS$141*WA_LR!DS$2*(1-G_A!$AA$26) -> 606964.9327 | DU10: =WA_LR!DT$141*WA_LR!DT$2*(1-G_A!$AA$26) -> 553298.8693 | DV10: =WA_LR!DU$141*WA_LR!DU$2*(1-G_A!$AA$26) -> 533363.3003 | DW10: =WA_LR!DV$141*WA_LR!DV$2*(1-G_A!$AA$26) -> 473929.4253 | DX10: =WA_LR!DW$141*WA_LR!DW$2*(1-G_A!$AA$26) -> 463331.1658 | DY10: =WA_LR!DX$141*WA_LR!DX$2*(1-G_A!$AA$26) -> 472382.5118 | DZ10: =WA_LR!DY$141*WA_LR!DY$2*(1-G_A!$AA$26) -> 521498.088 | EA10: =WA_LR!DZ$141*WA_LR!DZ$2*(1-G_A!$AA$26) -> 520783.3883 | EB10: =WA_LR!EA$141*WA_LR!EA$2*(1-G_A!$AA$26) -> 455696.1727 | EC10: =WA_LR!EB$141*WA_LR!EB$2*(1-G_A!$AA$26) -> 515220.9544 | ED10: =WA_LR!EC$141*WA_LR!EC$2*(1-G_A!$AA$26) -> 574644.6583 | EE10: =WA_LR!ED$141*WA_LR!ED$2*(1-G_A!$AA$26) -> 631999.4635 | EF10: =WA_LR!EE$141*WA_LR!EE$2*(1-G_A!$AB$26) -> 621489.5113 | EG10: =WA_LR!EF$141*WA_LR!EF$2*(1-G_A!$AB$26) -> 566573.7534 | EH10: =WA_LR!EG$141*WA_LR!EG$2*(1-G_A!$AB$26) -> 545690.2877 | EI10: =WA_LR!EH$141*WA_LR!EH$2*(1-G_A!$AB$26) -> 483173.1772 | EJ10: =WA_LR!EI$141*WA_LR!EI$2*(1-G_A!$AB$26) -> 470815.1132 | EK10: =WA_LR!EJ$141*WA_LR!EJ$2*(1-G_A!$AB$26) -> 479161.507 | EL10: =WA_LR!EK$141*WA_LR!EK$2*(1-G_A!$AB$26) -> 528506.4108 | EM10: =WA_LR!EL$141*WA_LR!EL$2*(1-G_A!$AB$26) -> 527234.4918 | EN10: =WA_LR!EM$141*WA_LR!EM$2*(1-G_A!$AB$26) -> 461811.7279 | EO10: =WA_LR!EN$141*WA_LR!EN$2*(1-G_A!$AB$26) -> 527274.4459 | EP10: =WA_LR!EO$141*WA_LR!EO$2*(1-G_A!$AB$26) -> 591469.0426 | EQ10: =WA_LR!EP$141*WA_LR!EP$2*(1-G_A!$AB$26) -> 649504.0996 | ER10: =WA_LR!EQ$141*WA_LR!EQ$2*(1-G_A!$AC$26) -> 637870.1621 | ES10: =WA_LR!ER$141*WA_LR!ER$2*(1-G_A!$AC$26) -> 581506.4524 | ET10: =WA_LR!ES$141*WA_LR!ES$2*(1-G_A!$AC$26) -> 559545.4372 | EU10: =WA_LR!ET$141*WA_LR!ET$2*(1-G_A!$AC$26) -> 493511.9343 | EV10: =WA_LR!EU$141*WA_LR!EU$2*(1-G_A!$AC$26) -> 479137.438 | EW10: =WA_LR!EV$141*WA_LR!EV$2*(1-G_A!$AC$26) -> 486678.4589 | EX10: =WA_LR!EW$141*WA_LR!EW$2*(1-G_A!$AC$26) -> 536289.8655 | EY10: =WA_LR!EX$141*WA_LR!EX$2*(1-G_A!$AC$26) -> 534441.738 | EZ10: =WA_LR!EY$141*WA_LR!EY$2*(1-G_A!$AC$26) -> 468644.1811 | FA10: =WA_LR!EZ$141*WA_LR!EZ$2*(1-G_A!$AC$26) -> 540671.7739 | FB10: =WA_LR!FA$141*WA_LR!FA$2*(1-G_A!$AC$26) -> 610216.8724 | FC10: =WA_LR!FB$141*WA_LR!FB$2*(1-G_A!$AC$26) -> 669163.6968 | FD10: =WA_LR!FC$141*WA_LR!FC$2*(1-G_A!$AD$26) -> 653756.2185 | FE10: =WA_LR!FD$141*WA_LR!FD$2*(1-G_A!$AD$26) -> 623440.2477 | FF10: =WA_LR!FE$141*WA_LR!FE$2*(1-G_A!$AD$26) -> 572876.3314 | FG10: =WA_LR!FF$141*WA_LR!FF$2*(1-G_A!$AD$26) -> 503177.0304 | FH10: =WA_LR!FG$141*WA_LR!FG$2*(1-G_A!$AD$26) -> 486620.8435 | FI10: =WA_LR!FH$141*WA_LR!FH$2*(1-G_A!$AD$26) -> 493253.0525 | FJ10: =WA_LR!FI$141*WA_LR!FI$2*(1-G_A!$AD$26) -> 543005.3758 | FK10: =WA_LR!FJ$141*WA_LR!FJ$2*(1-G_A!$AD$26) -> 540571.132 | FL10: =WA_LR!FK$141*WA_LR!FK$2*(1-G_A!$AD$26) -> 474571.4494 | FM10: =WA_LR!FL$141*WA_LR!FL$2*(1-G_A!$AD$26) -> 553451.9503 | FN10: =WA_LR!FM$141*WA_LR!FM$2*(1-G_A!$AD$26) -> 628605.1626 | FO10: =WA_LR!FN$141*WA_LR!FN$2*(1-G_A!$AD$26) -> 688475.9607 | FP10: =WA_LR!FO$141*WA_LR!FO$2*(1-G_A!$AE$26) -> 675096.747 | FQ10: =WA_LR!FP$141*WA_LR!FP$2*(1-G_A!$AE$26) -> 615340.8396 | FR10: =WA_LR!FQ$141*WA_LR!FQ$2*(1-G_A!$AE$26) -> 590923.4025 | FS10: =WA_LR!FR$141*WA_LR!FR$2*(1-G_A!$AE$26) -> 516928.2919 | FT10: =WA_LR!FS$141*WA_LR!FS$2*(1-G_A!$AE$26) -> 498015.5534 | FU10: =WA_LR!FT$141*WA_LR!FT$2*(1-G_A!$AE$26) -> 503785.9352 | FV10: =WA_LR!FU$141*WA_LR!FU$2*(1-G_A!$AE$26) -> 554072.0145 | FW10: =WA_LR!FV$141*WA_LR!FV$2*(1-G_A!$AE$26) -> 551026.1596 | FX10: =WA_LR!FW$141*WA_LR!FW$2*(1-G_A!$AE$26) -> 484290.7398 | FY10: =WA_LR!FX$141*WA_LR!FX$2*(1-G_A!$AE$26) -> 570758.8993 | FZ10: =WA_LR!FY$141*WA_LR!FY$2*(1-G_A!$AE$26) -> 652218.4227 | GA10: =WA_LR!FZ$141*WA_LR!FZ$2*(1-G_A!$AE$26) -> 713568.4259 | GB10: =WA_LR!GA$141*WA_LR!GA$2*(1-G_A!$AF$26) -> 694085.9323 | GC10: =WA_LR!GB$141*WA_LR!GB$2*(1-G_A!$AF$26) -> 632555.4391 | GD10: =WA_LR!GC$141*WA_LR!GC$2*(1-G_A!$AF$26) -> 606890.176 | GE10: =WA_LR!GD$141*WA_LR!GD$2*(1-G_A!$AF$26) -> 528971.421 | GF10: =WA_LR!GE$141*WA_LR!GE$2*(1-G_A!$AF$26) -> 507884.1613 | GG10: =WA_LR!GF$141*WA_LR!GF$2*(1-G_A!$AF$26) -> 512862.0549 | GH10: =WA_LR!GG$141*WA_LR!GG$2*(1-G_A!$AF$26) -> 563556.9593 | GI10: =WA_LR!GH$141*WA_LR!GH$2*(1-G_A!$AF$26) -> 559909.2574 | GJ10: =WA_LR!GI$141*WA_LR!GI$2*(1-G_A!$AF$26) -> 492570.4196 | GK10: =WA_LR!GJ$141*WA_LR!GJ$2*(1-G_A!$AF$26) -> 586129.9258 | GL10: =WA_LR!GK$141*WA_LR!GK$2*(1-G_A!$AF$26) -> 673424.3427 | GM10: =WA_LR!GL$141*WA_LR!GL$2*(1-G_A!$AF$26) -> 736079.3398 | GN10: =WA_LR!GM$141*WA_LR!GM$2*(1-G_A!$AG$26) -> 712755.0197 | GO10: =WA_LR!GN$141*WA_LR!GN$2*(1-G_A!$AG$26) -> 649446.9036 | GP10: =WA_LR!GO$141*WA_LR!GO$2*(1-G_A!$AG$26) -> 622557.3155 | GQ10: =WA_LR!GP$141*WA_LR!GP$2*(1-G_A!$AG$26) -> 540907.4173 | GR10: =WA_LR!GQ$141*WA_LR!GQ$2*(1-G_A!$AG$26) -> 517810.5441 | GS10: =WA_LR!GR$141*WA_LR!GR$2*(1-G_A!$AG$26) -> 522109.8642 | GT10: =WA_LR!GS$141*WA_LR!GS$2*(1-G_A!$AG$26) -> 573257.0317 | GU10: =WA_LR!GT$141*WA_LR!GT$2*(1-G_A!$AG$26) -> 569009.5442 | GV10: =WA_LR!GU$141*WA_LR!GU$2*(1-G_A!$AG$26) -> 500968.2374 | GW10: =WA_LR!GV$141*WA_LR!GV$2*(1-G_A!$AG$26) -> 601307.6861 | GX10: =WA_LR!GW$141*WA_LR!GW$2*(1-G_A!$AG$26) -> 694142.1977 | GY10: =WA_LR!GX$141*WA_LR!GX$2*(1-G_A!$AG$26) -> 758117.3374 | GZ10: =WA_LR!GY$141*WA_LR!GY$2*(1-G_A!$AH$26) -> 728067.2281 | HA10: =WA_LR!GZ$141*WA_LR!GZ$2*(1-G_A!$AH$26) -> 694034.5885 | HB10: =WA_LR!HA$141*WA_LR!HA$2*(1-G_A!$AH$26) -> 635286.4753 | HC10: =WA_LR!HB$141*WA_LR!HB$2*(1-G_A!$AH$26) -> 550524.9764 | HD10: =WA_LR!HC$141*WA_LR!HC$2*(1-G_A!$AH$26) -> 525756.3138 | HE10: =WA_LR!HD$141*WA_LR!HD$2*(1-G_A!$AH$26) -> 529521.8413 | HF10: =WA_LR!HE$141*WA_LR!HE$2*(1-G_A!$AH$26) -> 580981.1609 | HG10: =WA_LR!HF$141*WA_LR!HF$2*(1-G_A!$AH$26) -> 576156.0781 | HH10: =WA_LR!HG$141*WA_LR!HG$2*(1-G_A!$AH$26) -> 507545.3328 | HI10: =WA_LR!HH$141*WA_LR!HH$2*(1-G_A!$AH$26) -> 613793.3469 | HJ10: =WA_LR!HI$141*WA_LR!HI$2*(1-G_A!$AH$26) -> 711350.9012 | HK10: =WA_LR!HJ$141*WA_LR!HJ$2*(1-G_A!$AH$26) -> 776387.3264 | HL10: =WA_LR!HK$141*WA_LR!HK$2*(1-G_A!$AI$26) -> 747317.0752 | HM10: =WA_LR!HL$141*WA_LR!HL$2*(1-G_A!$AI$26) -> 680597.9817 | HN10: =WA_LR!HM$141*WA_LR!HM$2*(1-G_A!$AI$26) -> 651437.057 | HO10: =WA_LR!HN$141*WA_LR!HN$2*(1-G_A!$AI$26) -> 563372.1191 | HP10: =WA_LR!HO$141*WA_LR!HO$2*(1-G_A!$AI$26) -> 537055.8209 | HQ10: =WA_LR!HP$141*WA_LR!HP$2*(1-G_A!$AI$26) -> 540495.968 | HR10: =WA_LR!HQ$141*WA_LR!HQ$2*(1-G_A!$AI$26) -> 592654.931 | HS10: =WA_LR!HR$141*WA_LR!HR$2*(1-G_A!$AI$26) -> 587225.1704 | HT10: =WA_LR!HS$141*WA_LR!HS$2*(1-G_A!$AI$26) -> 517463.8498 | HU10: =WA_LR!HT$141*WA_LR!HT$2*(1-G_A!$AI$26) -> 629753.3715 | HV10: =WA_LR!HU$141*WA_LR!HU$2*(1-G_A!$AI$26) -> 732137.9566 | HW10: =WA_LR!HV$141*WA_LR!HV$2*(1-G_A!$AI$26) -> 798637.4048 | HX10: =WA_LR!HW$141*WA_LR!HW$2*(1-G_A!$AJ$26) -> 763316.2471 | HY10: =WA_LR!HX$141*WA_LR!HX$2*(1-G_A!$AJ$26) -> 694947.5399 | HZ10: =WA_LR!HY$141*WA_LR!HY$2*(1-G_A!$AJ$26) -> 664726.2522 | IA10: =WA_LR!HZ$141*WA_LR!HZ$2*(1-G_A!$AJ$26) -> 573947.2002 | IB10: =WA_LR!IA$141*WA_LR!IA$2*(1-G_A!$AJ$26) -> 546404.2756 | IC10: =WA_LR!IB$141*WA_LR!IB$2*(1-G_A!$AJ$26) -> 549661.9225 | ID10: =WA_LR!IC$141*WA_LR!IC$2*(1-G_A!$AJ$26) -> 602377.0628 | IE10: =WA_LR!ID$141*WA_LR!ID$2*(1-G_A!$AJ$26) -> 596357.9701 | IF10: =WA_LR!IE$141*WA_LR!IE$2*(1-G_A!$AJ$26) -> 525575.5898 | IG10: =WA_LR!IF$141*WA_LR!IF$2*(1-G_A!$AJ$26) -> 643098.6241 | IH10: =WA_LR!IG$141*WA_LR!IG$2*(1-G_A!$AJ$26) -> 749537.4062 | II10: =WA_LR!IH$141*WA_LR!IH$2*(1-G_A!$AJ$26) -> 817259.4075 | IJ10: =WA_LR!II$141*WA_LR!II$2*(1-G_A!$AK$26) -> 777879.5444 | IK10: =WA_LR!IJ$141*WA_LR!IJ$2*(1-G_A!$AK$26) -> 707941.3554 | IL10: =WA_LR!IK$141*WA_LR!IK$2*(1-G_A!$AK$26) -> 676740.3569 | IM10: =WA_LR!IL$141*WA_LR!IL$2*(1-G_A!$AK$26) -> 583729.5891 | IN10: =WA_LR!IM$141*WA_LR!IM$2*(1-G_A!$AK$26) -> 555316.2258 | IO10: =WA_LR!IN$141*WA_LR!IN$2*(1-G_A!$AK$26) -> 558610.3378 | IP10: =WA_LR!IO$141*WA_LR!IO$2*(1-G_A!$AK$26) -> 611907.633 | IQ10: =WA_LR!IP$141*WA_LR!IP$2*(1-G_A!$AK$26) -> 605303.2933 | IR10: =WA_LR!IQ$141*WA_LR!IQ$2*(1-G_A!$AK$26) -> 533383.3637 | IS10: =WA_LR!IR$141*WA_LR!IR$2*(1-G_A!$AK$26) -> 655422.5686 | IT10: =WA_LR!IS$141*WA_LR!IS$2*(1-G_A!$AK$26) -> 765223.0373 | IU10: =WA_LR!IT$141*WA_LR!IT$2*(1-G_A!$AK$26) -> 834099.9836 | IV10: =WA_LR!IU$141*WA_LR!IU$2*(1-G_A!$AL$26) -> 790169.4089 | IW10: =WA_LR!IV$141*WA_LR!IV$2*(1-G_A!$AL$26) -> 752328.9573 | IX10: =WA_LR!IW$141*WA_LR!IW$2*(1-G_A!$AL$26) -> 686706.7181 | IY10: =WA_LR!IX$141*WA_LR!IX$2*(1-G_A!$AL$26) -> 591791.9897 | IZ10: =WA_LR!IY$141*WA_LR!IY$2*(1-G_A!$AL$26) -> 562662.0065 | JA10: =WA_LR!IZ$141*WA_LR!IZ$2*(1-G_A!$AL$26) -> 566057.4766 | JB10: =WA_LR!JA$141*WA_LR!JA$2*(1-G_A!$AL$26) -> 619801.2518 | JC10: =WA_LR!JB$141*WA_LR!JB$2*(1-G_A!$AL$26) -> 612615.9589 | JD10: =WA_LR!JC$141*WA_LR!JC$2*(1-G_A!$AL$26) -> 539692.6338 | JE10: =WA_LR!JD$141*WA_LR!JD$2*(1-G_A!$AL$26) -> 665832.1421 | JF10: =WA_LR!JE$141*WA_LR!JE$2*(1-G_A!$AL$26) -> 778579.5485 | JG10: =WA_LR!JF$141*WA_LR!JF$2*(1-G_A!$AL$26) -> 848478.6288 | JH10: =WA_LR!JG$141*WA_LR!JG$2*(1-G_A!$AM$26) -> 806118.876 | JI10: =WA_LR!JH$141*WA_LR!JH$2*(1-G_A!$AM$26) -> 732964.8836 | JJ10: =WA_LR!JI$141*WA_LR!JI$2*(1-G_A!$AM$26) -> 699823.4129 | JK10: =WA_LR!JJ$141*WA_LR!JJ$2*(1-G_A!$AM$26) -> 602954.8686 | JL10: =WA_LR!JK$141*WA_LR!JK$2*(1-G_A!$AM$26) -> 573356.1133 | JM10: =WA_LR!JL$141*WA_LR!JL$2*(1-G_A!$AM$26) -> 577154.8289 | JN10: =WA_LR!JM$141*WA_LR!JM$2*(1-G_A!$AM$26) -> 631747.4902 | JO10: =WA_LR!JN$141*WA_LR!JN$2*(1-G_A!$AM$26) -> 623934.1618 | JP10: =WA_LR!JO$141*WA_LR!JO$2*(1-G_A!$AM$26) -> 549354.9442 | JQ10: =WA_LR!JP$141*WA_LR!JP$2*(1-G_A!$AM$26) -> 679576.4145 | JR10: =WA_LR!JQ$141*WA_LR!JQ$2*(1-G_A!$AM$26) -> 795181.2039 | JS10: =WA_LR!JR$141*WA_LR!JR$2*(1-G_A!$AM$26) -> 866495.7314 | JV10: =SUM(D10:O10)/G_A!$Q$6 -> 657.2352163 | JW10: =SUM(P10:AA10)/G_A!$R$6 -> 660.7513296 | JX10: =SUM(AB10:AM10)/G_A!$S$6 -> 666.3643498 | JY10: =SUM(AN10:AY10)/G_A!$T$6 -> 663.0084998 | JZ10: =SUM(AZ10:BK10)/G_A!$U$6 -> 668.1394752 | KA10: =SUM(BL10:BW10)/G_A!$V$6 -> 672.284575 | KB10: =SUM(BX10:CI10)/G_A!$W$6 -> 680.420249 | KC10: =SUM(CJ10:CU10)/G_A!$X$6 -> 687.6770479 | KD10: =SUM(CV10:DG10)/G_A!$Y$6 -> 697.4204344 | KE10: =SUM(DH10:DS10)/G_A!$Z$6 -> 707.2583148 | KF10: =SUM(DT10:EE10)/G_A!$AA$6 -> 721.8165445 | KG10: =SUM(EF10:EQ10)/G_A!$AB$6 -> 736.6099964 | KH10: =SUM(ER10:FC10)/G_A!$AC$6 -> 753.1595902 | KI10: =SUM(FD10:FO10)/G_A!$AD$6 -> 769.7865158 | KJ10: =SUM(FP10:GA10)/G_A!$AE$6 -> 790.6421725 | KK10: =SUM(GB10:GM10)/G_A!$AF$6 -> 809.9223093 | KL10: =SUM(GN10:GY10)/G_A!$AG$6 -> 829.0398515 | KM10: =SUM(GZ10:HK10)/G_A!$AH$6 -> 845.7884301 | KN10: =SUM(HL10:HW10)/G_A!$AI$6 -> 865.0854687 | KO10: =SUM(HX10:II10)/G_A!$AJ$6 -> 882.1015409 | KP10: =SUM(IJ10:IU10)/G_A!$AK$6 -> 897.8946677 | KQ10: =SUM(IV10:JG10)/G_A!$AL$6 -> 912.4222132 | KR10: =SUM(JH10:JS10)/G_A!$AM$6 -> 929.0711106
B11: Placeholder | D11: 0 | E11: 0 | F11: 0 | G11: 0 | H11: 0 | I11: 0 | J11: 0 | K11: 0 | L11: 0 | M11: 0 | N11: 0 | O11: 0 | P11: 0 | Q11: 0 | R11: 0 | S11: 0 | T11: 0 | U11: 0 | V11: 0 | W11: 0 | X11: 0 | Y11: 0 | Z11: 0 | AA11: 0 | AB11: 0 | AC11: 0 | AD11: 0 | AE11: 0 | AF11: 0 | AG11: 0 | AH11: 0 | AI11: 0 | AJ11: 0 | AK11: 0 | AL11: 0 | AM11: 0 | AN11: 0 | AO11: 0 | AP11: 0 | AQ11: 0 | AR11: 0 | AS11: 0 | AT11: 0 | AU11: 0 | AV11: 0 | AW11: 0 | AX11: 0 | AY11: 0 | AZ11: 0 | BA11: 0 | BB11: 0 | BC11: 0 | BD11: 0 | BE11: 0 | BF11: 0 | BG11: 0 | BH11: 0 | BI11: 0 | BJ11: 0 | BK11: 0 | BL11: 0 | BM11: 0 | BN11: 0 | BO11: 0 | BP11: 0 | BQ11: 0 | BR11: 0 | BS11: 0 | BT11: 0 | BU11: 0 | BV11: 0 | BW11: 0 | BX11: 0 | BY11: 0 | BZ11: 0 | CA11: 0 | CB11: 0 | CC11: 0 | CD11: 0 | CE11: 0 | CF11: 0 | CG11: 0 | CH11: 0 | CI11: 0 | CJ11: 0 | CK11: 0 | CL11: 0 | CM11: 0 | CN11: 0 | CO11: 0 | CP11: 0 | CQ11: 0 | CR11: 0 | CS11: 0 | CT11: 0 | CU11: 0 | CV11: 0 | CW11: 0 | CX11: 0 | CY11: 0 | CZ11: 0 | DA11: 0 | DB11: 0 | DC11: 0 | DD11: 0 | DE11: 0 | DF11: 0 | DG11: 0 | DH11: 0 | DI11: 0 | DJ11: 0 | DK11: 0 | DL11: 0 | DM11: 0 | DN11: 0 | DO11: 0 | DP11: 0 | DQ11: 0 | DR11: 0 | DS11: 0 | DT11: 0 | DU11: 0 | DV11: 0 | DW11: 0 | DX11: 0 | DY11: 0 | DZ11: 0 | EA11: 0 | EB11: 0 | EC11: 0 | ED11: 0 | EE11: 0 | EF11: 0 | EG11: 0 | EH11: 0 | EI11: 0 | EJ11: 0 | EK11: 0 | EL11: 0 | EM11: 0 | EN11: 0 | EO11: 0 | EP11: 0 | EQ11: 0 | ER11: 0 | ES11: 0 | ET11: 0 | EU11: 0 | EV11: 0 | EW11: 0 | EX11: 0 | EY11: 0 | EZ11: 0 | FA11: 0 | FB11: 0 | FC11: 0 | FD11: 0 | FE11: 0 | FF11: 0 | FG11: 0 | FH11: 0 | FI11: 0 | FJ11: 0 | FK11: 0 | FL11: 0 | FM11: 0 | FN11: 0 | FO11: 0 | FP11: 0 | FQ11: 0 | FR11: 0 | FS11: 0 | FT11: 0 | FU11: 0 | FV11: 0 | FW11: 0 | FX11: 0 | FY11: 0 | FZ11: 0 | GA11: 0 | GB11: 0 | GC11: 0 | GD11: 0 | GE11: 0 | GF11: 0 | GG11: 0 | GH11: 0 | GI11: 0 | GJ11: 0 | GK11: 0 | GL11: 0 | GM11: 0 | GN11: 0 | GO11: 0 | GP11: 0 | GQ11: 0 | GR11: 0 | GS11: 0 | GT11: 0 | GU11: 0 | GV11: 0 | GW11: 0 | GX11: 0 | GY11: 0 | GZ11: 0 | HA11: 0 | HB11: 0 | HC11: 0 | HD11: 0 | HE11: 0 | HF11: 0 | HG11: 0 | HH11: 0 | HI11: 0 | HJ11: 0 | HK11: 0 | HL11: 0 | HM11: 0 | HN11: 0 | HO11: 0 | HP11: 0 | HQ11: 0 | HR11: 0 | HS11: 0 | HT11: 0 | HU11: 0 | HV11: 0 | HW11: 0 | HX11: 0 | HY11: 0 | HZ11: 0 | IA11: 0 | IB11: 0 | IC11: 0 | ID11: 0 | IE11: 0 | IF11: 0 | IG11: 0 | IH11: 0 | II11: 0 | IJ11: 0 | IK11: 0 | IL11: 0 | IM11: 0 | IN11: 0 | IO11: 0 | IP11: 0 | IQ11: 0 | IR11: 0 | IS11: 0 | IT11: 0 | IU11: 0 | IV11: 0 | IW11: 0 | IX11: 0 | IY11: 0 | IZ11: 0 | JA11: 0 | JB11: 0 | JC11: 0 | JD11: 0 | JE11: 0 | JF11: 0 | JG11: 0 | JH11: 0 | JI11: 0 | JJ11: 0 | JK11: 0 | JL11: 0 | JM11: 0 | JN11: 0 | JO11: 0 | JP11: 0 | JQ11: 0 | JR11: 0 | JS11: 0 | JV11: =SUM(D11:O11)/G_A!$Q$6 -> 0 | JW11: =SUM(P11:AA11)/G_A!$R$6 -> 0 | JX11: =SUM(AB11:AM11)/G_A!$S$6 -> 0 | JY11: =SUM(AN11:AY11)/G_A!$T$6 -> 0 | JZ11: =SUM(AZ11:BK11)/G_A!$U$6 -> 0 | KA11: =SUM(BL11:BW11)/G_A!$V$6 -> 0 | KB11: =SUM(BX11:CI11)/G_A!$W$6 -> 0 | KC11: =SUM(CJ11:CU11)/G_A!$X$6 -> 0 | KD11: =SUM(CV11:DG11)/G_A!$Y$6 -> 0 | KE11: =SUM(DH11:DS11)/G_A!$Z$6 -> 0 | KF11: =SUM(DT11:EE11)/G_A!$AA$6 -> 0 | KG11: =SUM(EF11:EQ11)/G_A!$AB$6 -> 0 | KH11: =SUM(ER11:FC11)/G_A!$AC$6 -> 0 | KI11: =SUM(FD11:FO11)/G_A!$AD$6 -> 0 | KJ11: =SUM(FP11:GA11)/G_A!$AE$6 -> 0 | KK11: =SUM(GB11:GM11)/G_A!$AF$6 -> 0 | KL11: =SUM(GN11:GY11)/G_A!$AG$6 -> 0 | KM11: =SUM(GZ11:HK11)/G_A!$AH$6 -> 0 | KN11: =SUM(HL11:HW11)/G_A!$AI$6 -> 0 | KO11: =SUM(HX11:II11)/G_A!$AJ$6 -> 0 | KP11: =SUM(IJ11:IU11)/G_A!$AK$6 -> 0 | KQ11: =SUM(IV11:JG11)/G_A!$AL$6 -> 0 | KR11: =SUM(JH11:JS11)/G_A!$AM$6 -> 0
B12: PURPA | D12: 15784 | E12: 16452 | F12: 20071 | G12: 19803 | H12: 18292 | I12: 13805 | J12: 12349 | K12: 11180 | L12: 11527 | M12: 14344 | N12: 13786 | O12: 15897 | P12: 15784 | Q12: 16452 | R12: 20071 | S12: 19803 | T12: 18292 | U12: 13805 | V12: 12349 | W12: 11180 | X12: 11527 | Y12: 14344 | Z12: 13786 | AA12: 15897 | AB12: 15784 | AC12: 16452 | AD12: 20071 | AE12: 19803 | AF12: 18292 | AG12: 13805 | AH12: 12349 | AI12: 11180 | AJ12: 11527 | AK12: 14344 | AL12: 13786 | AM12: 15897 | AN12: 15784 | AO12: 16452 | AP12: 20071 | AQ12: 19803 | AR12: 18292 | AS12: 13805 | AT12: 12349 | AU12: 11180 | AV12: 11527 | AW12: 14344 | AX12: 13786 | AY12: 15897 | AZ12: 15784 | BA12: 16452 | BB12: 20071 | BC12: 19803 | BD12: 18292 | BE12: 13805 | BF12: 12349 | BG12: 11180 | BH12: 11527 | BI12: 14344 | BJ12: 13786 | BK12: 15897 | BL12: 15784 | BM12: 16452 | BN12: 20071 | BO12: 19803 | BP12: 18292 | BQ12: 13805 | BR12: 12349 | BS12: 11180 | BT12: 11527 | BU12: 14344 | BV12: 13786 | BW12: 15897 | BX12: 15784 | BY12: 16452 | BZ12: 20071 | CA12: 19803 | CB12: 18292 | CC12: 13805 | CD12: 12349 | CE12: 11180 | CF12: 11527 | CG12: 14344 | CH12: 13786 | CI12: 15897 | CJ12: 15784 | CK12: 16452 | CL12: 20071 | CM12: 19803 | CN12: 18292 | CO12: 13805 | CP12: 12349 | CQ12: 11180 | CR12: 11527 | CS12: 14344 | CT12: 13786 | CU12: 15897 | CV12: 15784 | CW12: 16452 | CX12: 20071 | CY12: 19803 | CZ12: 18292 | DA12: 13805 | DB12: 12349 | DC12: 11180 | DD12: 11527 | DE12: 14344 | DF12: 13786 | DG12: 15897 | DH12: 15784 | DI12: 16452 | DJ12: 20071 | DK12: 19803 | DL12: 18292 | DM12: 13805 | DN12: 12349 | DO12: 11180 | DP12: 11527 | DQ12: 14344 | DR12: 13786 | DS12: 15897 | DT12: 15784 | DU12: 16452 | DV12: 20071 | DW12: 19803 | DX12: 18292 | DY12: 13805 | DZ12: 12349 | EA12: 11180 | EB12: 11527 | EC12: 14344 | ED12: 13786 | EE12: 15897 | EF12: 15784 | EG12: 16452 | EH12: 20071 | EI12: 19803 | EJ12: 18292 | EK12: 13805 | EL12: 12349 | EM12: 11180 | EN12: 11527 | EO12: 14344 | EP12: 13786 | EQ12: 15897 | ER12: 15784 | ES12: 16452 | ET12: 20071 | EU12: 19803 | EV12: 18292 | EW12: 13805 | EX12: 12349 | EY12: 11180 | EZ12: 11527 | FA12: 14344 | FB12: 13786 | FC12: 15897 | FD12: 15784 | FE12: 16452 | FF12: 20071 | FG12: 19803 | FH12: 18292 | FI12: 13805 | FJ12: 12349 | FK12: 11180 | FL12: 11527 | FM12: 14344 | FN12: 13786 | FO12: 15897 | FP12: 15784 | FQ12: 16452 | FR12: 20071 | FS12: 19803 | FT12: 18292 | FU12: 13805 | FV12: 12349 | FW12: 11180 | FX12: 11527 | FY12: 14344 | FZ12: 13786 | GA12: 15897 | GB12: 15784 | GC12: 16452 | GD12: 20071 | GE12: 19803 | GF12: 18292 | GG12: 13805 | GH12: 12349 | GI12: 11180 | GJ12: 11527 | GK12: 14344 | GL12: 13786 | GM12: 15897 | GN12: 15784 | GO12: 16452 | GP12: 20071 | GQ12: 19803 | GR12: 18292 | GS12: 13805 | GT12: 12349 | GU12: 11180 | GV12: 11527 | GW12: 14344 | GX12: 13786 | GY12: 15897 | GZ12: 15784 | HA12: 16452 | HB12: 20071 | HC12: 19803 | HD12: 18292 | HE12: 13805 | HF12: 12349 | HG12: 11180 | HH12: 11527 | HI12: 14344 | HJ12: 13786 | HK12: 15897 | HL12: 15784 | HM12: 16452 | HN12: 20071 | HO12: 19803 | HP12: 18292 | HQ12: 13805 | HR12: 12349 | HS12: 11180 | HT12: 11527 | HU12: 14344 | HV12: 13786 | HW12: 15897 | HX12: 15784 | HY12: 16452 | HZ12: 20071 | IA12: 19803 | IB12: 18292 | IC12: 13805 | ID12: 12349 | IE12: 11180 | IF12: 11527 | IG12: 14344 | IH12: 13786 | II12: 15897 | IJ12: 15784 | IK12: 16452 | IL12: 20071 | IM12: 19803 | IN12: 18292 | IO12: 13805 | IP12: 12349 | IQ12: 11180 | IR12: 11527 | IS12: 14344 | IT12: 13786 | IU12: 15897 | IV12: 15784 | IW12: 16452 | IX12: 20071 | IY12: 19803 | IZ12: 18292 | JA12: 13805 | JB12: 12349 | JC12: 11180 | JD12: 11527 | JE12: 14344 | JF12: 13786 | JG12: 15897 | JH12: 15784 | JI12: 16452 | JJ12: 20071 | JK12: 19803 | JL12: 18292 | JM12: 13805 | JN12: 12349 | JO12: 11180 | JP12: 11527 | JQ12: 14344 | JR12: 13786 | JS12: 15897 | JV12: =SUM(D12:O12)/G_A!$Q$6 -> 20.92351598 | JW12: =SUM(P12:AA12)/G_A!$R$6 -> 20.86634791 | JX12: =SUM(AB12:AM12)/G_A!$S$6 -> 20.92351598 | JY12: =SUM(AN12:AY12)/G_A!$T$6 -> 20.92351598 | JZ12: =SUM(AZ12:BK12)/G_A!$U$6 -> 20.92351598 | KA12: =SUM(BL12:BW12)/G_A!$V$6 -> 20.86634791 | KB12: =SUM(BX12:CI12)/G_A!$W$6 -> 20.92351598 | KC12: =SUM(CJ12:CU12)/G_A!$X$6 -> 20.92351598 | KD12: =SUM(CV12:DG12)/G_A!$Y$6 -> 20.92351598 | KE12: =SUM(DH12:DS12)/G_A!$Z$6 -> 20.86634791 | KF12: =SUM(DT12:EE12)/G_A!$AA$6 -> 20.92351598 | KG12: =SUM(EF12:EQ12)/G_A!$AB$6 -> 20.92351598 | KH12: =SUM(ER12:FC12)/G_A!$AC$6 -> 20.92351598 | KI12: =SUM(FD12:FO12)/G_A!$AD$6 -> 20.86634791 | KJ12: =SUM(FP12:GA12)/G_A!$AE$6 -> 20.92351598 | KK12: =SUM(GB12:GM12)/G_A!$AF$6 -> 20.92351598 | KL12: =SUM(GN12:GY12)/G_A!$AG$6 -> 20.92351598 | KM12: =SUM(GZ12:HK12)/G_A!$AH$6 -> 20.86634791 | KN12: =SUM(HL12:HW12)/G_A!$AI$6 -> 20.92351598 | KO12: =SUM(HX12:II12)/G_A!$AJ$6 -> 20.92351598 | KP12: =SUM(IJ12:IU12)/G_A!$AK$6 -> 20.92351598 | KQ12: =SUM(IV12:JG12)/G_A!$AL$6 -> 20.86634791 | KR12: =SUM(JH12:JS12)/G_A!$AM$6 -> 20.92351598
B13: Solar Select | D13: 1298 | E13: 2547 | F13: 3882 | G13: 5169 | H13: 6132 | I13: 6494 | J13: 7154 | K13: 6404 | L13: 4969 | M13: 3365 | N13: 1527 | O13: 1143 | P13: 1285 | Q13: 2522 | R13: 3843 | S13: 5118 | T13: 6071 | U13: 6429 | V13: 7082 | W13: 6340 | X13: 4920 | Y13: 3332 | Z13: 1512 | AA13: 1131 | AB13: 1273 | AC13: 2497 | AD13: 3805 | AE13: 5067 | AF13: 6010 | AG13: 6365 | AH13: 7012 | AI13: 6277 | AJ13: 4870 | AK13: 3298 | AL13: 1497 | AM13: 1120 | AN13: 1260 | AO13: 2472 | AP13: 3767 | AQ13: 5016 | AR13: 5950 | AS13: 6301 | AT13: 6941 | AU13: 6214 | AV13: 4822 | AW13: 3265 | AX13: 1482 | AY13: 1109 | AZ13: 1247 | BA13: 2447 | BB13: 3729 | BC13: 4966 | BD13: 5891 | BE13: 6238 | BF13: 6872 | BG13: 6152 | BH13: 4774 | BI13: 3233 | BJ13: 1467 | BK13: 1098 | BL13: 0 | BM13: 0 | BN13: 0 | BO13: 0 | BP13: 0 | BQ13: 0 | BR13: 0 | BS13: 0 | BT13: 0 | BU13: 0 | BV13: 0 | BW13: 0 | BX13: 0 | BY13: 0 | BZ13: 0 | CA13: 0 | CB13: 0 | CC13: 0 | CD13: 0 | CE13: 0 | CF13: 0 | CG13: 0 | CH13: 0 | CI13: 0 | CJ13: 0 | CK13: 0 | CL13: 0 | CM13: 0 | CN13: 0 | CO13: 0 | CP13: 0 | CQ13: 0 | CR13: 0 | CS13: 0 | CT13: 0 | CU13: 0 | CV13: 0 | CW13: 0 | CX13: 0 | CY13: 0 | CZ13: 0 | DA13: 0 | DB13: 0 | DC13: 0 | DD13: 0 | DE13: 0 | DF13: 0 | DG13: 0 | DH13: 0 | DI13: 0 | DJ13: 0 | DK13: 0 | DL13: 0 | DM13: 0 | DN13: 0 | DO13: 0 | DP13: 0 | DQ13: 0 | DR13: 0 | DS13: 0 | DT13: 0 | DU13: 0 | DV13: 0 | DW13: 0 | DX13: 0 | DY13: 0 | DZ13: 0 | EA13: 0 | EB13: 0 | EC13: 0 | ED13: 0 | EE13: 0 | EF13: 0 | EG13: 0 | EH13: 0 | EI13: 0 | EJ13: 0 | EK13: 0 | EL13: 0 | EM13: 0 | EN13: 0 | EO13: 0 | EP13: 0 | EQ13: 0 | ER13: 0 | ES13: 0 | ET13: 0 | EU13: 0 | EV13: 0 | EW13: 0 | EX13: 0 | EY13: 0 | EZ13: 0 | FA13: 0 | FB13: 0 | FC13: 0 | FD13: 0 | FE13: 0 | FF13: 0 | FG13: 0 | FH13: 0 | FI13: 0 | FJ13: 0 | FK13: 0 | FL13: 0 | FM13: 0 | FN13: 0 | FO13: 0 | FP13: 0 | FQ13: 0 | FR13: 0 | FS13: 0 | FT13: 0 | FU13: 0 | FV13: 0 | FW13: 0 | FX13: 0 | FY13: 0 | FZ13: 0 | GA13: 0 | GB13: 0 | GC13: 0 | GD13: 0 | GE13: 0 | GF13: 0 | GG13: 0 | GH13: 0 | GI13: 0 | GJ13: 0 | GK13: 0 | GL13: 0 | GM13: 0 | GN13: 0 | GO13: 0 | GP13: 0 | GQ13: 0 | GR13: 0 | GS13: 0 | GT13: 0 | GU13: 0 | GV13: 0 | GW13: 0 | GX13: 0 | GY13: 0 | GZ13: 0 | HA13: 0 | HB13: 0 | HC13: 0 | HD13: 0 | HE13: 0 | HF13: 0 | HG13: 0 | HH13: 0 | HI13: 0 | HJ13: 0 | HK13: 0 | HL13: 0 | HM13: 0 | HN13: 0 | HO13: 0 | HP13: 0 | HQ13: 0 | HR13: 0 | HS13: 0 | HT13: 0 | HU13: 0 | HV13: 0 | HW13: 0 | HX13: 0 | HY13: 0 | HZ13: 0 | IA13: 0 | IB13: 0 | IC13: 0 | ID13: 0 | IE13: 0 | IF13: 0 | IG13: 0 | IH13: 0 | II13: 0 | IJ13: 0 | IK13: 0 | IL13: 0 | IM13: 0 | IN13: 0 | IO13: 0 | IP13: 0 | IQ13: 0 | IR13: 0 | IS13: 0 | IT13: 0 | IU13: 0 | IV13: 0 | IW13: 0 | IX13: 0 | IY13: 0 | IZ13: 0 | JA13: 0 | JB13: 0 | JC13: 0 | JD13: 0 | JE13: 0 | JF13: 0 | JG13: 0 | JH13: 0 | JI13: 0 | JJ13: 0 | JK13: 0 | JL13: 0 | JM13: 0 | JN13: 0 | JO13: 0 | JP13: 0 | JQ13: 0 | JR13: 0 | JS13: 0 | JV13: =SUM(D13:O13)/G_A!$Q$6 -> 5.717351598 | JW13: =SUM(P13:AA13)/G_A!$R$6 -> 5.644922587 | JX13: =SUM(AB13:AM13)/G_A!$S$6 -> 5.603995434 | JY13: =SUM(AN13:AY13)/G_A!$T$6 -> 5.54783105 | JZ13: =SUM(AZ13:BK13)/G_A!$U$6 -> 5.492465753 | KA13: =SUM(BL13:BW13)/G_A!$V$6 -> 0 | KB13: =SUM(BX13:CI13)/G_A!$W$6 -> 0 | KC13: =SUM(CJ13:CU13)/G_A!$X$6 -> 0 | KD13: =SUM(CV13:DG13)/G_A!$Y$6 -> 0 | KE13: =SUM(DH13:DS13)/G_A!$Z$6 -> 0 | KF13: =SUM(DT13:EE13)/G_A!$AA$6 -> 0 | KG13: =SUM(EF13:EQ13)/G_A!$AB$6 -> 0 | KH13: =SUM(ER13:FC13)/G_A!$AC$6 -> 0 | KI13: =SUM(FD13:FO13)/G_A!$AD$6 -> 0 | KJ13: =SUM(FP13:GA13)/G_A!$AE$6 -> 0 | KK13: =SUM(GB13:GM13)/G_A!$AF$6 -> 0 | KL13: =SUM(GN13:GY13)/G_A!$AG$6 -> 0 | KM13: =SUM(GZ13:HK13)/G_A!$AH$6 -> 0 | KN13: =SUM(HL13:HW13)/G_A!$AI$6 -> 0 | KO13: =SUM(HX13:II13)/G_A!$AJ$6 -> 0 | KP13: =SUM(IJ13:IU13)/G_A!$AK$6 -> 0 | KQ13: =SUM(IV13:JG13)/G_A!$AL$6 -> 0 | KR13: =SUM(JH13:JS13)/G_A!$AM$6 -> 0
B14: Net Retail Load | D14: =D10-D11-D12-D13 -> 530981.1356 | E14: =E10-E11-E12-E13 -> 478910.3354 | F14: 458599.896 | G14: =G10-G11-G12-G13 -> 409280.0682 | H14: 405175.5106 | I14: 420766.3963 | J14: 470141.3322 | K14: 474789.2604 | L14: 411766.3455 | M14: 441540.3195 | N14: 481294.022 | O14: 540761.8726 | P14: 531766.319 | Q14: 502659.5307 | R14: 460133.6113 | S14: 411367.6707 | T14: 407825.7481 | U14: 423487.0893 | V14: 473097.9586 | W14: 477413.9603 | X14: 414028.6722 | Y14: 444139.4452 | Z14: 483595.2483 | AA14: 541649.4257 | AB14: 535541.0316 | AC14: 483801.142 | AD14: 464272.7618 | AE14: 415812.249 | AF14: 412776.4237 | AG14: 428670.5724 | AH14: 478777.495 | AI14: 482777.0399 | AJ14: 418717.9035 | AK14: 449328.889 | AL14: 488737.7725 | AM14: 545757.4234 | AN14: 536628.9693 | AO14: 484527.4486 | AP14: 462748.1299 | AQ14: 411983.499 | AR14: 407198.1632 | AS14: 422592.6109 | AT14: 471627.8136 | AU14: 475812.2437 | AV14: 413140.0689 | AW14: 447951.383 | AX14: 492308.6047 | AY14: 549546.5234 | AZ14: 540593.4343 | BA14: 488438.153 | BB14: 466531.9249 | BC14: 415364.4931 | BD14: 410409.1201 | BE14: 425699.4572 | BF14: 474837.9579 | BG14: 478687.955 | BH14: 415882.7954 | BI14: 452502.925 | BJ14: 498041.6045 | BK14: 554507.9822 | BL14: 544525.0194 | BM14: 516873.2352 | BN14: 472820.4684 | BO14: 422429.6381 | BP14: =BP10-BP11-BP12-BP13 -> 418099.1106 | BQ14: 433533.8053 | BR14: 483224.5602 | BS14: 486003.2322 | BT14: 421931.4927 | BU14: 459046.6908 | BV14: 504162.4217 | BW14: 559408.0322 | BX14: 552162.3672 | BY14: 500782.6379 | BZ14: 479654.3665 | CA14: 428178.368 | CB14: 423350.4655 | CC14: 438604.4114 | CD14: 488563.5336 | CE14: 490976.2168 | CF14: 426543.5381 | CG14: 466390.9611 | CH14: 513515.8814 | CI14: 568468.6337 | CJ14: 558743.2171 | CK14: 506977.8526 | CL14: 485455.9738 | CM14: 432748.5247 | CN14: 427222.8777 | CO14: 442161.1193 | CP14: 492182.7287 | CQ14: 494191.7596 | CR14: 429662.1097 | CS14: 472644.7655 | CT14: 522083.4262 | CU14: 576686.5849 | CV14: 567751.2146 | CW14: 515320.4319 | CX14: 493255.9676 | CY14: 438863.0349 | CZ14: 432441.4096 | DA14: 447036.4539 | DB14: 497224.82 | DC14: 498734.8796 | DD14: 433911.3805 | DE14: 480781.3979 | DF14: 533102.1221 | DG14: 587689.8926 | DH14: 576535.0929 | DI14: 548163.6422 | DJ14: 500750.9478 | DK14: 444392.2283 | DL14: 436808.8443 | DM14: 450900.8063 | DN14: 501103.2462 | DO14: 502095.3156 | DP14: 437195.1708 | DQ14: 488467.6329 | DR14: 544123.9423 | DS14: 598730.1677 | DT14: 591180.9327 | DU14: 536846.8693 | DV14: 513292.3003 | DW14: 454126.4253 | DX14: 445039.1658 | DY14: 458577.5118 | DZ14: 509149.088 | EA14: 509603.3883 | EB14: =EB10-EB11-EB12-EB13 -> 444169.1727 | EC14: 500876.9544 | ED14: 560858.6583 | EE14: 616102.4635 | EF14: 605705.5113 | EG14: 550121.7534 | EH14: 525619.2877 | EI14: 463370.1772 | EJ14: 452523.1132 | EK14: 465356.507 | EL14: 516157.4108 | EM14: 516054.4918 | EN14: 450284.7279 | EO14: 512930.4459 | EP14: 577683.0426 | EQ14: 633607.0996 | ER14: 622086.1621 | ES14: 565054.4524 | ET14: 539474.4372 | EU14: 473708.9343 | EV14: 460845.438 | EW14: 472873.4589 | EX14: 523940.8655 | EY14: 523261.738 | EZ14: 457117.1811 | FA14: 526327.7739 | FB14: 596430.8724 | FC14: 653266.6968 | FD14: 637972.2185 | FE14: 606988.2477 | FF14: 552805.3314 | FG14: 483374.0304 | FH14: 468328.8435 | FI14: 479448.0525 | FJ14: 530656.3758 | FK14: 529391.132 | FL14: 463044.4494 | FM14: 539107.9503 | FN14: 614819.1626 | FO14: 672578.9607 | FP14: 659312.747 | FQ14: 598888.8396 | FR14: 570852.4025 | FS14: 497125.2919 | FT14: 479723.5534 | FU14: 489980.9352 | FV14: 541723.0145 | FW14: 539846.1596 | FX14: 472763.7398 | FY14: 556414.8993 | FZ14: 638432.4227 | GA14: 697671.4259 | GB14: 678301.9323 | GC14: 616103.4391 | GD14: 586819.176 | GE14: 509168.421 | GF14: 489592.1613 | GG14: 499057.0549 | GH14: 551207.9593 | GI14: 548729.2574 | GJ14: 481043.4196 | GK14: 571785.9258 | GL14: 659638.3427 | GM14: 720182.3398 | GN14: =GN10-GN11-GN12-GN13 -> 696971.0197 | GO14: 632994.9036 | GP14: 602486.3155 | GQ14: 521104.4173 | GR14: 499518.5441 | GS14: 508304.8642 | GT14: 560908.0317 | GU14: 557829.5442 | GV14: 489441.2374 | GW14: 586963.6861 | GX14: 680356.1977 | GY14: 742220.3374 | GZ14: 712283.2281 | HA14: 677582.5885 | HB14: 615215.4753 | HC14: 530721.9764 | HD14: 507464.3138 | HE14: 515716.8413 | HF14: 568632.1609 | HG14: 564976.0781 | HH14: 496018.3328 | HI14: 599449.3469 | HJ14: 697564.9012 | HK14: 760490.3264 | HL14: 731533.0752 | HM14: 664145.9817 | HN14: 631366.057 | HO14: 543569.1191 | HP14: 518763.8209 | HQ14: 526690.968 | HR14: 580305.931 | HS14: 576045.1704 | HT14: 505936.8498 | HU14: 615409.3715 | HV14: 718351.9566 | HW14: 782740.4048 | HX14: 747532.2471 | HY14: 678495.5399 | HZ14: 644655.2522 | IA14: 554144.2002 | IB14: 528112.2756 | IC14: 535856.9225 | ID14: 590028.0628 | IE14: 585177.9701 | IF14: 514048.5898 | IG14: 628754.6241 | IH14: 735751.4062 | II14: 801362.4075 | IJ14: 762095.5444 | IK14: 691489.3554 | IL14: 656669.3569 | IM14: 563926.5891 | IN14: 537024.2258 | IO14: 544805.3378 | IP14: 599558.633 | IQ14: 594123.2933 | IR14: 521856.3637 | IS14: 641078.5686 | IT14: 751437.0373 | IU14: 818202.9836 | IV14: 774385.4089 | IW14: 735876.9573 | IX14: 666635.7181 | IY14: 571988.9897 | IZ14: =IZ10-IZ11-IZ12-IZ13 -> 544370.0065 | JA14: 552252.4766 | JB14: 607452.2518 | JC14: 601435.9589 | JD14: 528165.6338 | JE14: 651488.1421 | JF14: 764793.5485 | JG14: 832581.6288 | JH14: 790334.876 | JI14: 716512.8836 | JJ14: 679752.4129 | JK14: 583151.8686 | JL14: 555064.1133 | JM14: 563349.8289 | JN14: 619398.4902 | JO14: 612754.1618 | JP14: 537827.9442 | JQ14: 665232.4145 | JR14: 781395.2039 | JS14: 850598.7314 | JV14: =JV10-JV11-JV12-JV13 -> 630.5943487 | JW14: 634.2400591 | JX14: 639.8368383 | JY14: 636.5371528 | JZ14: 641.7234934 | KA14: 651.4182271 | KB14: 659.496733 | KC14: 666.753532 | KD14: 676.4969184 | KE14: 686.3919669 | KF14: 700.8930286 | KG14: 715.6864804 | KH14: 732.2360743 | KI14: 748.9201679 | KJ14: 769.7186565 | KK14: 788.9987933 | KL14: 808.1163355 | KM14: 824.9220822 | KN14: 844.1619527 | KO14: 861.1780249 | KP14: 876.9711517 | KQ14: 891.5558653 | KR14: 908.1475947
A16: Goal | B16: Primary Compliance Target | D16: =D14*D7 -> 252216.0394 | E16: =E14*E7 -> 227482.4093 | F16: 217834.9506 | G16: 194408.0324 | H16: 192458.3676 | I16: 199864.0382 | J16: 223317.1328 | K16: 225524.8987 | L16: 195589.0141 | M16: 209731.6517 | N16: 228614.6605 | O16: 256861.8895 | P16: 292471.4755 | Q16: 276462.7419 | R16: 253073.4862 | S16: 226252.2189 | T16: 224304.1614 | U16: 232917.8991 | V16: 260203.8772 | W16: 262577.6782 | X16: 227715.7697 | Y16: 244276.6948 | Z16: 265977.3866 | AA16: 297907.1841 | AB16: 334713.1447 | AC16: 302375.7138 | AD16: 290170.4761 | AE16: 259882.6556 | AF16: 257985.2648 | AG16: 267919.1077 | AH16: 299235.9344 | AI16: 301735.6499 | AJ16: 261698.6897 | AK16: 280830.5556 | AL16: 305461.1078 | AM16: 341098.3896 | AN16: 354175.1197 | AO16: 319788.1161 | AP16: 305413.7657 | AQ16: 271909.1093 | AR16: 268750.7877 | AS16: 278911.1232 | AT16: 311274.357 | AU16: 314036.0808 | AV16: 272672.4455 | AW16: 295647.9128 | AX16: =AX14*AX7 -> 324923.6791 | AY16: 362700.7054 | AZ16: 375712.4368 | BA16: 339464.5163 | BB16: 324239.6878 | BC16: 288678.3227 | BD16: 285234.3384 | BE16: 295861.1227 | BF16: 330012.3808 | BG16: 332688.1288 | BH16: 289038.5428 | BI16: 314489.5329 | BJ16: 346138.9151 | BK16: 385383.0477 | BL16: 397503.2642 | BM16: 377317.4617 | BN16: 345158.942 | BO16: 308373.6358 | BP16: =BP14*BP7 -> 305212.3507 | BQ16: 316479.6779 | BR16: 352753.9289 | BS16: 354782.3595 | BT16: 308009.9897 | BU16: 335104.0843 | BV16: 368038.5679 | BW16: 408367.8635 | BX16: 422404.2109 | BY16: 383098.718 | BZ16: 366935.5904 | CA16: 327556.4515 | CB16: 323863.1061 | CC16: 335532.3747 | CD16: 373751.1032 | CE16: 375596.8058 | CF16: 326305.8067 | CG16: 356789.0852 | CH16: 392839.6493 | CI16: 434878.5048 | CJ16: 446994.5737 | CK16: 405582.2821 | CL16: 388364.7791 | CM16: 346198.8197 | CN16: 341778.3022 | CO16: 353728.8955 | CP16: 393746.1829 | CQ16: 395353.4077 | CR16: 343729.6877 | CS16: 378115.8124 | CT16: 417666.741 | CU16: 461349.2679 | CV16: 454200.9717 | CW16: 412256.3455 | CX16: 394604.7741 | CY16: 351090.4279 | CZ16: 345953.1277 | DA16: 357629.1631 | DB16: 397779.856 | DC16: 398987.9037 | DD16: 347129.1044 | DE16: 384625.1183 | DF16: 426481.6977 | DG16: 470151.9141 | DH16: 461228.0743 | DI16: 438530.9137 | DJ16: 400600.7582 | DK16: 355513.7827 | DL16: 349447.0754 | DM16: 360720.645 | DN16: 400882.597 | DO16: 401676.2525 | DP16: 349756.1367 | DQ16: 390774.1064 | DR16: 435299.1538 | DS16: 478984.1342 | DT16: 472944.7461 | DU16: 429477.4954 | DV16: 410633.8402 | DW16: 363301.1402 | DX16: 356031.3326 | DY16: 366862.0094 | DZ16: 407319.2704 | EA16: 407682.7106 | EB16: =EB14*EB7 -> 355335.3382 | EC16: 400701.5635 | ED16: 448686.9266 | EE16: 492881.9708 | EF16: 514849.6846 | EG16: 467603.4904 | EH16: 446776.3945 | EI16: 393864.6506 | EJ16: 384644.6462 | EK16: 395553.031 | EL16: 438733.7992 | EM16: 438646.318 | EN16: 382742.0187 | EO16: 435990.879 | EP16: 491030.5862 | EQ16: 538566.0346 | ER16: 528773.2378 | ES16: 480296.2845 | ET16: 458553.2716 | EU16: 402652.5941 | EV16: 391718.6223 | EW16: 401942.4401 | EX16: 445349.7356 | EY16: 444772.4773 | EZ16: 388549.604 | FA16: 447378.6078 | FB16: 506966.2415 | FC16: 555276.6923 | FD16: 542276.3857 | FE16: 515940.0105 | FF16: 469884.5317 | FG16: 410867.9258 | FH16: 398079.517 | FI16: 407530.8446 | FJ16: 451057.9195 | FK16: 449982.4622 | FL16: 393587.782 | FM16: 458241.7578 | FN16: 522596.2882 | FO16: 571692.1166 | FP16: 560415.8349 | FQ16: 509055.5136 | FR16: 485224.5421 | FS16: 422556.4981 | FT16: 407765.0204 | FU16: 416483.795 | FV16: 460464.5623 | FW16: 458869.2356 | FX16: 401849.1788 | FY16: 472952.6644 | FZ16: 542667.5593 | GA16: 593020.712 | GB16: 610471.7391 | GC16: 554493.0952 | GD16: 528137.2584 | GE16: 458251.5789 | GF16: 440632.9451 | GG16: 449151.3494 | GH16: 496087.1634 | GI16: 493856.3317 | GJ16: 432939.0776 | GK16: 514607.3332 | GL16: 593674.5084 | GM16: 648164.1058 | GN16: =GN14*GN7 -> 627273.9177 | GO16: 569695.4132 | GP16: 542237.6839 | GQ16: 468993.9756 | GR16: 449566.6897 | GS16: 457474.3778 | GT16: 504817.2285 | GU16: 502046.5898 | GV16: 440497.1137 | GW16: 528267.3175 | GX16: 612320.5779 | GY16: 667998.3037 | GZ16: 641054.9053 | HA16: 609824.3297 | HB16: 553693.9278 | HC16: 477649.7787 | HD16: 456717.8824 | HE16: 464145.1572 | HF16: 511768.9448 | HG16: 508478.4703 | HH16: 446416.4996 | HI16: 539504.4122 | HJ16: 627808.4111 | HK16: 684441.2937 | HL16: 658379.7677 | HM16: 597731.3835 | HN16: 568229.4513 | HO16: 489212.2072 | HP16: 466887.4388 | HQ16: 474021.8712 | HR16: 522275.3379 | HS16: 518440.6534 | HT16: 455343.1648 | HU16: 553868.4343 | HV16: 646516.7609 | HW16: 704466.3643 | HX16: 710155.6348 | HY16: 644570.7629 | HZ16: 612422.4896 | IA16: 526436.9902 | IB16: 501706.6618 | IC16: 509064.0764 | ID16: 560526.6596 | IE16: 555919.0716 | IF16: 488346.1603 | IG16: 597316.8929 | IH16: 698963.8359 | II16: 761294.2871 | IJ16: 723990.7671 | IK16: 656914.8876 | IL16: 623835.889 | IM16: 535730.2597 | IN16: 510173.0145 | IO16: 517565.0709 | IP16: 569580.7014 | IQ16: 564417.1287 | IR16: 495763.5456 | IS16: 609024.6402 | IT16: 713865.1854 | IU16: 777292.8344 | IV16: 735666.1384 | IW16: 699083.1094 | IX16: 633303.9322 | IY16: 543389.5402 | IZ16: =IZ14*IZ7 -> 517151.5062 | JA16: 524639.8527 | JB16: 577079.6392 | JC16: 571364.161 | JD16: 501757.3521 | JE16: 618913.735 | JF16: 726553.8711 | JG16: 790952.5474 | JH16: 790334.876 | JI16: 716512.8836 | JJ16: 679752.4129 | JK16: 583151.8686 | JL16: 555064.1133 | JM16: 563349.8289 | JN16: 619398.4902 | JO16: 612754.1618 | JP16: 537827.9442 | JQ16: 665232.4145 | JR16: 781395.2039 | JS16: 850598.7314 | JV16: =SUM(D16:O16)/G_A!$Q$6 -> 299.5323156 | JW16: =SUM(P16:AA16)/G_A!$R$6 -> 348.8320325 | JX16: =SUM(AB16:AM16)/G_A!$S$6 -> 399.898024 | JY16: =SUM(AN16:AY16)/G_A!$T$6 -> 420.1145208 | JZ16: =SUM(AZ16:BK16)/G_A!$U$6 -> 445.9978279 | KA16: =SUM(BL16:BW16)/G_A!$V$6 -> 475.5353058 | KB16: =SUM(BX16:CI16)/G_A!$W$6 -> 504.5150008 | KC16: =SUM(CJ16:CU16)/G_A!$X$6 -> 533.4028256 | KD16: =SUM(CV16:DG16)/G_A!$Y$6 -> 541.1975347 | KE16: =SUM(DH16:DS16)/G_A!$Z$6 -> 549.1135735 | KF16: =SUM(DT16:EE16)/G_A!$AA$6 -> 560.7144229 | KG16: =SUM(EF16:EQ16)/G_A!$AB$6 -> 608.3335083 | KH16: =SUM(ER16:FC16)/G_A!$AC$6 -> 622.4006631 | KI16: =SUM(FD16:FO16)/G_A!$AD$6 -> 636.5821427 | KJ16: =SUM(FP16:GA16)/G_A!$AE$6 -> 654.2608581 | KK16: =SUM(GB16:GM16)/G_A!$AF$6 -> 710.0989139 | KL16: =SUM(GN16:GY16)/G_A!$AG$6 -> 727.3047019 | KM16: =SUM(GZ16:HK16)/G_A!$AH$6 -> 742.4298739 | KN16: =SUM(HL16:HW16)/G_A!$AI$6 -> 759.7457575 | KO16: =SUM(HX16:II16)/G_A!$AJ$6 -> 818.1191236 | KP16: =SUM(IJ16:IU16)/G_A!$AK$6 -> 833.1225941 | KQ16: =SUM(IV16:JG16)/G_A!$AL$6 -> 846.9780721 | KR16: =SUM(JH16:JS16)/G_A!$AM$6 -> 908.1475947
B17: Alternative Compliance | D17: =D14*D8 -> 0 | E17: 0 | F17: 0 | G17: 0 | H17: 0 | I17: 0 | J17: 0 | K17: 0 | L17: 0 | M17: 0 | N17: 0 | O17: 0 | P17: 0 | Q17: 0 | R17: 0 | S17: 0 | T17: 0 | U17: 0 | V17: 0 | W17: 0 | X17: 0 | Y17: 0 | Z17: 0 | AA17: 0 | AB17: 0 | AC17: 0 | AD17: 0 | AE17: 0 | AF17: 0 | AG17: 0 | AH17: 0 | AI17: 0 | AJ17: 0 | AK17: 0 | AL17: 0 | AM17: 0 | AN17: 0 | AO17: 0 | AP17: 0 | AQ17: 0 | AR17: 0 | AS17: 0 | AT17: 0 | AU17: 0 | AV17: 0 | AW17: 0 | AX17: 0 | AY17: 0 | AZ17: 0 | BA17: 0 | BB17: 0 | BC17: 0 | BD17: 0 | BE17: 0 | BF17: 0 | BG17: 0 | BH17: 0 | BI17: 0 | BJ17: 0 | BK17: 0 | BL17: 0 | BM17: 0 | BN17: 0 | BO17: 0 | BP17: =BP14*BP8 -> 0 | BQ17: 0 | BR17: 0 | BS17: 0 | BT17: 0 | BU17: 0 | BV17: 0 | BW17: 0 | BX17: 0 | BY17: 0 | BZ17: 0 | CA17: 0 | CB17: 0 | CC17: 0 | CD17: 0 | CE17: 0 | CF17: 0 | CG17: 0 | CH17: 0 | CI17: 0 | CJ17: 111748.6434 | CK17: 101395.5705 | CL17: 97091.19477 | CM17: 86549.70493 | CN17: 85444.57555 | CO17: 88432.22386 | CP17: 98436.54573 | CQ17: 98838.35192 | CR17: 85932.42194 | CS17: 94528.95311 | CT17: 104416.6852 | CU17: 115337.317 | CV17: 113550.2429 | CW17: 103064.0864 | CX17: 98651.19352 | CY17: 87772.60698 | CZ17: 86488.28193 | DA17: 89407.29079 | DB17: 99444.964 | DC17: 99746.97593 | DD17: 86782.27611 | DE17: 96156.27957 | DF17: 106620.4244 | DG17: 117537.9785 | DH17: 115307.0186 | DI17: 109632.7284 | DJ17: 100150.1896 | DK17: 88878.44567 | DL17: 87361.76886 | DM17: 90180.16125 | DN17: 100220.6492 | DO17: 100419.0631 | DP17: 87439.03417 | DQ17: 97693.52659 | DR17: 108824.7885 | DS17: 119746.0335 | DT17: 118236.1865 | DU17: 107369.3739 | DV17: 102658.4601 | DW17: 90825.28506 | DX17: 89007.83315 | DY17: 91715.50236 | DZ17: 101829.8176 | EA17: 101920.6777 | EB17: =EB14*EB8 -> 88833.83455 | EC17: 100175.3909 | ED17: 112171.7317 | EE17: 123220.4927 | EF17: 90855.82669 | EG17: 82518.26301 | EH17: 78842.89315 | EI17: 69505.52658 | EJ17: 67878.46698 | EK17: 69803.47606 | EL17: 77423.61162 | EM17: 77408.17377 | EN17: 67542.70918 | EO17: 76939.56688 | EP17: 86652.45639 | EQ17: 95041.06494 | ER17: 93312.92431 | ES17: 84758.16786 | ET17: 80921.16558 | EU17: 71056.34014 | EV17: 69126.81571 | EW17: 70931.01883 | EX17: 78591.12982 | EY17: 78489.2607 | EZ17: 68567.57717 | FA17: 78949.16608 | FB17: 89464.63086 | FC17: 97990.00452 | FD17: 95695.83277 | FE17: 91048.23715 | FF17: 82920.79971 | FG17: 72506.10456 | FH17: 70249.32652 | FI17: 71917.20787 | FJ17: 79598.45637 | FK17: 79408.6698 | FL17: 69456.66742 | FM17: 80866.19255 | FN17: 92222.87439 | FO17: 100886.8441 | FP17: 98896.91204 | FQ17: 89833.32594 | FR17: 85627.86038 | FS17: 74568.79378 | FT17: 71958.53302 | FU17: 73497.14029 | FV17: 81258.45217 | FW17: 80976.92394 | FX17: 70914.56097 | FY17: 83462.23489 | FZ17: 95764.8634 | GA17: 104650.7139 | GB17: 67830.19323 | GC17: 61610.34391 | GD17: 58681.9176 | GE17: 50916.8421 | GF17: 48959.21613 | GG17: 49905.70549 | GH17: 55120.79593 | GI17: 54872.92574 | GJ17: 48104.34196 | GK17: 57178.59258 | GL17: 65963.83427 | GM17: 72018.23398 | GN17: =GN14*GN8 -> 69697.10197 | GO17: 63299.49036 | GP17: 60248.63155 | GQ17: 52110.44173 | GR17: 49951.85441 | GS17: 50830.48642 | GT17: 56090.80317 | GU17: 55782.95442 | GV17: 48944.12374 | GW17: 58696.36861 | GX17: 68035.61977 | GY17: 74222.03374 | GZ17: 71228.32281 | HA17: 67758.25885 | HB17: 61521.54753 | HC17: 53072.19764 | HD17: 50746.43138 | HE17: 51571.68413 | HF17: 56863.21609 | HG17: 56497.60781 | HH17: 49601.83328 | HI17: 59944.93469 | HJ17: 69756.49012 | HK17: 76049.03264 | HL17: 73153.30752 | HM17: 66414.59817 | HN17: 63136.6057 | HO17: 54356.91191 | HP17: 51876.38209 | HQ17: 52669.0968 | HR17: 58030.5931 | HS17: 57604.51704 | HT17: 50593.68498 | HU17: 61540.93715 | HV17: 71835.19566 | HW17: 78274.04048 | HX17: 37376.61236 | HY17: 33924.777 | HZ17: 32232.76261 | IA17: 27707.21001 | IB17: 26405.61378 | IC17: 26792.84612 | ID17: 29501.40314 | IE17: 29258.8985 | IF17: 25702.42949 | IG17: 31437.7312 | IH17: 36787.57031 | II17: 40068.12037 | IJ17: 38104.77722 | IK17: 34574.46777 | IL17: 32833.46784 | IM17: 28196.32946 | IN17: 26851.21129 | IO17: 27240.26689 | IP17: 29977.93165 | IQ17: 29706.16467 | IR17: 26092.81819 | IS17: 32053.92843 | IT17: 37571.85186 | IU17: 40910.14918 | IV17: 38719.27044 | IW17: 36793.84786 | IX17: 33331.7859 | IY17: 28599.44949 | IZ17: =IZ14*IZ8 -> 27218.50033 | JA17: 27612.62383 | JB17: 30372.61259 | JC17: 30071.79795 | JD17: 26408.28169 | JE17: 32574.40711 | JF17: 38239.67743 | JG17: 41629.08144 | JH17: 0 | JI17: 0 | JJ17: 0 | JK17: 0 | JL17: 0 | JM17: 0 | JN17: 0 | JO17: 0 | JP17: 0 | JQ17: 0 | JR17: 0 | JS17: 0 | JV17: =SUM(D17:O17)/G_A!$Q$6 -> 0 | JW17: =SUM(P17:AA17)/G_A!$R$6 -> 0 | JX17: =SUM(AB17:AM17)/G_A!$S$6 -> 0 | JY17: =SUM(AN17:AY17)/G_A!$T$6 -> 0 | JZ17: =SUM(AZ17:BK17)/G_A!$U$6 -> 0 | KA17: =SUM(BL17:BW17)/G_A!$V$6 -> 0 | KB17: =SUM(BX17:CI17)/G_A!$W$6 -> 0 | KC17: =SUM(CJ17:CU17)/G_A!$X$6 -> 133.3507064 | KD17: =SUM(CV17:DG17)/G_A!$Y$6 -> 135.2993837 | KE17: =SUM(DH17:DS17)/G_A!$Z$6 -> 137.2783934 | KF17: =SUM(DT17:EE17)/G_A!$AA$6 -> 140.1786057 | KG17: =SUM(EF17:EQ17)/G_A!$AB$6 -> 107.3529721 | KH17: =SUM(ER17:FC17)/G_A!$AC$6 -> 109.8354111 | KI17: =SUM(FD17:FO17)/G_A!$AD$6 -> 112.3380252 | KJ17: =SUM(FP17:GA17)/G_A!$AE$6 -> 115.4577985 | KK17: =SUM(GB17:GM17)/G_A!$AF$6 -> 78.89987933 | KL17: =SUM(GN17:GY17)/G_A!$AG$6 -> 80.81163355 | KM17: =SUM(GZ17:HK17)/G_A!$AH$6 -> 82.49220822 | KN17: =SUM(HL17:HW17)/G_A!$AI$6 -> 84.41619527 | KO17: =SUM(HX17:II17)/G_A!$AJ$6 -> 43.05890124 | KP17: =SUM(IJ17:IU17)/G_A!$AK$6 -> 43.84855759 | KQ17: =SUM(IV17:JG17)/G_A!$AL$6 -> 44.57779327 | KR17: =SUM(JH17:JS17)/G_A!$AM$6 -> 0
